{"text_format":"1","workbook":"xlsx","n_sheets":26,"sheets":["start","Aanvraagformulier","Aantal Omgevingen","Route (1)","Route (2)","Route (3)","Route (4)","Route (5)","Route (6)","Route (7)","Route (8)","Route (9)","Route (10)","Route (11)","Route (12)","Route (13)","Route (14)","Route (15)","Route (16)","Route (17)","Route (18)","Route (19)","Route (20)","Route (21)","Route (22)","Route (23)"],"not_rendered":{"charts":0,"images":9,"macros":1,"external_links":0,"defined_names":141,"comments":0,"pivot_tables":0},"unopened":[],"bounds":{"document_bytes":16777216,"sheet_cells":100000,"rows_first":2000,"rows_last":500,"rows_between":2000,"halvings":0,"cell_chars":16384,"cell_head_chars":4096},"cells_cut":0,"cells_raw":0,"read":"whole","date_system":"1900"}

{"sheet":"start","index":0,"n_rows":36,"n_cols":27,"rows_kept":36,"cut":false,"hidden":false,"merged":[[5,1,7,9],[19,1,29,5],[19,22,22,30],[19,11,21,19]]}
[]
[null,"Welkom "]
[]
[]
[]
[null,"Gelieve Macro's te activeren om de aanvraag te initiëren"]
[]
[]
[]
[]
[]
[]
[]
[null,"Onderhavig aanvraagformulier maakt gebruik van Excel Macro's."]
[null,"Indien bovenstaande melding niet wordt weergegeven, kan het zijn dat Macros zonder notificatie worden gedeactiveerd."]
[null,"Volgende 3 stappen dienen te worden doorlopen om deze instelling manueel te wijzigen."]
[]
[]
[]
[null,"Om Macro's in Office-bestanden in of uit te schakelen dient u bovenaan uw scherm op \"File\" (Bestand) te klikken en vervolgens naar het menu \"Options\" (Instellingen) te navigeren.",null,null,null,null,null,null,null,null,null,"Vervolgens activeert u in het menu 'Trust Center' > \"Trust Center Settings…\"",null,null,null,null,null,null,null,null,null,null,"Vervolgens dient u bij \"Macro Settings\" (Instellingen voor macro's) de selectie te maken om op \"Disable all maros with notification\" ( Alle macro's uitschakelen, met melding)"]
[]
[]
[]
[]
[]
[]
[]
[]
[]
[]
[]
[]
[]
[]
[]
[null,null,null,null,null,null,null,null,null,null,null,null,null,null,null,null,null,null,null,null,null,null,null,null,null,null,"Of "]

{"sheet":"Aanvraagformulier","index":1,"n_rows":106,"n_cols":23,"rows_kept":106,"cut":false,"hidden":true,"merged":[[98,7,99,15],[100,8,100,10],[93,7,94,15],[95,8,95,10],[28,6,28,11],[29,6,29,11],[30,6,30,11],[31,6,31,11],[73,7,74,15],[75,8,75,10],[89,7,90,15],[71,7,71,15],[91,8,91,10],[41,6,41,11],[42,6,42,11],[35,6,35,11],[22,4,22,5],[11,6,22,6],[13,4,13,5],[24,12,26,12],[67,7,67,18],[24,5,26,5],[17,7,17,15],[11,7,11,15],[12,7,12,15],[20,4,20,5],[21,4,21,5],[14,4,14,5],[21,7,21,15],[19,7,19,15],[20,7,20,15],[22,7,22,15],[83,20,85,20],[27,6,27,11],[24,6,26,11],[65,7,65,18],[66,7,66,18],[64,7,64,18],[60,7,60,18],[61,7,61,18],[62,7,62,18],[24,15,26,15],[68,18,68,19],[55,7,56,18],[24,13,26,13],[24,14,26,14],[70,4,70,15],[77,7,78,15],[2,24,6,29],[5,15,5,16],[18,7,18,15],[14,7,14,15],[8,21,8,22],[3,7,3,19],[13,7,13,15],[5,7,5,8],[6,1,6,19],[18,4,18,5],[19,4,19,5],[15,7,15,15],[15,4,15,5],[16,7,16,15],[11,4,11,5],[12,4,12,5],[16,4,16,5],[17,4,17,5],[23,4,23,16],[89,18,91,18],[89,19,91,19],[87,7,87,15],[71,18,72,18],[71,19,72,19],[76,18,78,18],[76,19,78,19],[79,18,82,18],[79,19,82,19],[86,18,88,18],[86,19,88,19],[32,6,32,11],[33,6,33,11],[34,6,34,11],[36,6,36,11],[37,6,37,11],[38,6,38,11],[39,6,39,11],[40,6,40,11],[48,6,48,11],[49,6,49,11],[43,6,43,11],[44,6,44,11],[45,6,45,11],[46,6,46,11],[47,6,47,11]]}
[]
[]
[null,null,2]
[null,null,null,null,null,null,null,"Aanvraagdocument Subsidie Veilige Schoolroutes"]
[]
[]
[null,"Verklaring betreffende de verwerking van persoonsgegevens\n\nHet departement Mobiliteit en Openbare Werken verwerkt uw persoonsgegevens uitsluitend voor het vervullen van een wettelijke verplichting, namelijk het toekennen van subsidies voor veilige schoolroutes volgens het Besluit Vlaamse Regering houdende de regeling van subsidies aan gemeenten in het kader van veilige schoolroutes op gemeentewegen van 19 maart 2021.  Als u niet wilt dat we uw gegevens verwerken, kunt u dat melden door het  invulformulier in te vullen op onze website. We kunnen u dan mogelijk de dienst die u vraagt, niet verstrekken. U kunt ook altijd via deze weg vragen welke persoonsgegevens we verwerken en u kunt ze laten verbeteren of verwijderen. We vragen dan een bewijs van uw identiteit zodat we uw gegevens niet meedelen aan iemand die er geen recht op heeft.  Als u vragen hebt over de manier waarop we uw gegevens verwerken, kunt u deze stellen via het 'invulformulier op onze website'. Bent u het niet eens met de manier waarop we uw gegevens verwerken, dan kunt u zich wenden tot de bevoegde toezichthoudende autoriteit. Ons beleid op het vlak van gegevensverwerking vindt u op https://departement-mow.vlaanderen.be/nl/privacyverklaring.\n\nGelieve de formuleringen in dit formulier - incl. de naam van de tabbladen - niet aan te passen. Dit formulier (én de bijlagen) dient gezipt (met of zonder wachtwoord) te worden opgestuurd naar subsidies.veilige.schoolroutes@mow.vlaanderen.be (met vermelding van het gekozen wachtwoord).\nMeer uitleg vindt u op de infopagina van de subsidie. Als u problemen ondervindt met deze werkwijze of met het formulier zelf stuur dan een e-mail naar bovenstaand e-mailadres. "]
[]
[null,"Vul in onderstaande tabel de gevraagde gegevens in, maak waar nodig een keuze uit de aangeboden keuzelijst en vink alle verklaringen aan die op de aanvraag van toepassing zijn.",null,null,null,null,null,null,null,null,null,null,null,null,null,null,null,null,null,"Voortgang sectie",null,"Validatie \nMOW"]
[null,"0. Identificatie aanvrager en overzicht",null,null,null,null,null,null,null,null,null,null,null,null,null,null,null,null,null,{"$f":"SUM(C12:C22,C27,D56)/COUNT(C12:C22,C27,D56)","v":7.6923076923076927E-2},"Ratio Legis","Evaluatie","Comment (optioneel)"]
[]
[null,null,{"$f":"IF(AND(LEN(H12)>0,NOT(H12=\"<< Verplicht veld >>\")),1,0)","v":0},null,"Gemeente",null,null,"<< Verplicht veld >>"]
[null,null,{"$f":"IF(AND(LEN(H13)>0,NOT(H13=\"<< Verplicht veld >>\")),1,0)","v":0},null,"Postcode",null,null,"<< Verplicht veld >>"]
[null,null,0,null,"Datum indiening",null,null,"<< Verplicht veld >>"]
[null,null,0,null,"KBO n°",null,null,"<< Verplicht veld >>"]
[null,null,0,null,"Rekening n° (IBAN)",null,null,"<< Verplicht veld >>"]
[null,null,0,null,"E-mail contactpersoon",null,null,"<< Verplicht veld >>"]
[null,null,0,null,"Telefoon contactpersoon",null,null,"<< Verplicht veld >>"]
[null,null,0,null,"Correspondentieadres\ncontactpersoon",null,null,"<< Verplicht veld >>"]
[null,null,0,null,"Naam contactpersoon",null,null,"<< Verplicht veld >>"]
[null,null,0,null,"Uw referentie",null,null,"<< Verplicht veld >>"]
[null,null,{"$f":"IF(H22>0,1,0)","v":1},null,"Aantal schoolroutes",null,null,1]
[null,null,null,null,"Totaal bedrag project\n(incl. BTW)",null,null,{"$f":"SUM(N28:N53)","v":0}]
[null,null,null,null,"Individuele kerngegevens per Schoolroute:"]
[null,null,null,null,null,"Route","Naam Schoolroute",null,null,null,null,null,"Raming kosten\n (excl. BTW)","Raming kosten\n (incl. BTW)","Detailfiche ","Detailfiche volledig ingevuld?"]
[]
[null,null,{"$f":"IF(SUM(D28:D50)=H22,1,0)","v":0}]
[null,null,null,{"$f":"IF(AND(F28<=H$22,R28=TRUE),1,0)","v":0},null,1,"Schoolroute ABC",null,null,null,null,null,null,null,{"$f":"HYPERLINK(\"#'Route (\"&F28&\")'!A1\",\"Klik hier\")","v":"Klik hier"},null,null,false]
[null,null,null,{"$f":"IF(AND(F29<=H$22,R29=TRUE),1,0)","v":0},null,2,"<< Gelieve de naam van Schoolroute 2 in te vullen >>",null,null,null,null,null,null,null,{"$f":"HYPERLINK(\"#'Route (\"&F29&\")'!A1\",\"Klik hier\")","v":"Klik hier"},null,null,false]
[null,null,null,0,null,3,"<< Gelieve de naam van Schoolroute 3 in te vullen >>",null,null,null,null,null,null,null,"Klik hier",null,null,false]
[null,null,null,0,null,4,"<< Gelieve de naam van Schoolroute 4 in te vullen >>",null,null,null,null,null,null,null,"Klik hier",null,null,false]
[null,null,null,0,null,5,"<< Gelieve de naam van Schoolroute 5 in te vullen >>",null,null,null,null,null,null,null,"Klik hier",null,null,false]
[null,null,null,{"$f":"IF(AND(F33<=H$22,R33=TRUE),1,0)","v":0},null,6,"<< Gelieve de naam van Schoolroute 6 in te vullen >>",null,null,null,null,null,null,null,"Klik hier",null,null,false]
[null,null,null,{"$f":"IF(AND(F34<=H$22,R34=TRUE),1,0)","v":0},null,7,"<< Gelieve de naam van Schoolroute 7 in te vullen >>",null,null,null,null,null,null,null,"Klik hier",null,null,false]
[null,null,null,0,null,8,"<< Gelieve de naam van Schoolroute 8 in te vullen >>",null,null,null,null,null,null,null,"Klik hier",null,null,false]
[null,null,null,0,null,9,"<< Gelieve de naam van Schoolroute 9 in te vullen >>",null,null,null,null,null,null,null,"Klik hier",null,null,false]
[null,null,null,0,null,10,"<< Gelieve de naam van Schoolroute 10 in te vullen >>",null,null,null,null,null,null,null,"Klik hier",null,null,false]
[null,null,null,0,null,11,"<< Gelieve de naam van Schoolroute 11 in te vullen >>",null,null,null,null,null,null,null,"Klik hier",null,null,false]
[null,null,null,0,null,12,"<< Gelieve de naam van Schoolroute 12 in te vullen >>",null,null,null,null,null,null,null,"Klik hier",null,null,false]
[null,null,null,0,null,13,"<< Gelieve de naam van Schoolroute 13 in te vullen >>",null,null,null,null,null,null,null,"Klik hier",null,null,false]
[null,null,null,0,null,14,"<< Gelieve de naam van Schoolroute 14 in te vullen >>",null,null,null,null,null,null,null,"Klik hier",null,null,false]
[null,null,null,0,null,15,"<< Gelieve de naam van Schoolroute 15 in te vullen >>",null,null,null,null,null,null,null,"Klik hier",null,null,false]
[null,null,null,0,null,16,"<< Gelieve de naam van Schoolroute 16 in te vullen >>",null,null,null,null,null,null,null,"Klik hier",null,null,false]
[null,null,null,0,null,17,"<< Gelieve de naam van Schoolroute 17 in te vullen >>",null,null,null,null,null,null,null,"Klik hier",null,null,false]
["i",null,null,0,null,18,"<< Gelieve de naam van Schoolroute 18 in te vullen >>",null,null,null,null,null,null,null,"Klik hier",null,null,false]
[null,null,null,0,null,19,"<< Gelieve de naam van Schoolroute 19 in te vullen >>",null,null,null,null,null,null,null,"Klik hier",null,null,false]
["i",null,null,0,null,20,"<< Gelieve de naam van Schoolroute 20 in te vullen >>",null,null,null,null,null,null,null,"Klik hier",null,null,false]
[null,null,null,0,null,21,"<< Gelieve de naam van Schoolroute 21 in te vullen >>",null,null,null,null,null,null,null,"Klik hier",null,null,false]
[null,null,null,0,null,22,"<< Gelieve de naam van Schoolroute 22 in te vullen >>",null,null,null,null,null,null,null,"Klik hier",null,null,false]
[null,null,null,0,null,23,"<< Gelieve de naam van Schoolroute 23 in te vullen >>",null,null,null,null,null,null,null,"Klik hier",null,null,false]
[]
[]
[]
[]
[]
[null,null,false,{"$f":"IF(C56,C27,0)","v":0},null,null,null,"De gemeente overschrijdt geenszins de ingestelde grens van maximum 1 aanvraag per kalenderjaar en de som van de schoolroutes die men aanvraagt voor deze subsidie (aantal in 2021 + aantal in 2022) overschrijdt geenszins het maximale aantal dat de gemeente kan aanvragen.”",null,null,null,null,null,null,null,null,null,null,null,null,"Art. 6 (1)"]
[]
[null,"1. Bevestiging inzake volledigheid van de aanvraag",null,null,null,null,null,null,null,null,null,null,null,null,null,null,null,null,null,{"$f":"COUNTIF(C61:D67,TRUE)/4","v":0}]
[]
[]
[null,null,false,null,null,null,null,"De aanvrager bevestigt dat het bovenstaande overzicht volledig en accuraat werd ingevuld.",null,null,null,null,null,null,null,null,null,null,null,null,"Art. 2 §1 1° (1)"]
[null,null,null,null,null,null,null,"EN"]
[null,null,false,null,null,null,null,"De aanvrager bevestigt dat de bijhorende detailfiches werden opgesteld",null,null,null,null,null,null,null,null,null,null,null,null,"Art. 2 §1 1° (1)"]
[]
[null,null,null,false,null,null,null,"i) Overeenkomstig het overzicht"]
[null,null,null,null,null,null,null,"EN"]
[null,null,null,false,null,null,null,"ii) Dat de kruisverwijzingen naar de referentiedocumenten voldoende in detail toelaten de volledigheid van het dossier na te gaan"]
[]
[]
[null,"2. Overige Bevestigingen",null,null,null,null,null,null,null,null,null,null,null,null,null,null,null,null,null,{"$f":"COUNTIF(C72:D103,TRUE)/COUNTA(C72:D103)","v":0}]
[]
[null,null,false,null,null,null,null,"De gemeente is aanvrager en opdrachtgever voor ALLE Schoolroutes.",null,null,null,null,null,null,null,null,null,null,null,null,"Art. 6 juncto art 2 §2 (1)"]
[]
[null,null,false,null,null,null,null,"Een overzichtelijk plan op schaal waarop duidelijk aangegeven is welke scholen en schoolroute(s) deel uitmaken van het project en waar de geplande maatregelen zullen worden uitgevoerd, werd toegevoegd aan het dossier.",null,null,null,null,null,null,null,null,null,null,null,null,"Art. 7  Eerste Lid 6° (1)"]
[]
[null,null,{"$f":"NOT(ISBLANK(I76))","v":false},null,null,null,null,"Bijlage*:"]
[null,null,false]
[null,null,null,null,null,null,null,"Voor geen enkele van de schoolroutes betreft de beoogde subsidie grotere herinrichtingsprojecten, zoals bedoeld in artikel 29 en 30 van het decreet van 26 april 2019 betreffende de basisbereikbaarheid (dit betreft bijvoorbeeld projecten die de (her)aanleg van fietspaden op het Bovenlokaal Functioneel Fietsroutenetwerk omvatten).",null,null,null,null,null,null,null,null,null,null,null,null,"Art. 42 §6 (2)"]
[null,null,null,null,null,null,null,null,null,null,null,null,null,null,null,null,null,null,null,null,"Art. 29-30(3)"]
[]
[null,null,false,null,null,null,null,"GEEN van onderstaande kosten werden vervat in de aangifte:",null,null,null,null,null,null,null,null,null,null,null,null,"Art 42 § 6 (2) "]
[null,null,null,null,null,null,null,"i) Kosten voor opmaak van het projectdossier ;"]
[null,null,null,null,null,null,null,"ii) Kosten gerelateerd aan bijkomende studies, onderzoeken of analyses."]
[null,null,null,null,null,null,null,"iii) Toezichtskosten, namelijk kosten voor :",null,null,null,null,null,null,null,null,null,null,null,null,"Art. 3 (1) juncto art 43 §2 (4)"]
[null,null,null,null,null,null,null,"  a) het werftoezicht, met inbegrip van de proefkosten, als het toezicht is uitbesteed aan derden;"]
[null,null,null,null,null,null,null,"  b) de voorlopige en definitieve oplevering, als de opmaak en opvolging ervan worden uitbesteed aan derden;"]
[]
[null,null,false,null,null,null,null,"De informatie over de aanvrager, met inbegrip van het rekeningnummer waarop de subsidie moet worden gestort, is correct opgenomen.",null,null,null,null,null,null,null,null,null,null,null,null,"Art. 7 Eerste lid 8° (1)"]
[]
[null,null,null,null,null,null,null,"Een afschrift van de gemeenteraadsbeslissing of de beslissing van het college van burgemeester en schepenen tot aanvraag van deze subsidie werd bijgevoegd.",null,null,null,null,null,null,null,null,null,null,null,null,"Art. 7  Eerste Lid 5° (1)"]
[]
[null,null,false,{"$f":"OR(NOT(ISBLANK(I92)))","v":false},null,null,null,"Bijlage*:"]
[]
[null,null,null,null,null,null,null,"Een motivering voor de keuze van de geselecteerde schoolroute of schoolroutes: een beschrijving van de lokale verkeersveiligheidsproblematiek op de schoolroute voor de scholieren, die met het project zal worden aangepakt, werd toegevoegd aan het dossier.",null,null,null,null,null,null,null,null,null,null,null,null,"Art. 7 Eerste lid 7° (1)"]
[]
[null,null,false,{"$f":"NOT(ISBLANK(I96))","v":false},null,null,null,"Bijlage*:"]
[]
[]
[null,null,null,null,null,null,null,"Een verklaring op erewoord dat de projecten waarvoor de gemeente een aanvraag indient niet gesubsidieerd is of zal worden op basis van een andere subsidieregeling.",null,null,null,null,null,null,null,null,null,null,null,null,"Art. 7 Eerste lid 9° (1)"]
[]
[null,null,false,null,null,null,null,"Bijlage*:"]
[]
[null,null,null,null,null,null,null,"* veplicht op te nemen"]
[]
[]
[null,"Voor de administratie (MOW)",null,null,null,null,null,null,null,null,null,"Voor de aanvrager (Naam + Functie)"]

{"sheet":"Aantal Omgevingen","index":2,"n_rows":31,"n_cols":52,"rows_kept":31,"cut":false,"hidden":true,"merged":[]}
[null,null,null,null,null,null,null,null,null,null,null,null,null,null,null,null,null,null,null,null,null,null,null,"D58","D59","D60","D61","D62","D63","D64","D65","D66","D67","D68","D69","D70","D71","D72","D73","D74","D75","D76",null,null,null,"D84","D85","D86","D87","D88","D89","D90"]
[null,null,null,null,null,null,null,null,null,null,null,null,1,2000,"Antwerpen",23,null,null,6,{"$f":"IFERROR(VLOOKUP(Aanvraagformulier!H12,'Aantal Omgevingen'!N$2:P$17,3,FALSE)+1,6)","v":6},null,1,"Route (1)",{"$f":"INDIRECT(\"'\"&$W2&\"'!\"&X$1)","v":false},{"$f":"INDIRECT(\"'\"&$W2&\"'!\"&Y$1)","v":false},{"$f":"INDIRECT(\"'\"&$W2&\"'!\"&Z$1)","v":false},{"$f":"INDIRECT(\"'\"&$W2&\"'!\"&AA$1)","v":false},{"$f":"INDIRECT(\"'\"&$W2&\"'!\"&AB$1)","v":false},{"$f":"INDIRECT(\"'\"&$W2&\"'!\"&AC$1)","v":false},{"$f":"INDIRECT(\"'\"&$W2&\"'!\"&AD$1)","v":false},{"$f":"INDIRECT(\"'\"&$W2&\"'!\"&AE$1)","v":false},{"$f":"INDIRECT(\"'\"&$W2&\"'!\"&AF$1)","v":false},{"$f":"INDIRECT(\"'\"&$W2&\"'!\"&AG$1)","v":false},{"$f":"INDIRECT(\"'\"&$W2&\"'!\"&AH$1)","v":false},{"$f":"INDIRECT(\"'\"&$W2&\"'!\"&AI$1)","v":false},{"$f":"INDIRECT(\"'\"&$W2&\"'!\"&AJ$1)","v":false},{"$f":"INDIRECT(\"'\"&$W2&\"'!\"&AK$1)","v":false},{"$f":"INDIRECT(\"'\"&$W2&\"'!\"&AL$1)","v":false},{"$f":"INDIRECT(\"'\"&$W2&\"'!\"&AM$1)","v":false},{"$f":"INDIRECT(\"'\"&$W2&\"'!\"&AN$1)","v":false},{"$f":"INDIRECT(\"'\"&$W2&\"'!\"&AO$1)","v":false},{"$f":"INDIRECT(\"'\"&$W2&\"'!\"&AP$1)","v":false},null,1,"Route (1)",{"$f":"INDIRECT(\"'\"&$W2&\"'!\"&AT$1)","v":0},{"$f":"INDIRECT(\"'\"&$W2&\"'!\"&AU$1)","v":0},{"$f":"INDIRECT(\"'\"&$W2&\"'!\"&AV$1)","v":0},{"$f":"INDIRECT(\"'\"&$W2&\"'!\"&AW$1)","v":0},{"$f":"INDIRECT(\"'\"&$W2&\"'!\"&AX$1)","v":0},{"$f":"INDIRECT(\"'\"&$W2&\"'!\"&AY$1)","v":0},{"$f":"INDIRECT(\"'\"&$W2&\"'!\"&AZ$1)","v":0}]
[null,null,null,null,null,null,null,null,null,null,null,null,2,9000,"Gent",14,null,null,null,null,null,2,"Route (2)",{"$f":"INDIRECT(\"'\"&$W3&\"'!\"&X$1)","v":false},{"$f":"INDIRECT(\"'\"&$W3&\"'!\"&Y$1)","v":false},{"$f":"INDIRECT(\"'\"&$W3&\"'!\"&Z$1)","v":false},{"$f":"INDIRECT(\"'\"&$W3&\"'!\"&AA$1)","v":false},{"$f":"INDIRECT(\"'\"&$W3&\"'!\"&AB$1)","v":false},{"$f":"INDIRECT(\"'\"&$W3&\"'!\"&AC$1)","v":false},{"$f":"INDIRECT(\"'\"&$W3&\"'!\"&AD$1)","v":false},{"$f":"INDIRECT(\"'\"&$W3&\"'!\"&AE$1)","v":false},{"$f":"INDIRECT(\"'\"&$W3&\"'!\"&AF$1)","v":false},{"$f":"INDIRECT(\"'\"&$W3&\"'!\"&AG$1)","v":false},{"$f":"INDIRECT(\"'\"&$W3&\"'!\"&AH$1)","v":false},{"$f":"INDIRECT(\"'\"&$W3&\"'!\"&AI$1)","v":false},{"$f":"INDIRECT(\"'\"&$W3&\"'!\"&AJ$1)","v":false},{"$f":"INDIRECT(\"'\"&$W3&\"'!\"&AK$1)","v":false},{"$f":"INDIRECT(\"'\"&$W3&\"'!\"&AL$1)","v":false},{"$f":"INDIRECT(\"'\"&$W3&\"'!\"&AM$1)","v":false},{"$f":"INDIRECT(\"'\"&$W3&\"'!\"&AN$1)","v":false},{"$f":"INDIRECT(\"'\"&$W3&\"'!\"&AO$1)","v":false},{"$f":"INDIRECT(\"'\"&$W3&\"'!\"&AP$1)","v":false},null,2,"Route (2)",{"$f":"INDIRECT(\"'\"&$W3&\"'!\"&AT$1)","v":60},{"$f":"INDIRECT(\"'\"&$W3&\"'!\"&AU$1)","v":35},{"$f":"INDIRECT(\"'\"&$W3&\"'!\"&AV$1)","v":0},{"$f":"INDIRECT(\"'\"&$W3&\"'!\"&AW$1)","v":0},{"$f":"INDIRECT(\"'\"&$W3&\"'!\"&AX$1)","v":0},{"$f":"INDIRECT(\"'\"&$W3&\"'!\"&AY$1)","v":0},{"$f":"INDIRECT(\"'\"&$W3&\"'!\"&AZ$1)","v":0}]
[null,null,null,null,null,null,null,null,null,null,null,null,3,8000,"Brugge",9,null,null,null,null,null,3,"Route (3)",{"$f":"INDIRECT(\"'\"&$W4&\"'!\"&X$1)","v":false},{"$f":"INDIRECT(\"'\"&$W4&\"'!\"&Y$1)","v":false},{"$f":"INDIRECT(\"'\"&$W4&\"'!\"&Z$1)","v":false},{"$f":"INDIRECT(\"'\"&$W4&\"'!\"&AA$1)","v":false},{"$f":"INDIRECT(\"'\"&$W4&\"'!\"&AB$1)","v":false},{"$f":"INDIRECT(\"'\"&$W4&\"'!\"&AC$1)","v":false},{"$f":"INDIRECT(\"'\"&$W4&\"'!\"&AD$1)","v":false},{"$f":"INDIRECT(\"'\"&$W4&\"'!\"&AE$1)","v":false},{"$f":"INDIRECT(\"'\"&$W4&\"'!\"&AF$1)","v":false},{"$f":"INDIRECT(\"'\"&$W4&\"'!\"&AG$1)","v":false},{"$f":"INDIRECT(\"'\"&$W4&\"'!\"&AH$1)","v":false},{"$f":"INDIRECT(\"'\"&$W4&\"'!\"&AI$1)","v":false},{"$f":"INDIRECT(\"'\"&$W4&\"'!\"&AJ$1)","v":false},{"$f":"INDIRECT(\"'\"&$W4&\"'!\"&AK$1)","v":false},{"$f":"INDIRECT(\"'\"&$W4&\"'!\"&AL$1)","v":false},{"$f":"INDIRECT(\"'\"&$W4&\"'!\"&AM$1)","v":false},{"$f":"INDIRECT(\"'\"&$W4&\"'!\"&AN$1)","v":false},{"$f":"INDIRECT(\"'\"&$W4&\"'!\"&AO$1)","v":false},{"$f":"INDIRECT(\"'\"&$W4&\"'!\"&AP$1)","v":false},null,3,"Route (3)",{"$f":"INDIRECT(\"'\"&$W4&\"'!\"&AT$1)","v":60},{"$f":"INDIRECT(\"'\"&$W4&\"'!\"&AU$1)","v":35},{"$f":"INDIRECT(\"'\"&$W4&\"'!\"&AV$1)","v":0},{"$f":"INDIRECT(\"'\"&$W4&\"'!\"&AW$1)","v":0},{"$f":"INDIRECT(\"'\"&$W4&\"'!\"&AX$1)","v":0},{"$f":"INDIRECT(\"'\"&$W4&\"'!\"&AY$1)","v":0},{"$f":"INDIRECT(\"'\"&$W4&\"'!\"&AZ$1)","v":0}]
[null,null,null,null,null,null,null,null,null,null,null,null,4,8500,"Kortrijk",8,null,null,null,null,null,4,"Route (4)",{"$f":"INDIRECT(\"'\"&$W5&\"'!\"&X$1)","v":false},{"$f":"INDIRECT(\"'\"&$W5&\"'!\"&Y$1)","v":false},{"$f":"INDIRECT(\"'\"&$W5&\"'!\"&Z$1)","v":false},{"$f":"INDIRECT(\"'\"&$W5&\"'!\"&AA$1)","v":false},{"$f":"INDIRECT(\"'\"&$W5&\"'!\"&AB$1)","v":false},{"$f":"INDIRECT(\"'\"&$W5&\"'!\"&AC$1)","v":false},{"$f":"INDIRECT(\"'\"&$W5&\"'!\"&AD$1)","v":false},{"$f":"INDIRECT(\"'\"&$W5&\"'!\"&AE$1)","v":false},{"$f":"INDIRECT(\"'\"&$W5&\"'!\"&AF$1)","v":false},{"$f":"INDIRECT(\"'\"&$W5&\"'!\"&AG$1)","v":false},{"$f":"INDIRECT(\"'\"&$W5&\"'!\"&AH$1)","v":false},{"$f":"INDIRECT(\"'\"&$W5&\"'!\"&AI$1)","v":false},{"$f":"INDIRECT(\"'\"&$W5&\"'!\"&AJ$1)","v":false},{"$f":"INDIRECT(\"'\"&$W5&\"'!\"&AK$1)","v":false},{"$f":"INDIRECT(\"'\"&$W5&\"'!\"&AL$1)","v":false},{"$f":"INDIRECT(\"'\"&$W5&\"'!\"&AM$1)","v":false},{"$f":"INDIRECT(\"'\"&$W5&\"'!\"&AN$1)","v":false},{"$f":"INDIRECT(\"'\"&$W5&\"'!\"&AO$1)","v":false},{"$f":"INDIRECT(\"'\"&$W5&\"'!\"&AP$1)","v":false},null,4,"Route (4)",{"$f":"INDIRECT(\"'\"&$W5&\"'!\"&AT$1)","v":60},{"$f":"INDIRECT(\"'\"&$W5&\"'!\"&AU$1)","v":35},{"$f":"INDIRECT(\"'\"&$W5&\"'!\"&AV$1)","v":0},{"$f":"INDIRECT(\"'\"&$W5&\"'!\"&AW$1)","v":0},{"$f":"INDIRECT(\"'\"&$W5&\"'!\"&AX$1)","v":0},{"$f":"INDIRECT(\"'\"&$W5&\"'!\"&AY$1)","v":0},{"$f":"INDIRECT(\"'\"&$W5&\"'!\"&AZ$1)","v":0}]
[null,null,null,null,null,null,null,null,null,null,null,null,5,3000,"Leuven",7,null,null,null,null,null,5,"Route (5)",{"$f":"INDIRECT(\"'\"&$W6&\"'!\"&X$1)","v":false},{"$f":"INDIRECT(\"'\"&$W6&\"'!\"&Y$1)","v":false},{"$f":"INDIRECT(\"'\"&$W6&\"'!\"&Z$1)","v":false},{"$f":"INDIRECT(\"'\"&$W6&\"'!\"&AA$1)","v":false},{"$f":"INDIRECT(\"'\"&$W6&\"'!\"&AB$1)","v":false},{"$f":"INDIRECT(\"'\"&$W6&\"'!\"&AC$1)","v":false},{"$f":"INDIRECT(\"'\"&$W6&\"'!\"&AD$1)","v":false},{"$f":"INDIRECT(\"'\"&$W6&\"'!\"&AE$1)","v":false},{"$f":"INDIRECT(\"'\"&$W6&\"'!\"&AF$1)","v":false},{"$f":"INDIRECT(\"'\"&$W6&\"'!\"&AG$1)","v":false},{"$f":"INDIRECT(\"'\"&$W6&\"'!\"&AH$1)","v":false},{"$f":"INDIRECT(\"'\"&$W6&\"'!\"&AI$1)","v":false},{"$f":"INDIRECT(\"'\"&$W6&\"'!\"&AJ$1)","v":false},{"$f":"INDIRECT(\"'\"&$W6&\"'!\"&AK$1)","v":false},{"$f":"INDIRECT(\"'\"&$W6&\"'!\"&AL$1)","v":false},{"$f":"INDIRECT(\"'\"&$W6&\"'!\"&AM$1)","v":false},{"$f":"INDIRECT(\"'\"&$W6&\"'!\"&AN$1)","v":false},{"$f":"INDIRECT(\"'\"&$W6&\"'!\"&AO$1)","v":false},{"$f":"INDIRECT(\"'\"&$W6&\"'!\"&AP$1)","v":false},null,5,"Route (5)",{"$f":"INDIRECT(\"'\"&$W6&\"'!\"&AT$1)","v":60},{"$f":"INDIRECT(\"'\"&$W6&\"'!\"&AU$1)","v":35},{"$f":"INDIRECT(\"'\"&$W6&\"'!\"&AV$1)","v":0},{"$f":"INDIRECT(\"'\"&$W6&\"'!\"&AW$1)","v":0},{"$f":"INDIRECT(\"'\"&$W6&\"'!\"&AX$1)","v":0},{"$f":"INDIRECT(\"'\"&$W6&\"'!\"&AY$1)","v":0},{"$f":"INDIRECT(\"'\"&$W6&\"'!\"&AZ$1)","v":0}]
[null,null,null,null,null,null,null,null,null,null,null,null,6,9300,"Aalst",7,null,null,null,null,null,6,"Route (6)",{"$f":"INDIRECT(\"'\"&$W7&\"'!\"&X$1)","v":false},{"$f":"INDIRECT(\"'\"&$W7&\"'!\"&Y$1)","v":false},{"$f":"INDIRECT(\"'\"&$W7&\"'!\"&Z$1)","v":false},{"$f":"INDIRECT(\"'\"&$W7&\"'!\"&AA$1)","v":false},{"$f":"INDIRECT(\"'\"&$W7&\"'!\"&AB$1)","v":false},{"$f":"INDIRECT(\"'\"&$W7&\"'!\"&AC$1)","v":false},{"$f":"INDIRECT(\"'\"&$W7&\"'!\"&AD$1)","v":false},{"$f":"INDIRECT(\"'\"&$W7&\"'!\"&AE$1)","v":false},{"$f":"INDIRECT(\"'\"&$W7&\"'!\"&AF$1)","v":false},{"$f":"INDIRECT(\"'\"&$W7&\"'!\"&AG$1)","v":false},{"$f":"INDIRECT(\"'\"&$W7&\"'!\"&AH$1)","v":false},{"$f":"INDIRECT(\"'\"&$W7&\"'!\"&AI$1)","v":false},{"$f":"INDIRECT(\"'\"&$W7&\"'!\"&AJ$1)","v":false},{"$f":"INDIRECT(\"'\"&$W7&\"'!\"&AK$1)","v":false},{"$f":"INDIRECT(\"'\"&$W7&\"'!\"&AL$1)","v":false},{"$f":"INDIRECT(\"'\"&$W7&\"'!\"&AM$1)","v":false},{"$f":"INDIRECT(\"'\"&$W7&\"'!\"&AN$1)","v":false},{"$f":"INDIRECT(\"'\"&$W7&\"'!\"&AO$1)","v":false},{"$f":"INDIRECT(\"'\"&$W7&\"'!\"&AP$1)","v":false},null,6,"Route (6)",{"$f":"INDIRECT(\"'\"&$W7&\"'!\"&AT$1)","v":60},{"$f":"INDIRECT(\"'\"&$W7&\"'!\"&AU$1)","v":35},{"$f":"INDIRECT(\"'\"&$W7&\"'!\"&AV$1)","v":0},{"$f":"INDIRECT(\"'\"&$W7&\"'!\"&AW$1)","v":0},{"$f":"INDIRECT(\"'\"&$W7&\"'!\"&AX$1)","v":0},{"$f":"INDIRECT(\"'\"&$W7&\"'!\"&AY$1)","v":0},{"$f":"INDIRECT(\"'\"&$W7&\"'!\"&AZ$1)","v":0}]
[null,null,null,null,null,null,null,null,null,null,null,null,7,3500,"Hasselt",6,null,null,null,null,null,7,"Route (7)",{"$f":"INDIRECT(\"'\"&$W8&\"'!\"&X$1)","v":false},{"$f":"INDIRECT(\"'\"&$W8&\"'!\"&Y$1)","v":false},{"$f":"INDIRECT(\"'\"&$W8&\"'!\"&Z$1)","v":false},{"$f":"INDIRECT(\"'\"&$W8&\"'!\"&AA$1)","v":false},{"$f":"INDIRECT(\"'\"&$W8&\"'!\"&AB$1)","v":false},{"$f":"INDIRECT(\"'\"&$W8&\"'!\"&AC$1)","v":false},{"$f":"INDIRECT(\"'\"&$W8&\"'!\"&AD$1)","v":false},{"$f":"INDIRECT(\"'\"&$W8&\"'!\"&AE$1)","v":false},{"$f":"INDIRECT(\"'\"&$W8&\"'!\"&AF$1)","v":false},{"$f":"INDIRECT(\"'\"&$W8&\"'!\"&AG$1)","v":false},{"$f":"INDIRECT(\"'\"&$W8&\"'!\"&AH$1)","v":false},{"$f":"INDIRECT(\"'\"&$W8&\"'!\"&AI$1)","v":false},{"$f":"INDIRECT(\"'\"&$W8&\"'!\"&AJ$1)","v":false},{"$f":"INDIRECT(\"'\"&$W8&\"'!\"&AK$1)","v":false},{"$f":"INDIRECT(\"'\"&$W8&\"'!\"&AL$1)","v":false},{"$f":"INDIRECT(\"'\"&$W8&\"'!\"&AM$1)","v":false},{"$f":"INDIRECT(\"'\"&$W8&\"'!\"&AN$1)","v":false},{"$f":"INDIRECT(\"'\"&$W8&\"'!\"&AO$1)","v":false},{"$f":"INDIRECT(\"'\"&$W8&\"'!\"&AP$1)","v":false},null,7,"Route (7)",{"$f":"INDIRECT(\"'\"&$W8&\"'!\"&AT$1)","v":60},{"$f":"INDIRECT(\"'\"&$W8&\"'!\"&AU$1)","v":35},{"$f":"INDIRECT(\"'\"&$W8&\"'!\"&AV$1)","v":0},{"$f":"INDIRECT(\"'\"&$W8&\"'!\"&AW$1)","v":0},{"$f":"INDIRECT(\"'\"&$W8&\"'!\"&AX$1)","v":0},{"$f":"INDIRECT(\"'\"&$W8&\"'!\"&AY$1)","v":0},{"$f":"INDIRECT(\"'\"&$W8&\"'!\"&AZ$1)","v":0}]
[null,null,null,null,null,null,null,null,null,null,null,null,8,8800,"Roeselare",6,null,null,null,null,null,8,"Route (8)",{"$f":"INDIRECT(\"'\"&$W9&\"'!\"&X$1)","v":false},{"$f":"INDIRECT(\"'\"&$W9&\"'!\"&Y$1)","v":false},{"$f":"INDIRECT(\"'\"&$W9&\"'!\"&Z$1)","v":false},{"$f":"INDIRECT(\"'\"&$W9&\"'!\"&AA$1)","v":false},{"$f":"INDIRECT(\"'\"&$W9&\"'!\"&AB$1)","v":false},{"$f":"INDIRECT(\"'\"&$W9&\"'!\"&AC$1)","v":false},{"$f":"INDIRECT(\"'\"&$W9&\"'!\"&AD$1)","v":false},{"$f":"INDIRECT(\"'\"&$W9&\"'!\"&AE$1)","v":false},{"$f":"INDIRECT(\"'\"&$W9&\"'!\"&AF$1)","v":false},{"$f":"INDIRECT(\"'\"&$W9&\"'!\"&AG$1)","v":false},{"$f":"INDIRECT(\"'\"&$W9&\"'!\"&AH$1)","v":false},{"$f":"INDIRECT(\"'\"&$W9&\"'!\"&AI$1)","v":false},{"$f":"INDIRECT(\"'\"&$W9&\"'!\"&AJ$1)","v":false},{"$f":"INDIRECT(\"'\"&$W9&\"'!\"&AK$1)","v":false},{"$f":"INDIRECT(\"'\"&$W9&\"'!\"&AL$1)","v":false},{"$f":"INDIRECT(\"'\"&$W9&\"'!\"&AM$1)","v":false},{"$f":"INDIRECT(\"'\"&$W9&\"'!\"&AN$1)","v":false},{"$f":"INDIRECT(\"'\"&$W9&\"'!\"&AO$1)","v":false},{"$f":"INDIRECT(\"'\"&$W9&\"'!\"&AP$1)","v":false},null,8,"Route (8)",{"$f":"INDIRECT(\"'\"&$W9&\"'!\"&AT$1)","v":60},{"$f":"INDIRECT(\"'\"&$W9&\"'!\"&AU$1)","v":35},{"$f":"INDIRECT(\"'\"&$W9&\"'!\"&AV$1)","v":0},{"$f":"INDIRECT(\"'\"&$W9&\"'!\"&AW$1)","v":0},{"$f":"INDIRECT(\"'\"&$W9&\"'!\"&AX$1)","v":0},{"$f":"INDIRECT(\"'\"&$W9&\"'!\"&AY$1)","v":0},{"$f":"INDIRECT(\"'\"&$W9&\"'!\"&AZ$1)","v":0}]
[null,null,null,null,null,null,null,null,null,null,null,null,9,9100,"Sint-Niklaas",6,null,null,null,null,null,9,"Route (9)",{"$f":"INDIRECT(\"'\"&$W10&\"'!\"&X$1)","v":false},{"$f":"INDIRECT(\"'\"&$W10&\"'!\"&Y$1)","v":false},{"$f":"INDIRECT(\"'\"&$W10&\"'!\"&Z$1)","v":false},{"$f":"INDIRECT(\"'\"&$W10&\"'!\"&AA$1)","v":false},{"$f":"INDIRECT(\"'\"&$W10&\"'!\"&AB$1)","v":false},{"$f":"INDIRECT(\"'\"&$W10&\"'!\"&AC$1)","v":false},{"$f":"INDIRECT(\"'\"&$W10&\"'!\"&AD$1)","v":false},{"$f":"INDIRECT(\"'\"&$W10&\"'!\"&AE$1)","v":false},{"$f":"INDIRECT(\"'\"&$W10&\"'!\"&AF$1)","v":false},{"$f":"INDIRECT(\"'\"&$W10&\"'!\"&AG$1)","v":false},{"$f":"INDIRECT(\"'\"&$W10&\"'!\"&AH$1)","v":false},{"$f":"INDIRECT(\"'\"&$W10&\"'!\"&AI$1)","v":false},{"$f":"INDIRECT(\"'\"&$W10&\"'!\"&AJ$1)","v":false},{"$f":"INDIRECT(\"'\"&$W10&\"'!\"&AK$1)","v":false},{"$f":"INDIRECT(\"'\"&$W10&\"'!\"&AL$1)","v":false},{"$f":"INDIRECT(\"'\"&$W10&\"'!\"&AM$1)","v":false},{"$f":"INDIRECT(\"'\"&$W10&\"'!\"&AN$1)","v":false},{"$f":"INDIRECT(\"'\"&$W10&\"'!\"&AO$1)","v":false},{"$f":"INDIRECT(\"'\"&$W10&\"'!\"&AP$1)","v":false},null,9,"Route (9)",{"$f":"INDIRECT(\"'\"&$W10&\"'!\"&AT$1)","v":60},{"$f":"INDIRECT(\"'\"&$W10&\"'!\"&AU$1)","v":35},{"$f":"INDIRECT(\"'\"&$W10&\"'!\"&AV$1)","v":0},{"$f":"INDIRECT(\"'\"&$W10&\"'!\"&AW$1)","v":0},{"$f":"INDIRECT(\"'\"&$W10&\"'!\"&AX$1)","v":0},{"$f":"INDIRECT(\"'\"&$W10&\"'!\"&AY$1)","v":0},{"$f":"INDIRECT(\"'\"&$W10&\"'!\"&AZ$1)","v":0}]
[null,null,null,null,null,null,null,null,null,null,null,null,10,2800,"Mechelen",6,null,null,null,null,null,10,"Route (10)",{"$f":"INDIRECT(\"'\"&$W11&\"'!\"&X$1)","v":false},{"$f":"INDIRECT(\"'\"&$W11&\"'!\"&Y$1)","v":false},{"$f":"INDIRECT(\"'\"&$W11&\"'!\"&Z$1)","v":false},{"$f":"INDIRECT(\"'\"&$W11&\"'!\"&AA$1)","v":false},{"$f":"INDIRECT(\"'\"&$W11&\"'!\"&AB$1)","v":false},{"$f":"INDIRECT(\"'\"&$W11&\"'!\"&AC$1)","v":false},{"$f":"INDIRECT(\"'\"&$W11&\"'!\"&AD$1)","v":false},{"$f":"INDIRECT(\"'\"&$W11&\"'!\"&AE$1)","v":false},{"$f":"INDIRECT(\"'\"&$W11&\"'!\"&AF$1)","v":false},{"$f":"INDIRECT(\"'\"&$W11&\"'!\"&AG$1)","v":false},{"$f":"INDIRECT(\"'\"&$W11&\"'!\"&AH$1)","v":false},{"$f":"INDIRECT(\"'\"&$W11&\"'!\"&AI$1)","v":false},{"$f":"INDIRECT(\"'\"&$W11&\"'!\"&AJ$1)","v":false},{"$f":"INDIRECT(\"'\"&$W11&\"'!\"&AK$1)","v":false},{"$f":"INDIRECT(\"'\"&$W11&\"'!\"&AL$1)","v":false},{"$f":"INDIRECT(\"'\"&$W11&\"'!\"&AM$1)","v":false},{"$f":"INDIRECT(\"'\"&$W11&\"'!\"&AN$1)","v":false},{"$f":"INDIRECT(\"'\"&$W11&\"'!\"&AO$1)","v":false},{"$f":"INDIRECT(\"'\"&$W11&\"'!\"&AP$1)","v":false},null,10,"Route (10)",{"$f":"INDIRECT(\"'\"&$W11&\"'!\"&AT$1)","v":60},{"$f":"INDIRECT(\"'\"&$W11&\"'!\"&AU$1)","v":35},{"$f":"INDIRECT(\"'\"&$W11&\"'!\"&AV$1)","v":0},{"$f":"INDIRECT(\"'\"&$W11&\"'!\"&AW$1)","v":0},{"$f":"INDIRECT(\"'\"&$W11&\"'!\"&AX$1)","v":0},{"$f":"INDIRECT(\"'\"&$W11&\"'!\"&AY$1)","v":0},{"$f":"INDIRECT(\"'\"&$W11&\"'!\"&AZ$1)","v":0}]
[null,null,null,null,null,null,null,null,null,null,null,null,11,3600,"Genk",6,null,null,null,null,null,11,"Route (11)",{"$f":"INDIRECT(\"'\"&$W12&\"'!\"&X$1)","v":false},{"$f":"INDIRECT(\"'\"&$W12&\"'!\"&Y$1)","v":false},{"$f":"INDIRECT(\"'\"&$W12&\"'!\"&Z$1)","v":false},{"$f":"INDIRECT(\"'\"&$W12&\"'!\"&AA$1)","v":false},{"$f":"INDIRECT(\"'\"&$W12&\"'!\"&AB$1)","v":false},{"$f":"INDIRECT(\"'\"&$W12&\"'!\"&AC$1)","v":false},{"$f":"INDIRECT(\"'\"&$W12&\"'!\"&AD$1)","v":false},{"$f":"INDIRECT(\"'\"&$W12&\"'!\"&AE$1)","v":false},{"$f":"INDIRECT(\"'\"&$W12&\"'!\"&AF$1)","v":false},{"$f":"INDIRECT(\"'\"&$W12&\"'!\"&AG$1)","v":false},{"$f":"INDIRECT(\"'\"&$W12&\"'!\"&AH$1)","v":false},{"$f":"INDIRECT(\"'\"&$W12&\"'!\"&AI$1)","v":false},{"$f":"INDIRECT(\"'\"&$W12&\"'!\"&AJ$1)","v":false},{"$f":"INDIRECT(\"'\"&$W12&\"'!\"&AK$1)","v":false},{"$f":"INDIRECT(\"'\"&$W12&\"'!\"&AL$1)","v":false},{"$f":"INDIRECT(\"'\"&$W12&\"'!\"&AM$1)","v":false},{"$f":"INDIRECT(\"'\"&$W12&\"'!\"&AN$1)","v":false},{"$f":"INDIRECT(\"'\"&$W12&\"'!\"&AO$1)","v":false},{"$f":"INDIRECT(\"'\"&$W12&\"'!\"&AP$1)","v":false},null,11,"Route (11)",{"$f":"INDIRECT(\"'\"&$W12&\"'!\"&AT$1)","v":60},{"$f":"INDIRECT(\"'\"&$W12&\"'!\"&AU$1)","v":35},{"$f":"INDIRECT(\"'\"&$W12&\"'!\"&AV$1)","v":0},{"$f":"INDIRECT(\"'\"&$W12&\"'!\"&AW$1)","v":0},{"$f":"INDIRECT(\"'\"&$W12&\"'!\"&AX$1)","v":0},{"$f":"INDIRECT(\"'\"&$W12&\"'!\"&AY$1)","v":0},{"$f":"INDIRECT(\"'\"&$W12&\"'!\"&AZ$1)","v":0}]
[null,null,null,null,null,null,null,null,null,null,null,null,12,null,null,null,null,null,null,null,null,12,"Route (12)",{"$f":"INDIRECT(\"'\"&$W13&\"'!\"&X$1)","v":false},{"$f":"INDIRECT(\"'\"&$W13&\"'!\"&Y$1)","v":false},{"$f":"INDIRECT(\"'\"&$W13&\"'!\"&Z$1)","v":false},{"$f":"INDIRECT(\"'\"&$W13&\"'!\"&AA$1)","v":false},{"$f":"INDIRECT(\"'\"&$W13&\"'!\"&AB$1)","v":false},{"$f":"INDIRECT(\"'\"&$W13&\"'!\"&AC$1)","v":false},{"$f":"INDIRECT(\"'\"&$W13&\"'!\"&AD$1)","v":false},{"$f":"INDIRECT(\"'\"&$W13&\"'!\"&AE$1)","v":false},{"$f":"INDIRECT(\"'\"&$W13&\"'!\"&AF$1)","v":false},{"$f":"INDIRECT(\"'\"&$W13&\"'!\"&AG$1)","v":false},{"$f":"INDIRECT(\"'\"&$W13&\"'!\"&AH$1)","v":false},{"$f":"INDIRECT(\"'\"&$W13&\"'!\"&AI$1)","v":false},{"$f":"INDIRECT(\"'\"&$W13&\"'!\"&AJ$1)","v":false},{"$f":"INDIRECT(\"'\"&$W13&\"'!\"&AK$1)","v":false},{"$f":"INDIRECT(\"'\"&$W13&\"'!\"&AL$1)","v":false},{"$f":"INDIRECT(\"'\"&$W13&\"'!\"&AM$1)","v":false},{"$f":"INDIRECT(\"'\"&$W13&\"'!\"&AN$1)","v":false},{"$f":"INDIRECT(\"'\"&$W13&\"'!\"&AO$1)","v":false},{"$f":"INDIRECT(\"'\"&$W13&\"'!\"&AP$1)","v":false},null,12,"Route (12)",{"$f":"INDIRECT(\"'\"&$W13&\"'!\"&AT$1)","v":60},{"$f":"INDIRECT(\"'\"&$W13&\"'!\"&AU$1)","v":35},{"$f":"INDIRECT(\"'\"&$W13&\"'!\"&AV$1)","v":0},{"$f":"INDIRECT(\"'\"&$W13&\"'!\"&AW$1)","v":0},{"$f":"INDIRECT(\"'\"&$W13&\"'!\"&AX$1)","v":0},{"$f":"INDIRECT(\"'\"&$W13&\"'!\"&AY$1)","v":0},{"$f":"INDIRECT(\"'\"&$W13&\"'!\"&AZ$1)","v":0}]
[null,null,null,null,null,null,null,null,null,null,null,null,13,null,null,null,null,null,null,null,null,13,"Route (13)",{"$f":"INDIRECT(\"'\"&$W14&\"'!\"&X$1)","v":false},{"$f":"INDIRECT(\"'\"&$W14&\"'!\"&Y$1)","v":false},{"$f":"INDIRECT(\"'\"&$W14&\"'!\"&Z$1)","v":false},{"$f":"INDIRECT(\"'\"&$W14&\"'!\"&AA$1)","v":false},{"$f":"INDIRECT(\"'\"&$W14&\"'!\"&AB$1)","v":false},{"$f":"INDIRECT(\"'\"&$W14&\"'!\"&AC$1)","v":false},{"$f":"INDIRECT(\"'\"&$W14&\"'!\"&AD$1)","v":false},{"$f":"INDIRECT(\"'\"&$W14&\"'!\"&AE$1)","v":false},{"$f":"INDIRECT(\"'\"&$W14&\"'!\"&AF$1)","v":false},{"$f":"INDIRECT(\"'\"&$W14&\"'!\"&AG$1)","v":false},{"$f":"INDIRECT(\"'\"&$W14&\"'!\"&AH$1)","v":false},{"$f":"INDIRECT(\"'\"&$W14&\"'!\"&AI$1)","v":false},{"$f":"INDIRECT(\"'\"&$W14&\"'!\"&AJ$1)","v":false},{"$f":"INDIRECT(\"'\"&$W14&\"'!\"&AK$1)","v":false},{"$f":"INDIRECT(\"'\"&$W14&\"'!\"&AL$1)","v":false},{"$f":"INDIRECT(\"'\"&$W14&\"'!\"&AM$1)","v":false},{"$f":"INDIRECT(\"'\"&$W14&\"'!\"&AN$1)","v":false},{"$f":"INDIRECT(\"'\"&$W14&\"'!\"&AO$1)","v":false},{"$f":"INDIRECT(\"'\"&$W14&\"'!\"&AP$1)","v":false},null,13,"Route (13)",{"$f":"INDIRECT(\"'\"&$W14&\"'!\"&AT$1)","v":60},{"$f":"INDIRECT(\"'\"&$W14&\"'!\"&AU$1)","v":35},{"$f":"INDIRECT(\"'\"&$W14&\"'!\"&AV$1)","v":0},{"$f":"INDIRECT(\"'\"&$W14&\"'!\"&AW$1)","v":0},{"$f":"INDIRECT(\"'\"&$W14&\"'!\"&AX$1)","v":0},{"$f":"INDIRECT(\"'\"&$W14&\"'!\"&AY$1)","v":0},{"$f":"INDIRECT(\"'\"&$W14&\"'!\"&AZ$1)","v":0}]
[null,null,null,null,null,null,null,null,null,null,null,null,14,null,null,null,null,null,null,null,null,14,"Route (14)",{"$f":"INDIRECT(\"'\"&$W15&\"'!\"&X$1)","v":false},{"$f":"INDIRECT(\"'\"&$W15&\"'!\"&Y$1)","v":false},{"$f":"INDIRECT(\"'\"&$W15&\"'!\"&Z$1)","v":false},{"$f":"INDIRECT(\"'\"&$W15&\"'!\"&AA$1)","v":false},{"$f":"INDIRECT(\"'\"&$W15&\"'!\"&AB$1)","v":false},{"$f":"INDIRECT(\"'\"&$W15&\"'!\"&AC$1)","v":false},{"$f":"INDIRECT(\"'\"&$W15&\"'!\"&AD$1)","v":false},{"$f":"INDIRECT(\"'\"&$W15&\"'!\"&AE$1)","v":false},{"$f":"INDIRECT(\"'\"&$W15&\"'!\"&AF$1)","v":false},{"$f":"INDIRECT(\"'\"&$W15&\"'!\"&AG$1)","v":false},{"$f":"INDIRECT(\"'\"&$W15&\"'!\"&AH$1)","v":false},{"$f":"INDIRECT(\"'\"&$W15&\"'!\"&AI$1)","v":false},{"$f":"INDIRECT(\"'\"&$W15&\"'!\"&AJ$1)","v":false},{"$f":"INDIRECT(\"'\"&$W15&\"'!\"&AK$1)","v":false},{"$f":"INDIRECT(\"'\"&$W15&\"'!\"&AL$1)","v":false},{"$f":"INDIRECT(\"'\"&$W15&\"'!\"&AM$1)","v":false},{"$f":"INDIRECT(\"'\"&$W15&\"'!\"&AN$1)","v":false},{"$f":"INDIRECT(\"'\"&$W15&\"'!\"&AO$1)","v":false},{"$f":"INDIRECT(\"'\"&$W15&\"'!\"&AP$1)","v":false},null,14,"Route (14)",{"$f":"INDIRECT(\"'\"&$W15&\"'!\"&AT$1)","v":60},{"$f":"INDIRECT(\"'\"&$W15&\"'!\"&AU$1)","v":35},{"$f":"INDIRECT(\"'\"&$W15&\"'!\"&AV$1)","v":0},{"$f":"INDIRECT(\"'\"&$W15&\"'!\"&AW$1)","v":0},{"$f":"INDIRECT(\"'\"&$W15&\"'!\"&AX$1)","v":0},{"$f":"INDIRECT(\"'\"&$W15&\"'!\"&AY$1)","v":0},{"$f":"INDIRECT(\"'\"&$W15&\"'!\"&AZ$1)","v":0}]
[null,null,null,null,null,null,null,null,null,null,null,null,15,null,null,null,null,null,null,null,null,15,"Route (15)",{"$f":"INDIRECT(\"'\"&$W16&\"'!\"&X$1)","v":false},{"$f":"INDIRECT(\"'\"&$W16&\"'!\"&Y$1)","v":false},{"$f":"INDIRECT(\"'\"&$W16&\"'!\"&Z$1)","v":false},{"$f":"INDIRECT(\"'\"&$W16&\"'!\"&AA$1)","v":false},{"$f":"INDIRECT(\"'\"&$W16&\"'!\"&AB$1)","v":false},{"$f":"INDIRECT(\"'\"&$W16&\"'!\"&AC$1)","v":false},{"$f":"INDIRECT(\"'\"&$W16&\"'!\"&AD$1)","v":false},{"$f":"INDIRECT(\"'\"&$W16&\"'!\"&AE$1)","v":false},{"$f":"INDIRECT(\"'\"&$W16&\"'!\"&AF$1)","v":false},{"$f":"INDIRECT(\"'\"&$W16&\"'!\"&AG$1)","v":false},{"$f":"INDIRECT(\"'\"&$W16&\"'!\"&AH$1)","v":false},{"$f":"INDIRECT(\"'\"&$W16&\"'!\"&AI$1)","v":false},{"$f":"INDIRECT(\"'\"&$W16&\"'!\"&AJ$1)","v":false},{"$f":"INDIRECT(\"'\"&$W16&\"'!\"&AK$1)","v":false},{"$f":"INDIRECT(\"'\"&$W16&\"'!\"&AL$1)","v":false},{"$f":"INDIRECT(\"'\"&$W16&\"'!\"&AM$1)","v":false},{"$f":"INDIRECT(\"'\"&$W16&\"'!\"&AN$1)","v":false},{"$f":"INDIRECT(\"'\"&$W16&\"'!\"&AO$1)","v":false},{"$f":"INDIRECT(\"'\"&$W16&\"'!\"&AP$1)","v":false},null,15,"Route (15)",{"$f":"INDIRECT(\"'\"&$W16&\"'!\"&AT$1)","v":60},{"$f":"INDIRECT(\"'\"&$W16&\"'!\"&AU$1)","v":35},{"$f":"INDIRECT(\"'\"&$W16&\"'!\"&AV$1)","v":0},{"$f":"INDIRECT(\"'\"&$W16&\"'!\"&AW$1)","v":0},{"$f":"INDIRECT(\"'\"&$W16&\"'!\"&AX$1)","v":0},{"$f":"INDIRECT(\"'\"&$W16&\"'!\"&AY$1)","v":0},{"$f":"INDIRECT(\"'\"&$W16&\"'!\"&AZ$1)","v":0}]
[null,null,null,null,null,null,null,null,null,null,null,null,16,null,null,null,null,null,null,null,null,16,"Route (16)",{"$f":"INDIRECT(\"'\"&$W17&\"'!\"&X$1)","v":false},{"$f":"INDIRECT(\"'\"&$W17&\"'!\"&Y$1)","v":false},{"$f":"INDIRECT(\"'\"&$W17&\"'!\"&Z$1)","v":false},{"$f":"INDIRECT(\"'\"&$W17&\"'!\"&AA$1)","v":false},{"$f":"INDIRECT(\"'\"&$W17&\"'!\"&AB$1)","v":false},{"$f":"INDIRECT(\"'\"&$W17&\"'!\"&AC$1)","v":false},{"$f":"INDIRECT(\"'\"&$W17&\"'!\"&AD$1)","v":false},{"$f":"INDIRECT(\"'\"&$W17&\"'!\"&AE$1)","v":false},{"$f":"INDIRECT(\"'\"&$W17&\"'!\"&AF$1)","v":false},{"$f":"INDIRECT(\"'\"&$W17&\"'!\"&AG$1)","v":false},{"$f":"INDIRECT(\"'\"&$W17&\"'!\"&AH$1)","v":false},{"$f":"INDIRECT(\"'\"&$W17&\"'!\"&AI$1)","v":false},{"$f":"INDIRECT(\"'\"&$W17&\"'!\"&AJ$1)","v":false},{"$f":"INDIRECT(\"'\"&$W17&\"'!\"&AK$1)","v":false},{"$f":"INDIRECT(\"'\"&$W17&\"'!\"&AL$1)","v":false},{"$f":"INDIRECT(\"'\"&$W17&\"'!\"&AM$1)","v":false},{"$f":"INDIRECT(\"'\"&$W17&\"'!\"&AN$1)","v":false},{"$f":"INDIRECT(\"'\"&$W17&\"'!\"&AO$1)","v":false},{"$f":"INDIRECT(\"'\"&$W17&\"'!\"&AP$1)","v":false},null,16,"Route (16)",{"$f":"INDIRECT(\"'\"&$W17&\"'!\"&AT$1)","v":60},{"$f":"INDIRECT(\"'\"&$W17&\"'!\"&AU$1)","v":35},{"$f":"INDIRECT(\"'\"&$W17&\"'!\"&AV$1)","v":0},{"$f":"INDIRECT(\"'\"&$W17&\"'!\"&AW$1)","v":0},{"$f":"INDIRECT(\"'\"&$W17&\"'!\"&AX$1)","v":0},{"$f":"INDIRECT(\"'\"&$W17&\"'!\"&AY$1)","v":0},{"$f":"INDIRECT(\"'\"&$W17&\"'!\"&AZ$1)","v":0}]
[null,null,null,null,null,null,null,null,null,null,null,null,17,null,null,null,null,null,null,null,null,17,"Route (17)",{"$f":"INDIRECT(\"'\"&$W18&\"'!\"&X$1)","v":false},{"$f":"INDIRECT(\"'\"&$W18&\"'!\"&Y$1)","v":false},{"$f":"INDIRECT(\"'\"&$W18&\"'!\"&Z$1)","v":false},{"$f":"INDIRECT(\"'\"&$W18&\"'!\"&AA$1)","v":false},{"$f":"INDIRECT(\"'\"&$W18&\"'!\"&AB$1)","v":false},{"$f":"INDIRECT(\"'\"&$W18&\"'!\"&AC$1)","v":false},{"$f":"INDIRECT(\"'\"&$W18&\"'!\"&AD$1)","v":false},{"$f":"INDIRECT(\"'\"&$W18&\"'!\"&AE$1)","v":false},{"$f":"INDIRECT(\"'\"&$W18&\"'!\"&AF$1)","v":false},{"$f":"INDIRECT(\"'\"&$W18&\"'!\"&AG$1)","v":false},{"$f":"INDIRECT(\"'\"&$W18&\"'!\"&AH$1)","v":false},{"$f":"INDIRECT(\"'\"&$W18&\"'!\"&AI$1)","v":false},{"$f":"INDIRECT(\"'\"&$W18&\"'!\"&AJ$1)","v":false},{"$f":"INDIRECT(\"'\"&$W18&\"'!\"&AK$1)","v":false},{"$f":"INDIRECT(\"'\"&$W18&\"'!\"&AL$1)","v":false},{"$f":"INDIRECT(\"'\"&$W18&\"'!\"&AM$1)","v":false},{"$f":"INDIRECT(\"'\"&$W18&\"'!\"&AN$1)","v":false},{"$f":"INDIRECT(\"'\"&$W18&\"'!\"&AO$1)","v":false},{"$f":"INDIRECT(\"'\"&$W18&\"'!\"&AP$1)","v":false},null,17,"Route (17)",{"$f":"INDIRECT(\"'\"&$W18&\"'!\"&AT$1)","v":60},{"$f":"INDIRECT(\"'\"&$W18&\"'!\"&AU$1)","v":35},{"$f":"INDIRECT(\"'\"&$W18&\"'!\"&AV$1)","v":0},{"$f":"INDIRECT(\"'\"&$W18&\"'!\"&AW$1)","v":0},{"$f":"INDIRECT(\"'\"&$W18&\"'!\"&AX$1)","v":0},{"$f":"INDIRECT(\"'\"&$W18&\"'!\"&AY$1)","v":0},{"$f":"INDIRECT(\"'\"&$W18&\"'!\"&AZ$1)","v":0}]
[null,null,null,null,null,null,null,null,null,null,null,null,18,null,null,null,null,null,null,null,null,18,"Route (18)",{"$f":"INDIRECT(\"'\"&$W19&\"'!\"&X$1)","v":false},{"$f":"INDIRECT(\"'\"&$W19&\"'!\"&Y$1)","v":false},{"$f":"INDIRECT(\"'\"&$W19&\"'!\"&Z$1)","v":false},{"$f":"INDIRECT(\"'\"&$W19&\"'!\"&AA$1)","v":false},{"$f":"INDIRECT(\"'\"&$W19&\"'!\"&AB$1)","v":false},{"$f":"INDIRECT(\"'\"&$W19&\"'!\"&AC$1)","v":false},{"$f":"INDIRECT(\"'\"&$W19&\"'!\"&AD$1)","v":false},{"$f":"INDIRECT(\"'\"&$W19&\"'!\"&AE$1)","v":false},{"$f":"INDIRECT(\"'\"&$W19&\"'!\"&AF$1)","v":false},{"$f":"INDIRECT(\"'\"&$W19&\"'!\"&AG$1)","v":false},{"$f":"INDIRECT(\"'\"&$W19&\"'!\"&AH$1)","v":false},{"$f":"INDIRECT(\"'\"&$W19&\"'!\"&AI$1)","v":false},{"$f":"INDIRECT(\"'\"&$W19&\"'!\"&AJ$1)","v":false},{"$f":"INDIRECT(\"'\"&$W19&\"'!\"&AK$1)","v":false},{"$f":"INDIRECT(\"'\"&$W19&\"'!\"&AL$1)","v":false},{"$f":"INDIRECT(\"'\"&$W19&\"'!\"&AM$1)","v":false},{"$f":"INDIRECT(\"'\"&$W19&\"'!\"&AN$1)","v":false},{"$f":"INDIRECT(\"'\"&$W19&\"'!\"&AO$1)","v":false},{"$f":"INDIRECT(\"'\"&$W19&\"'!\"&AP$1)","v":false},null,18,"Route (18)",{"$f":"INDIRECT(\"'\"&$W19&\"'!\"&AT$1)","v":60},{"$f":"INDIRECT(\"'\"&$W19&\"'!\"&AU$1)","v":35},{"$f":"INDIRECT(\"'\"&$W19&\"'!\"&AV$1)","v":0},{"$f":"INDIRECT(\"'\"&$W19&\"'!\"&AW$1)","v":0},{"$f":"INDIRECT(\"'\"&$W19&\"'!\"&AX$1)","v":0},{"$f":"INDIRECT(\"'\"&$W19&\"'!\"&AY$1)","v":0},{"$f":"INDIRECT(\"'\"&$W19&\"'!\"&AZ$1)","v":0}]
[null,null,null,null,null,null,null,null,null,null,null,null,19,null,null,null,null,null,null,null,null,19,"Route (19)",{"$f":"INDIRECT(\"'\"&$W20&\"'!\"&X$1)","v":false},{"$f":"INDIRECT(\"'\"&$W20&\"'!\"&Y$1)","v":false},{"$f":"INDIRECT(\"'\"&$W20&\"'!\"&Z$1)","v":false},{"$f":"INDIRECT(\"'\"&$W20&\"'!\"&AA$1)","v":false},{"$f":"INDIRECT(\"'\"&$W20&\"'!\"&AB$1)","v":false},{"$f":"INDIRECT(\"'\"&$W20&\"'!\"&AC$1)","v":false},{"$f":"INDIRECT(\"'\"&$W20&\"'!\"&AD$1)","v":false},{"$f":"INDIRECT(\"'\"&$W20&\"'!\"&AE$1)","v":false},{"$f":"INDIRECT(\"'\"&$W20&\"'!\"&AF$1)","v":false},{"$f":"INDIRECT(\"'\"&$W20&\"'!\"&AG$1)","v":false},{"$f":"INDIRECT(\"'\"&$W20&\"'!\"&AH$1)","v":false},{"$f":"INDIRECT(\"'\"&$W20&\"'!\"&AI$1)","v":false},{"$f":"INDIRECT(\"'\"&$W20&\"'!\"&AJ$1)","v":false},{"$f":"INDIRECT(\"'\"&$W20&\"'!\"&AK$1)","v":false},{"$f":"INDIRECT(\"'\"&$W20&\"'!\"&AL$1)","v":false},{"$f":"INDIRECT(\"'\"&$W20&\"'!\"&AM$1)","v":false},{"$f":"INDIRECT(\"'\"&$W20&\"'!\"&AN$1)","v":false},{"$f":"INDIRECT(\"'\"&$W20&\"'!\"&AO$1)","v":false},{"$f":"INDIRECT(\"'\"&$W20&\"'!\"&AP$1)","v":false},null,19,"Route (19)",{"$f":"INDIRECT(\"'\"&$W20&\"'!\"&AT$1)","v":60},{"$f":"INDIRECT(\"'\"&$W20&\"'!\"&AU$1)","v":35},{"$f":"INDIRECT(\"'\"&$W20&\"'!\"&AV$1)","v":0},{"$f":"INDIRECT(\"'\"&$W20&\"'!\"&AW$1)","v":0},{"$f":"INDIRECT(\"'\"&$W20&\"'!\"&AX$1)","v":0},{"$f":"INDIRECT(\"'\"&$W20&\"'!\"&AY$1)","v":0},{"$f":"INDIRECT(\"'\"&$W20&\"'!\"&AZ$1)","v":0}]
[null,null,null,null,null,null,null,null,null,null,null,null,20,null,null,null,null,null,null,null,null,20,"Route (20)",{"$f":"INDIRECT(\"'\"&$W21&\"'!\"&X$1)","v":false},{"$f":"INDIRECT(\"'\"&$W21&\"'!\"&Y$1)","v":false},{"$f":"INDIRECT(\"'\"&$W21&\"'!\"&Z$1)","v":false},{"$f":"INDIRECT(\"'\"&$W21&\"'!\"&AA$1)","v":false},{"$f":"INDIRECT(\"'\"&$W21&\"'!\"&AB$1)","v":false},{"$f":"INDIRECT(\"'\"&$W21&\"'!\"&AC$1)","v":false},{"$f":"INDIRECT(\"'\"&$W21&\"'!\"&AD$1)","v":false},{"$f":"INDIRECT(\"'\"&$W21&\"'!\"&AE$1)","v":false},{"$f":"INDIRECT(\"'\"&$W21&\"'!\"&AF$1)","v":false},{"$f":"INDIRECT(\"'\"&$W21&\"'!\"&AG$1)","v":false},{"$f":"INDIRECT(\"'\"&$W21&\"'!\"&AH$1)","v":false},{"$f":"INDIRECT(\"'\"&$W21&\"'!\"&AI$1)","v":false},{"$f":"INDIRECT(\"'\"&$W21&\"'!\"&AJ$1)","v":false},{"$f":"INDIRECT(\"'\"&$W21&\"'!\"&AK$1)","v":false},{"$f":"INDIRECT(\"'\"&$W21&\"'!\"&AL$1)","v":false},{"$f":"INDIRECT(\"'\"&$W21&\"'!\"&AM$1)","v":false},{"$f":"INDIRECT(\"'\"&$W21&\"'!\"&AN$1)","v":false},{"$f":"INDIRECT(\"'\"&$W21&\"'!\"&AO$1)","v":false},{"$f":"INDIRECT(\"'\"&$W21&\"'!\"&AP$1)","v":false},null,20,"Route (20)",{"$f":"INDIRECT(\"'\"&$W21&\"'!\"&AT$1)","v":60},{"$f":"INDIRECT(\"'\"&$W21&\"'!\"&AU$1)","v":35},{"$f":"INDIRECT(\"'\"&$W21&\"'!\"&AV$1)","v":0},{"$f":"INDIRECT(\"'\"&$W21&\"'!\"&AW$1)","v":0},{"$f":"INDIRECT(\"'\"&$W21&\"'!\"&AX$1)","v":0},{"$f":"INDIRECT(\"'\"&$W21&\"'!\"&AY$1)","v":0},{"$f":"INDIRECT(\"'\"&$W21&\"'!\"&AZ$1)","v":0}]
[null,null,null,null,null,null,null,null,null,null,null,null,21,null,null,null,null,null,null,null,null,21,"Route (21)",{"$f":"INDIRECT(\"'\"&$W22&\"'!\"&X$1)","v":false},{"$f":"INDIRECT(\"'\"&$W22&\"'!\"&Y$1)","v":false},{"$f":"INDIRECT(\"'\"&$W22&\"'!\"&Z$1)","v":false},{"$f":"INDIRECT(\"'\"&$W22&\"'!\"&AA$1)","v":false},{"$f":"INDIRECT(\"'\"&$W22&\"'!\"&AB$1)","v":false},{"$f":"INDIRECT(\"'\"&$W22&\"'!\"&AC$1)","v":false},{"$f":"INDIRECT(\"'\"&$W22&\"'!\"&AD$1)","v":false},{"$f":"INDIRECT(\"'\"&$W22&\"'!\"&AE$1)","v":false},{"$f":"INDIRECT(\"'\"&$W22&\"'!\"&AF$1)","v":false},{"$f":"INDIRECT(\"'\"&$W22&\"'!\"&AG$1)","v":false},{"$f":"INDIRECT(\"'\"&$W22&\"'!\"&AH$1)","v":false},{"$f":"INDIRECT(\"'\"&$W22&\"'!\"&AI$1)","v":false},{"$f":"INDIRECT(\"'\"&$W22&\"'!\"&AJ$1)","v":false},{"$f":"INDIRECT(\"'\"&$W22&\"'!\"&AK$1)","v":false},{"$f":"INDIRECT(\"'\"&$W22&\"'!\"&AL$1)","v":false},{"$f":"INDIRECT(\"'\"&$W22&\"'!\"&AM$1)","v":false},{"$f":"INDIRECT(\"'\"&$W22&\"'!\"&AN$1)","v":false},{"$f":"INDIRECT(\"'\"&$W22&\"'!\"&AO$1)","v":false},{"$f":"INDIRECT(\"'\"&$W22&\"'!\"&AP$1)","v":false},null,21,"Route (21)",{"$f":"INDIRECT(\"'\"&$W22&\"'!\"&AT$1)","v":60},{"$f":"INDIRECT(\"'\"&$W22&\"'!\"&AU$1)","v":35},{"$f":"INDIRECT(\"'\"&$W22&\"'!\"&AV$1)","v":0},{"$f":"INDIRECT(\"'\"&$W22&\"'!\"&AW$1)","v":0},{"$f":"INDIRECT(\"'\"&$W22&\"'!\"&AX$1)","v":0},{"$f":"INDIRECT(\"'\"&$W22&\"'!\"&AY$1)","v":0},{"$f":"INDIRECT(\"'\"&$W22&\"'!\"&AZ$1)","v":0}]
[null,null,null,null,null,null,null,null,null,null,null,null,22,null,null,null,null,null,null,null,null,22,"Route (22)",{"$f":"INDIRECT(\"'\"&$W23&\"'!\"&X$1)","v":false},{"$f":"INDIRECT(\"'\"&$W23&\"'!\"&Y$1)","v":false},{"$f":"INDIRECT(\"'\"&$W23&\"'!\"&Z$1)","v":false},{"$f":"INDIRECT(\"'\"&$W23&\"'!\"&AA$1)","v":false},{"$f":"INDIRECT(\"'\"&$W23&\"'!\"&AB$1)","v":false},{"$f":"INDIRECT(\"'\"&$W23&\"'!\"&AC$1)","v":false},{"$f":"INDIRECT(\"'\"&$W23&\"'!\"&AD$1)","v":false},{"$f":"INDIRECT(\"'\"&$W23&\"'!\"&AE$1)","v":false},{"$f":"INDIRECT(\"'\"&$W23&\"'!\"&AF$1)","v":false},{"$f":"INDIRECT(\"'\"&$W23&\"'!\"&AG$1)","v":false},{"$f":"INDIRECT(\"'\"&$W23&\"'!\"&AH$1)","v":false},{"$f":"INDIRECT(\"'\"&$W23&\"'!\"&AI$1)","v":false},{"$f":"INDIRECT(\"'\"&$W23&\"'!\"&AJ$1)","v":false},{"$f":"INDIRECT(\"'\"&$W23&\"'!\"&AK$1)","v":false},{"$f":"INDIRECT(\"'\"&$W23&\"'!\"&AL$1)","v":false},{"$f":"INDIRECT(\"'\"&$W23&\"'!\"&AM$1)","v":false},{"$f":"INDIRECT(\"'\"&$W23&\"'!\"&AN$1)","v":false},{"$f":"INDIRECT(\"'\"&$W23&\"'!\"&AO$1)","v":false},{"$f":"INDIRECT(\"'\"&$W23&\"'!\"&AP$1)","v":false},null,22,"Route (22)",{"$f":"INDIRECT(\"'\"&$W23&\"'!\"&AT$1)","v":60},{"$f":"INDIRECT(\"'\"&$W23&\"'!\"&AU$1)","v":35},{"$f":"INDIRECT(\"'\"&$W23&\"'!\"&AV$1)","v":0},{"$f":"INDIRECT(\"'\"&$W23&\"'!\"&AW$1)","v":0},{"$f":"INDIRECT(\"'\"&$W23&\"'!\"&AX$1)","v":0},{"$f":"INDIRECT(\"'\"&$W23&\"'!\"&AY$1)","v":0},{"$f":"INDIRECT(\"'\"&$W23&\"'!\"&AZ$1)","v":0}]
[null,null,null,null,null,null,null,null,null,null,null,null,23,null,null,null,null,null,null,null,null,23,"Route (23)",{"$f":"INDIRECT(\"'\"&$W24&\"'!\"&X$1)","v":false},{"$f":"INDIRECT(\"'\"&$W24&\"'!\"&Y$1)","v":false},{"$f":"INDIRECT(\"'\"&$W24&\"'!\"&Z$1)","v":false},{"$f":"INDIRECT(\"'\"&$W24&\"'!\"&AA$1)","v":false},{"$f":"INDIRECT(\"'\"&$W24&\"'!\"&AB$1)","v":false},{"$f":"INDIRECT(\"'\"&$W24&\"'!\"&AC$1)","v":false},{"$f":"INDIRECT(\"'\"&$W24&\"'!\"&AD$1)","v":false},{"$f":"INDIRECT(\"'\"&$W24&\"'!\"&AE$1)","v":false},{"$f":"INDIRECT(\"'\"&$W24&\"'!\"&AF$1)","v":false},{"$f":"INDIRECT(\"'\"&$W24&\"'!\"&AG$1)","v":false},{"$f":"INDIRECT(\"'\"&$W24&\"'!\"&AH$1)","v":false},{"$f":"INDIRECT(\"'\"&$W24&\"'!\"&AI$1)","v":false},{"$f":"INDIRECT(\"'\"&$W24&\"'!\"&AJ$1)","v":false},{"$f":"INDIRECT(\"'\"&$W24&\"'!\"&AK$1)","v":false},{"$f":"INDIRECT(\"'\"&$W24&\"'!\"&AL$1)","v":false},{"$f":"INDIRECT(\"'\"&$W24&\"'!\"&AM$1)","v":false},{"$f":"INDIRECT(\"'\"&$W24&\"'!\"&AN$1)","v":false},{"$f":"INDIRECT(\"'\"&$W24&\"'!\"&AO$1)","v":false},{"$f":"INDIRECT(\"'\"&$W24&\"'!\"&AP$1)","v":false},null,23,"Route (23)",{"$f":"INDIRECT(\"'\"&$W24&\"'!\"&AT$1)","v":60},{"$f":"INDIRECT(\"'\"&$W24&\"'!\"&AU$1)","v":35},{"$f":"INDIRECT(\"'\"&$W24&\"'!\"&AV$1)","v":0},{"$f":"INDIRECT(\"'\"&$W24&\"'!\"&AW$1)","v":0},{"$f":"INDIRECT(\"'\"&$W24&\"'!\"&AX$1)","v":0},{"$f":"INDIRECT(\"'\"&$W24&\"'!\"&AY$1)","v":0},{"$f":"INDIRECT(\"'\"&$W24&\"'!\"&AZ$1)","v":0}]
[null,null,null,null,null,null,null,null,null,null,null,null,24,null,null,null,null,null,null,null,null,24,"Route (24)",{"$f":"INDIRECT(\"'\"&$W25&\"'!\"&X$1)","v":{"$error":"#REF!"}},{"$f":"INDIRECT(\"'\"&$W25&\"'!\"&Y$1)","v":{"$error":"#REF!"}},{"$f":"INDIRECT(\"'\"&$W25&\"'!\"&Z$1)","v":{"$error":"#REF!"}},{"$f":"INDIRECT(\"'\"&$W25&\"'!\"&AA$1)","v":{"$error":"#REF!"}},{"$f":"INDIRECT(\"'\"&$W25&\"'!\"&AB$1)","v":{"$error":"#REF!"}},{"$f":"INDIRECT(\"'\"&$W25&\"'!\"&AC$1)","v":{"$error":"#REF!"}},{"$f":"INDIRECT(\"'\"&$W25&\"'!\"&AD$1)","v":{"$error":"#REF!"}},{"$f":"INDIRECT(\"'\"&$W25&\"'!\"&AE$1)","v":{"$error":"#REF!"}},{"$f":"INDIRECT(\"'\"&$W25&\"'!\"&AF$1)","v":{"$error":"#REF!"}},{"$f":"INDIRECT(\"'\"&$W25&\"'!\"&AG$1)","v":{"$error":"#REF!"}},{"$f":"INDIRECT(\"'\"&$W25&\"'!\"&AH$1)","v":{"$error":"#REF!"}},{"$f":"INDIRECT(\"'\"&$W25&\"'!\"&AI$1)","v":{"$error":"#REF!"}},{"$f":"INDIRECT(\"'\"&$W25&\"'!\"&AJ$1)","v":{"$error":"#REF!"}},{"$f":"INDIRECT(\"'\"&$W25&\"'!\"&AK$1)","v":{"$error":"#REF!"}},{"$f":"INDIRECT(\"'\"&$W25&\"'!\"&AL$1)","v":{"$error":"#REF!"}},{"$f":"INDIRECT(\"'\"&$W25&\"'!\"&AM$1)","v":{"$error":"#REF!"}},{"$f":"INDIRECT(\"'\"&$W25&\"'!\"&AN$1)","v":{"$error":"#REF!"}},{"$f":"INDIRECT(\"'\"&$W25&\"'!\"&AO$1)","v":{"$error":"#REF!"}},{"$f":"INDIRECT(\"'\"&$W25&\"'!\"&AP$1)","v":{"$error":"#REF!"}},null,24,"Route (24)",{"$f":"INDIRECT(\"'\"&$W25&\"'!\"&AT$1)","v":{"$error":"#REF!"}},{"$f":"INDIRECT(\"'\"&$W25&\"'!\"&AU$1)","v":{"$error":"#REF!"}},{"$f":"INDIRECT(\"'\"&$W25&\"'!\"&AV$1)","v":{"$error":"#REF!"}},{"$f":"INDIRECT(\"'\"&$W25&\"'!\"&AW$1)","v":{"$error":"#REF!"}},{"$f":"INDIRECT(\"'\"&$W25&\"'!\"&AX$1)","v":{"$error":"#REF!"}},{"$f":"INDIRECT(\"'\"&$W25&\"'!\"&AY$1)","v":{"$error":"#REF!"}},{"$f":"INDIRECT(\"'\"&$W25&\"'!\"&AZ$1)","v":{"$error":"#REF!"}}]
[null,null,null,null,null,null,null,null,null,null,null,null,25]
[null,null,null,null,null,null,null,null,null,null,null,null,26]
[null,null,null,null,null,null,null,null,null,null,null,null,27]
[null,null,null,null,null,null,null,null,null,null,null,null,28]
[null,null,null,null,null,null,null,null,null,null,null,null,29]
[null,null,null,null,null,null,null,null,null,null,null,null,30]

{"sheet":"Route (1)","index":3,"n_rows":137,"n_cols":25,"rows_kept":137,"cut":false,"hidden":true,"merged":[[128,7,128,16],[129,8,129,10],[130,7,130,20],[51,7,52,17],[83,15,83,16],[84,15,84,16],[64,9,65,10],[70,11,70,14],[71,11,71,14],[72,11,72,14],[75,11,75,14],[54,7,54,20],[80,15,80,16],[57,7,65,8],[66,9,71,10],[72,9,74,10],[44,7,45,17],[46,7,46,20],[47,7,47,20],[48,7,48,20],[79,7,79,20],[61,9,63,10],[66,7,75,8],[87,15,87,16],[88,15,88,16],[63,11,63,14],[64,11,64,14],[65,11,65,14],[66,11,66,14],[67,11,67,14],[68,11,68,14],[69,11,69,14],[82,15,82,16],[81,15,81,16],[74,11,74,14],[73,11,73,14],[19,7,19,17],[23,23,41,23],[24,7,25,17],[27,7,27,17],[36,7,36,20],[29,7,29,20],[33,7,34,20],[37,7,38,20],[40,7,40,20],[11,4,11,16],[13,4,13,6],[13,7,13,16],[13,17,17,17],[14,4,14,6],[14,7,14,16],[15,4,15,6],[15,7,15,16],[16,4,16,6],[16,7,16,16],[17,4,17,6],[17,7,17,16],[7,1,7,20],[7,21,7,22],[1,9,5,21],[2,26,6,31],[5,7,5,8],[6,7,6,8],[6,15,6,16],[124,23,131,23],[56,9,56,10],[56,7,56,8],[56,11,56,14],[57,11,57,14],[58,11,58,14],[59,11,59,14],[60,11,60,14],[61,11,61,14],[62,11,62,14],[57,9,60,10],[120,7,120,20],[111,7,111,20],[112,7,112,15],[75,9,75,10],[115,9,115,10],[124,7,124,20],[115,11,115,14],[116,9,116,10],[116,11,116,14],[85,15,85,16],[110,7,110,20],[96,11,96,14],[96,15,96,17],[97,11,97,14],[98,11,98,14],[100,7,101,16],[107,7,107,20],[109,7,109,20],[93,7,94,16],[89,15,89,16],[119,8,119,10]]}
[]
[null,null,null,null,null,null,null,null,null,{"$f":"\"Individuele Detailfiche - Route \" &H14&_xlfn.UNICHAR(10)& \"('\"&H15&\"')\"","v":"Individuele Detailfiche - Route 1\n('Schoolroute ABC')"}]
[null,null,2]
[]
[]
[]
[]
[null,"Vul in onderstaande tabel de gevraagde gegevens in, vink alle verklaringen aan die op de aanvraag van toepassing zijn. Toepasselijke bijlages geeft u een (betekenisvolle naam) – vb. raming route 123. Vermeld deze naam op de voorziene plaatsen in kolom T.  Indien één en dezelfde bijlage de info van meerdere items bundelt, leid ons dan in “kolom  U\" naar het passende paginanummer. Vergeet niet de bijlages samen met het aangevulde aanvraagformulier over te maken.",null,null,null,null,null,null,null,null,null,null,null,null,null,null,null,null,null,null,null,"Bijlagen",null,"Validatie \nMOW","Wettelijke \nverwijzing"]
[]
[null,null,null,null,null,null,null,null,null,null,null,null,null,null,null,null,null,null,null,null,"Voortgang sectie"]
[null,"0. Kostenoverzicht",null,null,null,null,null,null,null,null,null,null,null,null,null,null,null,null,null,null,{"$f":"COUNTIF(C14:D21,TRUE)/2","v":0},"Naam Bijlage","Pagina n°","Evaluatie"]
[null,null,null,null,"Details per route (Automatisch aangevuld op basis van overzicht)"]
[null,null,null,null,null,null,null,null,null,null,null,null,null,null,null,null,null,"link"]
[null,null,{"$f":"IF(1-COUNTBLANK(Aanvraagformulier!G28)-COUNTBLANK(Aanvraagformulier!N28)=1,TRUE,FALSE)","v":false},null,"Route n°",null,null,1,null,null,null,null,null,null,null,null,null,{"$f":"HYPERLINK(\"#'Aanvraagformulier'!G28\",\"Klik hier\")","v":"Klik hier"}]
[null,null,null,null,"Naam route",null,null,{"$f":"VLOOKUP(H$14,Aanvraagformulier!$F$25:$N$53,2,FALSE)","v":"Schoolroute ABC"}]
[]
[null,null,null,null,"Raming kosten\n (excl. BTW)",null,null,{"$f":"VLOOKUP(H$14,Aanvraagformulier!$F$25:$N$53,8,FALSE)","v":0}]
[null,null,null,null,"Raming kosten\n (incl. BTW)",null,null,{"$f":"VLOOKUP(H$14,Aanvraagformulier!$F$25:$N$53,9,FALSE)","v":0}]
[]
[null,null,false,null,null,null,null,"De raming van de kosten werd toegevoegd aan het dossier en opgenomen in de bijlage met referentie.",null,null,null,null,null,null,null,null,null,null,null,null,null,null,null,null,"Art. 7  Eerste Lid 2° (1)"]
[]
[]
[null,"1. Locatie",null,null,null,null,null,null,null,null,null,null,null,null,null,null,null,null,null,null,{"$f":"COUNTIF(C25:D41,TRUE)/6","v":0},"Naam Bijlage","Pagina n°"]
[]
[null,null,false,null,null,null,null,"De route is vermeld op het plan op schaal waarop duidelijk aangegeven is welke scholen deel uitmaken van het project en waar de geplande maatregelen voor de schoolroute of schoolroutes zullen worden uitgevoerd, dat werd toegevoegd aan het dossier.",null,null,null,null,null,null,null,null,null,null,null,null,null,null,null,null,"Art. 1 4°-5°- art. 2 §1 1° (1) "]
[]
[]
[null,null,false,null,null,null,null,"De werken worden uitgevoerd op een geldige schoolroute, die:",null,null,null,null,null,null,null,null,null,null,null,null,null,null,null,null,"Art. 2 §1 1° (1) "]
[]
[null,null,null,false,null,null,null,"i)  Eindigt waar een schoolomgeving van een school begint.",null,null,null,null,null,null,null,null,null,null,null,null,null,null,null,null,"Art. 1 5°(1) "]
[]
[null,null,null,null,null,null,null,null,null,null,"EN"]
[]
[null,null,null,false,null,null,null,"ii) Buiten een straal van 100 meter rond de schooltoegang of voorbij het eerste kruispunt aan weerzijden indien dat verder ligt dan 100 meter."]
[]
[null,null,null,null,null,null,null,null,null,null,"EN"]
[null,null,null,false]
[null,null,null,null,null,null,null,"iii) Verschillende scholieren te voet of met de fiets of bromfiets op het woon-schooltraject gebruiken tijdens de uren die voorafgaan aan de opening van de school."]
[null,null,null,null,null,null,null,null,null,null,null,null,null,null,null,null,null,null,null,null,null,null,null,null,"Art. 1 5°(1) "]
[null,null,null,null,null,null,null,null,null,null,"EN"]
[null,null,null,false,null,null,null,"iv) ligt uitsluitend op een of meer gemeentewegen"]
[]
[null,"2. Omschrijving, doel en aard der werken",null,null,null,null,null,null,null,null,null,null,null,null,null,null,null,null,null,null,{"$f":"(COUNTIF(C45:D45,TRUE)+COUNTIF(C52:D52,TRUE)+COUNTIF(C58:C82,TRUE))/5","v":0},"Naam Bijlage","Pagina n°"]
[]
[null,null,false,{"$f":"IF(OR(D47,D49),TRUE,FALSE)","v":false},null,null,null,"Uitgaven zijn erop gericht de verkeersveiligheid van schoolkinderen te verbeteren. Selecteer (enkel) de relevante uitgave(n):",null,null,null,null,null,null,null,null,null,null,null,null,null,null,null,null,"Art. 2. §1 2° (1)"]
[]
[null,null,null,false,null,null,null,"i) Uitgaven voor verkeerssignalisatie (overal).",null,null,null,null,null,null,null,null,null,null,null,null,null,null,null,null,"Art. 3 (1)"]
[null,null,null,null,null,null,null,"EN/OF",null,null,null,null,null,null,null,null,null,null,null,null,null,null,null,null,"Art. 3 (1)"]
[null,null,null,false,null,null,null,"ii) Uitgaven voor infrastructurele maatregelen die de verkeersveiligheid op de schoolroutes verhogen (excl. voor fietspaden op het BFF)."]
[]
[]
[null,null,false,null,null,null,null,"De motivering voor de keuze van de geselecteerde schoolroute of schoolroutes, bevat de verwijzing naar deze schoolroute."]
[]
[]
[null,null,null,null,null,null,null,"Type Werkzaamheden (selecteer alle werkzaamheden die van toepassing zijn)"]
[]
[null,null,null,null,null,null,null,"Hoofcategorie maatregelen ",null,"Subcategorie \nmaatregelen",null,"Gedetailleerde informatie",null,null,null,"Van toepasssing"]
[null,null,{"$f":"IF(COUNTIF(D58:D76,TRUE)>0,TRUE,FALSE)","v":false},false,null,null,null,"Signalisatie ",null,"S1. Verkeersborden",null,"Afbakening fietsstraat"]
[null,null,null,false,null,null,null,null,null,null,null,"(Dynamische) zone 30  "]
[null,null,null,false,null,null,null,null,null,null,null,"Detecterende Snelheidsinformatieborden (vb. Smileyborden, \"graag traag\")"]
[null,null,null,false,null,null,null,null,null,null,null,"Verkeersborden algemeen"]
[null,null,null,false,null,null,null,null,null,"S2. (Thermoplastische) wegmarkeringen",null,"Fietssuggestiestroken"]
[null,null,null,false,null,null,null,null,null,null,null,"Oversteekplaatsen"]
[null,null,null,false,null,null,null,null,null,null,null,"Markeringen algemeen"]
[null,null,null,false,null,null,null,null,null,"S3. (Verkeers)lichten",null,"Hardware verkeerslichten"]
[null,null,null,false,null,null,null,null,null,null,null,"Verlichting algemeen"]
[null,null,null,false,null,null,null,"Infrastructureel",null,"I1. (Her)aanleg",null,"Straatmeubilair"]
[null,null,null,false,null,null,null,null,null,null,null,"Vrijliggend fietspad"]
[null,null,null,false,null,null,null,null,null,null,null,"Aanliggende fietspad"]
[null,null,null,false,null,null,null,null,null,null,null,"Voetpad"]
[null,null,null,false,null,null,null,null,null,null,null,"Wegdek"]
[null,null,null,false,null,null,null,null,null,null,null,"Groen i.f.v. verkeersveiligheid"]
[null,null,null,false,null,null,null,null,null,"I2. Hardware",null,"Hardware handhaving (vb. ANPR Camera's)"]
[null,null,null,false,null,null,null,null,null,null,null,"Hardware beloningssysteem (eenmalig)"]
[null,null,null,false,null,null,null,null,null,null,null,"Hardware beloningssysteem (huurcontract 3j)"]
[null,null,null,false,null,null,null,null,null,"I3 Hardware en Software (Pakket)",null,"Trajectcontrole (systeem waarbij de gemiddelde snelheid over een langere afstand wordt gemeten)"]
[]
[]
[]
[null,null,null,null,null,null,null,"Allocatie Budgetraming (alloceer het budget per subcategorie die van toepassing is)"]
[null,null,null,null,null,null,null,null,null,null,null,null,null,null,null,"Raming (incl. BTW)",null,"%"]
[null,null,{"$f":"IF(R82=1,TRUE,FALSE)","v":false},{"$f":"IF(R82>1,FALSE,TRUE)","v":true},null,null,null,null,"Totaal Alle Categorieën",null,null,null,null,null,null,{"$f":"SUM(P84:Q90)","v":0},null,{"$f":"SUM(R84:R90)","v":0}]
[null,null,null,null,null,null,null,null,"Signalisatie"]
[null,null,null,0,null,null,null,null,null,"S1. Verkeersborden",null,null,null,null,null,{"$f":"R84*H$18","v":0},null,{"$f":"D84/100","v":0}]
[null,null,null,0,null,null,null,null,null,"S2. (Thermoplastische) wegmarkeringen",null,null,null,null,null,{"$f":"R85*H$18","v":0},null,{"$f":"D85/100","v":0}]
[null,null,null,0,null,null,null,null,null,"S3. (Verkeers)lichten",null,null,null,null,null,{"$f":"R86*H$18","v":0},null,{"$f":"D86/100","v":0}]
[null,null,null,null,null,null,null,null,"Infrastructuur"]
[null,null,null,0,null,null,null,null,null,"I1. Heraanleg",null,null,null,null,null,{"$f":"R88*H$18","v":0},null,{"$f":"D88/100","v":0}]
[null,null,null,0,null,null,null,null,null,"I2. Hardware",null,null,null,null,null,{"$f":"R89*H$18","v":0},null,{"$f":"D89/100","v":0}]
[null,null,null,0,null,null,null,null,null,"I3. Hardware en Software (Pakket)",null,null,null,null,null,{"$f":"R90*H$18","v":0},null,{"$f":"D90/100","v":0}]
[]
[null,"4. Timing",null,null,null,null,null,null,null,null,null,null,null,null,null,null,null,null,null,null,{"$f":"COUNTIF(C94:D105,TRUE)/2","v":0},"Naam Bijlage","Pagina n°"]
[]
[null,null,false,null,null,null,null,"De (geplande) werken worden uitgevoerd, rekening houdend met een voltooiingsdatum binnen de 12 maanden na de dag van beslissing van toekenning. De finale stukken zullen ten laatste 3 maanden na voormelde datum ingediend moeten worden.",null,null,null,null,null,null,null,null,null,null,null,null,null,null,null,null,"Art. 2 §3 juncto art. 3 (1)"]
[]
[]
[null,null,null,null,null,null,null,"Voorziene datum aanvang van de werken",null,null,null,null,null,null,null,{"$f":"IF(OR(ISBLANK(L97),ISBLANK(L98)),\"Gelieve beide data in te vullen\",\"\")","v":"Gelieve beide data in te vullen"}]
[null,null,null,null,null,null,null,"Voorziene datum einde van de werken"]
[null,null,null,null,null,null,null,"Duurtijd (kalenderdagen)",null,null,null,{"$f":"IF(OR(ISBLANK(L97),ISBLANK(L98)),\"Gelieve bovenstaande cellen in te vullen\",_xlfn.DAYS(L98,L97))","v":"Gelieve bovenstaande cellen in te vullen"}]
[]
[]
[]
[]
[null,null,false,null,null,null,null,"De planning van de uitvoering van de werken voor de route werd toegevoegd in bijlage met referentie.",null,null,null,null,null,null,null,null,null,null,null,null,null,null,null,null,"Art. 7  Eerste Lid 3° (1)"]
[]
[null,"5. Informatie domeinbeheerder",null,null,null,null,null,null,null,null,null,null,null,null,null,null,null,null,null,null,{"$f":"IF(C113=1,1,COUNTIF(C117:D118,TRUE)/2)","v":0},"Naam Bijlage (optioneel)","Pagina n°","Compleet?"]
[]
[null,null,false]
[]
[null,null,null,false]
[]
[]
[null,null,2,null,null,null,null,"Het volledige domein waarop de werken worden uitgevoerd, is in het beheer van de gemeente.",null,null,null,null,null,null,null,null,null,null,null,null,null,null,null,null,"Art. 7  Eerste Lid 1°-4° (1)"]
[]
[null,null,null,null,null,null,null,"Indien niet, vul aan:"]
[null,null,null,null,null,null,null,null,null,"Type",null,"Identiteit domeinbeheerder"]
[null,null,{"$f":"IF(C113=2,NOT(ISBLANK(L117)),TRUE)","v":false},null,null,null,null,null,null,"Privaat"]
[null,null,{"$f":"IF(C113=2,AND(C119=TRUE,NOT(ISBLANK(I120)),TRUE))","v":false}]
[null,null,false,null,null,null,null,"Het akkoord van deze domeinbeheerder werd als bijlage toegevoegd aan de dossieraanvraag.",null,null,null,null,null,null,null,null,null,null,null,null,null,null,null,null,"Art. 7  Eerste Lid 5° (1)"]
[null,null,null,null,null,null,null,"Bijlage*:"]
[]
[null,null,null,null,null,null,null,"* veplicht op te nemen"]
[null,"6. Optionele bijkomende informatie",null,null,null,null,null,null,null,null,null,null,null,null,null,null,null,null,null,null,null,"Naam Bijlage (optioneel)","Pagina n°"]
[]
[null,null,null,null,null,null,null,"Bijkomende toelichting"]
[null,null,null,null,null,null,null,null,null,null,null,null,null,null,null,null,null,null,null,null,null,null,null,null,"Art. 7  Eerste Lid 1° (1)"]
[]
[]
[null,null,{"$f":"IF(AND(D129=TRUE,ISBLANK(I130)),TRUE,FALSE)","v":false},false,null,null,null,"Optioneel - u kunt een verduidelijkende bijlage toevoegen ter verduidelijking/vervanging van bovenstaand veld."]
[null,null,null,null,null,null,null,"Bijlage*:"]
[]
[null,null,null,null,null,null,null,"* veplicht op te nemen indien van toepassing"]
[]
[]
[]
[null,"Voor de administratie (MOW)",null,null,null,null,null,null,null,null,null,null,null,null,null,null,"Voor de aanvrager (Naam + Functie)"]
[null,null,null,null,null,null,null,null,null,null,null,"Hide Row"]

{"sheet":"Route (2)","index":4,"n_rows":137,"n_cols":25,"rows_kept":137,"cut":false,"hidden":true,"merged":[[120,7,120,20],[124,7,124,20],[124,23,131,23],[128,7,128,16],[129,8,129,10],[130,7,130,20],[119,8,119,10],[98,11,98,14],[100,7,101,16],[107,7,107,20],[109,7,109,20],[110,7,110,20],[111,7,111,20],[112,7,112,15],[115,9,115,10],[115,11,115,14],[116,9,116,10],[116,11,116,14],[79,7,79,20],[97,11,97,14],[81,15,81,16],[82,15,82,16],[83,15,83,16],[84,15,84,16],[85,15,85,16],[87,15,87,16],[88,15,88,16],[89,15,89,16],[93,7,94,16],[96,11,96,14],[96,15,96,17],[65,11,65,14],[80,15,80,16],[66,7,75,8],[66,9,71,10],[66,11,66,14],[67,11,67,14],[68,11,68,14],[69,11,69,14],[70,11,70,14],[71,11,71,14],[72,9,74,10],[72,11,72,14],[73,11,73,14],[74,11,74,14],[75,9,75,10],[75,11,75,14],[54,7,54,20],[56,7,56,8],[56,9,56,10],[56,11,56,14],[57,7,65,8],[57,9,60,10],[57,11,57,14],[58,11,58,14],[59,11,59,14],[60,11,60,14],[61,9,63,10],[61,11,61,14],[62,11,62,14],[63,11,63,14],[64,9,65,10],[64,11,64,14],[51,7,52,17],[17,4,17,6],[17,7,17,16],[19,7,19,17],[23,23,41,23],[24,7,25,17],[27,7,27,17],[29,7,29,20],[33,7,34,20],[36,7,36,20],[37,7,38,20],[40,7,40,20],[44,7,45,17],[46,7,46,20],[47,7,47,20],[48,7,48,20],[11,4,11,16],[13,4,13,6],[13,7,13,16],[13,17,17,17],[14,4,14,6],[14,7,14,16],[15,4,15,6],[15,7,15,16],[16,4,16,6],[16,7,16,16],[7,1,7,20],[7,21,7,22],[1,9,5,21],[2,26,6,31],[5,7,5,8],[6,7,6,8],[6,15,6,16]]}
[]
[null,null,null,null,null,null,null,null,null,{"$f":"\"Individuele Detailfiche - Route \" &H14&_xlfn.UNICHAR(10)& \"('\"&H15&\"')\"","v":"Individuele Detailfiche - Route 2\n('<< Gelieve de naam van Schoolroute 2 in te vullen >>')"}]
[null,null,2]
[]
[]
[]
[]
[null,"Vul in onderstaande tabel de gevraagde gegevens in, vink alle verklaringen aan die op de aanvraag van toepassing zijn. Toepasselijke bijlages geeft u een (betekenisvolle naam) – vb. raming route 123. Vermeld deze naam op de voorziene plaatsen in kolom T.  Indien één en dezelfde bijlage de info van meerdere items bundelt, leid ons dan in “kolom  U\" naar het passende paginanummer. Vergeet niet de bijlages samen met het aangevulde aanvraagformulier over te maken.",null,null,null,null,null,null,null,null,null,null,null,null,null,null,null,null,null,null,null,"Bijlagen",null,"Validatie \nMOW","Wettelijke \nverwijzing"]
[]
[null,null,null,null,null,null,null,null,null,null,null,null,null,null,null,null,null,null,null,null,"Voortgang sectie"]
[null,"0. Kostenoverzicht",null,null,null,null,null,null,null,null,null,null,null,null,null,null,null,null,null,null,{"$f":"COUNTIF(C14:D21,TRUE)/2","v":0},"Naam Bijlage","Pagina n°","Evaluatie"]
[null,null,null,null,"Details per route (Automatisch aangevuld op basis van overzicht)"]
[null,null,null,null,null,null,null,null,null,null,null,null,null,null,null,null,null,"link"]
[null,null,{"$f":"IF(1-COUNTBLANK(Aanvraagformulier!G28)-COUNTBLANK(Aanvraagformulier!N28)=1,TRUE,FALSE)","v":false},null,"Route n°",null,null,2,null,null,null,null,null,null,null,null,null,{"$f":"HYPERLINK(\"#'Aanvraagformulier'!G28\",\"Klik hier\")","v":"Klik hier"}]
[null,null,null,null,"Naam route",null,null,{"$f":"VLOOKUP(H$14,Aanvraagformulier!$F$25:$N$53,2,FALSE)","v":"<< Gelieve de naam van Schoolroute 2 in te vullen >>"}]
[]
[null,null,null,null,"Raming kosten\n (excl. BTW)",null,null,{"$f":"VLOOKUP(H$14,Aanvraagformulier!$F$25:$N$53,8,FALSE)","v":0}]
[null,null,null,null,"Raming kosten\n (incl. BTW)",null,null,{"$f":"VLOOKUP(H$14,Aanvraagformulier!$F$25:$N$53,9,FALSE)","v":0}]
[]
[null,null,false,null,null,null,null,"De raming van de kosten werd toegevoegd aan het dossier en opgenomen in de bijlage met referentie.",null,null,null,null,null,null,null,null,null,null,null,null,null,null,null,null,"Art. 7  Eerste Lid 2° (1)"]
[]
[]
[null,"1. Locatie",null,null,null,null,null,null,null,null,null,null,null,null,null,null,null,null,null,null,{"$f":"COUNTIF(C25:D41,TRUE)/6","v":0},"Naam Bijlage","Pagina n°"]
[]
[null,null,false,null,null,null,null,"De route is vermeld op het plan op schaal waarop duidelijk aangegeven is welke scholen deel uitmaken van het project en waar de geplande maatregelen voor de schoolroute of schoolroutes zullen worden uitgevoerd, dat werd toegevoegd aan het dossier.",null,null,null,null,null,null,null,null,null,null,null,null,null,null,null,null,"Art. 1 4°-5°- art. 2 §1 1° (1) "]
[]
[]
[null,null,false,null,null,null,null,"De werken worden uitgevoerd op een geldige schoolroute, die:",null,null,null,null,null,null,null,null,null,null,null,null,null,null,null,null,"Art. 2 §1 1° (1) "]
[]
[null,null,null,false,null,null,null,"i)  Eindigt waar een schoolomgeving van een school begint.",null,null,null,null,null,null,null,null,null,null,null,null,null,null,null,null,"Art. 1 5°(1) "]
[]
[null,null,null,null,null,null,null,null,null,null,"EN"]
[]
[null,null,null,false,null,null,null,"ii) Buiten een straal van 100 meter rond de schooltoegang of voorbij het eerste kruispunt aan weerzijden indien dat verder ligt dan 100 meter."]
[]
[null,null,null,null,null,null,null,null,null,null,"EN"]
[null,null,null,false]
[null,null,null,null,null,null,null,"iii) Verschillende scholieren te voet of met de fiets of bromfiets op het woon-schooltraject gebruiken tijdens de uren die voorafgaan aan de opening van de school."]
[null,null,null,null,null,null,null,null,null,null,null,null,null,null,null,null,null,null,null,null,null,null,null,null,"Art. 1 5°(1) "]
[null,null,null,null,null,null,null,null,null,null,"EN"]
[null,null,null,false,null,null,null,"iv) ligt uitsluitend op een of meer gemeentewegen"]
[]
[null,"2. Omschrijving, doel en aard der werken",null,null,null,null,null,null,null,null,null,null,null,null,null,null,null,null,null,null,{"$f":"(COUNTIF(C45:D45,TRUE)+COUNTIF(C52:D52,TRUE)+COUNTIF(C58:C82,TRUE))/5","v":0},"Naam Bijlage","Pagina n°"]
[]
[null,null,false,{"$f":"IF(OR(D47,D49),TRUE,FALSE)","v":false},null,null,null,"Uitgaven zijn erop gericht de verkeersveiligheid van schoolkinderen te verbeteren. Selecteer (enkel) de relevante uitgave(n):",null,null,null,null,null,null,null,null,null,null,null,null,null,null,null,null,"Art. 2. §1 2° (1)"]
[]
[null,null,null,false,null,null,null,"i) Uitgaven voor verkeerssignalisatie (overal).",null,null,null,null,null,null,null,null,null,null,null,null,null,null,null,null,"Art. 3 (1)"]
[null,null,null,null,null,null,null,"EN/OF",null,null,null,null,null,null,null,null,null,null,null,null,null,null,null,null,"Art. 3 (1)"]
[null,null,null,false,null,null,null,"ii) Uitgaven voor infrastructurele maatregelen die de verkeersveiligheid op de schoolroutes verhogen (excl. voor fietspaden op het BFF)."]
[]
[]
[null,null,false,null,null,null,null,"De motivering voor de keuze van de geselecteerde schoolroute of schoolroutes, bevat de verwijzing naar deze schoolroute."]
[]
[]
[null,null,null,null,null,null,null,"Type Werkzaamheden (selecteer alle werkzaamheden die van toepassing zijn)"]
[]
[null,null,null,null,null,null,null,"Hoofcategorie maatregelen ",null,"Subcategorie \nmaatregelen",null,"Gedetailleerde informatie",null,null,null,"Van toepasssing"]
[null,null,{"$f":"IF(COUNTIF(D58:D76,TRUE)>0,TRUE,FALSE)","v":false},false,null,null,null,"Signalisatie ",null,"S1. Verkeersborden",null,"Afbakening fietsstraat"]
[null,null,null,false,null,null,null,null,null,null,null,"(Dynamische) zone 30  "]
[null,null,null,false,null,null,null,null,null,null,null,"Detecterende Snelheidsinformatieborden (vb. Smileyborden, \"graag traag\")"]
[null,null,null,false,null,null,null,null,null,null,null,"Verkeersborden algemeen"]
[null,null,null,false,null,null,null,null,null,"S2. (Thermoplastische) wegmarkeringen",null,"Fietssuggestiestroken"]
[null,null,null,false,null,null,null,null,null,null,null,"Oversteekplaatsen"]
[null,null,null,false,null,null,null,null,null,null,null,"Markeringen algemeen"]
[null,null,null,false,null,null,null,null,null,"S3. (Verkeers)lichten",null,"Hardware verkeerslichten"]
[null,null,null,false,null,null,null,null,null,null,null,"Verlichting algemeen"]
[null,null,null,false,null,null,null,"Infrastructureel",null,"I1. (Her)aanleg",null,"Straatmeubilair"]
[null,null,null,false,null,null,null,null,null,null,null,"Vrijliggend fietspad"]
[null,null,null,false,null,null,null,null,null,null,null,"Aanliggende fietspad"]
[null,null,null,false,null,null,null,null,null,null,null,"Voetpad"]
[null,null,null,false,null,null,null,null,null,null,null,"Wegdek"]
[null,null,null,false,null,null,null,null,null,null,null,"Groen i.f.v. verkeersveiligheid"]
[null,null,null,false,null,null,null,null,null,"I2. Hardware",null,"Hardware handhaving (vb. ANPR Camera's)"]
[null,null,null,false,null,null,null,null,null,null,null,"Hardware beloningssysteem (eenmalig)"]
[null,null,null,false,null,null,null,null,null,null,null,"Hardware beloningssysteem (huurcontract 3j)"]
[null,null,null,false,null,null,null,null,null,"I3 Hardware en Software (Pakket)",null,"Trajectcontrole (systeem waarbij de gemiddelde snelheid over een langere afstand wordt gemeten)"]
[]
[]
[]
[null,null,null,null,null,null,null,"Allocatie Budgetraming (alloceer het budget per subcategorie die van toepassing is)"]
[null,null,null,null,null,null,null,null,null,null,null,null,null,null,null,"Raming (incl. BTW)",null,"%"]
[null,null,{"$f":"IF(R82=1,TRUE,FALSE)","v":false},{"$f":"IF(R82>1,FALSE,TRUE)","v":true},null,null,null,null,"Totaal Alle Categorieën",null,null,null,null,null,null,{"$f":"SUM(P84:Q90)","v":0},null,{"$f":"SUM(R84:R90)","v":0.95}]
[null,null,null,null,null,null,null,null,"Signalisatie"]
[null,null,null,60,null,null,null,null,null,"S1. Verkeersborden",null,null,null,null,null,{"$f":"R84*H$18","v":0},null,{"$f":"D84/100","v":0.6}]
[null,null,null,35,null,null,null,null,null,"S2. (Thermoplastische) wegmarkeringen",null,null,null,null,null,{"$f":"R85*H$18","v":0},null,{"$f":"D85/100","v":0.35}]
[null,null,null,0,null,null,null,null,null,"S3. (Verkeers)lichten",null,null,null,null,null,{"$f":"R86*H$18","v":0},null,{"$f":"D86/100","v":0}]
[null,null,null,null,null,null,null,null,"Infrastructuur"]
[null,null,null,0,null,null,null,null,null,"I1. Heraanleg",null,null,null,null,null,{"$f":"R88*H$18","v":0},null,{"$f":"D88/100","v":0}]
[null,null,null,0,null,null,null,null,null,"I2. Hardware",null,null,null,null,null,{"$f":"R89*H$18","v":0},null,{"$f":"D89/100","v":0}]
[null,null,null,0,null,null,null,null,null,"I3. Hardware en Software (Pakket)",null,null,null,null,null,{"$f":"R90*H$18","v":0},null,{"$f":"D90/100","v":0}]
[]
[null,"4. Timing",null,null,null,null,null,null,null,null,null,null,null,null,null,null,null,null,null,null,{"$f":"COUNTIF(C94:D105,TRUE)/2","v":0},"Naam Bijlage","Pagina n°"]
[]
[null,null,false,null,null,null,null,"De (geplande) werken worden uitgevoerd, rekening houdend met een voltooiingsdatum binnen de 12 maanden na de dag van beslissing van toekenning. De finale stukken zullen ten laatste 3 maanden na voormelde datum ingediend moeten worden.",null,null,null,null,null,null,null,null,null,null,null,null,null,null,null,null,"Art. 2 §3 juncto art. 3 (1)"]
[]
[]
[null,null,null,null,null,null,null,"Voorziene datum aanvang van de werken",null,null,null,null,null,null,null,{"$f":"IF(OR(ISBLANK(L97),ISBLANK(L98)),\"Gelieve beide data in te vullen\",\"\")","v":"Gelieve beide data in te vullen"}]
[null,null,null,null,null,null,null,"Voorziene datum einde van de werken"]
[null,null,null,null,null,null,null,"Duurtijd (kalenderdagen)",null,null,null,{"$f":"IF(OR(ISBLANK(L97),ISBLANK(L98)),\"Gelieve bovenstaande cellen in te vullen\",_xlfn.DAYS(L98,L97))","v":"Gelieve bovenstaande cellen in te vullen"}]
[]
[]
[]
[]
[null,null,false,null,null,null,null,"De planning van de uitvoering van de werken voor de route werd toegevoegd in bijlage met referentie.",null,null,null,null,null,null,null,null,null,null,null,null,null,null,null,null,"Art. 7  Eerste Lid 3° (1)"]
[]
[null,"5. Informatie domeinbeheerder",null,null,null,null,null,null,null,null,null,null,null,null,null,null,null,null,null,null,{"$f":"IF(C113=1,1,COUNTIF(C117:D118,TRUE)/2)","v":0},"Naam Bijlage (optioneel)","Pagina n°","Compleet?"]
[]
[null,null,false]
[]
[null,null,null,false]
[]
[]
[null,null,2,null,null,null,null,"Het volledige domein waarop de werken worden uitgevoerd, is in het beheer van de gemeente.",null,null,null,null,null,null,null,null,null,null,null,null,null,null,null,null,"Art. 7  Eerste Lid 1°-4° (1)"]
[]
[null,null,null,null,null,null,null,"Indien niet, vul aan:"]
[null,null,null,null,null,null,null,null,null,"Type",null,"Identiteit domeinbeheerder"]
[null,null,{"$f":"IF(C113=2,NOT(ISBLANK(L117)),TRUE)","v":false},null,null,null,null,null,null,"Privaat"]
[null,null,{"$f":"IF(C113=2,AND(C119=TRUE,NOT(ISBLANK(I120)),TRUE))","v":false}]
[null,null,false,null,null,null,null,"Het akkoord van deze domeinbeheerder werd als bijlage toegevoegd aan de dossieraanvraag.",null,null,null,null,null,null,null,null,null,null,null,null,null,null,null,null,"Art. 7  Eerste Lid 5° (1)"]
[null,null,null,null,null,null,null,"Bijlage*:"]
[]
[null,null,null,null,null,null,null,"* veplicht op te nemen"]
[null,"6. Optionele bijkomende informatie",null,null,null,null,null,null,null,null,null,null,null,null,null,null,null,null,null,null,null,"Naam Bijlage (optioneel)","Pagina n°"]
[]
[null,null,null,null,null,null,null,"Bijkomende toelichting"]
[null,null,null,null,null,null,null,null,null,null,null,null,null,null,null,null,null,null,null,null,null,null,null,null,"Art. 7  Eerste Lid 1° (1)"]
[]
[]
[null,null,{"$f":"IF(AND(D129=TRUE,ISBLANK(I130)),TRUE,FALSE)","v":false},false,null,null,null,"Optioneel - u kunt een verduidelijkende bijlage toevoegen ter verduidelijking/vervanging van bovenstaand veld."]
[null,null,null,null,null,null,null,"Bijlage*:"]
[]
[null,null,null,null,null,null,null,"* veplicht op te nemen indien van toepassing"]
[]
[]
[]
[null,"Voor de administratie (MOW)",null,null,null,null,null,null,null,null,null,null,null,null,null,null,"Voor de aanvrager (Naam + Functie)"]
[null,null,null,null,null,null,null,null,null,null,null,"Hide Row"]

{"sheet":"Route (3)","index":5,"n_rows":137,"n_cols":25,"rows_kept":137,"cut":false,"hidden":true,"merged":[[120,7,120,20],[124,7,124,20],[124,23,131,23],[128,7,128,16],[129,8,129,10],[130,7,130,20],[119,8,119,10],[98,11,98,14],[100,7,101,16],[107,7,107,20],[109,7,109,20],[110,7,110,20],[111,7,111,20],[112,7,112,15],[115,9,115,10],[115,11,115,14],[116,9,116,10],[116,11,116,14],[79,7,79,20],[97,11,97,14],[81,15,81,16],[82,15,82,16],[83,15,83,16],[84,15,84,16],[85,15,85,16],[87,15,87,16],[88,15,88,16],[89,15,89,16],[93,7,94,16],[96,11,96,14],[96,15,96,17],[65,11,65,14],[80,15,80,16],[66,7,75,8],[66,9,71,10],[66,11,66,14],[67,11,67,14],[68,11,68,14],[69,11,69,14],[70,11,70,14],[71,11,71,14],[72,9,74,10],[72,11,72,14],[73,11,73,14],[74,11,74,14],[75,9,75,10],[75,11,75,14],[54,7,54,20],[56,7,56,8],[56,9,56,10],[56,11,56,14],[57,7,65,8],[57,9,60,10],[57,11,57,14],[58,11,58,14],[59,11,59,14],[60,11,60,14],[61,9,63,10],[61,11,61,14],[62,11,62,14],[63,11,63,14],[64,9,65,10],[64,11,64,14],[51,7,52,17],[17,4,17,6],[17,7,17,16],[19,7,19,17],[23,23,41,23],[24,7,25,17],[27,7,27,17],[29,7,29,20],[33,7,34,20],[36,7,36,20],[37,7,38,20],[40,7,40,20],[44,7,45,17],[46,7,46,20],[47,7,47,20],[48,7,48,20],[11,4,11,16],[13,4,13,6],[13,7,13,16],[13,17,17,17],[14,4,14,6],[14,7,14,16],[15,4,15,6],[15,7,15,16],[16,4,16,6],[16,7,16,16],[7,1,7,20],[7,21,7,22],[1,9,5,21],[2,26,6,31],[5,7,5,8],[6,7,6,8],[6,15,6,16]]}
[]
[null,null,null,null,null,null,null,null,null,{"$f":"\"Individuele Detailfiche - Route \" &H14&_xlfn.UNICHAR(10)& \"('\"&H15&\"')\"","v":"Individuele Detailfiche - Route 3\n('<< Gelieve de naam van Schoolroute 3 in te vullen >>')"}]
[null,null,2]
[]
[]
[]
[]
[null,"Vul in onderstaande tabel de gevraagde gegevens in, vink alle verklaringen aan die op de aanvraag van toepassing zijn. Toepasselijke bijlages geeft u een (betekenisvolle naam) – vb. raming route 123. Vermeld deze naam op de voorziene plaatsen in kolom T.  Indien één en dezelfde bijlage de info van meerdere items bundelt, leid ons dan in “kolom  U\" naar het passende paginanummer. Vergeet niet de bijlages samen met het aangevulde aanvraagformulier over te maken.",null,null,null,null,null,null,null,null,null,null,null,null,null,null,null,null,null,null,null,"Bijlagen",null,"Validatie \nMOW","Wettelijke \nverwijzing"]
[]
[null,null,null,null,null,null,null,null,null,null,null,null,null,null,null,null,null,null,null,null,"Voortgang sectie"]
[null,"0. Kostenoverzicht",null,null,null,null,null,null,null,null,null,null,null,null,null,null,null,null,null,null,{"$f":"COUNTIF(C14:D21,TRUE)/2","v":0},"Naam Bijlage","Pagina n°","Evaluatie"]
[null,null,null,null,"Details per route (Automatisch aangevuld op basis van overzicht)"]
[null,null,null,null,null,null,null,null,null,null,null,null,null,null,null,null,null,"link"]
[null,null,{"$f":"IF(1-COUNTBLANK(Aanvraagformulier!G28)-COUNTBLANK(Aanvraagformulier!N28)=1,TRUE,FALSE)","v":false},null,"Route n°",null,null,3,null,null,null,null,null,null,null,null,null,{"$f":"HYPERLINK(\"#'Aanvraagformulier'!G28\",\"Klik hier\")","v":"Klik hier"}]
[null,null,null,null,"Naam route",null,null,{"$f":"VLOOKUP(H$14,Aanvraagformulier!$F$25:$N$53,2,FALSE)","v":"<< Gelieve de naam van Schoolroute 3 in te vullen >>"}]
[]
[null,null,null,null,"Raming kosten\n (excl. BTW)",null,null,{"$f":"VLOOKUP(H$14,Aanvraagformulier!$F$25:$N$53,8,FALSE)","v":0}]
[null,null,null,null,"Raming kosten\n (incl. BTW)",null,null,{"$f":"VLOOKUP(H$14,Aanvraagformulier!$F$25:$N$53,9,FALSE)","v":0}]
[]
[null,null,false,null,null,null,null,"De raming van de kosten werd toegevoegd aan het dossier en opgenomen in de bijlage met referentie.",null,null,null,null,null,null,null,null,null,null,null,null,null,null,null,null,"Art. 7  Eerste Lid 2° (1)"]
[]
[]
[null,"1. Locatie",null,null,null,null,null,null,null,null,null,null,null,null,null,null,null,null,null,null,{"$f":"COUNTIF(C25:D41,TRUE)/6","v":0},"Naam Bijlage","Pagina n°"]
[]
[null,null,false,null,null,null,null,"De route is vermeld op het plan op schaal waarop duidelijk aangegeven is welke scholen deel uitmaken van het project en waar de geplande maatregelen voor de schoolroute of schoolroutes zullen worden uitgevoerd, dat werd toegevoegd aan het dossier.",null,null,null,null,null,null,null,null,null,null,null,null,null,null,null,null,"Art. 1 4°-5°- art. 2 §1 1° (1) "]
[]
[]
[null,null,false,null,null,null,null,"De werken worden uitgevoerd op een geldige schoolroute, die:",null,null,null,null,null,null,null,null,null,null,null,null,null,null,null,null,"Art. 2 §1 1° (1) "]
[]
[null,null,null,false,null,null,null,"i)  Eindigt waar een schoolomgeving van een school begint.",null,null,null,null,null,null,null,null,null,null,null,null,null,null,null,null,"Art. 1 5°(1) "]
[]
[null,null,null,null,null,null,null,null,null,null,"EN"]
[]
[null,null,null,false,null,null,null,"ii) Buiten een straal van 100 meter rond de schooltoegang of voorbij het eerste kruispunt aan weerzijden indien dat verder ligt dan 100 meter."]
[]
[null,null,null,null,null,null,null,null,null,null,"EN"]
[null,null,null,false]
[null,null,null,null,null,null,null,"iii) Verschillende scholieren te voet of met de fiets of bromfiets op het woon-schooltraject gebruiken tijdens de uren die voorafgaan aan de opening van de school."]
[null,null,null,null,null,null,null,null,null,null,null,null,null,null,null,null,null,null,null,null,null,null,null,null,"Art. 1 5°(1) "]
[null,null,null,null,null,null,null,null,null,null,"EN"]
[null,null,null,false,null,null,null,"iv) ligt uitsluitend op een of meer gemeentewegen"]
[]
[null,"2. Omschrijving, doel en aard der werken",null,null,null,null,null,null,null,null,null,null,null,null,null,null,null,null,null,null,{"$f":"(COUNTIF(C45:D45,TRUE)+COUNTIF(C52:D52,TRUE)+COUNTIF(C58:C82,TRUE))/5","v":0},"Naam Bijlage","Pagina n°"]
[]
[null,null,false,{"$f":"IF(OR(D47,D49),TRUE,FALSE)","v":false},null,null,null,"Uitgaven zijn erop gericht de verkeersveiligheid van schoolkinderen te verbeteren. Selecteer (enkel) de relevante uitgave(n):",null,null,null,null,null,null,null,null,null,null,null,null,null,null,null,null,"Art. 2. §1 2° (1)"]
[]
[null,null,null,false,null,null,null,"i) Uitgaven voor verkeerssignalisatie (overal).",null,null,null,null,null,null,null,null,null,null,null,null,null,null,null,null,"Art. 3 (1)"]
[null,null,null,null,null,null,null,"EN/OF",null,null,null,null,null,null,null,null,null,null,null,null,null,null,null,null,"Art. 3 (1)"]
[null,null,null,false,null,null,null,"ii) Uitgaven voor infrastructurele maatregelen die de verkeersveiligheid op de schoolroutes verhogen (excl. voor fietspaden op het BFF)."]
[]
[]
[null,null,false,null,null,null,null,"De motivering voor de keuze van de geselecteerde schoolroute of schoolroutes, bevat de verwijzing naar deze schoolroute."]
[]
[]
[null,null,null,null,null,null,null,"Type Werkzaamheden (selecteer alle werkzaamheden die van toepassing zijn)"]
[]
[null,null,null,null,null,null,null,"Hoofcategorie maatregelen ",null,"Subcategorie \nmaatregelen",null,"Gedetailleerde informatie",null,null,null,"Van toepasssing"]
[null,null,{"$f":"IF(COUNTIF(D58:D76,TRUE)>0,TRUE,FALSE)","v":false},false,null,null,null,"Signalisatie ",null,"S1. Verkeersborden",null,"Afbakening fietsstraat"]
[null,null,null,false,null,null,null,null,null,null,null,"(Dynamische) zone 30  "]
[null,null,null,false,null,null,null,null,null,null,null,"Detecterende Snelheidsinformatieborden (vb. Smileyborden, \"graag traag\")"]
[null,null,null,false,null,null,null,null,null,null,null,"Verkeersborden algemeen"]
[null,null,null,false,null,null,null,null,null,"S2. (Thermoplastische) wegmarkeringen",null,"Fietssuggestiestroken"]
[null,null,null,false,null,null,null,null,null,null,null,"Oversteekplaatsen"]
[null,null,null,false,null,null,null,null,null,null,null,"Markeringen algemeen"]
[null,null,null,false,null,null,null,null,null,"S3. (Verkeers)lichten",null,"Hardware verkeerslichten"]
[null,null,null,false,null,null,null,null,null,null,null,"Verlichting algemeen"]
[null,null,null,false,null,null,null,"Infrastructureel",null,"I1. (Her)aanleg",null,"Straatmeubilair"]
[null,null,null,false,null,null,null,null,null,null,null,"Vrijliggend fietspad"]
[null,null,null,false,null,null,null,null,null,null,null,"Aanliggende fietspad"]
[null,null,null,false,null,null,null,null,null,null,null,"Voetpad"]
[null,null,null,false,null,null,null,null,null,null,null,"Wegdek"]
[null,null,null,false,null,null,null,null,null,null,null,"Groen i.f.v. verkeersveiligheid"]
[null,null,null,false,null,null,null,null,null,"I2. Hardware",null,"Hardware handhaving (vb. ANPR Camera's)"]
[null,null,null,false,null,null,null,null,null,null,null,"Hardware beloningssysteem (eenmalig)"]
[null,null,null,false,null,null,null,null,null,null,null,"Hardware beloningssysteem (huurcontract 3j)"]
[null,null,null,false,null,null,null,null,null,"I3 Hardware en Software (Pakket)",null,"Trajectcontrole (systeem waarbij de gemiddelde snelheid over een langere afstand wordt gemeten)"]
[]
[]
[]
[null,null,null,null,null,null,null,"Allocatie Budgetraming (alloceer het budget per subcategorie die van toepassing is)"]
[null,null,null,null,null,null,null,null,null,null,null,null,null,null,null,"Raming (incl. BTW)",null,"%"]
[null,null,{"$f":"IF(R82=1,TRUE,FALSE)","v":false},{"$f":"IF(R82>1,FALSE,TRUE)","v":true},null,null,null,null,"Totaal Alle Categorieën",null,null,null,null,null,null,{"$f":"SUM(P84:Q90)","v":0},null,{"$f":"SUM(R84:R90)","v":0.95}]
[null,null,null,null,null,null,null,null,"Signalisatie"]
[null,null,null,60,null,null,null,null,null,"S1. Verkeersborden",null,null,null,null,null,{"$f":"R84*H$18","v":0},null,{"$f":"D84/100","v":0.6}]
[null,null,null,35,null,null,null,null,null,"S2. (Thermoplastische) wegmarkeringen",null,null,null,null,null,{"$f":"R85*H$18","v":0},null,{"$f":"D85/100","v":0.35}]
[null,null,null,0,null,null,null,null,null,"S3. (Verkeers)lichten",null,null,null,null,null,{"$f":"R86*H$18","v":0},null,{"$f":"D86/100","v":0}]
[null,null,null,null,null,null,null,null,"Infrastructuur"]
[null,null,null,0,null,null,null,null,null,"I1. Heraanleg",null,null,null,null,null,{"$f":"R88*H$18","v":0},null,{"$f":"D88/100","v":0}]
[null,null,null,0,null,null,null,null,null,"I2. Hardware",null,null,null,null,null,{"$f":"R89*H$18","v":0},null,{"$f":"D89/100","v":0}]
[null,null,null,0,null,null,null,null,null,"I3. Hardware en Software (Pakket)",null,null,null,null,null,{"$f":"R90*H$18","v":0},null,{"$f":"D90/100","v":0}]
[]
[null,"4. Timing",null,null,null,null,null,null,null,null,null,null,null,null,null,null,null,null,null,null,{"$f":"COUNTIF(C94:D105,TRUE)/2","v":0},"Naam Bijlage","Pagina n°"]
[]
[null,null,false,null,null,null,null,"De (geplande) werken worden uitgevoerd, rekening houdend met een voltooiingsdatum binnen de 12 maanden na de dag van beslissing van toekenning. De finale stukken zullen ten laatste 3 maanden na voormelde datum ingediend moeten worden.",null,null,null,null,null,null,null,null,null,null,null,null,null,null,null,null,"Art. 2 §3 juncto art. 3 (1)"]
[]
[]
[null,null,null,null,null,null,null,"Voorziene datum aanvang van de werken",null,null,null,null,null,null,null,{"$f":"IF(OR(ISBLANK(L97),ISBLANK(L98)),\"Gelieve beide data in te vullen\",\"\")","v":"Gelieve beide data in te vullen"}]
[null,null,null,null,null,null,null,"Voorziene datum einde van de werken"]
[null,null,null,null,null,null,null,"Duurtijd (kalenderdagen)",null,null,null,{"$f":"IF(OR(ISBLANK(L97),ISBLANK(L98)),\"Gelieve bovenstaande cellen in te vullen\",_xlfn.DAYS(L98,L97))","v":"Gelieve bovenstaande cellen in te vullen"}]
[]
[]
[]
[]
[null,null,false,null,null,null,null,"De planning van de uitvoering van de werken voor de route werd toegevoegd in bijlage met referentie.",null,null,null,null,null,null,null,null,null,null,null,null,null,null,null,null,"Art. 7  Eerste Lid 3° (1)"]
[]
[null,"5. Informatie domeinbeheerder",null,null,null,null,null,null,null,null,null,null,null,null,null,null,null,null,null,null,{"$f":"IF(C113=1,1,COUNTIF(C117:D118,TRUE)/2)","v":0},"Naam Bijlage (optioneel)","Pagina n°","Compleet?"]
[]
[null,null,false]
[]
[null,null,null,false]
[]
[]
[null,null,2,null,null,null,null,"Het volledige domein waarop de werken worden uitgevoerd, is in het beheer van de gemeente.",null,null,null,null,null,null,null,null,null,null,null,null,null,null,null,null,"Art. 7  Eerste Lid 1°-4° (1)"]
[]
[null,null,null,null,null,null,null,"Indien niet, vul aan:"]
[null,null,null,null,null,null,null,null,null,"Type",null,"Identiteit domeinbeheerder"]
[null,null,{"$f":"IF(C113=2,NOT(ISBLANK(L117)),TRUE)","v":false},null,null,null,null,null,null,"Privaat"]
[null,null,{"$f":"IF(C113=2,AND(C119=TRUE,NOT(ISBLANK(I120)),TRUE))","v":false}]
[null,null,false,null,null,null,null,"Het akkoord van deze domeinbeheerder werd als bijlage toegevoegd aan de dossieraanvraag.",null,null,null,null,null,null,null,null,null,null,null,null,null,null,null,null,"Art. 7  Eerste Lid 5° (1)"]
[null,null,null,null,null,null,null,"Bijlage*:"]
[]
[null,null,null,null,null,null,null,"* veplicht op te nemen"]
[null,"6. Optionele bijkomende informatie",null,null,null,null,null,null,null,null,null,null,null,null,null,null,null,null,null,null,null,"Naam Bijlage (optioneel)","Pagina n°"]
[]
[null,null,null,null,null,null,null,"Bijkomende toelichting"]
[null,null,null,null,null,null,null,null,null,null,null,null,null,null,null,null,null,null,null,null,null,null,null,null,"Art. 7  Eerste Lid 1° (1)"]
[]
[]
[null,null,{"$f":"IF(AND(D129=TRUE,ISBLANK(I130)),TRUE,FALSE)","v":false},false,null,null,null,"Optioneel - u kunt een verduidelijkende bijlage toevoegen ter verduidelijking/vervanging van bovenstaand veld."]
[null,null,null,null,null,null,null,"Bijlage*:"]
[]
[null,null,null,null,null,null,null,"* veplicht op te nemen indien van toepassing"]
[]
[]
[]
[null,"Voor de administratie (MOW)",null,null,null,null,null,null,null,null,null,null,null,null,null,null,"Voor de aanvrager (Naam + Functie)"]
[null,null,null,null,null,null,null,null,null,null,null,"Hide Row"]

{"sheet":"Route (4)","index":6,"n_rows":137,"n_cols":25,"rows_kept":137,"cut":false,"hidden":true,"merged":[[120,7,120,20],[124,7,124,20],[124,23,131,23],[128,7,128,16],[129,8,129,10],[130,7,130,20],[119,8,119,10],[98,11,98,14],[100,7,101,16],[107,7,107,20],[109,7,109,20],[110,7,110,20],[111,7,111,20],[112,7,112,15],[115,9,115,10],[115,11,115,14],[116,9,116,10],[116,11,116,14],[79,7,79,20],[97,11,97,14],[81,15,81,16],[82,15,82,16],[83,15,83,16],[84,15,84,16],[85,15,85,16],[87,15,87,16],[88,15,88,16],[89,15,89,16],[93,7,94,16],[96,11,96,14],[96,15,96,17],[65,11,65,14],[80,15,80,16],[66,7,75,8],[66,9,71,10],[66,11,66,14],[67,11,67,14],[68,11,68,14],[69,11,69,14],[70,11,70,14],[71,11,71,14],[72,9,74,10],[72,11,72,14],[73,11,73,14],[74,11,74,14],[75,9,75,10],[75,11,75,14],[54,7,54,20],[56,7,56,8],[56,9,56,10],[56,11,56,14],[57,7,65,8],[57,9,60,10],[57,11,57,14],[58,11,58,14],[59,11,59,14],[60,11,60,14],[61,9,63,10],[61,11,61,14],[62,11,62,14],[63,11,63,14],[64,9,65,10],[64,11,64,14],[51,7,52,17],[17,4,17,6],[17,7,17,16],[19,7,19,17],[23,23,41,23],[24,7,25,17],[27,7,27,17],[29,7,29,20],[33,7,34,20],[36,7,36,20],[37,7,38,20],[40,7,40,20],[44,7,45,17],[46,7,46,20],[47,7,47,20],[48,7,48,20],[11,4,11,16],[13,4,13,6],[13,7,13,16],[13,17,17,17],[14,4,14,6],[14,7,14,16],[15,4,15,6],[15,7,15,16],[16,4,16,6],[16,7,16,16],[7,1,7,20],[7,21,7,22],[1,9,5,21],[2,26,6,31],[5,7,5,8],[6,7,6,8],[6,15,6,16]]}
[]
[null,null,null,null,null,null,null,null,null,{"$f":"\"Individuele Detailfiche - Route \" &H14&_xlfn.UNICHAR(10)& \"('\"&H15&\"')\"","v":"Individuele Detailfiche - Route 4\n('<< Gelieve de naam van Schoolroute 4 in te vullen >>')"}]
[null,null,2]
[]
[]
[]
[]
[null,"Vul in onderstaande tabel de gevraagde gegevens in, vink alle verklaringen aan die op de aanvraag van toepassing zijn. Toepasselijke bijlages geeft u een (betekenisvolle naam) – vb. raming route 123. Vermeld deze naam op de voorziene plaatsen in kolom T.  Indien één en dezelfde bijlage de info van meerdere items bundelt, leid ons dan in “kolom  U\" naar het passende paginanummer. Vergeet niet de bijlages samen met het aangevulde aanvraagformulier over te maken.",null,null,null,null,null,null,null,null,null,null,null,null,null,null,null,null,null,null,null,"Bijlagen",null,"Validatie \nMOW","Wettelijke \nverwijzing"]
[]
[null,null,null,null,null,null,null,null,null,null,null,null,null,null,null,null,null,null,null,null,"Voortgang sectie"]
[null,"0. Kostenoverzicht",null,null,null,null,null,null,null,null,null,null,null,null,null,null,null,null,null,null,{"$f":"COUNTIF(C14:D21,TRUE)/2","v":0},"Naam Bijlage","Pagina n°","Evaluatie"]
[null,null,null,null,"Details per route (Automatisch aangevuld op basis van overzicht)"]
[null,null,null,null,null,null,null,null,null,null,null,null,null,null,null,null,null,"link"]
[null,null,{"$f":"IF(1-COUNTBLANK(Aanvraagformulier!G28)-COUNTBLANK(Aanvraagformulier!N28)=1,TRUE,FALSE)","v":false},null,"Route n°",null,null,4,null,null,null,null,null,null,null,null,null,{"$f":"HYPERLINK(\"#'Aanvraagformulier'!G28\",\"Klik hier\")","v":"Klik hier"}]
[null,null,null,null,"Naam route",null,null,{"$f":"VLOOKUP(H$14,Aanvraagformulier!$F$25:$N$53,2,FALSE)","v":"<< Gelieve de naam van Schoolroute 4 in te vullen >>"}]
[]
[null,null,null,null,"Raming kosten\n (excl. BTW)",null,null,{"$f":"VLOOKUP(H$14,Aanvraagformulier!$F$25:$N$53,8,FALSE)","v":0}]
[null,null,null,null,"Raming kosten\n (incl. BTW)",null,null,{"$f":"VLOOKUP(H$14,Aanvraagformulier!$F$25:$N$53,9,FALSE)","v":0}]
[]
[null,null,false,null,null,null,null,"De raming van de kosten werd toegevoegd aan het dossier en opgenomen in de bijlage met referentie.",null,null,null,null,null,null,null,null,null,null,null,null,null,null,null,null,"Art. 7  Eerste Lid 2° (1)"]
[]
[]
[null,"1. Locatie",null,null,null,null,null,null,null,null,null,null,null,null,null,null,null,null,null,null,{"$f":"COUNTIF(C25:D41,TRUE)/6","v":0},"Naam Bijlage","Pagina n°"]
[]
[null,null,false,null,null,null,null,"De route is vermeld op het plan op schaal waarop duidelijk aangegeven is welke scholen deel uitmaken van het project en waar de geplande maatregelen voor de schoolroute of schoolroutes zullen worden uitgevoerd, dat werd toegevoegd aan het dossier.",null,null,null,null,null,null,null,null,null,null,null,null,null,null,null,null,"Art. 1 4°-5°- art. 2 §1 1° (1) "]
[]
[]
[null,null,false,null,null,null,null,"De werken worden uitgevoerd op een geldige schoolroute, die:",null,null,null,null,null,null,null,null,null,null,null,null,null,null,null,null,"Art. 2 §1 1° (1) "]
[]
[null,null,null,false,null,null,null,"i)  Eindigt waar een schoolomgeving van een school begint.",null,null,null,null,null,null,null,null,null,null,null,null,null,null,null,null,"Art. 1 5°(1) "]
[]
[null,null,null,null,null,null,null,null,null,null,"EN"]
[]
[null,null,null,false,null,null,null,"ii) Buiten een straal van 100 meter rond de schooltoegang of voorbij het eerste kruispunt aan weerzijden indien dat verder ligt dan 100 meter."]
[]
[null,null,null,null,null,null,null,null,null,null,"EN"]
[null,null,null,false]
[null,null,null,null,null,null,null,"iii) Verschillende scholieren te voet of met de fiets of bromfiets op het woon-schooltraject gebruiken tijdens de uren die voorafgaan aan de opening van de school."]
[null,null,null,null,null,null,null,null,null,null,null,null,null,null,null,null,null,null,null,null,null,null,null,null,"Art. 1 5°(1) "]
[null,null,null,null,null,null,null,null,null,null,"EN"]
[null,null,null,false,null,null,null,"iv) ligt uitsluitend op een of meer gemeentewegen"]
[]
[null,"2. Omschrijving, doel en aard der werken",null,null,null,null,null,null,null,null,null,null,null,null,null,null,null,null,null,null,{"$f":"(COUNTIF(C45:D45,TRUE)+COUNTIF(C52:D52,TRUE)+COUNTIF(C58:C82,TRUE))/5","v":0},"Naam Bijlage","Pagina n°"]
[]
[null,null,false,{"$f":"IF(OR(D47,D49),TRUE,FALSE)","v":false},null,null,null,"Uitgaven zijn erop gericht de verkeersveiligheid van schoolkinderen te verbeteren. Selecteer (enkel) de relevante uitgave(n):",null,null,null,null,null,null,null,null,null,null,null,null,null,null,null,null,"Art. 2. §1 2° (1)"]
[]
[null,null,null,false,null,null,null,"i) Uitgaven voor verkeerssignalisatie (overal).",null,null,null,null,null,null,null,null,null,null,null,null,null,null,null,null,"Art. 3 (1)"]
[null,null,null,null,null,null,null,"EN/OF",null,null,null,null,null,null,null,null,null,null,null,null,null,null,null,null,"Art. 3 (1)"]
[null,null,null,false,null,null,null,"ii) Uitgaven voor infrastructurele maatregelen die de verkeersveiligheid op de schoolroutes verhogen (excl. voor fietspaden op het BFF)."]
[]
[]
[null,null,false,null,null,null,null,"De motivering voor de keuze van de geselecteerde schoolroute of schoolroutes, bevat de verwijzing naar deze schoolroute."]
[]
[]
[null,null,null,null,null,null,null,"Type Werkzaamheden (selecteer alle werkzaamheden die van toepassing zijn)"]
[]
[null,null,null,null,null,null,null,"Hoofcategorie maatregelen ",null,"Subcategorie \nmaatregelen",null,"Gedetailleerde informatie",null,null,null,"Van toepasssing"]
[null,null,{"$f":"IF(COUNTIF(D58:D76,TRUE)>0,TRUE,FALSE)","v":false},false,null,null,null,"Signalisatie ",null,"S1. Verkeersborden",null,"Afbakening fietsstraat"]
[null,null,null,false,null,null,null,null,null,null,null,"(Dynamische) zone 30  "]
[null,null,null,false,null,null,null,null,null,null,null,"Detecterende Snelheidsinformatieborden (vb. Smileyborden, \"graag traag\")"]
[null,null,null,false,null,null,null,null,null,null,null,"Verkeersborden algemeen"]
[null,null,null,false,null,null,null,null,null,"S2. (Thermoplastische) wegmarkeringen",null,"Fietssuggestiestroken"]
[null,null,null,false,null,null,null,null,null,null,null,"Oversteekplaatsen"]
[null,null,null,false,null,null,null,null,null,null,null,"Markeringen algemeen"]
[null,null,null,false,null,null,null,null,null,"S3. (Verkeers)lichten",null,"Hardware verkeerslichten"]
[null,null,null,false,null,null,null,null,null,null,null,"Verlichting algemeen"]
[null,null,null,false,null,null,null,"Infrastructureel",null,"I1. (Her)aanleg",null,"Straatmeubilair"]
[null,null,null,false,null,null,null,null,null,null,null,"Vrijliggend fietspad"]
[null,null,null,false,null,null,null,null,null,null,null,"Aanliggende fietspad"]
[null,null,null,false,null,null,null,null,null,null,null,"Voetpad"]
[null,null,null,false,null,null,null,null,null,null,null,"Wegdek"]
[null,null,null,false,null,null,null,null,null,null,null,"Groen i.f.v. verkeersveiligheid"]
[null,null,null,false,null,null,null,null,null,"I2. Hardware",null,"Hardware handhaving (vb. ANPR Camera's)"]
[null,null,null,false,null,null,null,null,null,null,null,"Hardware beloningssysteem (eenmalig)"]
[null,null,null,false,null,null,null,null,null,null,null,"Hardware beloningssysteem (huurcontract 3j)"]
[null,null,null,false,null,null,null,null,null,"I3 Hardware en Software (Pakket)",null,"Trajectcontrole (systeem waarbij de gemiddelde snelheid over een langere afstand wordt gemeten)"]
[]
[]
[]
[null,null,null,null,null,null,null,"Allocatie Budgetraming (alloceer het budget per subcategorie die van toepassing is)"]
[null,null,null,null,null,null,null,null,null,null,null,null,null,null,null,"Raming (incl. BTW)",null,"%"]
[null,null,{"$f":"IF(R82=1,TRUE,FALSE)","v":false},{"$f":"IF(R82>1,FALSE,TRUE)","v":true},null,null,null,null,"Totaal Alle Categorieën",null,null,null,null,null,null,{"$f":"SUM(P84:Q90)","v":0},null,{"$f":"SUM(R84:R90)","v":0.95}]
[null,null,null,null,null,null,null,null,"Signalisatie"]
[null,null,null,60,null,null,null,null,null,"S1. Verkeersborden",null,null,null,null,null,{"$f":"R84*H$18","v":0},null,{"$f":"D84/100","v":0.6}]
[null,null,null,35,null,null,null,null,null,"S2. (Thermoplastische) wegmarkeringen",null,null,null,null,null,{"$f":"R85*H$18","v":0},null,{"$f":"D85/100","v":0.35}]
[null,null,null,0,null,null,null,null,null,"S3. (Verkeers)lichten",null,null,null,null,null,{"$f":"R86*H$18","v":0},null,{"$f":"D86/100","v":0}]
[null,null,null,null,null,null,null,null,"Infrastructuur"]
[null,null,null,0,null,null,null,null,null,"I1. Heraanleg",null,null,null,null,null,{"$f":"R88*H$18","v":0},null,{"$f":"D88/100","v":0}]
[null,null,null,0,null,null,null,null,null,"I2. Hardware",null,null,null,null,null,{"$f":"R89*H$18","v":0},null,{"$f":"D89/100","v":0}]
[null,null,null,0,null,null,null,null,null,"I3. Hardware en Software (Pakket)",null,null,null,null,null,{"$f":"R90*H$18","v":0},null,{"$f":"D90/100","v":0}]
[]
[null,"4. Timing",null,null,null,null,null,null,null,null,null,null,null,null,null,null,null,null,null,null,{"$f":"COUNTIF(C94:D105,TRUE)/2","v":0},"Naam Bijlage","Pagina n°"]
[]
[null,null,false,null,null,null,null,"De (geplande) werken worden uitgevoerd, rekening houdend met een voltooiingsdatum binnen de 12 maanden na de dag van beslissing van toekenning. De finale stukken zullen ten laatste 3 maanden na voormelde datum ingediend moeten worden.",null,null,null,null,null,null,null,null,null,null,null,null,null,null,null,null,"Art. 2 §3 juncto art. 3 (1)"]
[]
[]
[null,null,null,null,null,null,null,"Voorziene datum aanvang van de werken",null,null,null,null,null,null,null,{"$f":"IF(OR(ISBLANK(L97),ISBLANK(L98)),\"Gelieve beide data in te vullen\",\"\")","v":"Gelieve beide data in te vullen"}]
[null,null,null,null,null,null,null,"Voorziene datum einde van de werken"]
[null,null,null,null,null,null,null,"Duurtijd (kalenderdagen)",null,null,null,{"$f":"IF(OR(ISBLANK(L97),ISBLANK(L98)),\"Gelieve bovenstaande cellen in te vullen\",_xlfn.DAYS(L98,L97))","v":"Gelieve bovenstaande cellen in te vullen"}]
[]
[]
[]
[]
[null,null,false,null,null,null,null,"De planning van de uitvoering van de werken voor de route werd toegevoegd in bijlage met referentie.",null,null,null,null,null,null,null,null,null,null,null,null,null,null,null,null,"Art. 7  Eerste Lid 3° (1)"]
[]
[null,"5. Informatie domeinbeheerder",null,null,null,null,null,null,null,null,null,null,null,null,null,null,null,null,null,null,{"$f":"IF(C113=1,1,COUNTIF(C117:D118,TRUE)/2)","v":0},"Naam Bijlage (optioneel)","Pagina n°","Compleet?"]
[]
[null,null,false]
[]
[null,null,null,false]
[]
[]
[null,null,2,null,null,null,null,"Het volledige domein waarop de werken worden uitgevoerd, is in het beheer van de gemeente.",null,null,null,null,null,null,null,null,null,null,null,null,null,null,null,null,"Art. 7  Eerste Lid 1°-4° (1)"]
[]
[null,null,null,null,null,null,null,"Indien niet, vul aan:"]
[null,null,null,null,null,null,null,null,null,"Type",null,"Identiteit domeinbeheerder"]
[null,null,{"$f":"IF(C113=2,NOT(ISBLANK(L117)),TRUE)","v":false},null,null,null,null,null,null,"Privaat"]
[null,null,{"$f":"IF(C113=2,AND(C119=TRUE,NOT(ISBLANK(I120)),TRUE))","v":false}]
[null,null,false,null,null,null,null,"Het akkoord van deze domeinbeheerder werd als bijlage toegevoegd aan de dossieraanvraag.",null,null,null,null,null,null,null,null,null,null,null,null,null,null,null,null,"Art. 7  Eerste Lid 5° (1)"]
[null,null,null,null,null,null,null,"Bijlage*:"]
[]
[null,null,null,null,null,null,null,"* veplicht op te nemen"]
[null,"6. Optionele bijkomende informatie",null,null,null,null,null,null,null,null,null,null,null,null,null,null,null,null,null,null,null,"Naam Bijlage (optioneel)","Pagina n°"]
[]
[null,null,null,null,null,null,null,"Bijkomende toelichting"]
[null,null,null,null,null,null,null,null,null,null,null,null,null,null,null,null,null,null,null,null,null,null,null,null,"Art. 7  Eerste Lid 1° (1)"]
[]
[]
[null,null,{"$f":"IF(AND(D129=TRUE,ISBLANK(I130)),TRUE,FALSE)","v":false},false,null,null,null,"Optioneel - u kunt een verduidelijkende bijlage toevoegen ter verduidelijking/vervanging van bovenstaand veld."]
[null,null,null,null,null,null,null,"Bijlage*:"]
[]
[null,null,null,null,null,null,null,"* veplicht op te nemen indien van toepassing"]
[]
[]
[]
[null,"Voor de administratie (MOW)",null,null,null,null,null,null,null,null,null,null,null,null,null,null,"Voor de aanvrager (Naam + Functie)"]
[null,null,null,null,null,null,null,null,null,null,null,"Hide Row"]

{"sheet":"Route (5)","index":7,"n_rows":137,"n_cols":25,"rows_kept":137,"cut":false,"hidden":true,"merged":[[120,7,120,20],[124,7,124,20],[124,23,131,23],[128,7,128,16],[129,8,129,10],[130,7,130,20],[119,8,119,10],[98,11,98,14],[100,7,101,16],[107,7,107,20],[109,7,109,20],[110,7,110,20],[111,7,111,20],[112,7,112,15],[115,9,115,10],[115,11,115,14],[116,9,116,10],[116,11,116,14],[79,7,79,20],[97,11,97,14],[81,15,81,16],[82,15,82,16],[83,15,83,16],[84,15,84,16],[85,15,85,16],[87,15,87,16],[88,15,88,16],[89,15,89,16],[93,7,94,16],[96,11,96,14],[96,15,96,17],[65,11,65,14],[80,15,80,16],[66,7,75,8],[66,9,71,10],[66,11,66,14],[67,11,67,14],[68,11,68,14],[69,11,69,14],[70,11,70,14],[71,11,71,14],[72,9,74,10],[72,11,72,14],[73,11,73,14],[74,11,74,14],[75,9,75,10],[75,11,75,14],[54,7,54,20],[56,7,56,8],[56,9,56,10],[56,11,56,14],[57,7,65,8],[57,9,60,10],[57,11,57,14],[58,11,58,14],[59,11,59,14],[60,11,60,14],[61,9,63,10],[61,11,61,14],[62,11,62,14],[63,11,63,14],[64,9,65,10],[64,11,64,14],[51,7,52,17],[17,4,17,6],[17,7,17,16],[19,7,19,17],[23,23,41,23],[24,7,25,17],[27,7,27,17],[29,7,29,20],[33,7,34,20],[36,7,36,20],[37,7,38,20],[40,7,40,20],[44,7,45,17],[46,7,46,20],[47,7,47,20],[48,7,48,20],[11,4,11,16],[13,4,13,6],[13,7,13,16],[13,17,17,17],[14,4,14,6],[14,7,14,16],[15,4,15,6],[15,7,15,16],[16,4,16,6],[16,7,16,16],[7,1,7,20],[7,21,7,22],[1,9,5,21],[2,26,6,31],[5,7,5,8],[6,7,6,8],[6,15,6,16]]}
[]
[null,null,null,null,null,null,null,null,null,{"$f":"\"Individuele Detailfiche - Route \" &H14&_xlfn.UNICHAR(10)& \"('\"&H15&\"')\"","v":"Individuele Detailfiche - Route 5\n('<< Gelieve de naam van Schoolroute 5 in te vullen >>')"}]
[null,null,2]
[]
[]
[]
[]
[null,"Vul in onderstaande tabel de gevraagde gegevens in, vink alle verklaringen aan die op de aanvraag van toepassing zijn. Toepasselijke bijlages geeft u een (betekenisvolle naam) – vb. raming route 123. Vermeld deze naam op de voorziene plaatsen in kolom T.  Indien één en dezelfde bijlage de info van meerdere items bundelt, leid ons dan in “kolom  U\" naar het passende paginanummer. Vergeet niet de bijlages samen met het aangevulde aanvraagformulier over te maken.",null,null,null,null,null,null,null,null,null,null,null,null,null,null,null,null,null,null,null,"Bijlagen",null,"Validatie \nMOW","Wettelijke \nverwijzing"]
[]
[null,null,null,null,null,null,null,null,null,null,null,null,null,null,null,null,null,null,null,null,"Voortgang sectie"]
[null,"0. Kostenoverzicht",null,null,null,null,null,null,null,null,null,null,null,null,null,null,null,null,null,null,{"$f":"COUNTIF(C14:D21,TRUE)/2","v":0},"Naam Bijlage","Pagina n°","Evaluatie"]
[null,null,null,null,"Details per route (Automatisch aangevuld op basis van overzicht)"]
[null,null,null,null,null,null,null,null,null,null,null,null,null,null,null,null,null,"link"]
[null,null,{"$f":"IF(1-COUNTBLANK(Aanvraagformulier!G28)-COUNTBLANK(Aanvraagformulier!N28)=1,TRUE,FALSE)","v":false},null,"Route n°",null,null,5,null,null,null,null,null,null,null,null,null,{"$f":"HYPERLINK(\"#'Aanvraagformulier'!G28\",\"Klik hier\")","v":"Klik hier"}]
[null,null,null,null,"Naam route",null,null,{"$f":"VLOOKUP(H$14,Aanvraagformulier!$F$25:$N$53,2,FALSE)","v":"<< Gelieve de naam van Schoolroute 5 in te vullen >>"}]
[]
[null,null,null,null,"Raming kosten\n (excl. BTW)",null,null,{"$f":"VLOOKUP(H$14,Aanvraagformulier!$F$25:$N$53,8,FALSE)","v":0}]
[null,null,null,null,"Raming kosten\n (incl. BTW)",null,null,{"$f":"VLOOKUP(H$14,Aanvraagformulier!$F$25:$N$53,9,FALSE)","v":0}]
[]
[null,null,false,null,null,null,null,"De raming van de kosten werd toegevoegd aan het dossier en opgenomen in de bijlage met referentie.",null,null,null,null,null,null,null,null,null,null,null,null,null,null,null,null,"Art. 7  Eerste Lid 2° (1)"]
[]
[]
[null,"1. Locatie",null,null,null,null,null,null,null,null,null,null,null,null,null,null,null,null,null,null,{"$f":"COUNTIF(C25:D41,TRUE)/6","v":0},"Naam Bijlage","Pagina n°"]
[]
[null,null,false,null,null,null,null,"De route is vermeld op het plan op schaal waarop duidelijk aangegeven is welke scholen deel uitmaken van het project en waar de geplande maatregelen voor de schoolroute of schoolroutes zullen worden uitgevoerd, dat werd toegevoegd aan het dossier.",null,null,null,null,null,null,null,null,null,null,null,null,null,null,null,null,"Art. 1 4°-5°- art. 2 §1 1° (1) "]
[]
[]
[null,null,false,null,null,null,null,"De werken worden uitgevoerd op een geldige schoolroute, die:",null,null,null,null,null,null,null,null,null,null,null,null,null,null,null,null,"Art. 2 §1 1° (1) "]
[]
[null,null,null,false,null,null,null,"i)  Eindigt waar een schoolomgeving van een school begint.",null,null,null,null,null,null,null,null,null,null,null,null,null,null,null,null,"Art. 1 5°(1) "]
[]
[null,null,null,null,null,null,null,null,null,null,"EN"]
[]
[null,null,null,false,null,null,null,"ii) Buiten een straal van 100 meter rond de schooltoegang of voorbij het eerste kruispunt aan weerzijden indien dat verder ligt dan 100 meter."]
[]
[null,null,null,null,null,null,null,null,null,null,"EN"]
[null,null,null,false]
[null,null,null,null,null,null,null,"iii) Verschillende scholieren te voet of met de fiets of bromfiets op het woon-schooltraject gebruiken tijdens de uren die voorafgaan aan de opening van de school."]
[null,null,null,null,null,null,null,null,null,null,null,null,null,null,null,null,null,null,null,null,null,null,null,null,"Art. 1 5°(1) "]
[null,null,null,null,null,null,null,null,null,null,"EN"]
[null,null,null,false,null,null,null,"iv) ligt uitsluitend op een of meer gemeentewegen"]
[]
[null,"2. Omschrijving, doel en aard der werken",null,null,null,null,null,null,null,null,null,null,null,null,null,null,null,null,null,null,{"$f":"(COUNTIF(C45:D45,TRUE)+COUNTIF(C52:D52,TRUE)+COUNTIF(C58:C82,TRUE))/5","v":0},"Naam Bijlage","Pagina n°"]
[]
[null,null,false,{"$f":"IF(OR(D47,D49),TRUE,FALSE)","v":false},null,null,null,"Uitgaven zijn erop gericht de verkeersveiligheid van schoolkinderen te verbeteren. Selecteer (enkel) de relevante uitgave(n):",null,null,null,null,null,null,null,null,null,null,null,null,null,null,null,null,"Art. 2. §1 2° (1)"]
[]
[null,null,null,false,null,null,null,"i) Uitgaven voor verkeerssignalisatie (overal).",null,null,null,null,null,null,null,null,null,null,null,null,null,null,null,null,"Art. 3 (1)"]
[null,null,null,null,null,null,null,"EN/OF",null,null,null,null,null,null,null,null,null,null,null,null,null,null,null,null,"Art. 3 (1)"]
[null,null,null,false,null,null,null,"ii) Uitgaven voor infrastructurele maatregelen die de verkeersveiligheid op de schoolroutes verhogen (excl. voor fietspaden op het BFF)."]
[]
[]
[null,null,false,null,null,null,null,"De motivering voor de keuze van de geselecteerde schoolroute of schoolroutes, bevat de verwijzing naar deze schoolroute."]
[]
[]
[null,null,null,null,null,null,null,"Type Werkzaamheden (selecteer alle werkzaamheden die van toepassing zijn)"]
[]
[null,null,null,null,null,null,null,"Hoofcategorie maatregelen ",null,"Subcategorie \nmaatregelen",null,"Gedetailleerde informatie",null,null,null,"Van toepasssing"]
[null,null,{"$f":"IF(COUNTIF(D58:D76,TRUE)>0,TRUE,FALSE)","v":false},false,null,null,null,"Signalisatie ",null,"S1. Verkeersborden",null,"Afbakening fietsstraat"]
[null,null,null,false,null,null,null,null,null,null,null,"(Dynamische) zone 30  "]
[null,null,null,false,null,null,null,null,null,null,null,"Detecterende Snelheidsinformatieborden (vb. Smileyborden, \"graag traag\")"]
[null,null,null,false,null,null,null,null,null,null,null,"Verkeersborden algemeen"]
[null,null,null,false,null,null,null,null,null,"S2. (Thermoplastische) wegmarkeringen",null,"Fietssuggestiestroken"]
[null,null,null,false,null,null,null,null,null,null,null,"Oversteekplaatsen"]
[null,null,null,false,null,null,null,null,null,null,null,"Markeringen algemeen"]
[null,null,null,false,null,null,null,null,null,"S3. (Verkeers)lichten",null,"Hardware verkeerslichten"]
[null,null,null,false,null,null,null,null,null,null,null,"Verlichting algemeen"]
[null,null,null,false,null,null,null,"Infrastructureel",null,"I1. (Her)aanleg",null,"Straatmeubilair"]
[null,null,null,false,null,null,null,null,null,null,null,"Vrijliggend fietspad"]
[null,null,null,false,null,null,null,null,null,null,null,"Aanliggende fietspad"]
[null,null,null,false,null,null,null,null,null,null,null,"Voetpad"]
[null,null,null,false,null,null,null,null,null,null,null,"Wegdek"]
[null,null,null,false,null,null,null,null,null,null,null,"Groen i.f.v. verkeersveiligheid"]
[null,null,null,false,null,null,null,null,null,"I2. Hardware",null,"Hardware handhaving (vb. ANPR Camera's)"]
[null,null,null,false,null,null,null,null,null,null,null,"Hardware beloningssysteem (eenmalig)"]
[null,null,null,false,null,null,null,null,null,null,null,"Hardware beloningssysteem (huurcontract 3j)"]
[null,null,null,false,null,null,null,null,null,"I3 Hardware en Software (Pakket)",null,"Trajectcontrole (systeem waarbij de gemiddelde snelheid over een langere afstand wordt gemeten)"]
[]
[]
[]
[null,null,null,null,null,null,null,"Allocatie Budgetraming (alloceer het budget per subcategorie die van toepassing is)"]
[null,null,null,null,null,null,null,null,null,null,null,null,null,null,null,"Raming (incl. BTW)",null,"%"]
[null,null,{"$f":"IF(R82=1,TRUE,FALSE)","v":false},{"$f":"IF(R82>1,FALSE,TRUE)","v":true},null,null,null,null,"Totaal Alle Categorieën",null,null,null,null,null,null,{"$f":"SUM(P84:Q90)","v":0},null,{"$f":"SUM(R84:R90)","v":0.95}]
[null,null,null,null,null,null,null,null,"Signalisatie"]
[null,null,null,60,null,null,null,null,null,"S1. Verkeersborden",null,null,null,null,null,{"$f":"R84*H$18","v":0},null,{"$f":"D84/100","v":0.6}]
[null,null,null,35,null,null,null,null,null,"S2. (Thermoplastische) wegmarkeringen",null,null,null,null,null,{"$f":"R85*H$18","v":0},null,{"$f":"D85/100","v":0.35}]
[null,null,null,0,null,null,null,null,null,"S3. (Verkeers)lichten",null,null,null,null,null,{"$f":"R86*H$18","v":0},null,{"$f":"D86/100","v":0}]
[null,null,null,null,null,null,null,null,"Infrastructuur"]
[null,null,null,0,null,null,null,null,null,"I1. Heraanleg",null,null,null,null,null,{"$f":"R88*H$18","v":0},null,{"$f":"D88/100","v":0}]
[null,null,null,0,null,null,null,null,null,"I2. Hardware",null,null,null,null,null,{"$f":"R89*H$18","v":0},null,{"$f":"D89/100","v":0}]
[null,null,null,0,null,null,null,null,null,"I3. Hardware en Software (Pakket)",null,null,null,null,null,{"$f":"R90*H$18","v":0},null,{"$f":"D90/100","v":0}]
[]
[null,"4. Timing",null,null,null,null,null,null,null,null,null,null,null,null,null,null,null,null,null,null,{"$f":"COUNTIF(C94:D105,TRUE)/2","v":0},"Naam Bijlage","Pagina n°"]
[]
[null,null,false,null,null,null,null,"De (geplande) werken worden uitgevoerd, rekening houdend met een voltooiingsdatum binnen de 12 maanden na de dag van beslissing van toekenning. De finale stukken zullen ten laatste 3 maanden na voormelde datum ingediend moeten worden.",null,null,null,null,null,null,null,null,null,null,null,null,null,null,null,null,"Art. 2 §3 juncto art. 3 (1)"]
[]
[]
[null,null,null,null,null,null,null,"Voorziene datum aanvang van de werken",null,null,null,null,null,null,null,{"$f":"IF(OR(ISBLANK(L97),ISBLANK(L98)),\"Gelieve beide data in te vullen\",\"\")","v":"Gelieve beide data in te vullen"}]
[null,null,null,null,null,null,null,"Voorziene datum einde van de werken"]
[null,null,null,null,null,null,null,"Duurtijd (kalenderdagen)",null,null,null,{"$f":"IF(OR(ISBLANK(L97),ISBLANK(L98)),\"Gelieve bovenstaande cellen in te vullen\",_xlfn.DAYS(L98,L97))","v":"Gelieve bovenstaande cellen in te vullen"}]
[]
[]
[]
[]
[null,null,false,null,null,null,null,"De planning van de uitvoering van de werken voor de route werd toegevoegd in bijlage met referentie.",null,null,null,null,null,null,null,null,null,null,null,null,null,null,null,null,"Art. 7  Eerste Lid 3° (1)"]
[]
[null,"5. Informatie domeinbeheerder",null,null,null,null,null,null,null,null,null,null,null,null,null,null,null,null,null,null,{"$f":"IF(C113=1,1,COUNTIF(C117:D118,TRUE)/2)","v":0},"Naam Bijlage (optioneel)","Pagina n°","Compleet?"]
[]
[null,null,false]
[]
[null,null,null,false]
[]
[]
[null,null,2,null,null,null,null,"Het volledige domein waarop de werken worden uitgevoerd, is in het beheer van de gemeente.",null,null,null,null,null,null,null,null,null,null,null,null,null,null,null,null,"Art. 7  Eerste Lid 1°-4° (1)"]
[]
[null,null,null,null,null,null,null,"Indien niet, vul aan:"]
[null,null,null,null,null,null,null,null,null,"Type",null,"Identiteit domeinbeheerder"]
[null,null,{"$f":"IF(C113=2,NOT(ISBLANK(L117)),TRUE)","v":false},null,null,null,null,null,null,"Privaat"]
[null,null,{"$f":"IF(C113=2,AND(C119=TRUE,NOT(ISBLANK(I120)),TRUE))","v":false}]
[null,null,false,null,null,null,null,"Het akkoord van deze domeinbeheerder werd als bijlage toegevoegd aan de dossieraanvraag.",null,null,null,null,null,null,null,null,null,null,null,null,null,null,null,null,"Art. 7  Eerste Lid 5° (1)"]
[null,null,null,null,null,null,null,"Bijlage*:"]
[]
[null,null,null,null,null,null,null,"* veplicht op te nemen"]
[null,"6. Optionele bijkomende informatie",null,null,null,null,null,null,null,null,null,null,null,null,null,null,null,null,null,null,null,"Naam Bijlage (optioneel)","Pagina n°"]
[]
[null,null,null,null,null,null,null,"Bijkomende toelichting"]
[null,null,null,null,null,null,null,null,null,null,null,null,null,null,null,null,null,null,null,null,null,null,null,null,"Art. 7  Eerste Lid 1° (1)"]
[]
[]
[null,null,{"$f":"IF(AND(D129=TRUE,ISBLANK(I130)),TRUE,FALSE)","v":false},false,null,null,null,"Optioneel - u kunt een verduidelijkende bijlage toevoegen ter verduidelijking/vervanging van bovenstaand veld."]
[null,null,null,null,null,null,null,"Bijlage*:"]
[]
[null,null,null,null,null,null,null,"* veplicht op te nemen indien van toepassing"]
[]
[]
[]
[null,"Voor de administratie (MOW)",null,null,null,null,null,null,null,null,null,null,null,null,null,null,"Voor de aanvrager (Naam + Functie)"]
[null,null,null,null,null,null,null,null,null,null,null,"Hide Row"]

{"sheet":"Route (6)","index":8,"n_rows":137,"n_cols":25,"rows_kept":137,"cut":false,"hidden":true,"merged":[[120,7,120,20],[124,7,124,20],[124,23,131,23],[128,7,128,16],[129,8,129,10],[130,7,130,20],[119,8,119,10],[98,11,98,14],[100,7,101,16],[107,7,107,20],[109,7,109,20],[110,7,110,20],[111,7,111,20],[112,7,112,15],[115,9,115,10],[115,11,115,14],[116,9,116,10],[116,11,116,14],[79,7,79,20],[97,11,97,14],[81,15,81,16],[82,15,82,16],[83,15,83,16],[84,15,84,16],[85,15,85,16],[87,15,87,16],[88,15,88,16],[89,15,89,16],[93,7,94,16],[96,11,96,14],[96,15,96,17],[65,11,65,14],[80,15,80,16],[66,7,75,8],[66,9,71,10],[66,11,66,14],[67,11,67,14],[68,11,68,14],[69,11,69,14],[70,11,70,14],[71,11,71,14],[72,9,74,10],[72,11,72,14],[73,11,73,14],[74,11,74,14],[75,9,75,10],[75,11,75,14],[54,7,54,20],[56,7,56,8],[56,9,56,10],[56,11,56,14],[57,7,65,8],[57,9,60,10],[57,11,57,14],[58,11,58,14],[59,11,59,14],[60,11,60,14],[61,9,63,10],[61,11,61,14],[62,11,62,14],[63,11,63,14],[64,9,65,10],[64,11,64,14],[51,7,52,17],[17,4,17,6],[17,7,17,16],[19,7,19,17],[23,23,41,23],[24,7,25,17],[27,7,27,17],[29,7,29,20],[33,7,34,20],[36,7,36,20],[37,7,38,20],[40,7,40,20],[44,7,45,17],[46,7,46,20],[47,7,47,20],[48,7,48,20],[11,4,11,16],[13,4,13,6],[13,7,13,16],[13,17,17,17],[14,4,14,6],[14,7,14,16],[15,4,15,6],[15,7,15,16],[16,4,16,6],[16,7,16,16],[7,1,7,20],[7,21,7,22],[1,9,5,21],[2,26,6,31],[5,7,5,8],[6,7,6,8],[6,15,6,16]]}
[]
[null,null,null,null,null,null,null,null,null,{"$f":"\"Individuele Detailfiche - Route \" &H14&_xlfn.UNICHAR(10)& \"('\"&H15&\"')\"","v":"Individuele Detailfiche - Route 6\n('<< Gelieve de naam van Schoolroute 6 in te vullen >>')"}]
[null,null,2]
[]
[]
[]
[]
[null,"Vul in onderstaande tabel de gevraagde gegevens in, vink alle verklaringen aan die op de aanvraag van toepassing zijn. Toepasselijke bijlages geeft u een (betekenisvolle naam) – vb. raming route 123. Vermeld deze naam op de voorziene plaatsen in kolom T.  Indien één en dezelfde bijlage de info van meerdere items bundelt, leid ons dan in “kolom  U\" naar het passende paginanummer. Vergeet niet de bijlages samen met het aangevulde aanvraagformulier over te maken.",null,null,null,null,null,null,null,null,null,null,null,null,null,null,null,null,null,null,null,"Bijlagen",null,"Validatie \nMOW","Wettelijke \nverwijzing"]
[]
[null,null,null,null,null,null,null,null,null,null,null,null,null,null,null,null,null,null,null,null,"Voortgang sectie"]
[null,"0. Kostenoverzicht",null,null,null,null,null,null,null,null,null,null,null,null,null,null,null,null,null,null,{"$f":"COUNTIF(C14:D21,TRUE)/2","v":0},"Naam Bijlage","Pagina n°","Evaluatie"]
[null,null,null,null,"Details per route (Automatisch aangevuld op basis van overzicht)"]
[null,null,null,null,null,null,null,null,null,null,null,null,null,null,null,null,null,"link"]
[null,null,{"$f":"IF(1-COUNTBLANK(Aanvraagformulier!G28)-COUNTBLANK(Aanvraagformulier!N28)=1,TRUE,FALSE)","v":false},null,"Route n°",null,null,6,null,null,null,null,null,null,null,null,null,{"$f":"HYPERLINK(\"#'Aanvraagformulier'!G28\",\"Klik hier\")","v":"Klik hier"}]
[null,null,null,null,"Naam route",null,null,{"$f":"VLOOKUP(H$14,Aanvraagformulier!$F$25:$N$53,2,FALSE)","v":"<< Gelieve de naam van Schoolroute 6 in te vullen >>"}]
[]
[null,null,null,null,"Raming kosten\n (excl. BTW)",null,null,{"$f":"VLOOKUP(H$14,Aanvraagformulier!$F$25:$N$53,8,FALSE)","v":0}]
[null,null,null,null,"Raming kosten\n (incl. BTW)",null,null,{"$f":"VLOOKUP(H$14,Aanvraagformulier!$F$25:$N$53,9,FALSE)","v":0}]
[]
[null,null,false,null,null,null,null,"De raming van de kosten werd toegevoegd aan het dossier en opgenomen in de bijlage met referentie.",null,null,null,null,null,null,null,null,null,null,null,null,null,null,null,null,"Art. 7  Eerste Lid 2° (1)"]
[]
[]
[null,"1. Locatie",null,null,null,null,null,null,null,null,null,null,null,null,null,null,null,null,null,null,{"$f":"COUNTIF(C25:D41,TRUE)/6","v":0},"Naam Bijlage","Pagina n°"]
[]
[null,null,false,null,null,null,null,"De route is vermeld op het plan op schaal waarop duidelijk aangegeven is welke scholen deel uitmaken van het project en waar de geplande maatregelen voor de schoolroute of schoolroutes zullen worden uitgevoerd, dat werd toegevoegd aan het dossier.",null,null,null,null,null,null,null,null,null,null,null,null,null,null,null,null,"Art. 1 4°-5°- art. 2 §1 1° (1) "]
[]
[]
[null,null,false,null,null,null,null,"De werken worden uitgevoerd op een geldige schoolroute, die:",null,null,null,null,null,null,null,null,null,null,null,null,null,null,null,null,"Art. 2 §1 1° (1) "]
[]
[null,null,null,false,null,null,null,"i)  Eindigt waar een schoolomgeving van een school begint.",null,null,null,null,null,null,null,null,null,null,null,null,null,null,null,null,"Art. 1 5°(1) "]
[]
[null,null,null,null,null,null,null,null,null,null,"EN"]
[]
[null,null,null,false,null,null,null,"ii) Buiten een straal van 100 meter rond de schooltoegang of voorbij het eerste kruispunt aan weerzijden indien dat verder ligt dan 100 meter."]
[]
[null,null,null,null,null,null,null,null,null,null,"EN"]
[null,null,null,false]
[null,null,null,null,null,null,null,"iii) Verschillende scholieren te voet of met de fiets of bromfiets op het woon-schooltraject gebruiken tijdens de uren die voorafgaan aan de opening van de school."]
[null,null,null,null,null,null,null,null,null,null,null,null,null,null,null,null,null,null,null,null,null,null,null,null,"Art. 1 5°(1) "]
[null,null,null,null,null,null,null,null,null,null,"EN"]
[null,null,null,false,null,null,null,"iv) ligt uitsluitend op een of meer gemeentewegen"]
[]
[null,"2. Omschrijving, doel en aard der werken",null,null,null,null,null,null,null,null,null,null,null,null,null,null,null,null,null,null,{"$f":"(COUNTIF(C45:D45,TRUE)+COUNTIF(C52:D52,TRUE)+COUNTIF(C58:C82,TRUE))/5","v":0},"Naam Bijlage","Pagina n°"]
[]
[null,null,false,{"$f":"IF(OR(D47,D49),TRUE,FALSE)","v":false},null,null,null,"Uitgaven zijn erop gericht de verkeersveiligheid van schoolkinderen te verbeteren. Selecteer (enkel) de relevante uitgave(n):",null,null,null,null,null,null,null,null,null,null,null,null,null,null,null,null,"Art. 2. §1 2° (1)"]
[]
[null,null,null,false,null,null,null,"i) Uitgaven voor verkeerssignalisatie (overal).",null,null,null,null,null,null,null,null,null,null,null,null,null,null,null,null,"Art. 3 (1)"]
[null,null,null,null,null,null,null,"EN/OF",null,null,null,null,null,null,null,null,null,null,null,null,null,null,null,null,"Art. 3 (1)"]
[null,null,null,false,null,null,null,"ii) Uitgaven voor infrastructurele maatregelen die de verkeersveiligheid op de schoolroutes verhogen (excl. voor fietspaden op het BFF)."]
[]
[]
[null,null,false,null,null,null,null,"De motivering voor de keuze van de geselecteerde schoolroute of schoolroutes, bevat de verwijzing naar deze schoolroute."]
[]
[]
[null,null,null,null,null,null,null,"Type Werkzaamheden (selecteer alle werkzaamheden die van toepassing zijn)"]
[]
[null,null,null,null,null,null,null,"Hoofcategorie maatregelen ",null,"Subcategorie \nmaatregelen",null,"Gedetailleerde informatie",null,null,null,"Van toepasssing"]
[null,null,{"$f":"IF(COUNTIF(D58:D76,TRUE)>0,TRUE,FALSE)","v":false},false,null,null,null,"Signalisatie ",null,"S1. Verkeersborden",null,"Afbakening fietsstraat"]
[null,null,null,false,null,null,null,null,null,null,null,"(Dynamische) zone 30  "]
[null,null,null,false,null,null,null,null,null,null,null,"Detecterende Snelheidsinformatieborden (vb. Smileyborden, \"graag traag\")"]
[null,null,null,false,null,null,null,null,null,null,null,"Verkeersborden algemeen"]
[null,null,null,false,null,null,null,null,null,"S2. (Thermoplastische) wegmarkeringen",null,"Fietssuggestiestroken"]
[null,null,null,false,null,null,null,null,null,null,null,"Oversteekplaatsen"]
[null,null,null,false,null,null,null,null,null,null,null,"Markeringen algemeen"]
[null,null,null,false,null,null,null,null,null,"S3. (Verkeers)lichten",null,"Hardware verkeerslichten"]
[null,null,null,false,null,null,null,null,null,null,null,"Verlichting algemeen"]
[null,null,null,false,null,null,null,"Infrastructureel",null,"I1. (Her)aanleg",null,"Straatmeubilair"]
[null,null,null,false,null,null,null,null,null,null,null,"Vrijliggend fietspad"]
[null,null,null,false,null,null,null,null,null,null,null,"Aanliggende fietspad"]
[null,null,null,false,null,null,null,null,null,null,null,"Voetpad"]
[null,null,null,false,null,null,null,null,null,null,null,"Wegdek"]
[null,null,null,false,null,null,null,null,null,null,null,"Groen i.f.v. verkeersveiligheid"]
[null,null,null,false,null,null,null,null,null,"I2. Hardware",null,"Hardware handhaving (vb. ANPR Camera's)"]
[null,null,null,false,null,null,null,null,null,null,null,"Hardware beloningssysteem (eenmalig)"]
[null,null,null,false,null,null,null,null,null,null,null,"Hardware beloningssysteem (huurcontract 3j)"]
[null,null,null,false,null,null,null,null,null,"I3 Hardware en Software (Pakket)",null,"Trajectcontrole (systeem waarbij de gemiddelde snelheid over een langere afstand wordt gemeten)"]
[]
[]
[]
[null,null,null,null,null,null,null,"Allocatie Budgetraming (alloceer het budget per subcategorie die van toepassing is)"]
[null,null,null,null,null,null,null,null,null,null,null,null,null,null,null,"Raming (incl. BTW)",null,"%"]
[null,null,{"$f":"IF(R82=1,TRUE,FALSE)","v":false},{"$f":"IF(R82>1,FALSE,TRUE)","v":true},null,null,null,null,"Totaal Alle Categorieën",null,null,null,null,null,null,{"$f":"SUM(P84:Q90)","v":0},null,{"$f":"SUM(R84:R90)","v":0.95}]
[null,null,null,null,null,null,null,null,"Signalisatie"]
[null,null,null,60,null,null,null,null,null,"S1. Verkeersborden",null,null,null,null,null,{"$f":"R84*H$18","v":0},null,{"$f":"D84/100","v":0.6}]
[null,null,null,35,null,null,null,null,null,"S2. (Thermoplastische) wegmarkeringen",null,null,null,null,null,{"$f":"R85*H$18","v":0},null,{"$f":"D85/100","v":0.35}]
[null,null,null,0,null,null,null,null,null,"S3. (Verkeers)lichten",null,null,null,null,null,{"$f":"R86*H$18","v":0},null,{"$f":"D86/100","v":0}]
[null,null,null,null,null,null,null,null,"Infrastructuur"]
[null,null,null,0,null,null,null,null,null,"I1. Heraanleg",null,null,null,null,null,{"$f":"R88*H$18","v":0},null,{"$f":"D88/100","v":0}]
[null,null,null,0,null,null,null,null,null,"I2. Hardware",null,null,null,null,null,{"$f":"R89*H$18","v":0},null,{"$f":"D89/100","v":0}]
[null,null,null,0,null,null,null,null,null,"I3. Hardware en Software (Pakket)",null,null,null,null,null,{"$f":"R90*H$18","v":0},null,{"$f":"D90/100","v":0}]
[]
[null,"4. Timing",null,null,null,null,null,null,null,null,null,null,null,null,null,null,null,null,null,null,{"$f":"COUNTIF(C94:D105,TRUE)/2","v":0},"Naam Bijlage","Pagina n°"]
[]
[null,null,false,null,null,null,null,"De (geplande) werken worden uitgevoerd, rekening houdend met een voltooiingsdatum binnen de 12 maanden na de dag van beslissing van toekenning. De finale stukken zullen ten laatste 3 maanden na voormelde datum ingediend moeten worden.",null,null,null,null,null,null,null,null,null,null,null,null,null,null,null,null,"Art. 2 §3 juncto art. 3 (1)"]
[]
[]
[null,null,null,null,null,null,null,"Voorziene datum aanvang van de werken",null,null,null,null,null,null,null,{"$f":"IF(OR(ISBLANK(L97),ISBLANK(L98)),\"Gelieve beide data in te vullen\",\"\")","v":"Gelieve beide data in te vullen"}]
[null,null,null,null,null,null,null,"Voorziene datum einde van de werken"]
[null,null,null,null,null,null,null,"Duurtijd (kalenderdagen)",null,null,null,{"$f":"IF(OR(ISBLANK(L97),ISBLANK(L98)),\"Gelieve bovenstaande cellen in te vullen\",_xlfn.DAYS(L98,L97))","v":"Gelieve bovenstaande cellen in te vullen"}]
[]
[]
[]
[]
[null,null,false,null,null,null,null,"De planning van de uitvoering van de werken voor de route werd toegevoegd in bijlage met referentie.",null,null,null,null,null,null,null,null,null,null,null,null,null,null,null,null,"Art. 7  Eerste Lid 3° (1)"]
[]
[null,"5. Informatie domeinbeheerder",null,null,null,null,null,null,null,null,null,null,null,null,null,null,null,null,null,null,{"$f":"IF(C113=1,1,COUNTIF(C117:D118,TRUE)/2)","v":0},"Naam Bijlage (optioneel)","Pagina n°","Compleet?"]
[]
[null,null,false]
[]
[null,null,null,false]
[]
[]
[null,null,2,null,null,null,null,"Het volledige domein waarop de werken worden uitgevoerd, is in het beheer van de gemeente.",null,null,null,null,null,null,null,null,null,null,null,null,null,null,null,null,"Art. 7  Eerste Lid 1°-4° (1)"]
[]
[null,null,null,null,null,null,null,"Indien niet, vul aan:"]
[null,null,null,null,null,null,null,null,null,"Type",null,"Identiteit domeinbeheerder"]
[null,null,{"$f":"IF(C113=2,NOT(ISBLANK(L117)),TRUE)","v":false},null,null,null,null,null,null,"Privaat"]
[null,null,{"$f":"IF(C113=2,AND(C119=TRUE,NOT(ISBLANK(I120)),TRUE))","v":false}]
[null,null,false,null,null,null,null,"Het akkoord van deze domeinbeheerder werd als bijlage toegevoegd aan de dossieraanvraag.",null,null,null,null,null,null,null,null,null,null,null,null,null,null,null,null,"Art. 7  Eerste Lid 5° (1)"]
[null,null,null,null,null,null,null,"Bijlage*:"]
[]
[null,null,null,null,null,null,null,"* veplicht op te nemen"]
[null,"6. Optionele bijkomende informatie",null,null,null,null,null,null,null,null,null,null,null,null,null,null,null,null,null,null,null,"Naam Bijlage (optioneel)","Pagina n°"]
[]
[null,null,null,null,null,null,null,"Bijkomende toelichting"]
[null,null,null,null,null,null,null,null,null,null,null,null,null,null,null,null,null,null,null,null,null,null,null,null,"Art. 7  Eerste Lid 1° (1)"]
[]
[]
[null,null,{"$f":"IF(AND(D129=TRUE,ISBLANK(I130)),TRUE,FALSE)","v":false},false,null,null,null,"Optioneel - u kunt een verduidelijkende bijlage toevoegen ter verduidelijking/vervanging van bovenstaand veld."]
[null,null,null,null,null,null,null,"Bijlage*:"]
[]
[null,null,null,null,null,null,null,"* veplicht op te nemen indien van toepassing"]
[]
[]
[]
[null,"Voor de administratie (MOW)",null,null,null,null,null,null,null,null,null,null,null,null,null,null,"Voor de aanvrager (Naam + Functie)"]
[null,null,null,null,null,null,null,null,null,null,null,"Hide Row"]

{"sheet":"Route (7)","index":9,"n_rows":137,"n_cols":25,"rows_kept":137,"cut":false,"hidden":true,"merged":[[120,7,120,20],[124,7,124,20],[124,23,131,23],[128,7,128,16],[129,8,129,10],[130,7,130,20],[119,8,119,10],[98,11,98,14],[100,7,101,16],[107,7,107,20],[109,7,109,20],[110,7,110,20],[111,7,111,20],[112,7,112,15],[115,9,115,10],[115,11,115,14],[116,9,116,10],[116,11,116,14],[79,7,79,20],[97,11,97,14],[81,15,81,16],[82,15,82,16],[83,15,83,16],[84,15,84,16],[85,15,85,16],[87,15,87,16],[88,15,88,16],[89,15,89,16],[93,7,94,16],[96,11,96,14],[96,15,96,17],[65,11,65,14],[80,15,80,16],[66,7,75,8],[66,9,71,10],[66,11,66,14],[67,11,67,14],[68,11,68,14],[69,11,69,14],[70,11,70,14],[71,11,71,14],[72,9,74,10],[72,11,72,14],[73,11,73,14],[74,11,74,14],[75,9,75,10],[75,11,75,14],[54,7,54,20],[56,7,56,8],[56,9,56,10],[56,11,56,14],[57,7,65,8],[57,9,60,10],[57,11,57,14],[58,11,58,14],[59,11,59,14],[60,11,60,14],[61,9,63,10],[61,11,61,14],[62,11,62,14],[63,11,63,14],[64,9,65,10],[64,11,64,14],[51,7,52,17],[17,4,17,6],[17,7,17,16],[19,7,19,17],[23,23,41,23],[24,7,25,17],[27,7,27,17],[29,7,29,20],[33,7,34,20],[36,7,36,20],[37,7,38,20],[40,7,40,20],[44,7,45,17],[46,7,46,20],[47,7,47,20],[48,7,48,20],[11,4,11,16],[13,4,13,6],[13,7,13,16],[13,17,17,17],[14,4,14,6],[14,7,14,16],[15,4,15,6],[15,7,15,16],[16,4,16,6],[16,7,16,16],[7,1,7,20],[7,21,7,22],[1,9,5,21],[2,26,6,31],[5,7,5,8],[6,7,6,8],[6,15,6,16]]}
[]
[null,null,null,null,null,null,null,null,null,{"$f":"\"Individuele Detailfiche - Route \" &H14&_xlfn.UNICHAR(10)& \"('\"&H15&\"')\"","v":"Individuele Detailfiche - Route 7\n('<< Gelieve de naam van Schoolroute 7 in te vullen >>')"}]
[null,null,2]
[]
[]
[]
[]
[null,"Vul in onderstaande tabel de gevraagde gegevens in, vink alle verklaringen aan die op de aanvraag van toepassing zijn. Toepasselijke bijlages geeft u een (betekenisvolle naam) – vb. raming route 123. Vermeld deze naam op de voorziene plaatsen in kolom T.  Indien één en dezelfde bijlage de info van meerdere items bundelt, leid ons dan in “kolom  U\" naar het passende paginanummer. Vergeet niet de bijlages samen met het aangevulde aanvraagformulier over te maken.",null,null,null,null,null,null,null,null,null,null,null,null,null,null,null,null,null,null,null,"Bijlagen",null,"Validatie \nMOW","Wettelijke \nverwijzing"]
[]
[null,null,null,null,null,null,null,null,null,null,null,null,null,null,null,null,null,null,null,null,"Voortgang sectie"]
[null,"0. Kostenoverzicht",null,null,null,null,null,null,null,null,null,null,null,null,null,null,null,null,null,null,{"$f":"COUNTIF(C14:D21,TRUE)/2","v":0},"Naam Bijlage","Pagina n°","Evaluatie"]
[null,null,null,null,"Details per route (Automatisch aangevuld op basis van overzicht)"]
[null,null,null,null,null,null,null,null,null,null,null,null,null,null,null,null,null,"link"]
[null,null,{"$f":"IF(1-COUNTBLANK(Aanvraagformulier!G28)-COUNTBLANK(Aanvraagformulier!N28)=1,TRUE,FALSE)","v":false},null,"Route n°",null,null,7,null,null,null,null,null,null,null,null,null,{"$f":"HYPERLINK(\"#'Aanvraagformulier'!G28\",\"Klik hier\")","v":"Klik hier"}]
[null,null,null,null,"Naam route",null,null,{"$f":"VLOOKUP(H$14,Aanvraagformulier!$F$25:$N$53,2,FALSE)","v":"<< Gelieve de naam van Schoolroute 7 in te vullen >>"}]
[]
[null,null,null,null,"Raming kosten\n (excl. BTW)",null,null,{"$f":"VLOOKUP(H$14,Aanvraagformulier!$F$25:$N$53,8,FALSE)","v":0}]
[null,null,null,null,"Raming kosten\n (incl. BTW)",null,null,{"$f":"VLOOKUP(H$14,Aanvraagformulier!$F$25:$N$53,9,FALSE)","v":0}]
[]
[null,null,false,null,null,null,null,"De raming van de kosten werd toegevoegd aan het dossier en opgenomen in de bijlage met referentie.",null,null,null,null,null,null,null,null,null,null,null,null,null,null,null,null,"Art. 7  Eerste Lid 2° (1)"]
[]
[]
[null,"1. Locatie",null,null,null,null,null,null,null,null,null,null,null,null,null,null,null,null,null,null,{"$f":"COUNTIF(C25:D41,TRUE)/6","v":0},"Naam Bijlage","Pagina n°"]
[]
[null,null,false,null,null,null,null,"De route is vermeld op het plan op schaal waarop duidelijk aangegeven is welke scholen deel uitmaken van het project en waar de geplande maatregelen voor de schoolroute of schoolroutes zullen worden uitgevoerd, dat werd toegevoegd aan het dossier.",null,null,null,null,null,null,null,null,null,null,null,null,null,null,null,null,"Art. 1 4°-5°- art. 2 §1 1° (1) "]
[]
[]
[null,null,false,null,null,null,null,"De werken worden uitgevoerd op een geldige schoolroute, die:",null,null,null,null,null,null,null,null,null,null,null,null,null,null,null,null,"Art. 2 §1 1° (1) "]
[]
[null,null,null,false,null,null,null,"i)  Eindigt waar een schoolomgeving van een school begint.",null,null,null,null,null,null,null,null,null,null,null,null,null,null,null,null,"Art. 1 5°(1) "]
[]
[null,null,null,null,null,null,null,null,null,null,"EN"]
[]
[null,null,null,false,null,null,null,"ii) Buiten een straal van 100 meter rond de schooltoegang of voorbij het eerste kruispunt aan weerzijden indien dat verder ligt dan 100 meter."]
[]
[null,null,null,null,null,null,null,null,null,null,"EN"]
[null,null,null,false]
[null,null,null,null,null,null,null,"iii) Verschillende scholieren te voet of met de fiets of bromfiets op het woon-schooltraject gebruiken tijdens de uren die voorafgaan aan de opening van de school."]
[null,null,null,null,null,null,null,null,null,null,null,null,null,null,null,null,null,null,null,null,null,null,null,null,"Art. 1 5°(1) "]
[null,null,null,null,null,null,null,null,null,null,"EN"]
[null,null,null,false,null,null,null,"iv) ligt uitsluitend op een of meer gemeentewegen"]
[]
[null,"2. Omschrijving, doel en aard der werken",null,null,null,null,null,null,null,null,null,null,null,null,null,null,null,null,null,null,{"$f":"(COUNTIF(C45:D45,TRUE)+COUNTIF(C52:D52,TRUE)+COUNTIF(C58:C82,TRUE))/5","v":0},"Naam Bijlage","Pagina n°"]
[]
[null,null,false,{"$f":"IF(OR(D47,D49),TRUE,FALSE)","v":false},null,null,null,"Uitgaven zijn erop gericht de verkeersveiligheid van schoolkinderen te verbeteren. Selecteer (enkel) de relevante uitgave(n):",null,null,null,null,null,null,null,null,null,null,null,null,null,null,null,null,"Art. 2. §1 2° (1)"]
[]
[null,null,null,false,null,null,null,"i) Uitgaven voor verkeerssignalisatie (overal).",null,null,null,null,null,null,null,null,null,null,null,null,null,null,null,null,"Art. 3 (1)"]
[null,null,null,null,null,null,null,"EN/OF",null,null,null,null,null,null,null,null,null,null,null,null,null,null,null,null,"Art. 3 (1)"]
[null,null,null,false,null,null,null,"ii) Uitgaven voor infrastructurele maatregelen die de verkeersveiligheid op de schoolroutes verhogen (excl. voor fietspaden op het BFF)."]
[]
[]
[null,null,false,null,null,null,null,"De motivering voor de keuze van de geselecteerde schoolroute of schoolroutes, bevat de verwijzing naar deze schoolroute."]
[]
[]
[null,null,null,null,null,null,null,"Type Werkzaamheden (selecteer alle werkzaamheden die van toepassing zijn)"]
[]
[null,null,null,null,null,null,null,"Hoofcategorie maatregelen ",null,"Subcategorie \nmaatregelen",null,"Gedetailleerde informatie",null,null,null,"Van toepasssing"]
[null,null,{"$f":"IF(COUNTIF(D58:D76,TRUE)>0,TRUE,FALSE)","v":false},false,null,null,null,"Signalisatie ",null,"S1. Verkeersborden",null,"Afbakening fietsstraat"]
[null,null,null,false,null,null,null,null,null,null,null,"(Dynamische) zone 30  "]
[null,null,null,false,null,null,null,null,null,null,null,"Detecterende Snelheidsinformatieborden (vb. Smileyborden, \"graag traag\")"]
[null,null,null,false,null,null,null,null,null,null,null,"Verkeersborden algemeen"]
[null,null,null,false,null,null,null,null,null,"S2. (Thermoplastische) wegmarkeringen",null,"Fietssuggestiestroken"]
[null,null,null,false,null,null,null,null,null,null,null,"Oversteekplaatsen"]
[null,null,null,false,null,null,null,null,null,null,null,"Markeringen algemeen"]
[null,null,null,false,null,null,null,null,null,"S3. (Verkeers)lichten",null,"Hardware verkeerslichten"]
[null,null,null,false,null,null,null,null,null,null,null,"Verlichting algemeen"]
[null,null,null,false,null,null,null,"Infrastructureel",null,"I1. (Her)aanleg",null,"Straatmeubilair"]
[null,null,null,false,null,null,null,null,null,null,null,"Vrijliggend fietspad"]
[null,null,null,false,null,null,null,null,null,null,null,"Aanliggende fietspad"]
[null,null,null,false,null,null,null,null,null,null,null,"Voetpad"]
[null,null,null,false,null,null,null,null,null,null,null,"Wegdek"]
[null,null,null,false,null,null,null,null,null,null,null,"Groen i.f.v. verkeersveiligheid"]
[null,null,null,false,null,null,null,null,null,"I2. Hardware",null,"Hardware handhaving (vb. ANPR Camera's)"]
[null,null,null,false,null,null,null,null,null,null,null,"Hardware beloningssysteem (eenmalig)"]
[null,null,null,false,null,null,null,null,null,null,null,"Hardware beloningssysteem (huurcontract 3j)"]
[null,null,null,false,null,null,null,null,null,"I3 Hardware en Software (Pakket)",null,"Trajectcontrole (systeem waarbij de gemiddelde snelheid over een langere afstand wordt gemeten)"]
[]
[]
[]
[null,null,null,null,null,null,null,"Allocatie Budgetraming (alloceer het budget per subcategorie die van toepassing is)"]
[null,null,null,null,null,null,null,null,null,null,null,null,null,null,null,"Raming (incl. BTW)",null,"%"]
[null,null,{"$f":"IF(R82=1,TRUE,FALSE)","v":false},{"$f":"IF(R82>1,FALSE,TRUE)","v":true},null,null,null,null,"Totaal Alle Categorieën",null,null,null,null,null,null,{"$f":"SUM(P84:Q90)","v":0},null,{"$f":"SUM(R84:R90)","v":0.95}]
[null,null,null,null,null,null,null,null,"Signalisatie"]
[null,null,null,60,null,null,null,null,null,"S1. Verkeersborden",null,null,null,null,null,{"$f":"R84*H$18","v":0},null,{"$f":"D84/100","v":0.6}]
[null,null,null,35,null,null,null,null,null,"S2. (Thermoplastische) wegmarkeringen",null,null,null,null,null,{"$f":"R85*H$18","v":0},null,{"$f":"D85/100","v":0.35}]
[null,null,null,0,null,null,null,null,null,"S3. (Verkeers)lichten",null,null,null,null,null,{"$f":"R86*H$18","v":0},null,{"$f":"D86/100","v":0}]
[null,null,null,null,null,null,null,null,"Infrastructuur"]
[null,null,null,0,null,null,null,null,null,"I1. Heraanleg",null,null,null,null,null,{"$f":"R88*H$18","v":0},null,{"$f":"D88/100","v":0}]
[null,null,null,0,null,null,null,null,null,"I2. Hardware",null,null,null,null,null,{"$f":"R89*H$18","v":0},null,{"$f":"D89/100","v":0}]
[null,null,null,0,null,null,null,null,null,"I3. Hardware en Software (Pakket)",null,null,null,null,null,{"$f":"R90*H$18","v":0},null,{"$f":"D90/100","v":0}]
[]
[null,"4. Timing",null,null,null,null,null,null,null,null,null,null,null,null,null,null,null,null,null,null,{"$f":"COUNTIF(C94:D105,TRUE)/2","v":0},"Naam Bijlage","Pagina n°"]
[]
[null,null,false,null,null,null,null,"De (geplande) werken worden uitgevoerd, rekening houdend met een voltooiingsdatum binnen de 12 maanden na de dag van beslissing van toekenning. De finale stukken zullen ten laatste 3 maanden na voormelde datum ingediend moeten worden.",null,null,null,null,null,null,null,null,null,null,null,null,null,null,null,null,"Art. 2 §3 juncto art. 3 (1)"]
[]
[]
[null,null,null,null,null,null,null,"Voorziene datum aanvang van de werken",null,null,null,null,null,null,null,{"$f":"IF(OR(ISBLANK(L97),ISBLANK(L98)),\"Gelieve beide data in te vullen\",\"\")","v":"Gelieve beide data in te vullen"}]
[null,null,null,null,null,null,null,"Voorziene datum einde van de werken"]
[null,null,null,null,null,null,null,"Duurtijd (kalenderdagen)",null,null,null,{"$f":"IF(OR(ISBLANK(L97),ISBLANK(L98)),\"Gelieve bovenstaande cellen in te vullen\",_xlfn.DAYS(L98,L97))","v":"Gelieve bovenstaande cellen in te vullen"}]
[]
[]
[]
[]
[null,null,false,null,null,null,null,"De planning van de uitvoering van de werken voor de route werd toegevoegd in bijlage met referentie.",null,null,null,null,null,null,null,null,null,null,null,null,null,null,null,null,"Art. 7  Eerste Lid 3° (1)"]
[]
[null,"5. Informatie domeinbeheerder",null,null,null,null,null,null,null,null,null,null,null,null,null,null,null,null,null,null,{"$f":"IF(C113=1,1,COUNTIF(C117:D118,TRUE)/2)","v":0},"Naam Bijlage (optioneel)","Pagina n°","Compleet?"]
[]
[null,null,false]
[]
[null,null,null,false]
[]
[]
[null,null,2,null,null,null,null,"Het volledige domein waarop de werken worden uitgevoerd, is in het beheer van de gemeente.",null,null,null,null,null,null,null,null,null,null,null,null,null,null,null,null,"Art. 7  Eerste Lid 1°-4° (1)"]
[]
[null,null,null,null,null,null,null,"Indien niet, vul aan:"]
[null,null,null,null,null,null,null,null,null,"Type",null,"Identiteit domeinbeheerder"]
[null,null,{"$f":"IF(C113=2,NOT(ISBLANK(L117)),TRUE)","v":false},null,null,null,null,null,null,"Privaat"]
[null,null,{"$f":"IF(C113=2,AND(C119=TRUE,NOT(ISBLANK(I120)),TRUE))","v":false}]
[null,null,false,null,null,null,null,"Het akkoord van deze domeinbeheerder werd als bijlage toegevoegd aan de dossieraanvraag.",null,null,null,null,null,null,null,null,null,null,null,null,null,null,null,null,"Art. 7  Eerste Lid 5° (1)"]
[null,null,null,null,null,null,null,"Bijlage*:"]
[]
[null,null,null,null,null,null,null,"* veplicht op te nemen"]
[null,"6. Optionele bijkomende informatie",null,null,null,null,null,null,null,null,null,null,null,null,null,null,null,null,null,null,null,"Naam Bijlage (optioneel)","Pagina n°"]
[]
[null,null,null,null,null,null,null,"Bijkomende toelichting"]
[null,null,null,null,null,null,null,null,null,null,null,null,null,null,null,null,null,null,null,null,null,null,null,null,"Art. 7  Eerste Lid 1° (1)"]
[]
[]
[null,null,{"$f":"IF(AND(D129=TRUE,ISBLANK(I130)),TRUE,FALSE)","v":false},false,null,null,null,"Optioneel - u kunt een verduidelijkende bijlage toevoegen ter verduidelijking/vervanging van bovenstaand veld."]
[null,null,null,null,null,null,null,"Bijlage*:"]
[]
[null,null,null,null,null,null,null,"* veplicht op te nemen indien van toepassing"]
[]
[]
[]
[null,"Voor de administratie (MOW)",null,null,null,null,null,null,null,null,null,null,null,null,null,null,"Voor de aanvrager (Naam + Functie)"]
[null,null,null,null,null,null,null,null,null,null,null,"Hide Row"]

{"sheet":"Route (8)","index":10,"n_rows":137,"n_cols":25,"rows_kept":137,"cut":false,"hidden":true,"merged":[[120,7,120,20],[124,7,124,20],[124,23,131,23],[128,7,128,16],[129,8,129,10],[130,7,130,20],[119,8,119,10],[98,11,98,14],[100,7,101,16],[107,7,107,20],[109,7,109,20],[110,7,110,20],[111,7,111,20],[112,7,112,15],[115,9,115,10],[115,11,115,14],[116,9,116,10],[116,11,116,14],[79,7,79,20],[97,11,97,14],[81,15,81,16],[82,15,82,16],[83,15,83,16],[84,15,84,16],[85,15,85,16],[87,15,87,16],[88,15,88,16],[89,15,89,16],[93,7,94,16],[96,11,96,14],[96,15,96,17],[65,11,65,14],[80,15,80,16],[66,7,75,8],[66,9,71,10],[66,11,66,14],[67,11,67,14],[68,11,68,14],[69,11,69,14],[70,11,70,14],[71,11,71,14],[72,9,74,10],[72,11,72,14],[73,11,73,14],[74,11,74,14],[75,9,75,10],[75,11,75,14],[54,7,54,20],[56,7,56,8],[56,9,56,10],[56,11,56,14],[57,7,65,8],[57,9,60,10],[57,11,57,14],[58,11,58,14],[59,11,59,14],[60,11,60,14],[61,9,63,10],[61,11,61,14],[62,11,62,14],[63,11,63,14],[64,9,65,10],[64,11,64,14],[51,7,52,17],[17,4,17,6],[17,7,17,16],[19,7,19,17],[23,23,41,23],[24,7,25,17],[27,7,27,17],[29,7,29,20],[33,7,34,20],[36,7,36,20],[37,7,38,20],[40,7,40,20],[44,7,45,17],[46,7,46,20],[47,7,47,20],[48,7,48,20],[11,4,11,16],[13,4,13,6],[13,7,13,16],[13,17,17,17],[14,4,14,6],[14,7,14,16],[15,4,15,6],[15,7,15,16],[16,4,16,6],[16,7,16,16],[7,1,7,20],[7,21,7,22],[1,9,5,21],[2,26,6,31],[5,7,5,8],[6,7,6,8],[6,15,6,16]]}
[]
[null,null,null,null,null,null,null,null,null,{"$f":"\"Individuele Detailfiche - Route \" &H14&_xlfn.UNICHAR(10)& \"('\"&H15&\"')\"","v":"Individuele Detailfiche - Route 8\n('<< Gelieve de naam van Schoolroute 8 in te vullen >>')"}]
[null,null,2]
[]
[]
[]
[]
[null,"Vul in onderstaande tabel de gevraagde gegevens in, vink alle verklaringen aan die op de aanvraag van toepassing zijn. Toepasselijke bijlages geeft u een (betekenisvolle naam) – vb. raming route 123. Vermeld deze naam op de voorziene plaatsen in kolom T.  Indien één en dezelfde bijlage de info van meerdere items bundelt, leid ons dan in “kolom  U\" naar het passende paginanummer. Vergeet niet de bijlages samen met het aangevulde aanvraagformulier over te maken.",null,null,null,null,null,null,null,null,null,null,null,null,null,null,null,null,null,null,null,"Bijlagen",null,"Validatie \nMOW","Wettelijke \nverwijzing"]
[]
[null,null,null,null,null,null,null,null,null,null,null,null,null,null,null,null,null,null,null,null,"Voortgang sectie"]
[null,"0. Kostenoverzicht",null,null,null,null,null,null,null,null,null,null,null,null,null,null,null,null,null,null,{"$f":"COUNTIF(C14:D21,TRUE)/2","v":0},"Naam Bijlage","Pagina n°","Evaluatie"]
[null,null,null,null,"Details per route (Automatisch aangevuld op basis van overzicht)"]
[null,null,null,null,null,null,null,null,null,null,null,null,null,null,null,null,null,"link"]
[null,null,{"$f":"IF(1-COUNTBLANK(Aanvraagformulier!G28)-COUNTBLANK(Aanvraagformulier!N28)=1,TRUE,FALSE)","v":false},null,"Route n°",null,null,8,null,null,null,null,null,null,null,null,null,{"$f":"HYPERLINK(\"#'Aanvraagformulier'!G28\",\"Klik hier\")","v":"Klik hier"}]
[null,null,null,null,"Naam route",null,null,{"$f":"VLOOKUP(H$14,Aanvraagformulier!$F$25:$N$53,2,FALSE)","v":"<< Gelieve de naam van Schoolroute 8 in te vullen >>"}]
[]
[null,null,null,null,"Raming kosten\n (excl. BTW)",null,null,{"$f":"VLOOKUP(H$14,Aanvraagformulier!$F$25:$N$53,8,FALSE)","v":0}]
[null,null,null,null,"Raming kosten\n (incl. BTW)",null,null,{"$f":"VLOOKUP(H$14,Aanvraagformulier!$F$25:$N$53,9,FALSE)","v":0}]
[]
[null,null,false,null,null,null,null,"De raming van de kosten werd toegevoegd aan het dossier en opgenomen in de bijlage met referentie.",null,null,null,null,null,null,null,null,null,null,null,null,null,null,null,null,"Art. 7  Eerste Lid 2° (1)"]
[]
[]
[null,"1. Locatie",null,null,null,null,null,null,null,null,null,null,null,null,null,null,null,null,null,null,{"$f":"COUNTIF(C25:D41,TRUE)/6","v":0},"Naam Bijlage","Pagina n°"]
[]
[null,null,false,null,null,null,null,"De route is vermeld op het plan op schaal waarop duidelijk aangegeven is welke scholen deel uitmaken van het project en waar de geplande maatregelen voor de schoolroute of schoolroutes zullen worden uitgevoerd, dat werd toegevoegd aan het dossier.",null,null,null,null,null,null,null,null,null,null,null,null,null,null,null,null,"Art. 1 4°-5°- art. 2 §1 1° (1) "]
[]
[]
[null,null,false,null,null,null,null,"De werken worden uitgevoerd op een geldige schoolroute, die:",null,null,null,null,null,null,null,null,null,null,null,null,null,null,null,null,"Art. 2 §1 1° (1) "]
[]
[null,null,null,false,null,null,null,"i)  Eindigt waar een schoolomgeving van een school begint.",null,null,null,null,null,null,null,null,null,null,null,null,null,null,null,null,"Art. 1 5°(1) "]
[]
[null,null,null,null,null,null,null,null,null,null,"EN"]
[]
[null,null,null,false,null,null,null,"ii) Buiten een straal van 100 meter rond de schooltoegang of voorbij het eerste kruispunt aan weerzijden indien dat verder ligt dan 100 meter."]
[]
[null,null,null,null,null,null,null,null,null,null,"EN"]
[null,null,null,false]
[null,null,null,null,null,null,null,"iii) Verschillende scholieren te voet of met de fiets of bromfiets op het woon-schooltraject gebruiken tijdens de uren die voorafgaan aan de opening van de school."]
[null,null,null,null,null,null,null,null,null,null,null,null,null,null,null,null,null,null,null,null,null,null,null,null,"Art. 1 5°(1) "]
[null,null,null,null,null,null,null,null,null,null,"EN"]
[null,null,null,false,null,null,null,"iv) ligt uitsluitend op een of meer gemeentewegen"]
[]
[null,"2. Omschrijving, doel en aard der werken",null,null,null,null,null,null,null,null,null,null,null,null,null,null,null,null,null,null,{"$f":"(COUNTIF(C45:D45,TRUE)+COUNTIF(C52:D52,TRUE)+COUNTIF(C58:C82,TRUE))/5","v":0},"Naam Bijlage","Pagina n°"]
[]
[null,null,false,{"$f":"IF(OR(D47,D49),TRUE,FALSE)","v":false},null,null,null,"Uitgaven zijn erop gericht de verkeersveiligheid van schoolkinderen te verbeteren. Selecteer (enkel) de relevante uitgave(n):",null,null,null,null,null,null,null,null,null,null,null,null,null,null,null,null,"Art. 2. §1 2° (1)"]
[]
[null,null,null,false,null,null,null,"i) Uitgaven voor verkeerssignalisatie (overal).",null,null,null,null,null,null,null,null,null,null,null,null,null,null,null,null,"Art. 3 (1)"]
[null,null,null,null,null,null,null,"EN/OF",null,null,null,null,null,null,null,null,null,null,null,null,null,null,null,null,"Art. 3 (1)"]
[null,null,null,false,null,null,null,"ii) Uitgaven voor infrastructurele maatregelen die de verkeersveiligheid op de schoolroutes verhogen (excl. voor fietspaden op het BFF)."]
[]
[]
[null,null,false,null,null,null,null,"De motivering voor de keuze van de geselecteerde schoolroute of schoolroutes, bevat de verwijzing naar deze schoolroute."]
[]
[]
[null,null,null,null,null,null,null,"Type Werkzaamheden (selecteer alle werkzaamheden die van toepassing zijn)"]
[]
[null,null,null,null,null,null,null,"Hoofcategorie maatregelen ",null,"Subcategorie \nmaatregelen",null,"Gedetailleerde informatie",null,null,null,"Van toepasssing"]
[null,null,{"$f":"IF(COUNTIF(D58:D76,TRUE)>0,TRUE,FALSE)","v":false},false,null,null,null,"Signalisatie ",null,"S1. Verkeersborden",null,"Afbakening fietsstraat"]
[null,null,null,false,null,null,null,null,null,null,null,"(Dynamische) zone 30  "]
[null,null,null,false,null,null,null,null,null,null,null,"Detecterende Snelheidsinformatieborden (vb. Smileyborden, \"graag traag\")"]
[null,null,null,false,null,null,null,null,null,null,null,"Verkeersborden algemeen"]
[null,null,null,false,null,null,null,null,null,"S2. (Thermoplastische) wegmarkeringen",null,"Fietssuggestiestroken"]
[null,null,null,false,null,null,null,null,null,null,null,"Oversteekplaatsen"]
[null,null,null,false,null,null,null,null,null,null,null,"Markeringen algemeen"]
[null,null,null,false,null,null,null,null,null,"S3. (Verkeers)lichten",null,"Hardware verkeerslichten"]
[null,null,null,false,null,null,null,null,null,null,null,"Verlichting algemeen"]
[null,null,null,false,null,null,null,"Infrastructureel",null,"I1. (Her)aanleg",null,"Straatmeubilair"]
[null,null,null,false,null,null,null,null,null,null,null,"Vrijliggend fietspad"]
[null,null,null,false,null,null,null,null,null,null,null,"Aanliggende fietspad"]
[null,null,null,false,null,null,null,null,null,null,null,"Voetpad"]
[null,null,null,false,null,null,null,null,null,null,null,"Wegdek"]
[null,null,null,false,null,null,null,null,null,null,null,"Groen i.f.v. verkeersveiligheid"]
[null,null,null,false,null,null,null,null,null,"I2. Hardware",null,"Hardware handhaving (vb. ANPR Camera's)"]
[null,null,null,false,null,null,null,null,null,null,null,"Hardware beloningssysteem (eenmalig)"]
[null,null,null,false,null,null,null,null,null,null,null,"Hardware beloningssysteem (huurcontract 3j)"]
[null,null,null,false,null,null,null,null,null,"I3 Hardware en Software (Pakket)",null,"Trajectcontrole (systeem waarbij de gemiddelde snelheid over een langere afstand wordt gemeten)"]
[]
[]
[]
[null,null,null,null,null,null,null,"Allocatie Budgetraming (alloceer het budget per subcategorie die van toepassing is)"]
[null,null,null,null,null,null,null,null,null,null,null,null,null,null,null,"Raming (incl. BTW)",null,"%"]
[null,null,{"$f":"IF(R82=1,TRUE,FALSE)","v":false},{"$f":"IF(R82>1,FALSE,TRUE)","v":true},null,null,null,null,"Totaal Alle Categorieën",null,null,null,null,null,null,{"$f":"SUM(P84:Q90)","v":0},null,{"$f":"SUM(R84:R90)","v":0.95}]
[null,null,null,null,null,null,null,null,"Signalisatie"]
[null,null,null,60,null,null,null,null,null,"S1. Verkeersborden",null,null,null,null,null,{"$f":"R84*H$18","v":0},null,{"$f":"D84/100","v":0.6}]
[null,null,null,35,null,null,null,null,null,"S2. (Thermoplastische) wegmarkeringen",null,null,null,null,null,{"$f":"R85*H$18","v":0},null,{"$f":"D85/100","v":0.35}]
[null,null,null,0,null,null,null,null,null,"S3. (Verkeers)lichten",null,null,null,null,null,{"$f":"R86*H$18","v":0},null,{"$f":"D86/100","v":0}]
[null,null,null,null,null,null,null,null,"Infrastructuur"]
[null,null,null,0,null,null,null,null,null,"I1. Heraanleg",null,null,null,null,null,{"$f":"R88*H$18","v":0},null,{"$f":"D88/100","v":0}]
[null,null,null,0,null,null,null,null,null,"I2. Hardware",null,null,null,null,null,{"$f":"R89*H$18","v":0},null,{"$f":"D89/100","v":0}]
[null,null,null,0,null,null,null,null,null,"I3. Hardware en Software (Pakket)",null,null,null,null,null,{"$f":"R90*H$18","v":0},null,{"$f":"D90/100","v":0}]
[]
[null,"4. Timing",null,null,null,null,null,null,null,null,null,null,null,null,null,null,null,null,null,null,{"$f":"COUNTIF(C94:D105,TRUE)/2","v":0},"Naam Bijlage","Pagina n°"]
[]
[null,null,false,null,null,null,null,"De (geplande) werken worden uitgevoerd, rekening houdend met een voltooiingsdatum binnen de 12 maanden na de dag van beslissing van toekenning. De finale stukken zullen ten laatste 3 maanden na voormelde datum ingediend moeten worden.",null,null,null,null,null,null,null,null,null,null,null,null,null,null,null,null,"Art. 2 §3 juncto art. 3 (1)"]
[]
[]
[null,null,null,null,null,null,null,"Voorziene datum aanvang van de werken",null,null,null,null,null,null,null,{"$f":"IF(OR(ISBLANK(L97),ISBLANK(L98)),\"Gelieve beide data in te vullen\",\"\")","v":"Gelieve beide data in te vullen"}]
[null,null,null,null,null,null,null,"Voorziene datum einde van de werken"]
[null,null,null,null,null,null,null,"Duurtijd (kalenderdagen)",null,null,null,{"$f":"IF(OR(ISBLANK(L97),ISBLANK(L98)),\"Gelieve bovenstaande cellen in te vullen\",_xlfn.DAYS(L98,L97))","v":"Gelieve bovenstaande cellen in te vullen"}]
[]
[]
[]
[]
[null,null,false,null,null,null,null,"De planning van de uitvoering van de werken voor de route werd toegevoegd in bijlage met referentie.",null,null,null,null,null,null,null,null,null,null,null,null,null,null,null,null,"Art. 7  Eerste Lid 3° (1)"]
[]
[null,"5. Informatie domeinbeheerder",null,null,null,null,null,null,null,null,null,null,null,null,null,null,null,null,null,null,{"$f":"IF(C113=1,1,COUNTIF(C117:D118,TRUE)/2)","v":0},"Naam Bijlage (optioneel)","Pagina n°","Compleet?"]
[]
[null,null,false]
[]
[null,null,null,false]
[]
[]
[null,null,2,null,null,null,null,"Het volledige domein waarop de werken worden uitgevoerd, is in het beheer van de gemeente.",null,null,null,null,null,null,null,null,null,null,null,null,null,null,null,null,"Art. 7  Eerste Lid 1°-4° (1)"]
[]
[null,null,null,null,null,null,null,"Indien niet, vul aan:"]
[null,null,null,null,null,null,null,null,null,"Type",null,"Identiteit domeinbeheerder"]
[null,null,{"$f":"IF(C113=2,NOT(ISBLANK(L117)),TRUE)","v":false},null,null,null,null,null,null,"Privaat"]
[null,null,{"$f":"IF(C113=2,AND(C119=TRUE,NOT(ISBLANK(I120)),TRUE))","v":false}]
[null,null,false,null,null,null,null,"Het akkoord van deze domeinbeheerder werd als bijlage toegevoegd aan de dossieraanvraag.",null,null,null,null,null,null,null,null,null,null,null,null,null,null,null,null,"Art. 7  Eerste Lid 5° (1)"]
[null,null,null,null,null,null,null,"Bijlage*:"]
[]
[null,null,null,null,null,null,null,"* veplicht op te nemen"]
[null,"6. Optionele bijkomende informatie",null,null,null,null,null,null,null,null,null,null,null,null,null,null,null,null,null,null,null,"Naam Bijlage (optioneel)","Pagina n°"]
[]
[null,null,null,null,null,null,null,"Bijkomende toelichting"]
[null,null,null,null,null,null,null,null,null,null,null,null,null,null,null,null,null,null,null,null,null,null,null,null,"Art. 7  Eerste Lid 1° (1)"]
[]
[]
[null,null,{"$f":"IF(AND(D129=TRUE,ISBLANK(I130)),TRUE,FALSE)","v":false},false,null,null,null,"Optioneel - u kunt een verduidelijkende bijlage toevoegen ter verduidelijking/vervanging van bovenstaand veld."]
[null,null,null,null,null,null,null,"Bijlage*:"]
[]
[null,null,null,null,null,null,null,"* veplicht op te nemen indien van toepassing"]
[]
[]
[]
[null,"Voor de administratie (MOW)",null,null,null,null,null,null,null,null,null,null,null,null,null,null,"Voor de aanvrager (Naam + Functie)"]
[null,null,null,null,null,null,null,null,null,null,null,"Hide Row"]

{"sheet":"Route (9)","index":11,"n_rows":137,"n_cols":25,"rows_kept":137,"cut":false,"hidden":true,"merged":[[120,7,120,20],[124,7,124,20],[124,23,131,23],[128,7,128,16],[129,8,129,10],[130,7,130,20],[119,8,119,10],[98,11,98,14],[100,7,101,16],[107,7,107,20],[109,7,109,20],[110,7,110,20],[111,7,111,20],[112,7,112,15],[115,9,115,10],[115,11,115,14],[116,9,116,10],[116,11,116,14],[79,7,79,20],[97,11,97,14],[81,15,81,16],[82,15,82,16],[83,15,83,16],[84,15,84,16],[85,15,85,16],[87,15,87,16],[88,15,88,16],[89,15,89,16],[93,7,94,16],[96,11,96,14],[96,15,96,17],[65,11,65,14],[80,15,80,16],[66,7,75,8],[66,9,71,10],[66,11,66,14],[67,11,67,14],[68,11,68,14],[69,11,69,14],[70,11,70,14],[71,11,71,14],[72,9,74,10],[72,11,72,14],[73,11,73,14],[74,11,74,14],[75,9,75,10],[75,11,75,14],[54,7,54,20],[56,7,56,8],[56,9,56,10],[56,11,56,14],[57,7,65,8],[57,9,60,10],[57,11,57,14],[58,11,58,14],[59,11,59,14],[60,11,60,14],[61,9,63,10],[61,11,61,14],[62,11,62,14],[63,11,63,14],[64,9,65,10],[64,11,64,14],[51,7,52,17],[17,4,17,6],[17,7,17,16],[19,7,19,17],[23,23,41,23],[24,7,25,17],[27,7,27,17],[29,7,29,20],[33,7,34,20],[36,7,36,20],[37,7,38,20],[40,7,40,20],[44,7,45,17],[46,7,46,20],[47,7,47,20],[48,7,48,20],[11,4,11,16],[13,4,13,6],[13,7,13,16],[13,17,17,17],[14,4,14,6],[14,7,14,16],[15,4,15,6],[15,7,15,16],[16,4,16,6],[16,7,16,16],[7,1,7,20],[7,21,7,22],[1,9,5,21],[2,26,6,31],[5,7,5,8],[6,7,6,8],[6,15,6,16]]}
[]
[null,null,null,null,null,null,null,null,null,{"$f":"\"Individuele Detailfiche - Route \" &H14&_xlfn.UNICHAR(10)& \"('\"&H15&\"')\"","v":"Individuele Detailfiche - Route 9\n('<< Gelieve de naam van Schoolroute 9 in te vullen >>')"}]
[null,null,2]
[]
[]
[]
[]
[null,"Vul in onderstaande tabel de gevraagde gegevens in, vink alle verklaringen aan die op de aanvraag van toepassing zijn. Toepasselijke bijlages geeft u een (betekenisvolle naam) – vb. raming route 123. Vermeld deze naam op de voorziene plaatsen in kolom T.  Indien één en dezelfde bijlage de info van meerdere items bundelt, leid ons dan in “kolom  U\" naar het passende paginanummer. Vergeet niet de bijlages samen met het aangevulde aanvraagformulier over te maken.",null,null,null,null,null,null,null,null,null,null,null,null,null,null,null,null,null,null,null,"Bijlagen",null,"Validatie \nMOW","Wettelijke \nverwijzing"]
[]
[null,null,null,null,null,null,null,null,null,null,null,null,null,null,null,null,null,null,null,null,"Voortgang sectie"]
[null,"0. Kostenoverzicht",null,null,null,null,null,null,null,null,null,null,null,null,null,null,null,null,null,null,{"$f":"COUNTIF(C14:D21,TRUE)/2","v":0},"Naam Bijlage","Pagina n°","Evaluatie"]
[null,null,null,null,"Details per route (Automatisch aangevuld op basis van overzicht)"]
[null,null,null,null,null,null,null,null,null,null,null,null,null,null,null,null,null,"link"]
[null,null,{"$f":"IF(1-COUNTBLANK(Aanvraagformulier!G28)-COUNTBLANK(Aanvraagformulier!N28)=1,TRUE,FALSE)","v":false},null,"Route n°",null,null,9,null,null,null,null,null,null,null,null,null,{"$f":"HYPERLINK(\"#'Aanvraagformulier'!G28\",\"Klik hier\")","v":"Klik hier"}]
[null,null,null,null,"Naam route",null,null,{"$f":"VLOOKUP(H$14,Aanvraagformulier!$F$25:$N$53,2,FALSE)","v":"<< Gelieve de naam van Schoolroute 9 in te vullen >>"}]
[]
[null,null,null,null,"Raming kosten\n (excl. BTW)",null,null,{"$f":"VLOOKUP(H$14,Aanvraagformulier!$F$25:$N$53,8,FALSE)","v":0}]
[null,null,null,null,"Raming kosten\n (incl. BTW)",null,null,{"$f":"VLOOKUP(H$14,Aanvraagformulier!$F$25:$N$53,9,FALSE)","v":0}]
[]
[null,null,false,null,null,null,null,"De raming van de kosten werd toegevoegd aan het dossier en opgenomen in de bijlage met referentie.",null,null,null,null,null,null,null,null,null,null,null,null,null,null,null,null,"Art. 7  Eerste Lid 2° (1)"]
[]
[]
[null,"1. Locatie",null,null,null,null,null,null,null,null,null,null,null,null,null,null,null,null,null,null,{"$f":"COUNTIF(C25:D41,TRUE)/6","v":0},"Naam Bijlage","Pagina n°"]
[]
[null,null,false,null,null,null,null,"De route is vermeld op het plan op schaal waarop duidelijk aangegeven is welke scholen deel uitmaken van het project en waar de geplande maatregelen voor de schoolroute of schoolroutes zullen worden uitgevoerd, dat werd toegevoegd aan het dossier.",null,null,null,null,null,null,null,null,null,null,null,null,null,null,null,null,"Art. 1 4°-5°- art. 2 §1 1° (1) "]
[]
[]
[null,null,false,null,null,null,null,"De werken worden uitgevoerd op een geldige schoolroute, die:",null,null,null,null,null,null,null,null,null,null,null,null,null,null,null,null,"Art. 2 §1 1° (1) "]
[]
[null,null,null,false,null,null,null,"i)  Eindigt waar een schoolomgeving van een school begint.",null,null,null,null,null,null,null,null,null,null,null,null,null,null,null,null,"Art. 1 5°(1) "]
[]
[null,null,null,null,null,null,null,null,null,null,"EN"]
[]
[null,null,null,false,null,null,null,"ii) Buiten een straal van 100 meter rond de schooltoegang of voorbij het eerste kruispunt aan weerzijden indien dat verder ligt dan 100 meter."]
[]
[null,null,null,null,null,null,null,null,null,null,"EN"]
[null,null,null,false]
[null,null,null,null,null,null,null,"iii) Verschillende scholieren te voet of met de fiets of bromfiets op het woon-schooltraject gebruiken tijdens de uren die voorafgaan aan de opening van de school."]
[null,null,null,null,null,null,null,null,null,null,null,null,null,null,null,null,null,null,null,null,null,null,null,null,"Art. 1 5°(1) "]
[null,null,null,null,null,null,null,null,null,null,"EN"]
[null,null,null,false,null,null,null,"iv) ligt uitsluitend op een of meer gemeentewegen"]
[]
[null,"2. Omschrijving, doel en aard der werken",null,null,null,null,null,null,null,null,null,null,null,null,null,null,null,null,null,null,{"$f":"(COUNTIF(C45:D45,TRUE)+COUNTIF(C52:D52,TRUE)+COUNTIF(C58:C82,TRUE))/5","v":0},"Naam Bijlage","Pagina n°"]
[]
[null,null,false,{"$f":"IF(OR(D47,D49),TRUE,FALSE)","v":false},null,null,null,"Uitgaven zijn erop gericht de verkeersveiligheid van schoolkinderen te verbeteren. Selecteer (enkel) de relevante uitgave(n):",null,null,null,null,null,null,null,null,null,null,null,null,null,null,null,null,"Art. 2. §1 2° (1)"]
[]
[null,null,null,false,null,null,null,"i) Uitgaven voor verkeerssignalisatie (overal).",null,null,null,null,null,null,null,null,null,null,null,null,null,null,null,null,"Art. 3 (1)"]
[null,null,null,null,null,null,null,"EN/OF",null,null,null,null,null,null,null,null,null,null,null,null,null,null,null,null,"Art. 3 (1)"]
[null,null,null,false,null,null,null,"ii) Uitgaven voor infrastructurele maatregelen die de verkeersveiligheid op de schoolroutes verhogen (excl. voor fietspaden op het BFF)."]
[]
[]
[null,null,false,null,null,null,null,"De motivering voor de keuze van de geselecteerde schoolroute of schoolroutes, bevat de verwijzing naar deze schoolroute."]
[]
[]
[null,null,null,null,null,null,null,"Type Werkzaamheden (selecteer alle werkzaamheden die van toepassing zijn)"]
[]
[null,null,null,null,null,null,null,"Hoofcategorie maatregelen ",null,"Subcategorie \nmaatregelen",null,"Gedetailleerde informatie",null,null,null,"Van toepasssing"]
[null,null,{"$f":"IF(COUNTIF(D58:D76,TRUE)>0,TRUE,FALSE)","v":false},false,null,null,null,"Signalisatie ",null,"S1. Verkeersborden",null,"Afbakening fietsstraat"]
[null,null,null,false,null,null,null,null,null,null,null,"(Dynamische) zone 30  "]
[null,null,null,false,null,null,null,null,null,null,null,"Detecterende Snelheidsinformatieborden (vb. Smileyborden, \"graag traag\")"]
[null,null,null,false,null,null,null,null,null,null,null,"Verkeersborden algemeen"]
[null,null,null,false,null,null,null,null,null,"S2. (Thermoplastische) wegmarkeringen",null,"Fietssuggestiestroken"]
[null,null,null,false,null,null,null,null,null,null,null,"Oversteekplaatsen"]
[null,null,null,false,null,null,null,null,null,null,null,"Markeringen algemeen"]
[null,null,null,false,null,null,null,null,null,"S3. (Verkeers)lichten",null,"Hardware verkeerslichten"]
[null,null,null,false,null,null,null,null,null,null,null,"Verlichting algemeen"]
[null,null,null,false,null,null,null,"Infrastructureel",null,"I1. (Her)aanleg",null,"Straatmeubilair"]
[null,null,null,false,null,null,null,null,null,null,null,"Vrijliggend fietspad"]
[null,null,null,false,null,null,null,null,null,null,null,"Aanliggende fietspad"]
[null,null,null,false,null,null,null,null,null,null,null,"Voetpad"]
[null,null,null,false,null,null,null,null,null,null,null,"Wegdek"]
[null,null,null,false,null,null,null,null,null,null,null,"Groen i.f.v. verkeersveiligheid"]
[null,null,null,false,null,null,null,null,null,"I2. Hardware",null,"Hardware handhaving (vb. ANPR Camera's)"]
[null,null,null,false,null,null,null,null,null,null,null,"Hardware beloningssysteem (eenmalig)"]
[null,null,null,false,null,null,null,null,null,null,null,"Hardware beloningssysteem (huurcontract 3j)"]
[null,null,null,false,null,null,null,null,null,"I3 Hardware en Software (Pakket)",null,"Trajectcontrole (systeem waarbij de gemiddelde snelheid over een langere afstand wordt gemeten)"]
[]
[]
[]
[null,null,null,null,null,null,null,"Allocatie Budgetraming (alloceer het budget per subcategorie die van toepassing is)"]
[null,null,null,null,null,null,null,null,null,null,null,null,null,null,null,"Raming (incl. BTW)",null,"%"]
[null,null,{"$f":"IF(R82=1,TRUE,FALSE)","v":false},{"$f":"IF(R82>1,FALSE,TRUE)","v":true},null,null,null,null,"Totaal Alle Categorieën",null,null,null,null,null,null,{"$f":"SUM(P84:Q90)","v":0},null,{"$f":"SUM(R84:R90)","v":0.95}]
[null,null,null,null,null,null,null,null,"Signalisatie"]
[null,null,null,60,null,null,null,null,null,"S1. Verkeersborden",null,null,null,null,null,{"$f":"R84*H$18","v":0},null,{"$f":"D84/100","v":0.6}]
[null,null,null,35,null,null,null,null,null,"S2. (Thermoplastische) wegmarkeringen",null,null,null,null,null,{"$f":"R85*H$18","v":0},null,{"$f":"D85/100","v":0.35}]
[null,null,null,0,null,null,null,null,null,"S3. (Verkeers)lichten",null,null,null,null,null,{"$f":"R86*H$18","v":0},null,{"$f":"D86/100","v":0}]
[null,null,null,null,null,null,null,null,"Infrastructuur"]
[null,null,null,0,null,null,null,null,null,"I1. Heraanleg",null,null,null,null,null,{"$f":"R88*H$18","v":0},null,{"$f":"D88/100","v":0}]
[null,null,null,0,null,null,null,null,null,"I2. Hardware",null,null,null,null,null,{"$f":"R89*H$18","v":0},null,{"$f":"D89/100","v":0}]
[null,null,null,0,null,null,null,null,null,"I3. Hardware en Software (Pakket)",null,null,null,null,null,{"$f":"R90*H$18","v":0},null,{"$f":"D90/100","v":0}]
[]
[null,"4. Timing",null,null,null,null,null,null,null,null,null,null,null,null,null,null,null,null,null,null,{"$f":"COUNTIF(C94:D105,TRUE)/2","v":0},"Naam Bijlage","Pagina n°"]
[]
[null,null,false,null,null,null,null,"De (geplande) werken worden uitgevoerd, rekening houdend met een voltooiingsdatum binnen de 12 maanden na de dag van beslissing van toekenning. De finale stukken zullen ten laatste 3 maanden na voormelde datum ingediend moeten worden.",null,null,null,null,null,null,null,null,null,null,null,null,null,null,null,null,"Art. 2 §3 juncto art. 3 (1)"]
[]
[]
[null,null,null,null,null,null,null,"Voorziene datum aanvang van de werken",null,null,null,null,null,null,null,{"$f":"IF(OR(ISBLANK(L97),ISBLANK(L98)),\"Gelieve beide data in te vullen\",\"\")","v":"Gelieve beide data in te vullen"}]
[null,null,null,null,null,null,null,"Voorziene datum einde van de werken"]
[null,null,null,null,null,null,null,"Duurtijd (kalenderdagen)",null,null,null,{"$f":"IF(OR(ISBLANK(L97),ISBLANK(L98)),\"Gelieve bovenstaande cellen in te vullen\",_xlfn.DAYS(L98,L97))","v":"Gelieve bovenstaande cellen in te vullen"}]
[]
[]
[]
[]
[null,null,false,null,null,null,null,"De planning van de uitvoering van de werken voor de route werd toegevoegd in bijlage met referentie.",null,null,null,null,null,null,null,null,null,null,null,null,null,null,null,null,"Art. 7  Eerste Lid 3° (1)"]
[]
[null,"5. Informatie domeinbeheerder",null,null,null,null,null,null,null,null,null,null,null,null,null,null,null,null,null,null,{"$f":"IF(C113=1,1,COUNTIF(C117:D118,TRUE)/2)","v":0},"Naam Bijlage (optioneel)","Pagina n°","Compleet?"]
[]
[null,null,false]
[]
[null,null,null,false]
[]
[]
[null,null,2,null,null,null,null,"Het volledige domein waarop de werken worden uitgevoerd, is in het beheer van de gemeente.",null,null,null,null,null,null,null,null,null,null,null,null,null,null,null,null,"Art. 7  Eerste Lid 1°-4° (1)"]
[]
[null,null,null,null,null,null,null,"Indien niet, vul aan:"]
[null,null,null,null,null,null,null,null,null,"Type",null,"Identiteit domeinbeheerder"]
[null,null,{"$f":"IF(C113=2,NOT(ISBLANK(L117)),TRUE)","v":false},null,null,null,null,null,null,"Privaat"]
[null,null,{"$f":"IF(C113=2,AND(C119=TRUE,NOT(ISBLANK(I120)),TRUE))","v":false}]
[null,null,false,null,null,null,null,"Het akkoord van deze domeinbeheerder werd als bijlage toegevoegd aan de dossieraanvraag.",null,null,null,null,null,null,null,null,null,null,null,null,null,null,null,null,"Art. 7  Eerste Lid 5° (1)"]
[null,null,null,null,null,null,null,"Bijlage*:"]
[]
[null,null,null,null,null,null,null,"* veplicht op te nemen"]
[null,"6. Optionele bijkomende informatie",null,null,null,null,null,null,null,null,null,null,null,null,null,null,null,null,null,null,null,"Naam Bijlage (optioneel)","Pagina n°"]
[]
[null,null,null,null,null,null,null,"Bijkomende toelichting"]
[null,null,null,null,null,null,null,null,null,null,null,null,null,null,null,null,null,null,null,null,null,null,null,null,"Art. 7  Eerste Lid 1° (1)"]
[]
[]
[null,null,{"$f":"IF(AND(D129=TRUE,ISBLANK(I130)),TRUE,FALSE)","v":false},false,null,null,null,"Optioneel - u kunt een verduidelijkende bijlage toevoegen ter verduidelijking/vervanging van bovenstaand veld."]
[null,null,null,null,null,null,null,"Bijlage*:"]
[]
[null,null,null,null,null,null,null,"* veplicht op te nemen indien van toepassing"]
[]
[]
[]
[null,"Voor de administratie (MOW)",null,null,null,null,null,null,null,null,null,null,null,null,null,null,"Voor de aanvrager (Naam + Functie)"]
[null,null,null,null,null,null,null,null,null,null,null,"Hide Row"]

{"sheet":"Route (10)","index":12,"n_rows":137,"n_cols":25,"rows_kept":137,"cut":false,"hidden":true,"merged":[[120,7,120,20],[124,7,124,20],[124,23,131,23],[128,7,128,16],[129,8,129,10],[130,7,130,20],[119,8,119,10],[98,11,98,14],[100,7,101,16],[107,7,107,20],[109,7,109,20],[110,7,110,20],[111,7,111,20],[112,7,112,15],[115,9,115,10],[115,11,115,14],[116,9,116,10],[116,11,116,14],[79,7,79,20],[97,11,97,14],[81,15,81,16],[82,15,82,16],[83,15,83,16],[84,15,84,16],[85,15,85,16],[87,15,87,16],[88,15,88,16],[89,15,89,16],[93,7,94,16],[96,11,96,14],[96,15,96,17],[65,11,65,14],[80,15,80,16],[66,7,75,8],[66,9,71,10],[66,11,66,14],[67,11,67,14],[68,11,68,14],[69,11,69,14],[70,11,70,14],[71,11,71,14],[72,9,74,10],[72,11,72,14],[73,11,73,14],[74,11,74,14],[75,9,75,10],[75,11,75,14],[54,7,54,20],[56,7,56,8],[56,9,56,10],[56,11,56,14],[57,7,65,8],[57,9,60,10],[57,11,57,14],[58,11,58,14],[59,11,59,14],[60,11,60,14],[61,9,63,10],[61,11,61,14],[62,11,62,14],[63,11,63,14],[64,9,65,10],[64,11,64,14],[51,7,52,17],[17,4,17,6],[17,7,17,16],[19,7,19,17],[23,23,41,23],[24,7,25,17],[27,7,27,17],[29,7,29,20],[33,7,34,20],[36,7,36,20],[37,7,38,20],[40,7,40,20],[44,7,45,17],[46,7,46,20],[47,7,47,20],[48,7,48,20],[11,4,11,16],[13,4,13,6],[13,7,13,16],[13,17,17,17],[14,4,14,6],[14,7,14,16],[15,4,15,6],[15,7,15,16],[16,4,16,6],[16,7,16,16],[7,1,7,20],[7,21,7,22],[1,9,5,21],[2,26,6,31],[5,7,5,8],[6,7,6,8],[6,15,6,16]]}
[]
[null,null,null,null,null,null,null,null,null,{"$f":"\"Individuele Detailfiche - Route \" &H14&_xlfn.UNICHAR(10)& \"('\"&H15&\"')\"","v":"Individuele Detailfiche - Route 10\n('<< Gelieve de naam van Schoolroute 10 in te vullen >>')"}]
[null,null,2]
[]
[]
[]
[]
[null,"Vul in onderstaande tabel de gevraagde gegevens in, vink alle verklaringen aan die op de aanvraag van toepassing zijn. Toepasselijke bijlages geeft u een (betekenisvolle naam) – vb. raming route 123. Vermeld deze naam op de voorziene plaatsen in kolom T.  Indien één en dezelfde bijlage de info van meerdere items bundelt, leid ons dan in “kolom  U\" naar het passende paginanummer. Vergeet niet de bijlages samen met het aangevulde aanvraagformulier over te maken.",null,null,null,null,null,null,null,null,null,null,null,null,null,null,null,null,null,null,null,"Bijlagen",null,"Validatie \nMOW","Wettelijke \nverwijzing"]
[]
[null,null,null,null,null,null,null,null,null,null,null,null,null,null,null,null,null,null,null,null,"Voortgang sectie"]
[null,"0. Kostenoverzicht",null,null,null,null,null,null,null,null,null,null,null,null,null,null,null,null,null,null,{"$f":"COUNTIF(C14:D21,TRUE)/2","v":0},"Naam Bijlage","Pagina n°","Evaluatie"]
[null,null,null,null,"Details per route (Automatisch aangevuld op basis van overzicht)"]
[null,null,null,null,null,null,null,null,null,null,null,null,null,null,null,null,null,"link"]
[null,null,{"$f":"IF(1-COUNTBLANK(Aanvraagformulier!G28)-COUNTBLANK(Aanvraagformulier!N28)=1,TRUE,FALSE)","v":false},null,"Route n°",null,null,10,null,null,null,null,null,null,null,null,null,{"$f":"HYPERLINK(\"#'Aanvraagformulier'!G28\",\"Klik hier\")","v":"Klik hier"}]
[null,null,null,null,"Naam route",null,null,{"$f":"VLOOKUP(H$14,Aanvraagformulier!$F$25:$N$53,2,FALSE)","v":"<< Gelieve de naam van Schoolroute 10 in te vullen >>"}]
[]
[null,null,null,null,"Raming kosten\n (excl. BTW)",null,null,{"$f":"VLOOKUP(H$14,Aanvraagformulier!$F$25:$N$53,8,FALSE)","v":0}]
[null,null,null,null,"Raming kosten\n (incl. BTW)",null,null,{"$f":"VLOOKUP(H$14,Aanvraagformulier!$F$25:$N$53,9,FALSE)","v":0}]
[]
[null,null,false,null,null,null,null,"De raming van de kosten werd toegevoegd aan het dossier en opgenomen in de bijlage met referentie.",null,null,null,null,null,null,null,null,null,null,null,null,null,null,null,null,"Art. 7  Eerste Lid 2° (1)"]
[]
[]
[null,"1. Locatie",null,null,null,null,null,null,null,null,null,null,null,null,null,null,null,null,null,null,{"$f":"COUNTIF(C25:D41,TRUE)/6","v":0},"Naam Bijlage","Pagina n°"]
[]
[null,null,false,null,null,null,null,"De route is vermeld op het plan op schaal waarop duidelijk aangegeven is welke scholen deel uitmaken van het project en waar de geplande maatregelen voor de schoolroute of schoolroutes zullen worden uitgevoerd, dat werd toegevoegd aan het dossier.",null,null,null,null,null,null,null,null,null,null,null,null,null,null,null,null,"Art. 1 4°-5°- art. 2 §1 1° (1) "]
[]
[]
[null,null,false,null,null,null,null,"De werken worden uitgevoerd op een geldige schoolroute, die:",null,null,null,null,null,null,null,null,null,null,null,null,null,null,null,null,"Art. 2 §1 1° (1) "]
[]
[null,null,null,false,null,null,null,"i)  Eindigt waar een schoolomgeving van een school begint.",null,null,null,null,null,null,null,null,null,null,null,null,null,null,null,null,"Art. 1 5°(1) "]
[]
[null,null,null,null,null,null,null,null,null,null,"EN"]
[]
[null,null,null,false,null,null,null,"ii) Buiten een straal van 100 meter rond de schooltoegang of voorbij het eerste kruispunt aan weerzijden indien dat verder ligt dan 100 meter."]
[]
[null,null,null,null,null,null,null,null,null,null,"EN"]
[null,null,null,false]
[null,null,null,null,null,null,null,"iii) Verschillende scholieren te voet of met de fiets of bromfiets op het woon-schooltraject gebruiken tijdens de uren die voorafgaan aan de opening van de school."]
[null,null,null,null,null,null,null,null,null,null,null,null,null,null,null,null,null,null,null,null,null,null,null,null,"Art. 1 5°(1) "]
[null,null,null,null,null,null,null,null,null,null,"EN"]
[null,null,null,false,null,null,null,"iv) ligt uitsluitend op een of meer gemeentewegen"]
[]
[null,"2. Omschrijving, doel en aard der werken",null,null,null,null,null,null,null,null,null,null,null,null,null,null,null,null,null,null,{"$f":"(COUNTIF(C45:D45,TRUE)+COUNTIF(C52:D52,TRUE)+COUNTIF(C58:C82,TRUE))/5","v":0},"Naam Bijlage","Pagina n°"]
[]
[null,null,false,{"$f":"IF(OR(D47,D49),TRUE,FALSE)","v":false},null,null,null,"Uitgaven zijn erop gericht de verkeersveiligheid van schoolkinderen te verbeteren. Selecteer (enkel) de relevante uitgave(n):",null,null,null,null,null,null,null,null,null,null,null,null,null,null,null,null,"Art. 2. §1 2° (1)"]
[]
[null,null,null,false,null,null,null,"i) Uitgaven voor verkeerssignalisatie (overal).",null,null,null,null,null,null,null,null,null,null,null,null,null,null,null,null,"Art. 3 (1)"]
[null,null,null,null,null,null,null,"EN/OF",null,null,null,null,null,null,null,null,null,null,null,null,null,null,null,null,"Art. 3 (1)"]
[null,null,null,false,null,null,null,"ii) Uitgaven voor infrastructurele maatregelen die de verkeersveiligheid op de schoolroutes verhogen (excl. voor fietspaden op het BFF)."]
[]
[]
[null,null,false,null,null,null,null,"De motivering voor de keuze van de geselecteerde schoolroute of schoolroutes, bevat de verwijzing naar deze schoolroute."]
[]
[]
[null,null,null,null,null,null,null,"Type Werkzaamheden (selecteer alle werkzaamheden die van toepassing zijn)"]
[]
[null,null,null,null,null,null,null,"Hoofcategorie maatregelen ",null,"Subcategorie \nmaatregelen",null,"Gedetailleerde informatie",null,null,null,"Van toepasssing"]
[null,null,{"$f":"IF(COUNTIF(D58:D76,TRUE)>0,TRUE,FALSE)","v":false},false,null,null,null,"Signalisatie ",null,"S1. Verkeersborden",null,"Afbakening fietsstraat"]
[null,null,null,false,null,null,null,null,null,null,null,"(Dynamische) zone 30  "]
[null,null,null,false,null,null,null,null,null,null,null,"Detecterende Snelheidsinformatieborden (vb. Smileyborden, \"graag traag\")"]
[null,null,null,false,null,null,null,null,null,null,null,"Verkeersborden algemeen"]
[null,null,null,false,null,null,null,null,null,"S2. (Thermoplastische) wegmarkeringen",null,"Fietssuggestiestroken"]
[null,null,null,false,null,null,null,null,null,null,null,"Oversteekplaatsen"]
[null,null,null,false,null,null,null,null,null,null,null,"Markeringen algemeen"]
[null,null,null,false,null,null,null,null,null,"S3. (Verkeers)lichten",null,"Hardware verkeerslichten"]
[null,null,null,false,null,null,null,null,null,null,null,"Verlichting algemeen"]
[null,null,null,false,null,null,null,"Infrastructureel",null,"I1. (Her)aanleg",null,"Straatmeubilair"]
[null,null,null,false,null,null,null,null,null,null,null,"Vrijliggend fietspad"]
[null,null,null,false,null,null,null,null,null,null,null,"Aanliggende fietspad"]
[null,null,null,false,null,null,null,null,null,null,null,"Voetpad"]
[null,null,null,false,null,null,null,null,null,null,null,"Wegdek"]
[null,null,null,false,null,null,null,null,null,null,null,"Groen i.f.v. verkeersveiligheid"]
[null,null,null,false,null,null,null,null,null,"I2. Hardware",null,"Hardware handhaving (vb. ANPR Camera's)"]
[null,null,null,false,null,null,null,null,null,null,null,"Hardware beloningssysteem (eenmalig)"]
[null,null,null,false,null,null,null,null,null,null,null,"Hardware beloningssysteem (huurcontract 3j)"]
[null,null,null,false,null,null,null,null,null,"I3 Hardware en Software (Pakket)",null,"Trajectcontrole (systeem waarbij de gemiddelde snelheid over een langere afstand wordt gemeten)"]
[]
[]
[]
[null,null,null,null,null,null,null,"Allocatie Budgetraming (alloceer het budget per subcategorie die van toepassing is)"]
[null,null,null,null,null,null,null,null,null,null,null,null,null,null,null,"Raming (incl. BTW)",null,"%"]
[null,null,{"$f":"IF(R82=1,TRUE,FALSE)","v":false},{"$f":"IF(R82>1,FALSE,TRUE)","v":true},null,null,null,null,"Totaal Alle Categorieën",null,null,null,null,null,null,{"$f":"SUM(P84:Q90)","v":0},null,{"$f":"SUM(R84:R90)","v":0.95}]
[null,null,null,null,null,null,null,null,"Signalisatie"]
[null,null,null,60,null,null,null,null,null,"S1. Verkeersborden",null,null,null,null,null,{"$f":"R84*H$18","v":0},null,{"$f":"D84/100","v":0.6}]
[null,null,null,35,null,null,null,null,null,"S2. (Thermoplastische) wegmarkeringen",null,null,null,null,null,{"$f":"R85*H$18","v":0},null,{"$f":"D85/100","v":0.35}]
[null,null,null,0,null,null,null,null,null,"S3. (Verkeers)lichten",null,null,null,null,null,{"$f":"R86*H$18","v":0},null,{"$f":"D86/100","v":0}]
[null,null,null,null,null,null,null,null,"Infrastructuur"]
[null,null,null,0,null,null,null,null,null,"I1. Heraanleg",null,null,null,null,null,{"$f":"R88*H$18","v":0},null,{"$f":"D88/100","v":0}]
[null,null,null,0,null,null,null,null,null,"I2. Hardware",null,null,null,null,null,{"$f":"R89*H$18","v":0},null,{"$f":"D89/100","v":0}]
[null,null,null,0,null,null,null,null,null,"I3. Hardware en Software (Pakket)",null,null,null,null,null,{"$f":"R90*H$18","v":0},null,{"$f":"D90/100","v":0}]
[]
[null,"4. Timing",null,null,null,null,null,null,null,null,null,null,null,null,null,null,null,null,null,null,{"$f":"COUNTIF(C94:D105,TRUE)/2","v":0},"Naam Bijlage","Pagina n°"]
[]
[null,null,false,null,null,null,null,"De (geplande) werken worden uitgevoerd, rekening houdend met een voltooiingsdatum binnen de 12 maanden na de dag van beslissing van toekenning. De finale stukken zullen ten laatste 3 maanden na voormelde datum ingediend moeten worden.",null,null,null,null,null,null,null,null,null,null,null,null,null,null,null,null,"Art. 2 §3 juncto art. 3 (1)"]
[]
[]
[null,null,null,null,null,null,null,"Voorziene datum aanvang van de werken",null,null,null,null,null,null,null,{"$f":"IF(OR(ISBLANK(L97),ISBLANK(L98)),\"Gelieve beide data in te vullen\",\"\")","v":"Gelieve beide data in te vullen"}]
[null,null,null,null,null,null,null,"Voorziene datum einde van de werken"]
[null,null,null,null,null,null,null,"Duurtijd (kalenderdagen)",null,null,null,{"$f":"IF(OR(ISBLANK(L97),ISBLANK(L98)),\"Gelieve bovenstaande cellen in te vullen\",_xlfn.DAYS(L98,L97))","v":"Gelieve bovenstaande cellen in te vullen"}]
[]
[]
[]
[]
[null,null,false,null,null,null,null,"De planning van de uitvoering van de werken voor de route werd toegevoegd in bijlage met referentie.",null,null,null,null,null,null,null,null,null,null,null,null,null,null,null,null,"Art. 7  Eerste Lid 3° (1)"]
[]
[null,"5. Informatie domeinbeheerder",null,null,null,null,null,null,null,null,null,null,null,null,null,null,null,null,null,null,{"$f":"IF(C113=1,1,COUNTIF(C117:D118,TRUE)/2)","v":0},"Naam Bijlage (optioneel)","Pagina n°","Compleet?"]
[]
[null,null,false]
[]
[null,null,null,false]
[]
[]
[null,null,2,null,null,null,null,"Het volledige domein waarop de werken worden uitgevoerd, is in het beheer van de gemeente.",null,null,null,null,null,null,null,null,null,null,null,null,null,null,null,null,"Art. 7  Eerste Lid 1°-4° (1)"]
[]
[null,null,null,null,null,null,null,"Indien niet, vul aan:"]
[null,null,null,null,null,null,null,null,null,"Type",null,"Identiteit domeinbeheerder"]
[null,null,{"$f":"IF(C113=2,NOT(ISBLANK(L117)),TRUE)","v":false},null,null,null,null,null,null,"Privaat"]
[null,null,{"$f":"IF(C113=2,AND(C119=TRUE,NOT(ISBLANK(I120)),TRUE))","v":false}]
[null,null,false,null,null,null,null,"Het akkoord van deze domeinbeheerder werd als bijlage toegevoegd aan de dossieraanvraag.",null,null,null,null,null,null,null,null,null,null,null,null,null,null,null,null,"Art. 7  Eerste Lid 5° (1)"]
[null,null,null,null,null,null,null,"Bijlage*:"]
[]
[null,null,null,null,null,null,null,"* veplicht op te nemen"]
[null,"6. Optionele bijkomende informatie",null,null,null,null,null,null,null,null,null,null,null,null,null,null,null,null,null,null,null,"Naam Bijlage (optioneel)","Pagina n°"]
[]
[null,null,null,null,null,null,null,"Bijkomende toelichting"]
[null,null,null,null,null,null,null,null,null,null,null,null,null,null,null,null,null,null,null,null,null,null,null,null,"Art. 7  Eerste Lid 1° (1)"]
[]
[]
[null,null,{"$f":"IF(AND(D129=TRUE,ISBLANK(I130)),TRUE,FALSE)","v":false},false,null,null,null,"Optioneel - u kunt een verduidelijkende bijlage toevoegen ter verduidelijking/vervanging van bovenstaand veld."]
[null,null,null,null,null,null,null,"Bijlage*:"]
[]
[null,null,null,null,null,null,null,"* veplicht op te nemen indien van toepassing"]
[]
[]
[]
[null,"Voor de administratie (MOW)",null,null,null,null,null,null,null,null,null,null,null,null,null,null,"Voor de aanvrager (Naam + Functie)"]
[null,null,null,null,null,null,null,null,null,null,null,"Hide Row"]

{"sheet":"Route (11)","index":13,"n_rows":137,"n_cols":25,"rows_kept":137,"cut":false,"hidden":true,"merged":[[120,7,120,20],[124,7,124,20],[124,23,131,23],[128,7,128,16],[129,8,129,10],[130,7,130,20],[119,8,119,10],[98,11,98,14],[100,7,101,16],[107,7,107,20],[109,7,109,20],[110,7,110,20],[111,7,111,20],[112,7,112,15],[115,9,115,10],[115,11,115,14],[116,9,116,10],[116,11,116,14],[79,7,79,20],[97,11,97,14],[81,15,81,16],[82,15,82,16],[83,15,83,16],[84,15,84,16],[85,15,85,16],[87,15,87,16],[88,15,88,16],[89,15,89,16],[93,7,94,16],[96,11,96,14],[96,15,96,17],[65,11,65,14],[80,15,80,16],[66,7,75,8],[66,9,71,10],[66,11,66,14],[67,11,67,14],[68,11,68,14],[69,11,69,14],[70,11,70,14],[71,11,71,14],[72,9,74,10],[72,11,72,14],[73,11,73,14],[74,11,74,14],[75,9,75,10],[75,11,75,14],[54,7,54,20],[56,7,56,8],[56,9,56,10],[56,11,56,14],[57,7,65,8],[57,9,60,10],[57,11,57,14],[58,11,58,14],[59,11,59,14],[60,11,60,14],[61,9,63,10],[61,11,61,14],[62,11,62,14],[63,11,63,14],[64,9,65,10],[64,11,64,14],[51,7,52,17],[17,4,17,6],[17,7,17,16],[19,7,19,17],[23,23,41,23],[24,7,25,17],[27,7,27,17],[29,7,29,20],[33,7,34,20],[36,7,36,20],[37,7,38,20],[40,7,40,20],[44,7,45,17],[46,7,46,20],[47,7,47,20],[48,7,48,20],[11,4,11,16],[13,4,13,6],[13,7,13,16],[13,17,17,17],[14,4,14,6],[14,7,14,16],[15,4,15,6],[15,7,15,16],[16,4,16,6],[16,7,16,16],[7,1,7,20],[7,21,7,22],[1,9,5,21],[2,26,6,31],[5,7,5,8],[6,7,6,8],[6,15,6,16]]}
[]
[null,null,null,null,null,null,null,null,null,{"$f":"\"Individuele Detailfiche - Route \" &H14&_xlfn.UNICHAR(10)& \"('\"&H15&\"')\"","v":"Individuele Detailfiche - Route 11\n('<< Gelieve de naam van Schoolroute 11 in te vullen >>')"}]
[null,null,2]
[]
[]
[]
[]
[null,"Vul in onderstaande tabel de gevraagde gegevens in, vink alle verklaringen aan die op de aanvraag van toepassing zijn. Toepasselijke bijlages geeft u een (betekenisvolle naam) – vb. raming route 123. Vermeld deze naam op de voorziene plaatsen in kolom T.  Indien één en dezelfde bijlage de info van meerdere items bundelt, leid ons dan in “kolom  U\" naar het passende paginanummer. Vergeet niet de bijlages samen met het aangevulde aanvraagformulier over te maken.",null,null,null,null,null,null,null,null,null,null,null,null,null,null,null,null,null,null,null,"Bijlagen",null,"Validatie \nMOW","Wettelijke \nverwijzing"]
[]
[null,null,null,null,null,null,null,null,null,null,null,null,null,null,null,null,null,null,null,null,"Voortgang sectie"]
[null,"0. Kostenoverzicht",null,null,null,null,null,null,null,null,null,null,null,null,null,null,null,null,null,null,{"$f":"COUNTIF(C14:D21,TRUE)/2","v":0},"Naam Bijlage","Pagina n°","Evaluatie"]
[null,null,null,null,"Details per route (Automatisch aangevuld op basis van overzicht)"]
[null,null,null,null,null,null,null,null,null,null,null,null,null,null,null,null,null,"link"]
[null,null,{"$f":"IF(1-COUNTBLANK(Aanvraagformulier!G28)-COUNTBLANK(Aanvraagformulier!N28)=1,TRUE,FALSE)","v":false},null,"Route n°",null,null,11,null,null,null,null,null,null,null,null,null,{"$f":"HYPERLINK(\"#'Aanvraagformulier'!G28\",\"Klik hier\")","v":"Klik hier"}]
[null,null,null,null,"Naam route",null,null,{"$f":"VLOOKUP(H$14,Aanvraagformulier!$F$25:$N$53,2,FALSE)","v":"<< Gelieve de naam van Schoolroute 11 in te vullen >>"}]
[]
[null,null,null,null,"Raming kosten\n (excl. BTW)",null,null,{"$f":"VLOOKUP(H$14,Aanvraagformulier!$F$25:$N$53,8,FALSE)","v":0}]
[null,null,null,null,"Raming kosten\n (incl. BTW)",null,null,{"$f":"VLOOKUP(H$14,Aanvraagformulier!$F$25:$N$53,9,FALSE)","v":0}]
[]
[null,null,false,null,null,null,null,"De raming van de kosten werd toegevoegd aan het dossier en opgenomen in de bijlage met referentie.",null,null,null,null,null,null,null,null,null,null,null,null,null,null,null,null,"Art. 7  Eerste Lid 2° (1)"]
[]
[]
[null,"1. Locatie",null,null,null,null,null,null,null,null,null,null,null,null,null,null,null,null,null,null,{"$f":"COUNTIF(C25:D41,TRUE)/6","v":0},"Naam Bijlage","Pagina n°"]
[]
[null,null,false,null,null,null,null,"De route is vermeld op het plan op schaal waarop duidelijk aangegeven is welke scholen deel uitmaken van het project en waar de geplande maatregelen voor de schoolroute of schoolroutes zullen worden uitgevoerd, dat werd toegevoegd aan het dossier.",null,null,null,null,null,null,null,null,null,null,null,null,null,null,null,null,"Art. 1 4°-5°- art. 2 §1 1° (1) "]
[]
[]
[null,null,false,null,null,null,null,"De werken worden uitgevoerd op een geldige schoolroute, die:",null,null,null,null,null,null,null,null,null,null,null,null,null,null,null,null,"Art. 2 §1 1° (1) "]
[]
[null,null,null,false,null,null,null,"i)  Eindigt waar een schoolomgeving van een school begint.",null,null,null,null,null,null,null,null,null,null,null,null,null,null,null,null,"Art. 1 5°(1) "]
[]
[null,null,null,null,null,null,null,null,null,null,"EN"]
[]
[null,null,null,false,null,null,null,"ii) Buiten een straal van 100 meter rond de schooltoegang of voorbij het eerste kruispunt aan weerzijden indien dat verder ligt dan 100 meter."]
[]
[null,null,null,null,null,null,null,null,null,null,"EN"]
[null,null,null,false]
[null,null,null,null,null,null,null,"iii) Verschillende scholieren te voet of met de fiets of bromfiets op het woon-schooltraject gebruiken tijdens de uren die voorafgaan aan de opening van de school."]
[null,null,null,null,null,null,null,null,null,null,null,null,null,null,null,null,null,null,null,null,null,null,null,null,"Art. 1 5°(1) "]
[null,null,null,null,null,null,null,null,null,null,"EN"]
[null,null,null,false,null,null,null,"iv) ligt uitsluitend op een of meer gemeentewegen"]
[]
[null,"2. Omschrijving, doel en aard der werken",null,null,null,null,null,null,null,null,null,null,null,null,null,null,null,null,null,null,{"$f":"(COUNTIF(C45:D45,TRUE)+COUNTIF(C52:D52,TRUE)+COUNTIF(C58:C82,TRUE))/5","v":0},"Naam Bijlage","Pagina n°"]
[]
[null,null,false,{"$f":"IF(OR(D47,D49),TRUE,FALSE)","v":false},null,null,null,"Uitgaven zijn erop gericht de verkeersveiligheid van schoolkinderen te verbeteren. Selecteer (enkel) de relevante uitgave(n):",null,null,null,null,null,null,null,null,null,null,null,null,null,null,null,null,"Art. 2. §1 2° (1)"]
[]
[null,null,null,false,null,null,null,"i) Uitgaven voor verkeerssignalisatie (overal).",null,null,null,null,null,null,null,null,null,null,null,null,null,null,null,null,"Art. 3 (1)"]
[null,null,null,null,null,null,null,"EN/OF",null,null,null,null,null,null,null,null,null,null,null,null,null,null,null,null,"Art. 3 (1)"]
[null,null,null,false,null,null,null,"ii) Uitgaven voor infrastructurele maatregelen die de verkeersveiligheid op de schoolroutes verhogen (excl. voor fietspaden op het BFF)."]
[]
[]
[null,null,false,null,null,null,null,"De motivering voor de keuze van de geselecteerde schoolroute of schoolroutes, bevat de verwijzing naar deze schoolroute."]
[]
[]
[null,null,null,null,null,null,null,"Type Werkzaamheden (selecteer alle werkzaamheden die van toepassing zijn)"]
[]
[null,null,null,null,null,null,null,"Hoofcategorie maatregelen ",null,"Subcategorie \nmaatregelen",null,"Gedetailleerde informatie",null,null,null,"Van toepasssing"]
[null,null,{"$f":"IF(COUNTIF(D58:D76,TRUE)>0,TRUE,FALSE)","v":false},false,null,null,null,"Signalisatie ",null,"S1. Verkeersborden",null,"Afbakening fietsstraat"]
[null,null,null,false,null,null,null,null,null,null,null,"(Dynamische) zone 30  "]
[null,null,null,false,null,null,null,null,null,null,null,"Detecterende Snelheidsinformatieborden (vb. Smileyborden, \"graag traag\")"]
[null,null,null,false,null,null,null,null,null,null,null,"Verkeersborden algemeen"]
[null,null,null,false,null,null,null,null,null,"S2. (Thermoplastische) wegmarkeringen",null,"Fietssuggestiestroken"]
[null,null,null,false,null,null,null,null,null,null,null,"Oversteekplaatsen"]
[null,null,null,false,null,null,null,null,null,null,null,"Markeringen algemeen"]
[null,null,null,false,null,null,null,null,null,"S3. (Verkeers)lichten",null,"Hardware verkeerslichten"]
[null,null,null,false,null,null,null,null,null,null,null,"Verlichting algemeen"]
[null,null,null,false,null,null,null,"Infrastructureel",null,"I1. (Her)aanleg",null,"Straatmeubilair"]
[null,null,null,false,null,null,null,null,null,null,null,"Vrijliggend fietspad"]
[null,null,null,false,null,null,null,null,null,null,null,"Aanliggende fietspad"]
[null,null,null,false,null,null,null,null,null,null,null,"Voetpad"]
[null,null,null,false,null,null,null,null,null,null,null,"Wegdek"]
[null,null,null,false,null,null,null,null,null,null,null,"Groen i.f.v. verkeersveiligheid"]
[null,null,null,false,null,null,null,null,null,"I2. Hardware",null,"Hardware handhaving (vb. ANPR Camera's)"]
[null,null,null,false,null,null,null,null,null,null,null,"Hardware beloningssysteem (eenmalig)"]
[null,null,null,false,null,null,null,null,null,null,null,"Hardware beloningssysteem (huurcontract 3j)"]
[null,null,null,false,null,null,null,null,null,"I3 Hardware en Software (Pakket)",null,"Trajectcontrole (systeem waarbij de gemiddelde snelheid over een langere afstand wordt gemeten)"]
[]
[]
[]
[null,null,null,null,null,null,null,"Allocatie Budgetraming (alloceer het budget per subcategorie die van toepassing is)"]
[null,null,null,null,null,null,null,null,null,null,null,null,null,null,null,"Raming (incl. BTW)",null,"%"]
[null,null,{"$f":"IF(R82=1,TRUE,FALSE)","v":false},{"$f":"IF(R82>1,FALSE,TRUE)","v":true},null,null,null,null,"Totaal Alle Categorieën",null,null,null,null,null,null,{"$f":"SUM(P84:Q90)","v":0},null,{"$f":"SUM(R84:R90)","v":0.95}]
[null,null,null,null,null,null,null,null,"Signalisatie"]
[null,null,null,60,null,null,null,null,null,"S1. Verkeersborden",null,null,null,null,null,{"$f":"R84*H$18","v":0},null,{"$f":"D84/100","v":0.6}]
[null,null,null,35,null,null,null,null,null,"S2. (Thermoplastische) wegmarkeringen",null,null,null,null,null,{"$f":"R85*H$18","v":0},null,{"$f":"D85/100","v":0.35}]
[null,null,null,0,null,null,null,null,null,"S3. (Verkeers)lichten",null,null,null,null,null,{"$f":"R86*H$18","v":0},null,{"$f":"D86/100","v":0}]
[null,null,null,null,null,null,null,null,"Infrastructuur"]
[null,null,null,0,null,null,null,null,null,"I1. Heraanleg",null,null,null,null,null,{"$f":"R88*H$18","v":0},null,{"$f":"D88/100","v":0}]
[null,null,null,0,null,null,null,null,null,"I2. Hardware",null,null,null,null,null,{"$f":"R89*H$18","v":0},null,{"$f":"D89/100","v":0}]
[null,null,null,0,null,null,null,null,null,"I3. Hardware en Software (Pakket)",null,null,null,null,null,{"$f":"R90*H$18","v":0},null,{"$f":"D90/100","v":0}]
[]
[null,"4. Timing",null,null,null,null,null,null,null,null,null,null,null,null,null,null,null,null,null,null,{"$f":"COUNTIF(C94:D105,TRUE)/2","v":0},"Naam Bijlage","Pagina n°"]
[]
[null,null,false,null,null,null,null,"De (geplande) werken worden uitgevoerd, rekening houdend met een voltooiingsdatum binnen de 12 maanden na de dag van beslissing van toekenning. De finale stukken zullen ten laatste 3 maanden na voormelde datum ingediend moeten worden.",null,null,null,null,null,null,null,null,null,null,null,null,null,null,null,null,"Art. 2 §3 juncto art. 3 (1)"]
[]
[]
[null,null,null,null,null,null,null,"Voorziene datum aanvang van de werken",null,null,null,null,null,null,null,{"$f":"IF(OR(ISBLANK(L97),ISBLANK(L98)),\"Gelieve beide data in te vullen\",\"\")","v":"Gelieve beide data in te vullen"}]
[null,null,null,null,null,null,null,"Voorziene datum einde van de werken"]
[null,null,null,null,null,null,null,"Duurtijd (kalenderdagen)",null,null,null,{"$f":"IF(OR(ISBLANK(L97),ISBLANK(L98)),\"Gelieve bovenstaande cellen in te vullen\",_xlfn.DAYS(L98,L97))","v":"Gelieve bovenstaande cellen in te vullen"}]
[]
[]
[]
[]
[null,null,false,null,null,null,null,"De planning van de uitvoering van de werken voor de route werd toegevoegd in bijlage met referentie.",null,null,null,null,null,null,null,null,null,null,null,null,null,null,null,null,"Art. 7  Eerste Lid 3° (1)"]
[]
[null,"5. Informatie domeinbeheerder",null,null,null,null,null,null,null,null,null,null,null,null,null,null,null,null,null,null,{"$f":"IF(C113=1,1,COUNTIF(C117:D118,TRUE)/2)","v":0},"Naam Bijlage (optioneel)","Pagina n°","Compleet?"]
[]
[null,null,false]
[]
[null,null,null,false]
[]
[]
[null,null,2,null,null,null,null,"Het volledige domein waarop de werken worden uitgevoerd, is in het beheer van de gemeente.",null,null,null,null,null,null,null,null,null,null,null,null,null,null,null,null,"Art. 7  Eerste Lid 1°-4° (1)"]
[]
[null,null,null,null,null,null,null,"Indien niet, vul aan:"]
[null,null,null,null,null,null,null,null,null,"Type",null,"Identiteit domeinbeheerder"]
[null,null,{"$f":"IF(C113=2,NOT(ISBLANK(L117)),TRUE)","v":false},null,null,null,null,null,null,"Privaat"]
[null,null,{"$f":"IF(C113=2,AND(C119=TRUE,NOT(ISBLANK(I120)),TRUE))","v":false}]
[null,null,false,null,null,null,null,"Het akkoord van deze domeinbeheerder werd als bijlage toegevoegd aan de dossieraanvraag.",null,null,null,null,null,null,null,null,null,null,null,null,null,null,null,null,"Art. 7  Eerste Lid 5° (1)"]
[null,null,null,null,null,null,null,"Bijlage*:"]
[]
[null,null,null,null,null,null,null,"* veplicht op te nemen"]
[null,"6. Optionele bijkomende informatie",null,null,null,null,null,null,null,null,null,null,null,null,null,null,null,null,null,null,null,"Naam Bijlage (optioneel)","Pagina n°"]
[]
[null,null,null,null,null,null,null,"Bijkomende toelichting"]
[null,null,null,null,null,null,null,null,null,null,null,null,null,null,null,null,null,null,null,null,null,null,null,null,"Art. 7  Eerste Lid 1° (1)"]
[]
[]
[null,null,{"$f":"IF(AND(D129=TRUE,ISBLANK(I130)),TRUE,FALSE)","v":false},false,null,null,null,"Optioneel - u kunt een verduidelijkende bijlage toevoegen ter verduidelijking/vervanging van bovenstaand veld."]
[null,null,null,null,null,null,null,"Bijlage*:"]
[]
[null,null,null,null,null,null,null,"* veplicht op te nemen indien van toepassing"]
[]
[]
[]
[null,"Voor de administratie (MOW)",null,null,null,null,null,null,null,null,null,null,null,null,null,null,"Voor de aanvrager (Naam + Functie)"]
[null,null,null,null,null,null,null,null,null,null,null,"Hide Row"]

{"sheet":"Route (12)","index":14,"n_rows":137,"n_cols":25,"rows_kept":137,"cut":false,"hidden":true,"merged":[[120,7,120,20],[124,7,124,20],[124,23,131,23],[128,7,128,16],[129,8,129,10],[130,7,130,20],[119,8,119,10],[98,11,98,14],[100,7,101,16],[107,7,107,20],[109,7,109,20],[110,7,110,20],[111,7,111,20],[112,7,112,15],[115,9,115,10],[115,11,115,14],[116,9,116,10],[116,11,116,14],[79,7,79,20],[97,11,97,14],[81,15,81,16],[82,15,82,16],[83,15,83,16],[84,15,84,16],[85,15,85,16],[87,15,87,16],[88,15,88,16],[89,15,89,16],[93,7,94,16],[96,11,96,14],[96,15,96,17],[65,11,65,14],[80,15,80,16],[66,7,75,8],[66,9,71,10],[66,11,66,14],[67,11,67,14],[68,11,68,14],[69,11,69,14],[70,11,70,14],[71,11,71,14],[72,9,74,10],[72,11,72,14],[73,11,73,14],[74,11,74,14],[75,9,75,10],[75,11,75,14],[54,7,54,20],[56,7,56,8],[56,9,56,10],[56,11,56,14],[57,7,65,8],[57,9,60,10],[57,11,57,14],[58,11,58,14],[59,11,59,14],[60,11,60,14],[61,9,63,10],[61,11,61,14],[62,11,62,14],[63,11,63,14],[64,9,65,10],[64,11,64,14],[51,7,52,17],[17,4,17,6],[17,7,17,16],[19,7,19,17],[23,23,41,23],[24,7,25,17],[27,7,27,17],[29,7,29,20],[33,7,34,20],[36,7,36,20],[37,7,38,20],[40,7,40,20],[44,7,45,17],[46,7,46,20],[47,7,47,20],[48,7,48,20],[11,4,11,16],[13,4,13,6],[13,7,13,16],[13,17,17,17],[14,4,14,6],[14,7,14,16],[15,4,15,6],[15,7,15,16],[16,4,16,6],[16,7,16,16],[7,1,7,20],[7,21,7,22],[1,9,5,21],[2,26,6,31],[5,7,5,8],[6,7,6,8],[6,15,6,16]]}
[]
[null,null,null,null,null,null,null,null,null,{"$f":"\"Individuele Detailfiche - Route \" &H14&_xlfn.UNICHAR(10)& \"('\"&H15&\"')\"","v":"Individuele Detailfiche - Route 12\n('<< Gelieve de naam van Schoolroute 12 in te vullen >>')"}]
[null,null,2]
[]
[]
[]
[]
[null,"Vul in onderstaande tabel de gevraagde gegevens in, vink alle verklaringen aan die op de aanvraag van toepassing zijn. Toepasselijke bijlages geeft u een (betekenisvolle naam) – vb. raming route 123. Vermeld deze naam op de voorziene plaatsen in kolom T.  Indien één en dezelfde bijlage de info van meerdere items bundelt, leid ons dan in “kolom  U\" naar het passende paginanummer. Vergeet niet de bijlages samen met het aangevulde aanvraagformulier over te maken.",null,null,null,null,null,null,null,null,null,null,null,null,null,null,null,null,null,null,null,"Bijlagen",null,"Validatie \nMOW","Wettelijke \nverwijzing"]
[]
[null,null,null,null,null,null,null,null,null,null,null,null,null,null,null,null,null,null,null,null,"Voortgang sectie"]
[null,"0. Kostenoverzicht",null,null,null,null,null,null,null,null,null,null,null,null,null,null,null,null,null,null,{"$f":"COUNTIF(C14:D21,TRUE)/2","v":0},"Naam Bijlage","Pagina n°","Evaluatie"]
[null,null,null,null,"Details per route (Automatisch aangevuld op basis van overzicht)"]
[null,null,null,null,null,null,null,null,null,null,null,null,null,null,null,null,null,"link"]
[null,null,{"$f":"IF(1-COUNTBLANK(Aanvraagformulier!G28)-COUNTBLANK(Aanvraagformulier!N28)=1,TRUE,FALSE)","v":false},null,"Route n°",null,null,12,null,null,null,null,null,null,null,null,null,{"$f":"HYPERLINK(\"#'Aanvraagformulier'!G28\",\"Klik hier\")","v":"Klik hier"}]
[null,null,null,null,"Naam route",null,null,{"$f":"VLOOKUP(H$14,Aanvraagformulier!$F$25:$N$53,2,FALSE)","v":"<< Gelieve de naam van Schoolroute 12 in te vullen >>"}]
[]
[null,null,null,null,"Raming kosten\n (excl. BTW)",null,null,{"$f":"VLOOKUP(H$14,Aanvraagformulier!$F$25:$N$53,8,FALSE)","v":0}]
[null,null,null,null,"Raming kosten\n (incl. BTW)",null,null,{"$f":"VLOOKUP(H$14,Aanvraagformulier!$F$25:$N$53,9,FALSE)","v":0}]
[]
[null,null,false,null,null,null,null,"De raming van de kosten werd toegevoegd aan het dossier en opgenomen in de bijlage met referentie.",null,null,null,null,null,null,null,null,null,null,null,null,null,null,null,null,"Art. 7  Eerste Lid 2° (1)"]
[]
[]
[null,"1. Locatie",null,null,null,null,null,null,null,null,null,null,null,null,null,null,null,null,null,null,{"$f":"COUNTIF(C25:D41,TRUE)/6","v":0},"Naam Bijlage","Pagina n°"]
[]
[null,null,false,null,null,null,null,"De route is vermeld op het plan op schaal waarop duidelijk aangegeven is welke scholen deel uitmaken van het project en waar de geplande maatregelen voor de schoolroute of schoolroutes zullen worden uitgevoerd, dat werd toegevoegd aan het dossier.",null,null,null,null,null,null,null,null,null,null,null,null,null,null,null,null,"Art. 1 4°-5°- art. 2 §1 1° (1) "]
[]
[]
[null,null,false,null,null,null,null,"De werken worden uitgevoerd op een geldige schoolroute, die:",null,null,null,null,null,null,null,null,null,null,null,null,null,null,null,null,"Art. 2 §1 1° (1) "]
[]
[null,null,null,false,null,null,null,"i)  Eindigt waar een schoolomgeving van een school begint.",null,null,null,null,null,null,null,null,null,null,null,null,null,null,null,null,"Art. 1 5°(1) "]
[]
[null,null,null,null,null,null,null,null,null,null,"EN"]
[]
[null,null,null,false,null,null,null,"ii) Buiten een straal van 100 meter rond de schooltoegang of voorbij het eerste kruispunt aan weerzijden indien dat verder ligt dan 100 meter."]
[]
[null,null,null,null,null,null,null,null,null,null,"EN"]
[null,null,null,false]
[null,null,null,null,null,null,null,"iii) Verschillende scholieren te voet of met de fiets of bromfiets op het woon-schooltraject gebruiken tijdens de uren die voorafgaan aan de opening van de school."]
[null,null,null,null,null,null,null,null,null,null,null,null,null,null,null,null,null,null,null,null,null,null,null,null,"Art. 1 5°(1) "]
[null,null,null,null,null,null,null,null,null,null,"EN"]
[null,null,null,false,null,null,null,"iv) ligt uitsluitend op een of meer gemeentewegen"]
[]
[null,"2. Omschrijving, doel en aard der werken",null,null,null,null,null,null,null,null,null,null,null,null,null,null,null,null,null,null,{"$f":"(COUNTIF(C45:D45,TRUE)+COUNTIF(C52:D52,TRUE)+COUNTIF(C58:C82,TRUE))/5","v":0},"Naam Bijlage","Pagina n°"]
[]
[null,null,false,{"$f":"IF(OR(D47,D49),TRUE,FALSE)","v":false},null,null,null,"Uitgaven zijn erop gericht de verkeersveiligheid van schoolkinderen te verbeteren. Selecteer (enkel) de relevante uitgave(n):",null,null,null,null,null,null,null,null,null,null,null,null,null,null,null,null,"Art. 2. §1 2° (1)"]
[]
[null,null,null,false,null,null,null,"i) Uitgaven voor verkeerssignalisatie (overal).",null,null,null,null,null,null,null,null,null,null,null,null,null,null,null,null,"Art. 3 (1)"]
[null,null,null,null,null,null,null,"EN/OF",null,null,null,null,null,null,null,null,null,null,null,null,null,null,null,null,"Art. 3 (1)"]
[null,null,null,false,null,null,null,"ii) Uitgaven voor infrastructurele maatregelen die de verkeersveiligheid op de schoolroutes verhogen (excl. voor fietspaden op het BFF)."]
[]
[]
[null,null,false,null,null,null,null,"De motivering voor de keuze van de geselecteerde schoolroute of schoolroutes, bevat de verwijzing naar deze schoolroute."]
[]
[]
[null,null,null,null,null,null,null,"Type Werkzaamheden (selecteer alle werkzaamheden die van toepassing zijn)"]
[]
[null,null,null,null,null,null,null,"Hoofcategorie maatregelen ",null,"Subcategorie \nmaatregelen",null,"Gedetailleerde informatie",null,null,null,"Van toepasssing"]
[null,null,{"$f":"IF(COUNTIF(D58:D76,TRUE)>0,TRUE,FALSE)","v":false},false,null,null,null,"Signalisatie ",null,"S1. Verkeersborden",null,"Afbakening fietsstraat"]
[null,null,null,false,null,null,null,null,null,null,null,"(Dynamische) zone 30  "]
[null,null,null,false,null,null,null,null,null,null,null,"Detecterende Snelheidsinformatieborden (vb. Smileyborden, \"graag traag\")"]
[null,null,null,false,null,null,null,null,null,null,null,"Verkeersborden algemeen"]
[null,null,null,false,null,null,null,null,null,"S2. (Thermoplastische) wegmarkeringen",null,"Fietssuggestiestroken"]
[null,null,null,false,null,null,null,null,null,null,null,"Oversteekplaatsen"]
[null,null,null,false,null,null,null,null,null,null,null,"Markeringen algemeen"]
[null,null,null,false,null,null,null,null,null,"S3. (Verkeers)lichten",null,"Hardware verkeerslichten"]
[null,null,null,false,null,null,null,null,null,null,null,"Verlichting algemeen"]
[null,null,null,false,null,null,null,"Infrastructureel",null,"I1. (Her)aanleg",null,"Straatmeubilair"]
[null,null,null,false,null,null,null,null,null,null,null,"Vrijliggend fietspad"]
[null,null,null,false,null,null,null,null,null,null,null,"Aanliggende fietspad"]
[null,null,null,false,null,null,null,null,null,null,null,"Voetpad"]
[null,null,null,false,null,null,null,null,null,null,null,"Wegdek"]
[null,null,null,false,null,null,null,null,null,null,null,"Groen i.f.v. verkeersveiligheid"]
[null,null,null,false,null,null,null,null,null,"I2. Hardware",null,"Hardware handhaving (vb. ANPR Camera's)"]
[null,null,null,false,null,null,null,null,null,null,null,"Hardware beloningssysteem (eenmalig)"]
[null,null,null,false,null,null,null,null,null,null,null,"Hardware beloningssysteem (huurcontract 3j)"]
[null,null,null,false,null,null,null,null,null,"I3 Hardware en Software (Pakket)",null,"Trajectcontrole (systeem waarbij de gemiddelde snelheid over een langere afstand wordt gemeten)"]
[]
[]
[]
[null,null,null,null,null,null,null,"Allocatie Budgetraming (alloceer het budget per subcategorie die van toepassing is)"]
[null,null,null,null,null,null,null,null,null,null,null,null,null,null,null,"Raming (incl. BTW)",null,"%"]
[null,null,{"$f":"IF(R82=1,TRUE,FALSE)","v":false},{"$f":"IF(R82>1,FALSE,TRUE)","v":true},null,null,null,null,"Totaal Alle Categorieën",null,null,null,null,null,null,{"$f":"SUM(P84:Q90)","v":0},null,{"$f":"SUM(R84:R90)","v":0.95}]
[null,null,null,null,null,null,null,null,"Signalisatie"]
[null,null,null,60,null,null,null,null,null,"S1. Verkeersborden",null,null,null,null,null,{"$f":"R84*H$18","v":0},null,{"$f":"D84/100","v":0.6}]
[null,null,null,35,null,null,null,null,null,"S2. (Thermoplastische) wegmarkeringen",null,null,null,null,null,{"$f":"R85*H$18","v":0},null,{"$f":"D85/100","v":0.35}]
[null,null,null,0,null,null,null,null,null,"S3. (Verkeers)lichten",null,null,null,null,null,{"$f":"R86*H$18","v":0},null,{"$f":"D86/100","v":0}]
[null,null,null,null,null,null,null,null,"Infrastructuur"]
[null,null,null,0,null,null,null,null,null,"I1. Heraanleg",null,null,null,null,null,{"$f":"R88*H$18","v":0},null,{"$f":"D88/100","v":0}]
[null,null,null,0,null,null,null,null,null,"I2. Hardware",null,null,null,null,null,{"$f":"R89*H$18","v":0},null,{"$f":"D89/100","v":0}]
[null,null,null,0,null,null,null,null,null,"I3. Hardware en Software (Pakket)",null,null,null,null,null,{"$f":"R90*H$18","v":0},null,{"$f":"D90/100","v":0}]
[]
[null,"4. Timing",null,null,null,null,null,null,null,null,null,null,null,null,null,null,null,null,null,null,{"$f":"COUNTIF(C94:D105,TRUE)/2","v":0},"Naam Bijlage","Pagina n°"]
[]
[null,null,false,null,null,null,null,"De (geplande) werken worden uitgevoerd, rekening houdend met een voltooiingsdatum binnen de 12 maanden na de dag van beslissing van toekenning. De finale stukken zullen ten laatste 3 maanden na voormelde datum ingediend moeten worden.",null,null,null,null,null,null,null,null,null,null,null,null,null,null,null,null,"Art. 2 §3 juncto art. 3 (1)"]
[]
[]
[null,null,null,null,null,null,null,"Voorziene datum aanvang van de werken",null,null,null,null,null,null,null,{"$f":"IF(OR(ISBLANK(L97),ISBLANK(L98)),\"Gelieve beide data in te vullen\",\"\")","v":"Gelieve beide data in te vullen"}]
[null,null,null,null,null,null,null,"Voorziene datum einde van de werken"]
[null,null,null,null,null,null,null,"Duurtijd (kalenderdagen)",null,null,null,{"$f":"IF(OR(ISBLANK(L97),ISBLANK(L98)),\"Gelieve bovenstaande cellen in te vullen\",_xlfn.DAYS(L98,L97))","v":"Gelieve bovenstaande cellen in te vullen"}]
[]
[]
[]
[]
[null,null,false,null,null,null,null,"De planning van de uitvoering van de werken voor de route werd toegevoegd in bijlage met referentie.",null,null,null,null,null,null,null,null,null,null,null,null,null,null,null,null,"Art. 7  Eerste Lid 3° (1)"]
[]
[null,"5. Informatie domeinbeheerder",null,null,null,null,null,null,null,null,null,null,null,null,null,null,null,null,null,null,{"$f":"IF(C113=1,1,COUNTIF(C117:D118,TRUE)/2)","v":0},"Naam Bijlage (optioneel)","Pagina n°","Compleet?"]
[]
[null,null,false]
[]
[null,null,null,false]
[]
[]
[null,null,2,null,null,null,null,"Het volledige domein waarop de werken worden uitgevoerd, is in het beheer van de gemeente.",null,null,null,null,null,null,null,null,null,null,null,null,null,null,null,null,"Art. 7  Eerste Lid 1°-4° (1)"]
[]
[null,null,null,null,null,null,null,"Indien niet, vul aan:"]
[null,null,null,null,null,null,null,null,null,"Type",null,"Identiteit domeinbeheerder"]
[null,null,{"$f":"IF(C113=2,NOT(ISBLANK(L117)),TRUE)","v":false},null,null,null,null,null,null,"Privaat"]
[null,null,{"$f":"IF(C113=2,AND(C119=TRUE,NOT(ISBLANK(I120)),TRUE))","v":false}]
[null,null,false,null,null,null,null,"Het akkoord van deze domeinbeheerder werd als bijlage toegevoegd aan de dossieraanvraag.",null,null,null,null,null,null,null,null,null,null,null,null,null,null,null,null,"Art. 7  Eerste Lid 5° (1)"]
[null,null,null,null,null,null,null,"Bijlage*:"]
[]
[null,null,null,null,null,null,null,"* veplicht op te nemen"]
[null,"6. Optionele bijkomende informatie",null,null,null,null,null,null,null,null,null,null,null,null,null,null,null,null,null,null,null,"Naam Bijlage (optioneel)","Pagina n°"]
[]
[null,null,null,null,null,null,null,"Bijkomende toelichting"]
[null,null,null,null,null,null,null,null,null,null,null,null,null,null,null,null,null,null,null,null,null,null,null,null,"Art. 7  Eerste Lid 1° (1)"]
[]
[]
[null,null,{"$f":"IF(AND(D129=TRUE,ISBLANK(I130)),TRUE,FALSE)","v":false},false,null,null,null,"Optioneel - u kunt een verduidelijkende bijlage toevoegen ter verduidelijking/vervanging van bovenstaand veld."]
[null,null,null,null,null,null,null,"Bijlage*:"]
[]
[null,null,null,null,null,null,null,"* veplicht op te nemen indien van toepassing"]
[]
[]
[]
[null,"Voor de administratie (MOW)",null,null,null,null,null,null,null,null,null,null,null,null,null,null,"Voor de aanvrager (Naam + Functie)"]
[null,null,null,null,null,null,null,null,null,null,null,"Hide Row"]

{"sheet":"Route (13)","index":15,"n_rows":137,"n_cols":25,"rows_kept":137,"cut":false,"hidden":true,"merged":[[120,7,120,20],[124,7,124,20],[124,23,131,23],[128,7,128,16],[129,8,129,10],[130,7,130,20],[119,8,119,10],[98,11,98,14],[100,7,101,16],[107,7,107,20],[109,7,109,20],[110,7,110,20],[111,7,111,20],[112,7,112,15],[115,9,115,10],[115,11,115,14],[116,9,116,10],[116,11,116,14],[79,7,79,20],[97,11,97,14],[81,15,81,16],[82,15,82,16],[83,15,83,16],[84,15,84,16],[85,15,85,16],[87,15,87,16],[88,15,88,16],[89,15,89,16],[93,7,94,16],[96,11,96,14],[96,15,96,17],[65,11,65,14],[80,15,80,16],[66,7,75,8],[66,9,71,10],[66,11,66,14],[67,11,67,14],[68,11,68,14],[69,11,69,14],[70,11,70,14],[71,11,71,14],[72,9,74,10],[72,11,72,14],[73,11,73,14],[74,11,74,14],[75,9,75,10],[75,11,75,14],[54,7,54,20],[56,7,56,8],[56,9,56,10],[56,11,56,14],[57,7,65,8],[57,9,60,10],[57,11,57,14],[58,11,58,14],[59,11,59,14],[60,11,60,14],[61,9,63,10],[61,11,61,14],[62,11,62,14],[63,11,63,14],[64,9,65,10],[64,11,64,14],[51,7,52,17],[17,4,17,6],[17,7,17,16],[19,7,19,17],[23,23,41,23],[24,7,25,17],[27,7,27,17],[29,7,29,20],[33,7,34,20],[36,7,36,20],[37,7,38,20],[40,7,40,20],[44,7,45,17],[46,7,46,20],[47,7,47,20],[48,7,48,20],[11,4,11,16],[13,4,13,6],[13,7,13,16],[13,17,17,17],[14,4,14,6],[14,7,14,16],[15,4,15,6],[15,7,15,16],[16,4,16,6],[16,7,16,16],[7,1,7,20],[7,21,7,22],[1,9,5,21],[2,26,6,31],[5,7,5,8],[6,7,6,8],[6,15,6,16]]}
[]
[null,null,null,null,null,null,null,null,null,{"$f":"\"Individuele Detailfiche - Route \" &H14&_xlfn.UNICHAR(10)& \"('\"&H15&\"')\"","v":"Individuele Detailfiche - Route 13\n('<< Gelieve de naam van Schoolroute 13 in te vullen >>')"}]
[null,null,2]
[]
[]
[]
[]
[null,"Vul in onderstaande tabel de gevraagde gegevens in, vink alle verklaringen aan die op de aanvraag van toepassing zijn. Toepasselijke bijlages geeft u een (betekenisvolle naam) – vb. raming route 123. Vermeld deze naam op de voorziene plaatsen in kolom T.  Indien één en dezelfde bijlage de info van meerdere items bundelt, leid ons dan in “kolom  U\" naar het passende paginanummer. Vergeet niet de bijlages samen met het aangevulde aanvraagformulier over te maken.",null,null,null,null,null,null,null,null,null,null,null,null,null,null,null,null,null,null,null,"Bijlagen",null,"Validatie \nMOW","Wettelijke \nverwijzing"]
[]
[null,null,null,null,null,null,null,null,null,null,null,null,null,null,null,null,null,null,null,null,"Voortgang sectie"]
[null,"0. Kostenoverzicht",null,null,null,null,null,null,null,null,null,null,null,null,null,null,null,null,null,null,{"$f":"COUNTIF(C14:D21,TRUE)/2","v":0},"Naam Bijlage","Pagina n°","Evaluatie"]
[null,null,null,null,"Details per route (Automatisch aangevuld op basis van overzicht)"]
[null,null,null,null,null,null,null,null,null,null,null,null,null,null,null,null,null,"link"]
[null,null,{"$f":"IF(1-COUNTBLANK(Aanvraagformulier!G28)-COUNTBLANK(Aanvraagformulier!N28)=1,TRUE,FALSE)","v":false},null,"Route n°",null,null,13,null,null,null,null,null,null,null,null,null,{"$f":"HYPERLINK(\"#'Aanvraagformulier'!G28\",\"Klik hier\")","v":"Klik hier"}]
[null,null,null,null,"Naam route",null,null,{"$f":"VLOOKUP(H$14,Aanvraagformulier!$F$25:$N$53,2,FALSE)","v":"<< Gelieve de naam van Schoolroute 13 in te vullen >>"}]
[]
[null,null,null,null,"Raming kosten\n (excl. BTW)",null,null,{"$f":"VLOOKUP(H$14,Aanvraagformulier!$F$25:$N$53,8,FALSE)","v":0}]
[null,null,null,null,"Raming kosten\n (incl. BTW)",null,null,{"$f":"VLOOKUP(H$14,Aanvraagformulier!$F$25:$N$53,9,FALSE)","v":0}]
[]
[null,null,false,null,null,null,null,"De raming van de kosten werd toegevoegd aan het dossier en opgenomen in de bijlage met referentie.",null,null,null,null,null,null,null,null,null,null,null,null,null,null,null,null,"Art. 7  Eerste Lid 2° (1)"]
[]
[]
[null,"1. Locatie",null,null,null,null,null,null,null,null,null,null,null,null,null,null,null,null,null,null,{"$f":"COUNTIF(C25:D41,TRUE)/6","v":0},"Naam Bijlage","Pagina n°"]
[]
[null,null,false,null,null,null,null,"De route is vermeld op het plan op schaal waarop duidelijk aangegeven is welke scholen deel uitmaken van het project en waar de geplande maatregelen voor de schoolroute of schoolroutes zullen worden uitgevoerd, dat werd toegevoegd aan het dossier.",null,null,null,null,null,null,null,null,null,null,null,null,null,null,null,null,"Art. 1 4°-5°- art. 2 §1 1° (1) "]
[]
[]
[null,null,false,null,null,null,null,"De werken worden uitgevoerd op een geldige schoolroute, die:",null,null,null,null,null,null,null,null,null,null,null,null,null,null,null,null,"Art. 2 §1 1° (1) "]
[]
[null,null,null,false,null,null,null,"i)  Eindigt waar een schoolomgeving van een school begint.",null,null,null,null,null,null,null,null,null,null,null,null,null,null,null,null,"Art. 1 5°(1) "]
[]
[null,null,null,null,null,null,null,null,null,null,"EN"]
[]
[null,null,null,false,null,null,null,"ii) Buiten een straal van 100 meter rond de schooltoegang of voorbij het eerste kruispunt aan weerzijden indien dat verder ligt dan 100 meter."]
[]
[null,null,null,null,null,null,null,null,null,null,"EN"]
[null,null,null,false]
[null,null,null,null,null,null,null,"iii) Verschillende scholieren te voet of met de fiets of bromfiets op het woon-schooltraject gebruiken tijdens de uren die voorafgaan aan de opening van de school."]
[null,null,null,null,null,null,null,null,null,null,null,null,null,null,null,null,null,null,null,null,null,null,null,null,"Art. 1 5°(1) "]
[null,null,null,null,null,null,null,null,null,null,"EN"]
[null,null,null,false,null,null,null,"iv) ligt uitsluitend op een of meer gemeentewegen"]
[]
[null,"2. Omschrijving, doel en aard der werken",null,null,null,null,null,null,null,null,null,null,null,null,null,null,null,null,null,null,{"$f":"(COUNTIF(C45:D45,TRUE)+COUNTIF(C52:D52,TRUE)+COUNTIF(C58:C82,TRUE))/5","v":0},"Naam Bijlage","Pagina n°"]
[]
[null,null,false,{"$f":"IF(OR(D47,D49),TRUE,FALSE)","v":false},null,null,null,"Uitgaven zijn erop gericht de verkeersveiligheid van schoolkinderen te verbeteren. Selecteer (enkel) de relevante uitgave(n):",null,null,null,null,null,null,null,null,null,null,null,null,null,null,null,null,"Art. 2. §1 2° (1)"]
[]
[null,null,null,false,null,null,null,"i) Uitgaven voor verkeerssignalisatie (overal).",null,null,null,null,null,null,null,null,null,null,null,null,null,null,null,null,"Art. 3 (1)"]
[null,null,null,null,null,null,null,"EN/OF",null,null,null,null,null,null,null,null,null,null,null,null,null,null,null,null,"Art. 3 (1)"]
[null,null,null,false,null,null,null,"ii) Uitgaven voor infrastructurele maatregelen die de verkeersveiligheid op de schoolroutes verhogen (excl. voor fietspaden op het BFF)."]
[]
[]
[null,null,false,null,null,null,null,"De motivering voor de keuze van de geselecteerde schoolroute of schoolroutes, bevat de verwijzing naar deze schoolroute."]
[]
[]
[null,null,null,null,null,null,null,"Type Werkzaamheden (selecteer alle werkzaamheden die van toepassing zijn)"]
[]
[null,null,null,null,null,null,null,"Hoofcategorie maatregelen ",null,"Subcategorie \nmaatregelen",null,"Gedetailleerde informatie",null,null,null,"Van toepasssing"]
[null,null,{"$f":"IF(COUNTIF(D58:D76,TRUE)>0,TRUE,FALSE)","v":false},false,null,null,null,"Signalisatie ",null,"S1. Verkeersborden",null,"Afbakening fietsstraat"]
[null,null,null,false,null,null,null,null,null,null,null,"(Dynamische) zone 30  "]
[null,null,null,false,null,null,null,null,null,null,null,"Detecterende Snelheidsinformatieborden (vb. Smileyborden, \"graag traag\")"]
[null,null,null,false,null,null,null,null,null,null,null,"Verkeersborden algemeen"]
[null,null,null,false,null,null,null,null,null,"S2. (Thermoplastische) wegmarkeringen",null,"Fietssuggestiestroken"]
[null,null,null,false,null,null,null,null,null,null,null,"Oversteekplaatsen"]
[null,null,null,false,null,null,null,null,null,null,null,"Markeringen algemeen"]
[null,null,null,false,null,null,null,null,null,"S3. (Verkeers)lichten",null,"Hardware verkeerslichten"]
[null,null,null,false,null,null,null,null,null,null,null,"Verlichting algemeen"]
[null,null,null,false,null,null,null,"Infrastructureel",null,"I1. (Her)aanleg",null,"Straatmeubilair"]
[null,null,null,false,null,null,null,null,null,null,null,"Vrijliggend fietspad"]
[null,null,null,false,null,null,null,null,null,null,null,"Aanliggende fietspad"]
[null,null,null,false,null,null,null,null,null,null,null,"Voetpad"]
[null,null,null,false,null,null,null,null,null,null,null,"Wegdek"]
[null,null,null,false,null,null,null,null,null,null,null,"Groen i.f.v. verkeersveiligheid"]
[null,null,null,false,null,null,null,null,null,"I2. Hardware",null,"Hardware handhaving (vb. ANPR Camera's)"]
[null,null,null,false,null,null,null,null,null,null,null,"Hardware beloningssysteem (eenmalig)"]
[null,null,null,false,null,null,null,null,null,null,null,"Hardware beloningssysteem (huurcontract 3j)"]
[null,null,null,false,null,null,null,null,null,"I3 Hardware en Software (Pakket)",null,"Trajectcontrole (systeem waarbij de gemiddelde snelheid over een langere afstand wordt gemeten)"]
[]
[]
[]
[null,null,null,null,null,null,null,"Allocatie Budgetraming (alloceer het budget per subcategorie die van toepassing is)"]
[null,null,null,null,null,null,null,null,null,null,null,null,null,null,null,"Raming (incl. BTW)",null,"%"]
[null,null,{"$f":"IF(R82=1,TRUE,FALSE)","v":false},{"$f":"IF(R82>1,FALSE,TRUE)","v":true},null,null,null,null,"Totaal Alle Categorieën",null,null,null,null,null,null,{"$f":"SUM(P84:Q90)","v":0},null,{"$f":"SUM(R84:R90)","v":0.95}]
[null,null,null,null,null,null,null,null,"Signalisatie"]
[null,null,null,60,null,null,null,null,null,"S1. Verkeersborden",null,null,null,null,null,{"$f":"R84*H$18","v":0},null,{"$f":"D84/100","v":0.6}]
[null,null,null,35,null,null,null,null,null,"S2. (Thermoplastische) wegmarkeringen",null,null,null,null,null,{"$f":"R85*H$18","v":0},null,{"$f":"D85/100","v":0.35}]
[null,null,null,0,null,null,null,null,null,"S3. (Verkeers)lichten",null,null,null,null,null,{"$f":"R86*H$18","v":0},null,{"$f":"D86/100","v":0}]
[null,null,null,null,null,null,null,null,"Infrastructuur"]
[null,null,null,0,null,null,null,null,null,"I1. Heraanleg",null,null,null,null,null,{"$f":"R88*H$18","v":0},null,{"$f":"D88/100","v":0}]
[null,null,null,0,null,null,null,null,null,"I2. Hardware",null,null,null,null,null,{"$f":"R89*H$18","v":0},null,{"$f":"D89/100","v":0}]
[null,null,null,0,null,null,null,null,null,"I3. Hardware en Software (Pakket)",null,null,null,null,null,{"$f":"R90*H$18","v":0},null,{"$f":"D90/100","v":0}]
[]
[null,"4. Timing",null,null,null,null,null,null,null,null,null,null,null,null,null,null,null,null,null,null,{"$f":"COUNTIF(C94:D105,TRUE)/2","v":0},"Naam Bijlage","Pagina n°"]
[]
[null,null,false,null,null,null,null,"De (geplande) werken worden uitgevoerd, rekening houdend met een voltooiingsdatum binnen de 12 maanden na de dag van beslissing van toekenning. De finale stukken zullen ten laatste 3 maanden na voormelde datum ingediend moeten worden.",null,null,null,null,null,null,null,null,null,null,null,null,null,null,null,null,"Art. 2 §3 juncto art. 3 (1)"]
[]
[]
[null,null,null,null,null,null,null,"Voorziene datum aanvang van de werken",null,null,null,null,null,null,null,{"$f":"IF(OR(ISBLANK(L97),ISBLANK(L98)),\"Gelieve beide data in te vullen\",\"\")","v":"Gelieve beide data in te vullen"}]
[null,null,null,null,null,null,null,"Voorziene datum einde van de werken"]
[null,null,null,null,null,null,null,"Duurtijd (kalenderdagen)",null,null,null,{"$f":"IF(OR(ISBLANK(L97),ISBLANK(L98)),\"Gelieve bovenstaande cellen in te vullen\",_xlfn.DAYS(L98,L97))","v":"Gelieve bovenstaande cellen in te vullen"}]
[]
[]
[]
[]
[null,null,false,null,null,null,null,"De planning van de uitvoering van de werken voor de route werd toegevoegd in bijlage met referentie.",null,null,null,null,null,null,null,null,null,null,null,null,null,null,null,null,"Art. 7  Eerste Lid 3° (1)"]
[]
[null,"5. Informatie domeinbeheerder",null,null,null,null,null,null,null,null,null,null,null,null,null,null,null,null,null,null,{"$f":"IF(C113=1,1,COUNTIF(C117:D118,TRUE)/2)","v":0},"Naam Bijlage (optioneel)","Pagina n°","Compleet?"]
[]
[null,null,false]
[]
[null,null,null,false]
[]
[]
[null,null,2,null,null,null,null,"Het volledige domein waarop de werken worden uitgevoerd, is in het beheer van de gemeente.",null,null,null,null,null,null,null,null,null,null,null,null,null,null,null,null,"Art. 7  Eerste Lid 1°-4° (1)"]
[]
[null,null,null,null,null,null,null,"Indien niet, vul aan:"]
[null,null,null,null,null,null,null,null,null,"Type",null,"Identiteit domeinbeheerder"]
[null,null,{"$f":"IF(C113=2,NOT(ISBLANK(L117)),TRUE)","v":false},null,null,null,null,null,null,"Privaat"]
[null,null,{"$f":"IF(C113=2,AND(C119=TRUE,NOT(ISBLANK(I120)),TRUE))","v":false}]
[null,null,false,null,null,null,null,"Het akkoord van deze domeinbeheerder werd als bijlage toegevoegd aan de dossieraanvraag.",null,null,null,null,null,null,null,null,null,null,null,null,null,null,null,null,"Art. 7  Eerste Lid 5° (1)"]
[null,null,null,null,null,null,null,"Bijlage*:"]
[]
[null,null,null,null,null,null,null,"* veplicht op te nemen"]
[null,"6. Optionele bijkomende informatie",null,null,null,null,null,null,null,null,null,null,null,null,null,null,null,null,null,null,null,"Naam Bijlage (optioneel)","Pagina n°"]
[]
[null,null,null,null,null,null,null,"Bijkomende toelichting"]
[null,null,null,null,null,null,null,null,null,null,null,null,null,null,null,null,null,null,null,null,null,null,null,null,"Art. 7  Eerste Lid 1° (1)"]
[]
[]
[null,null,{"$f":"IF(AND(D129=TRUE,ISBLANK(I130)),TRUE,FALSE)","v":false},false,null,null,null,"Optioneel - u kunt een verduidelijkende bijlage toevoegen ter verduidelijking/vervanging van bovenstaand veld."]
[null,null,null,null,null,null,null,"Bijlage*:"]
[]
[null,null,null,null,null,null,null,"* veplicht op te nemen indien van toepassing"]
[]
[]
[]
[null,"Voor de administratie (MOW)",null,null,null,null,null,null,null,null,null,null,null,null,null,null,"Voor de aanvrager (Naam + Functie)"]
[null,null,null,null,null,null,null,null,null,null,null,"Hide Row"]

{"sheet":"Route (14)","index":16,"n_rows":137,"n_cols":25,"rows_kept":137,"cut":false,"hidden":true,"merged":[[120,7,120,20],[124,7,124,20],[124,23,131,23],[128,7,128,16],[129,8,129,10],[130,7,130,20],[119,8,119,10],[98,11,98,14],[100,7,101,16],[107,7,107,20],[109,7,109,20],[110,7,110,20],[111,7,111,20],[112,7,112,15],[115,9,115,10],[115,11,115,14],[116,9,116,10],[116,11,116,14],[79,7,79,20],[97,11,97,14],[81,15,81,16],[82,15,82,16],[83,15,83,16],[84,15,84,16],[85,15,85,16],[87,15,87,16],[88,15,88,16],[89,15,89,16],[93,7,94,16],[96,11,96,14],[96,15,96,17],[65,11,65,14],[80,15,80,16],[66,7,75,8],[66,9,71,10],[66,11,66,14],[67,11,67,14],[68,11,68,14],[69,11,69,14],[70,11,70,14],[71,11,71,14],[72,9,74,10],[72,11,72,14],[73,11,73,14],[74,11,74,14],[75,9,75,10],[75,11,75,14],[54,7,54,20],[56,7,56,8],[56,9,56,10],[56,11,56,14],[57,7,65,8],[57,9,60,10],[57,11,57,14],[58,11,58,14],[59,11,59,14],[60,11,60,14],[61,9,63,10],[61,11,61,14],[62,11,62,14],[63,11,63,14],[64,9,65,10],[64,11,64,14],[51,7,52,17],[17,4,17,6],[17,7,17,16],[19,7,19,17],[23,23,41,23],[24,7,25,17],[27,7,27,17],[29,7,29,20],[33,7,34,20],[36,7,36,20],[37,7,38,20],[40,7,40,20],[44,7,45,17],[46,7,46,20],[47,7,47,20],[48,7,48,20],[11,4,11,16],[13,4,13,6],[13,7,13,16],[13,17,17,17],[14,4,14,6],[14,7,14,16],[15,4,15,6],[15,7,15,16],[16,4,16,6],[16,7,16,16],[7,1,7,20],[7,21,7,22],[1,9,5,21],[2,26,6,31],[5,7,5,8],[6,7,6,8],[6,15,6,16]]}
[]
[null,null,null,null,null,null,null,null,null,{"$f":"\"Individuele Detailfiche - Route \" &H14&_xlfn.UNICHAR(10)& \"('\"&H15&\"')\"","v":"Individuele Detailfiche - Route 14\n('<< Gelieve de naam van Schoolroute 14 in te vullen >>')"}]
[null,null,2]
[]
[]
[]
[]
[null,"Vul in onderstaande tabel de gevraagde gegevens in, vink alle verklaringen aan die op de aanvraag van toepassing zijn. Toepasselijke bijlages geeft u een (betekenisvolle naam) – vb. raming route 123. Vermeld deze naam op de voorziene plaatsen in kolom T.  Indien één en dezelfde bijlage de info van meerdere items bundelt, leid ons dan in “kolom  U\" naar het passende paginanummer. Vergeet niet de bijlages samen met het aangevulde aanvraagformulier over te maken.",null,null,null,null,null,null,null,null,null,null,null,null,null,null,null,null,null,null,null,"Bijlagen",null,"Validatie \nMOW","Wettelijke \nverwijzing"]
[]
[null,null,null,null,null,null,null,null,null,null,null,null,null,null,null,null,null,null,null,null,"Voortgang sectie"]
[null,"0. Kostenoverzicht",null,null,null,null,null,null,null,null,null,null,null,null,null,null,null,null,null,null,{"$f":"COUNTIF(C14:D21,TRUE)/2","v":0},"Naam Bijlage","Pagina n°","Evaluatie"]
[null,null,null,null,"Details per route (Automatisch aangevuld op basis van overzicht)"]
[null,null,null,null,null,null,null,null,null,null,null,null,null,null,null,null,null,"link"]
[null,null,{"$f":"IF(1-COUNTBLANK(Aanvraagformulier!G28)-COUNTBLANK(Aanvraagformulier!N28)=1,TRUE,FALSE)","v":false},null,"Route n°",null,null,14,null,null,null,null,null,null,null,null,null,{"$f":"HYPERLINK(\"#'Aanvraagformulier'!G28\",\"Klik hier\")","v":"Klik hier"}]
[null,null,null,null,"Naam route",null,null,{"$f":"VLOOKUP(H$14,Aanvraagformulier!$F$25:$N$53,2,FALSE)","v":"<< Gelieve de naam van Schoolroute 14 in te vullen >>"}]
[]
[null,null,null,null,"Raming kosten\n (excl. BTW)",null,null,{"$f":"VLOOKUP(H$14,Aanvraagformulier!$F$25:$N$53,8,FALSE)","v":0}]
[null,null,null,null,"Raming kosten\n (incl. BTW)",null,null,{"$f":"VLOOKUP(H$14,Aanvraagformulier!$F$25:$N$53,9,FALSE)","v":0}]
[]
[null,null,false,null,null,null,null,"De raming van de kosten werd toegevoegd aan het dossier en opgenomen in de bijlage met referentie.",null,null,null,null,null,null,null,null,null,null,null,null,null,null,null,null,"Art. 7  Eerste Lid 2° (1)"]
[]
[]
[null,"1. Locatie",null,null,null,null,null,null,null,null,null,null,null,null,null,null,null,null,null,null,{"$f":"COUNTIF(C25:D41,TRUE)/6","v":0},"Naam Bijlage","Pagina n°"]
[]
[null,null,false,null,null,null,null,"De route is vermeld op het plan op schaal waarop duidelijk aangegeven is welke scholen deel uitmaken van het project en waar de geplande maatregelen voor de schoolroute of schoolroutes zullen worden uitgevoerd, dat werd toegevoegd aan het dossier.",null,null,null,null,null,null,null,null,null,null,null,null,null,null,null,null,"Art. 1 4°-5°- art. 2 §1 1° (1) "]
[]
[]
[null,null,false,null,null,null,null,"De werken worden uitgevoerd op een geldige schoolroute, die:",null,null,null,null,null,null,null,null,null,null,null,null,null,null,null,null,"Art. 2 §1 1° (1) "]
[]
[null,null,null,false,null,null,null,"i)  Eindigt waar een schoolomgeving van een school begint.",null,null,null,null,null,null,null,null,null,null,null,null,null,null,null,null,"Art. 1 5°(1) "]
[]
[null,null,null,null,null,null,null,null,null,null,"EN"]
[]
[null,null,null,false,null,null,null,"ii) Buiten een straal van 100 meter rond de schooltoegang of voorbij het eerste kruispunt aan weerzijden indien dat verder ligt dan 100 meter."]
[]
[null,null,null,null,null,null,null,null,null,null,"EN"]
[null,null,null,false]
[null,null,null,null,null,null,null,"iii) Verschillende scholieren te voet of met de fiets of bromfiets op het woon-schooltraject gebruiken tijdens de uren die voorafgaan aan de opening van de school."]
[null,null,null,null,null,null,null,null,null,null,null,null,null,null,null,null,null,null,null,null,null,null,null,null,"Art. 1 5°(1) "]
[null,null,null,null,null,null,null,null,null,null,"EN"]
[null,null,null,false,null,null,null,"iv) ligt uitsluitend op een of meer gemeentewegen"]
[]
[null,"2. Omschrijving, doel en aard der werken",null,null,null,null,null,null,null,null,null,null,null,null,null,null,null,null,null,null,{"$f":"(COUNTIF(C45:D45,TRUE)+COUNTIF(C52:D52,TRUE)+COUNTIF(C58:C82,TRUE))/5","v":0},"Naam Bijlage","Pagina n°"]
[]
[null,null,false,{"$f":"IF(OR(D47,D49),TRUE,FALSE)","v":false},null,null,null,"Uitgaven zijn erop gericht de verkeersveiligheid van schoolkinderen te verbeteren. Selecteer (enkel) de relevante uitgave(n):",null,null,null,null,null,null,null,null,null,null,null,null,null,null,null,null,"Art. 2. §1 2° (1)"]
[]
[null,null,null,false,null,null,null,"i) Uitgaven voor verkeerssignalisatie (overal).",null,null,null,null,null,null,null,null,null,null,null,null,null,null,null,null,"Art. 3 (1)"]
[null,null,null,null,null,null,null,"EN/OF",null,null,null,null,null,null,null,null,null,null,null,null,null,null,null,null,"Art. 3 (1)"]
[null,null,null,false,null,null,null,"ii) Uitgaven voor infrastructurele maatregelen die de verkeersveiligheid op de schoolroutes verhogen (excl. voor fietspaden op het BFF)."]
[]
[]
[null,null,false,null,null,null,null,"De motivering voor de keuze van de geselecteerde schoolroute of schoolroutes, bevat de verwijzing naar deze schoolroute."]
[]
[]
[null,null,null,null,null,null,null,"Type Werkzaamheden (selecteer alle werkzaamheden die van toepassing zijn)"]
[]
[null,null,null,null,null,null,null,"Hoofcategorie maatregelen ",null,"Subcategorie \nmaatregelen",null,"Gedetailleerde informatie",null,null,null,"Van toepasssing"]
[null,null,{"$f":"IF(COUNTIF(D58:D76,TRUE)>0,TRUE,FALSE)","v":false},false,null,null,null,"Signalisatie ",null,"S1. Verkeersborden",null,"Afbakening fietsstraat"]
[null,null,null,false,null,null,null,null,null,null,null,"(Dynamische) zone 30  "]
[null,null,null,false,null,null,null,null,null,null,null,"Detecterende Snelheidsinformatieborden (vb. Smileyborden, \"graag traag\")"]
[null,null,null,false,null,null,null,null,null,null,null,"Verkeersborden algemeen"]
[null,null,null,false,null,null,null,null,null,"S2. (Thermoplastische) wegmarkeringen",null,"Fietssuggestiestroken"]
[null,null,null,false,null,null,null,null,null,null,null,"Oversteekplaatsen"]
[null,null,null,false,null,null,null,null,null,null,null,"Markeringen algemeen"]
[null,null,null,false,null,null,null,null,null,"S3. (Verkeers)lichten",null,"Hardware verkeerslichten"]
[null,null,null,false,null,null,null,null,null,null,null,"Verlichting algemeen"]
[null,null,null,false,null,null,null,"Infrastructureel",null,"I1. (Her)aanleg",null,"Straatmeubilair"]
[null,null,null,false,null,null,null,null,null,null,null,"Vrijliggend fietspad"]
[null,null,null,false,null,null,null,null,null,null,null,"Aanliggende fietspad"]
[null,null,null,false,null,null,null,null,null,null,null,"Voetpad"]
[null,null,null,false,null,null,null,null,null,null,null,"Wegdek"]
[null,null,null,false,null,null,null,null,null,null,null,"Groen i.f.v. verkeersveiligheid"]
[null,null,null,false,null,null,null,null,null,"I2. Hardware",null,"Hardware handhaving (vb. ANPR Camera's)"]
[null,null,null,false,null,null,null,null,null,null,null,"Hardware beloningssysteem (eenmalig)"]
[null,null,null,false,null,null,null,null,null,null,null,"Hardware beloningssysteem (huurcontract 3j)"]
[null,null,null,false,null,null,null,null,null,"I3 Hardware en Software (Pakket)",null,"Trajectcontrole (systeem waarbij de gemiddelde snelheid over een langere afstand wordt gemeten)"]
[]
[]
[]
[null,null,null,null,null,null,null,"Allocatie Budgetraming (alloceer het budget per subcategorie die van toepassing is)"]
[null,null,null,null,null,null,null,null,null,null,null,null,null,null,null,"Raming (incl. BTW)",null,"%"]
[null,null,{"$f":"IF(R82=1,TRUE,FALSE)","v":false},{"$f":"IF(R82>1,FALSE,TRUE)","v":true},null,null,null,null,"Totaal Alle Categorieën",null,null,null,null,null,null,{"$f":"SUM(P84:Q90)","v":0},null,{"$f":"SUM(R84:R90)","v":0.95}]
[null,null,null,null,null,null,null,null,"Signalisatie"]
[null,null,null,60,null,null,null,null,null,"S1. Verkeersborden",null,null,null,null,null,{"$f":"R84*H$18","v":0},null,{"$f":"D84/100","v":0.6}]
[null,null,null,35,null,null,null,null,null,"S2. (Thermoplastische) wegmarkeringen",null,null,null,null,null,{"$f":"R85*H$18","v":0},null,{"$f":"D85/100","v":0.35}]
[null,null,null,0,null,null,null,null,null,"S3. (Verkeers)lichten",null,null,null,null,null,{"$f":"R86*H$18","v":0},null,{"$f":"D86/100","v":0}]
[null,null,null,null,null,null,null,null,"Infrastructuur"]
[null,null,null,0,null,null,null,null,null,"I1. Heraanleg",null,null,null,null,null,{"$f":"R88*H$18","v":0},null,{"$f":"D88/100","v":0}]
[null,null,null,0,null,null,null,null,null,"I2. Hardware",null,null,null,null,null,{"$f":"R89*H$18","v":0},null,{"$f":"D89/100","v":0}]
[null,null,null,0,null,null,null,null,null,"I3. Hardware en Software (Pakket)",null,null,null,null,null,{"$f":"R90*H$18","v":0},null,{"$f":"D90/100","v":0}]
[]
[null,"4. Timing",null,null,null,null,null,null,null,null,null,null,null,null,null,null,null,null,null,null,{"$f":"COUNTIF(C94:D105,TRUE)/2","v":0},"Naam Bijlage","Pagina n°"]
[]
[null,null,false,null,null,null,null,"De (geplande) werken worden uitgevoerd, rekening houdend met een voltooiingsdatum binnen de 12 maanden na de dag van beslissing van toekenning. De finale stukken zullen ten laatste 3 maanden na voormelde datum ingediend moeten worden.",null,null,null,null,null,null,null,null,null,null,null,null,null,null,null,null,"Art. 2 §3 juncto art. 3 (1)"]
[]
[]
[null,null,null,null,null,null,null,"Voorziene datum aanvang van de werken",null,null,null,null,null,null,null,{"$f":"IF(OR(ISBLANK(L97),ISBLANK(L98)),\"Gelieve beide data in te vullen\",\"\")","v":"Gelieve beide data in te vullen"}]
[null,null,null,null,null,null,null,"Voorziene datum einde van de werken"]
[null,null,null,null,null,null,null,"Duurtijd (kalenderdagen)",null,null,null,{"$f":"IF(OR(ISBLANK(L97),ISBLANK(L98)),\"Gelieve bovenstaande cellen in te vullen\",_xlfn.DAYS(L98,L97))","v":"Gelieve bovenstaande cellen in te vullen"}]
[]
[]
[]
[]
[null,null,false,null,null,null,null,"De planning van de uitvoering van de werken voor de route werd toegevoegd in bijlage met referentie.",null,null,null,null,null,null,null,null,null,null,null,null,null,null,null,null,"Art. 7  Eerste Lid 3° (1)"]
[]
[null,"5. Informatie domeinbeheerder",null,null,null,null,null,null,null,null,null,null,null,null,null,null,null,null,null,null,{"$f":"IF(C113=1,1,COUNTIF(C117:D118,TRUE)/2)","v":0},"Naam Bijlage (optioneel)","Pagina n°","Compleet?"]
[]
[null,null,false]
[]
[null,null,null,false]
[]
[]
[null,null,2,null,null,null,null,"Het volledige domein waarop de werken worden uitgevoerd, is in het beheer van de gemeente.",null,null,null,null,null,null,null,null,null,null,null,null,null,null,null,null,"Art. 7  Eerste Lid 1°-4° (1)"]
[]
[null,null,null,null,null,null,null,"Indien niet, vul aan:"]
[null,null,null,null,null,null,null,null,null,"Type",null,"Identiteit domeinbeheerder"]
[null,null,{"$f":"IF(C113=2,NOT(ISBLANK(L117)),TRUE)","v":false},null,null,null,null,null,null,"Privaat"]
[null,null,{"$f":"IF(C113=2,AND(C119=TRUE,NOT(ISBLANK(I120)),TRUE))","v":false}]
[null,null,false,null,null,null,null,"Het akkoord van deze domeinbeheerder werd als bijlage toegevoegd aan de dossieraanvraag.",null,null,null,null,null,null,null,null,null,null,null,null,null,null,null,null,"Art. 7  Eerste Lid 5° (1)"]
[null,null,null,null,null,null,null,"Bijlage*:"]
[]
[null,null,null,null,null,null,null,"* veplicht op te nemen"]
[null,"6. Optionele bijkomende informatie",null,null,null,null,null,null,null,null,null,null,null,null,null,null,null,null,null,null,null,"Naam Bijlage (optioneel)","Pagina n°"]
[]
[null,null,null,null,null,null,null,"Bijkomende toelichting"]
[null,null,null,null,null,null,null,null,null,null,null,null,null,null,null,null,null,null,null,null,null,null,null,null,"Art. 7  Eerste Lid 1° (1)"]
[]
[]
[null,null,{"$f":"IF(AND(D129=TRUE,ISBLANK(I130)),TRUE,FALSE)","v":false},false,null,null,null,"Optioneel - u kunt een verduidelijkende bijlage toevoegen ter verduidelijking/vervanging van bovenstaand veld."]
[null,null,null,null,null,null,null,"Bijlage*:"]
[]
[null,null,null,null,null,null,null,"* veplicht op te nemen indien van toepassing"]
[]
[]
[]
[null,"Voor de administratie (MOW)",null,null,null,null,null,null,null,null,null,null,null,null,null,null,"Voor de aanvrager (Naam + Functie)"]
[null,null,null,null,null,null,null,null,null,null,null,"Hide Row"]

{"sheet":"Route (15)","index":17,"n_rows":137,"n_cols":25,"rows_kept":137,"cut":false,"hidden":true,"merged":[[120,7,120,20],[124,7,124,20],[124,23,131,23],[128,7,128,16],[129,8,129,10],[130,7,130,20],[119,8,119,10],[98,11,98,14],[100,7,101,16],[107,7,107,20],[109,7,109,20],[110,7,110,20],[111,7,111,20],[112,7,112,15],[115,9,115,10],[115,11,115,14],[116,9,116,10],[116,11,116,14],[79,7,79,20],[97,11,97,14],[81,15,81,16],[82,15,82,16],[83,15,83,16],[84,15,84,16],[85,15,85,16],[87,15,87,16],[88,15,88,16],[89,15,89,16],[93,7,94,16],[96,11,96,14],[96,15,96,17],[65,11,65,14],[80,15,80,16],[66,7,75,8],[66,9,71,10],[66,11,66,14],[67,11,67,14],[68,11,68,14],[69,11,69,14],[70,11,70,14],[71,11,71,14],[72,9,74,10],[72,11,72,14],[73,11,73,14],[74,11,74,14],[75,9,75,10],[75,11,75,14],[54,7,54,20],[56,7,56,8],[56,9,56,10],[56,11,56,14],[57,7,65,8],[57,9,60,10],[57,11,57,14],[58,11,58,14],[59,11,59,14],[60,11,60,14],[61,9,63,10],[61,11,61,14],[62,11,62,14],[63,11,63,14],[64,9,65,10],[64,11,64,14],[51,7,52,17],[17,4,17,6],[17,7,17,16],[19,7,19,17],[23,23,41,23],[24,7,25,17],[27,7,27,17],[29,7,29,20],[33,7,34,20],[36,7,36,20],[37,7,38,20],[40,7,40,20],[44,7,45,17],[46,7,46,20],[47,7,47,20],[48,7,48,20],[11,4,11,16],[13,4,13,6],[13,7,13,16],[13,17,17,17],[14,4,14,6],[14,7,14,16],[15,4,15,6],[15,7,15,16],[16,4,16,6],[16,7,16,16],[7,1,7,20],[7,21,7,22],[1,9,5,21],[2,26,6,31],[5,7,5,8],[6,7,6,8],[6,15,6,16]]}
[]
[null,null,null,null,null,null,null,null,null,{"$f":"\"Individuele Detailfiche - Route \" &H14&_xlfn.UNICHAR(10)& \"('\"&H15&\"')\"","v":"Individuele Detailfiche - Route 15\n('<< Gelieve de naam van Schoolroute 15 in te vullen >>')"}]
[null,null,2]
[]
[]
[]
[]
[null,"Vul in onderstaande tabel de gevraagde gegevens in, vink alle verklaringen aan die op de aanvraag van toepassing zijn. Toepasselijke bijlages geeft u een (betekenisvolle naam) – vb. raming route 123. Vermeld deze naam op de voorziene plaatsen in kolom T.  Indien één en dezelfde bijlage de info van meerdere items bundelt, leid ons dan in “kolom  U\" naar het passende paginanummer. Vergeet niet de bijlages samen met het aangevulde aanvraagformulier over te maken.",null,null,null,null,null,null,null,null,null,null,null,null,null,null,null,null,null,null,null,"Bijlagen",null,"Validatie \nMOW","Wettelijke \nverwijzing"]
[]
[null,null,null,null,null,null,null,null,null,null,null,null,null,null,null,null,null,null,null,null,"Voortgang sectie"]
[null,"0. Kostenoverzicht",null,null,null,null,null,null,null,null,null,null,null,null,null,null,null,null,null,null,{"$f":"COUNTIF(C14:D21,TRUE)/2","v":0},"Naam Bijlage","Pagina n°","Evaluatie"]
[null,null,null,null,"Details per route (Automatisch aangevuld op basis van overzicht)"]
[null,null,null,null,null,null,null,null,null,null,null,null,null,null,null,null,null,"link"]
[null,null,{"$f":"IF(1-COUNTBLANK(Aanvraagformulier!G28)-COUNTBLANK(Aanvraagformulier!N28)=1,TRUE,FALSE)","v":false},null,"Route n°",null,null,15,null,null,null,null,null,null,null,null,null,{"$f":"HYPERLINK(\"#'Aanvraagformulier'!G28\",\"Klik hier\")","v":"Klik hier"}]
[null,null,null,null,"Naam route",null,null,{"$f":"VLOOKUP(H$14,Aanvraagformulier!$F$25:$N$53,2,FALSE)","v":"<< Gelieve de naam van Schoolroute 15 in te vullen >>"}]
[]
[null,null,null,null,"Raming kosten\n (excl. BTW)",null,null,{"$f":"VLOOKUP(H$14,Aanvraagformulier!$F$25:$N$53,8,FALSE)","v":0}]
[null,null,null,null,"Raming kosten\n (incl. BTW)",null,null,{"$f":"VLOOKUP(H$14,Aanvraagformulier!$F$25:$N$53,9,FALSE)","v":0}]
[]
[null,null,false,null,null,null,null,"De raming van de kosten werd toegevoegd aan het dossier en opgenomen in de bijlage met referentie.",null,null,null,null,null,null,null,null,null,null,null,null,null,null,null,null,"Art. 7  Eerste Lid 2° (1)"]
[]
[]
[null,"1. Locatie",null,null,null,null,null,null,null,null,null,null,null,null,null,null,null,null,null,null,{"$f":"COUNTIF(C25:D41,TRUE)/6","v":0},"Naam Bijlage","Pagina n°"]
[]
[null,null,false,null,null,null,null,"De route is vermeld op het plan op schaal waarop duidelijk aangegeven is welke scholen deel uitmaken van het project en waar de geplande maatregelen voor de schoolroute of schoolroutes zullen worden uitgevoerd, dat werd toegevoegd aan het dossier.",null,null,null,null,null,null,null,null,null,null,null,null,null,null,null,null,"Art. 1 4°-5°- art. 2 §1 1° (1) "]
[]
[]
[null,null,false,null,null,null,null,"De werken worden uitgevoerd op een geldige schoolroute, die:",null,null,null,null,null,null,null,null,null,null,null,null,null,null,null,null,"Art. 2 §1 1° (1) "]
[]
[null,null,null,false,null,null,null,"i)  Eindigt waar een schoolomgeving van een school begint.",null,null,null,null,null,null,null,null,null,null,null,null,null,null,null,null,"Art. 1 5°(1) "]
[]
[null,null,null,null,null,null,null,null,null,null,"EN"]
[]
[null,null,null,false,null,null,null,"ii) Buiten een straal van 100 meter rond de schooltoegang of voorbij het eerste kruispunt aan weerzijden indien dat verder ligt dan 100 meter."]
[]
[null,null,null,null,null,null,null,null,null,null,"EN"]
[null,null,null,false]
[null,null,null,null,null,null,null,"iii) Verschillende scholieren te voet of met de fiets of bromfiets op het woon-schooltraject gebruiken tijdens de uren die voorafgaan aan de opening van de school."]
[null,null,null,null,null,null,null,null,null,null,null,null,null,null,null,null,null,null,null,null,null,null,null,null,"Art. 1 5°(1) "]
[null,null,null,null,null,null,null,null,null,null,"EN"]
[null,null,null,false,null,null,null,"iv) ligt uitsluitend op een of meer gemeentewegen"]
[]
[null,"2. Omschrijving, doel en aard der werken",null,null,null,null,null,null,null,null,null,null,null,null,null,null,null,null,null,null,{"$f":"(COUNTIF(C45:D45,TRUE)+COUNTIF(C52:D52,TRUE)+COUNTIF(C58:C82,TRUE))/5","v":0},"Naam Bijlage","Pagina n°"]
[]
[null,null,false,{"$f":"IF(OR(D47,D49),TRUE,FALSE)","v":false},null,null,null,"Uitgaven zijn erop gericht de verkeersveiligheid van schoolkinderen te verbeteren. Selecteer (enkel) de relevante uitgave(n):",null,null,null,null,null,null,null,null,null,null,null,null,null,null,null,null,"Art. 2. §1 2° (1)"]
[]
[null,null,null,false,null,null,null,"i) Uitgaven voor verkeerssignalisatie (overal).",null,null,null,null,null,null,null,null,null,null,null,null,null,null,null,null,"Art. 3 (1)"]
[null,null,null,null,null,null,null,"EN/OF",null,null,null,null,null,null,null,null,null,null,null,null,null,null,null,null,"Art. 3 (1)"]
[null,null,null,false,null,null,null,"ii) Uitgaven voor infrastructurele maatregelen die de verkeersveiligheid op de schoolroutes verhogen (excl. voor fietspaden op het BFF)."]
[]
[]
[null,null,false,null,null,null,null,"De motivering voor de keuze van de geselecteerde schoolroute of schoolroutes, bevat de verwijzing naar deze schoolroute."]
[]
[]
[null,null,null,null,null,null,null,"Type Werkzaamheden (selecteer alle werkzaamheden die van toepassing zijn)"]
[]
[null,null,null,null,null,null,null,"Hoofcategorie maatregelen ",null,"Subcategorie \nmaatregelen",null,"Gedetailleerde informatie",null,null,null,"Van toepasssing"]
[null,null,{"$f":"IF(COUNTIF(D58:D76,TRUE)>0,TRUE,FALSE)","v":false},false,null,null,null,"Signalisatie ",null,"S1. Verkeersborden",null,"Afbakening fietsstraat"]
[null,null,null,false,null,null,null,null,null,null,null,"(Dynamische) zone 30  "]
[null,null,null,false,null,null,null,null,null,null,null,"Detecterende Snelheidsinformatieborden (vb. Smileyborden, \"graag traag\")"]
[null,null,null,false,null,null,null,null,null,null,null,"Verkeersborden algemeen"]
[null,null,null,false,null,null,null,null,null,"S2. (Thermoplastische) wegmarkeringen",null,"Fietssuggestiestroken"]
[null,null,null,false,null,null,null,null,null,null,null,"Oversteekplaatsen"]
[null,null,null,false,null,null,null,null,null,null,null,"Markeringen algemeen"]
[null,null,null,false,null,null,null,null,null,"S3. (Verkeers)lichten",null,"Hardware verkeerslichten"]
[null,null,null,false,null,null,null,null,null,null,null,"Verlichting algemeen"]
[null,null,null,false,null,null,null,"Infrastructureel",null,"I1. (Her)aanleg",null,"Straatmeubilair"]
[null,null,null,false,null,null,null,null,null,null,null,"Vrijliggend fietspad"]
[null,null,null,false,null,null,null,null,null,null,null,"Aanliggende fietspad"]
[null,null,null,false,null,null,null,null,null,null,null,"Voetpad"]
[null,null,null,false,null,null,null,null,null,null,null,"Wegdek"]
[null,null,null,false,null,null,null,null,null,null,null,"Groen i.f.v. verkeersveiligheid"]
[null,null,null,false,null,null,null,null,null,"I2. Hardware",null,"Hardware handhaving (vb. ANPR Camera's)"]
[null,null,null,false,null,null,null,null,null,null,null,"Hardware beloningssysteem (eenmalig)"]
[null,null,null,false,null,null,null,null,null,null,null,"Hardware beloningssysteem (huurcontract 3j)"]
[null,null,null,false,null,null,null,null,null,"I3 Hardware en Software (Pakket)",null,"Trajectcontrole (systeem waarbij de gemiddelde snelheid over een langere afstand wordt gemeten)"]
[]
[]
[]
[null,null,null,null,null,null,null,"Allocatie Budgetraming (alloceer het budget per subcategorie die van toepassing is)"]
[null,null,null,null,null,null,null,null,null,null,null,null,null,null,null,"Raming (incl. BTW)",null,"%"]
[null,null,{"$f":"IF(R82=1,TRUE,FALSE)","v":false},{"$f":"IF(R82>1,FALSE,TRUE)","v":true},null,null,null,null,"Totaal Alle Categorieën",null,null,null,null,null,null,{"$f":"SUM(P84:Q90)","v":0},null,{"$f":"SUM(R84:R90)","v":0.95}]
[null,null,null,null,null,null,null,null,"Signalisatie"]
[null,null,null,60,null,null,null,null,null,"S1. Verkeersborden",null,null,null,null,null,{"$f":"R84*H$18","v":0},null,{"$f":"D84/100","v":0.6}]
[null,null,null,35,null,null,null,null,null,"S2. (Thermoplastische) wegmarkeringen",null,null,null,null,null,{"$f":"R85*H$18","v":0},null,{"$f":"D85/100","v":0.35}]
[null,null,null,0,null,null,null,null,null,"S3. (Verkeers)lichten",null,null,null,null,null,{"$f":"R86*H$18","v":0},null,{"$f":"D86/100","v":0}]
[null,null,null,null,null,null,null,null,"Infrastructuur"]
[null,null,null,0,null,null,null,null,null,"I1. Heraanleg",null,null,null,null,null,{"$f":"R88*H$18","v":0},null,{"$f":"D88/100","v":0}]
[null,null,null,0,null,null,null,null,null,"I2. Hardware",null,null,null,null,null,{"$f":"R89*H$18","v":0},null,{"$f":"D89/100","v":0}]
[null,null,null,0,null,null,null,null,null,"I3. Hardware en Software (Pakket)",null,null,null,null,null,{"$f":"R90*H$18","v":0},null,{"$f":"D90/100","v":0}]
[]
[null,"4. Timing",null,null,null,null,null,null,null,null,null,null,null,null,null,null,null,null,null,null,{"$f":"COUNTIF(C94:D105,TRUE)/2","v":0},"Naam Bijlage","Pagina n°"]
[]
[null,null,false,null,null,null,null,"De (geplande) werken worden uitgevoerd, rekening houdend met een voltooiingsdatum binnen de 12 maanden na de dag van beslissing van toekenning. De finale stukken zullen ten laatste 3 maanden na voormelde datum ingediend moeten worden.",null,null,null,null,null,null,null,null,null,null,null,null,null,null,null,null,"Art. 2 §3 juncto art. 3 (1)"]
[]
[]
[null,null,null,null,null,null,null,"Voorziene datum aanvang van de werken",null,null,null,null,null,null,null,{"$f":"IF(OR(ISBLANK(L97),ISBLANK(L98)),\"Gelieve beide data in te vullen\",\"\")","v":"Gelieve beide data in te vullen"}]
[null,null,null,null,null,null,null,"Voorziene datum einde van de werken"]
[null,null,null,null,null,null,null,"Duurtijd (kalenderdagen)",null,null,null,{"$f":"IF(OR(ISBLANK(L97),ISBLANK(L98)),\"Gelieve bovenstaande cellen in te vullen\",_xlfn.DAYS(L98,L97))","v":"Gelieve bovenstaande cellen in te vullen"}]
[]
[]
[]
[]
[null,null,false,null,null,null,null,"De planning van de uitvoering van de werken voor de route werd toegevoegd in bijlage met referentie.",null,null,null,null,null,null,null,null,null,null,null,null,null,null,null,null,"Art. 7  Eerste Lid 3° (1)"]
[]
[null,"5. Informatie domeinbeheerder",null,null,null,null,null,null,null,null,null,null,null,null,null,null,null,null,null,null,{"$f":"IF(C113=1,1,COUNTIF(C117:D118,TRUE)/2)","v":0},"Naam Bijlage (optioneel)","Pagina n°","Compleet?"]
[]
[null,null,false]
[]
[null,null,null,false]
[]
[]
[null,null,2,null,null,null,null,"Het volledige domein waarop de werken worden uitgevoerd, is in het beheer van de gemeente.",null,null,null,null,null,null,null,null,null,null,null,null,null,null,null,null,"Art. 7  Eerste Lid 1°-4° (1)"]
[]
[null,null,null,null,null,null,null,"Indien niet, vul aan:"]
[null,null,null,null,null,null,null,null,null,"Type",null,"Identiteit domeinbeheerder"]
[null,null,{"$f":"IF(C113=2,NOT(ISBLANK(L117)),TRUE)","v":false},null,null,null,null,null,null,"Privaat"]
[null,null,{"$f":"IF(C113=2,AND(C119=TRUE,NOT(ISBLANK(I120)),TRUE))","v":false}]
[null,null,false,null,null,null,null,"Het akkoord van deze domeinbeheerder werd als bijlage toegevoegd aan de dossieraanvraag.",null,null,null,null,null,null,null,null,null,null,null,null,null,null,null,null,"Art. 7  Eerste Lid 5° (1)"]
[null,null,null,null,null,null,null,"Bijlage*:"]
[]
[null,null,null,null,null,null,null,"* veplicht op te nemen"]
[null,"6. Optionele bijkomende informatie",null,null,null,null,null,null,null,null,null,null,null,null,null,null,null,null,null,null,null,"Naam Bijlage (optioneel)","Pagina n°"]
[]
[null,null,null,null,null,null,null,"Bijkomende toelichting"]
[null,null,null,null,null,null,null,null,null,null,null,null,null,null,null,null,null,null,null,null,null,null,null,null,"Art. 7  Eerste Lid 1° (1)"]
[]
[]
[null,null,{"$f":"IF(AND(D129=TRUE,ISBLANK(I130)),TRUE,FALSE)","v":false},false,null,null,null,"Optioneel - u kunt een verduidelijkende bijlage toevoegen ter verduidelijking/vervanging van bovenstaand veld."]
[null,null,null,null,null,null,null,"Bijlage*:"]
[]
[null,null,null,null,null,null,null,"* veplicht op te nemen indien van toepassing"]
[]
[]
[]
[null,"Voor de administratie (MOW)",null,null,null,null,null,null,null,null,null,null,null,null,null,null,"Voor de aanvrager (Naam + Functie)"]
[null,null,null,null,null,null,null,null,null,null,null,"Hide Row"]

{"sheet":"Route (16)","index":18,"n_rows":137,"n_cols":25,"rows_kept":137,"cut":false,"hidden":true,"merged":[[120,7,120,20],[124,7,124,20],[124,23,131,23],[128,7,128,16],[129,8,129,10],[130,7,130,20],[119,8,119,10],[98,11,98,14],[100,7,101,16],[107,7,107,20],[109,7,109,20],[110,7,110,20],[111,7,111,20],[112,7,112,15],[115,9,115,10],[115,11,115,14],[116,9,116,10],[116,11,116,14],[79,7,79,20],[97,11,97,14],[81,15,81,16],[82,15,82,16],[83,15,83,16],[84,15,84,16],[85,15,85,16],[87,15,87,16],[88,15,88,16],[89,15,89,16],[93,7,94,16],[96,11,96,14],[96,15,96,17],[65,11,65,14],[80,15,80,16],[66,7,75,8],[66,9,71,10],[66,11,66,14],[67,11,67,14],[68,11,68,14],[69,11,69,14],[70,11,70,14],[71,11,71,14],[72,9,74,10],[72,11,72,14],[73,11,73,14],[74,11,74,14],[75,9,75,10],[75,11,75,14],[54,7,54,20],[56,7,56,8],[56,9,56,10],[56,11,56,14],[57,7,65,8],[57,9,60,10],[57,11,57,14],[58,11,58,14],[59,11,59,14],[60,11,60,14],[61,9,63,10],[61,11,61,14],[62,11,62,14],[63,11,63,14],[64,9,65,10],[64,11,64,14],[51,7,52,17],[17,4,17,6],[17,7,17,16],[19,7,19,17],[23,23,41,23],[24,7,25,17],[27,7,27,17],[29,7,29,20],[33,7,34,20],[36,7,36,20],[37,7,38,20],[40,7,40,20],[44,7,45,17],[46,7,46,20],[47,7,47,20],[48,7,48,20],[11,4,11,16],[13,4,13,6],[13,7,13,16],[13,17,17,17],[14,4,14,6],[14,7,14,16],[15,4,15,6],[15,7,15,16],[16,4,16,6],[16,7,16,16],[7,1,7,20],[7,21,7,22],[1,9,5,21],[2,26,6,31],[5,7,5,8],[6,7,6,8],[6,15,6,16]]}
[]
[null,null,null,null,null,null,null,null,null,{"$f":"\"Individuele Detailfiche - Route \" &H14&_xlfn.UNICHAR(10)& \"('\"&H15&\"')\"","v":"Individuele Detailfiche - Route 16\n('<< Gelieve de naam van Schoolroute 16 in te vullen >>')"}]
[null,null,2]
[]
[]
[]
[]
[null,"Vul in onderstaande tabel de gevraagde gegevens in, vink alle verklaringen aan die op de aanvraag van toepassing zijn. Toepasselijke bijlages geeft u een (betekenisvolle naam) – vb. raming route 123. Vermeld deze naam op de voorziene plaatsen in kolom T.  Indien één en dezelfde bijlage de info van meerdere items bundelt, leid ons dan in “kolom  U\" naar het passende paginanummer. Vergeet niet de bijlages samen met het aangevulde aanvraagformulier over te maken.",null,null,null,null,null,null,null,null,null,null,null,null,null,null,null,null,null,null,null,"Bijlagen",null,"Validatie \nMOW","Wettelijke \nverwijzing"]
[]
[null,null,null,null,null,null,null,null,null,null,null,null,null,null,null,null,null,null,null,null,"Voortgang sectie"]
[null,"0. Kostenoverzicht",null,null,null,null,null,null,null,null,null,null,null,null,null,null,null,null,null,null,{"$f":"COUNTIF(C14:D21,TRUE)/2","v":0},"Naam Bijlage","Pagina n°","Evaluatie"]
[null,null,null,null,"Details per route (Automatisch aangevuld op basis van overzicht)"]
[null,null,null,null,null,null,null,null,null,null,null,null,null,null,null,null,null,"link"]
[null,null,{"$f":"IF(1-COUNTBLANK(Aanvraagformulier!G28)-COUNTBLANK(Aanvraagformulier!N28)=1,TRUE,FALSE)","v":false},null,"Route n°",null,null,16,null,null,null,null,null,null,null,null,null,{"$f":"HYPERLINK(\"#'Aanvraagformulier'!G28\",\"Klik hier\")","v":"Klik hier"}]
[null,null,null,null,"Naam route",null,null,{"$f":"VLOOKUP(H$14,Aanvraagformulier!$F$25:$N$53,2,FALSE)","v":"<< Gelieve de naam van Schoolroute 16 in te vullen >>"}]
[]
[null,null,null,null,"Raming kosten\n (excl. BTW)",null,null,{"$f":"VLOOKUP(H$14,Aanvraagformulier!$F$25:$N$53,8,FALSE)","v":0}]
[null,null,null,null,"Raming kosten\n (incl. BTW)",null,null,{"$f":"VLOOKUP(H$14,Aanvraagformulier!$F$25:$N$53,9,FALSE)","v":0}]
[]
[null,null,false,null,null,null,null,"De raming van de kosten werd toegevoegd aan het dossier en opgenomen in de bijlage met referentie.",null,null,null,null,null,null,null,null,null,null,null,null,null,null,null,null,"Art. 7  Eerste Lid 2° (1)"]
[]
[]
[null,"1. Locatie",null,null,null,null,null,null,null,null,null,null,null,null,null,null,null,null,null,null,{"$f":"COUNTIF(C25:D41,TRUE)/6","v":0},"Naam Bijlage","Pagina n°"]
[]
[null,null,false,null,null,null,null,"De route is vermeld op het plan op schaal waarop duidelijk aangegeven is welke scholen deel uitmaken van het project en waar de geplande maatregelen voor de schoolroute of schoolroutes zullen worden uitgevoerd, dat werd toegevoegd aan het dossier.",null,null,null,null,null,null,null,null,null,null,null,null,null,null,null,null,"Art. 1 4°-5°- art. 2 §1 1° (1) "]
[]
[]
[null,null,false,null,null,null,null,"De werken worden uitgevoerd op een geldige schoolroute, die:",null,null,null,null,null,null,null,null,null,null,null,null,null,null,null,null,"Art. 2 §1 1° (1) "]
[]
[null,null,null,false,null,null,null,"i)  Eindigt waar een schoolomgeving van een school begint.",null,null,null,null,null,null,null,null,null,null,null,null,null,null,null,null,"Art. 1 5°(1) "]
[]
[null,null,null,null,null,null,null,null,null,null,"EN"]
[]
[null,null,null,false,null,null,null,"ii) Buiten een straal van 100 meter rond de schooltoegang of voorbij het eerste kruispunt aan weerzijden indien dat verder ligt dan 100 meter."]
[]
[null,null,null,null,null,null,null,null,null,null,"EN"]
[null,null,null,false]
[null,null,null,null,null,null,null,"iii) Verschillende scholieren te voet of met de fiets of bromfiets op het woon-schooltraject gebruiken tijdens de uren die voorafgaan aan de opening van de school."]
[null,null,null,null,null,null,null,null,null,null,null,null,null,null,null,null,null,null,null,null,null,null,null,null,"Art. 1 5°(1) "]
[null,null,null,null,null,null,null,null,null,null,"EN"]
[null,null,null,false,null,null,null,"iv) ligt uitsluitend op een of meer gemeentewegen"]
[]
[null,"2. Omschrijving, doel en aard der werken",null,null,null,null,null,null,null,null,null,null,null,null,null,null,null,null,null,null,{"$f":"(COUNTIF(C45:D45,TRUE)+COUNTIF(C52:D52,TRUE)+COUNTIF(C58:C82,TRUE))/5","v":0},"Naam Bijlage","Pagina n°"]
[]
[null,null,false,{"$f":"IF(OR(D47,D49),TRUE,FALSE)","v":false},null,null,null,"Uitgaven zijn erop gericht de verkeersveiligheid van schoolkinderen te verbeteren. Selecteer (enkel) de relevante uitgave(n):",null,null,null,null,null,null,null,null,null,null,null,null,null,null,null,null,"Art. 2. §1 2° (1)"]
[]
[null,null,null,false,null,null,null,"i) Uitgaven voor verkeerssignalisatie (overal).",null,null,null,null,null,null,null,null,null,null,null,null,null,null,null,null,"Art. 3 (1)"]
[null,null,null,null,null,null,null,"EN/OF",null,null,null,null,null,null,null,null,null,null,null,null,null,null,null,null,"Art. 3 (1)"]
[null,null,null,false,null,null,null,"ii) Uitgaven voor infrastructurele maatregelen die de verkeersveiligheid op de schoolroutes verhogen (excl. voor fietspaden op het BFF)."]
[]
[]
[null,null,false,null,null,null,null,"De motivering voor de keuze van de geselecteerde schoolroute of schoolroutes, bevat de verwijzing naar deze schoolroute."]
[]
[]
[null,null,null,null,null,null,null,"Type Werkzaamheden (selecteer alle werkzaamheden die van toepassing zijn)"]
[]
[null,null,null,null,null,null,null,"Hoofcategorie maatregelen ",null,"Subcategorie \nmaatregelen",null,"Gedetailleerde informatie",null,null,null,"Van toepasssing"]
[null,null,{"$f":"IF(COUNTIF(D58:D76,TRUE)>0,TRUE,FALSE)","v":false},false,null,null,null,"Signalisatie ",null,"S1. Verkeersborden",null,"Afbakening fietsstraat"]
[null,null,null,false,null,null,null,null,null,null,null,"(Dynamische) zone 30  "]
[null,null,null,false,null,null,null,null,null,null,null,"Detecterende Snelheidsinformatieborden (vb. Smileyborden, \"graag traag\")"]
[null,null,null,false,null,null,null,null,null,null,null,"Verkeersborden algemeen"]
[null,null,null,false,null,null,null,null,null,"S2. (Thermoplastische) wegmarkeringen",null,"Fietssuggestiestroken"]
[null,null,null,false,null,null,null,null,null,null,null,"Oversteekplaatsen"]
[null,null,null,false,null,null,null,null,null,null,null,"Markeringen algemeen"]
[null,null,null,false,null,null,null,null,null,"S3. (Verkeers)lichten",null,"Hardware verkeerslichten"]
[null,null,null,false,null,null,null,null,null,null,null,"Verlichting algemeen"]
[null,null,null,false,null,null,null,"Infrastructureel",null,"I1. (Her)aanleg",null,"Straatmeubilair"]
[null,null,null,false,null,null,null,null,null,null,null,"Vrijliggend fietspad"]
[null,null,null,false,null,null,null,null,null,null,null,"Aanliggende fietspad"]
[null,null,null,false,null,null,null,null,null,null,null,"Voetpad"]
[null,null,null,false,null,null,null,null,null,null,null,"Wegdek"]
[null,null,null,false,null,null,null,null,null,null,null,"Groen i.f.v. verkeersveiligheid"]
[null,null,null,false,null,null,null,null,null,"I2. Hardware",null,"Hardware handhaving (vb. ANPR Camera's)"]
[null,null,null,false,null,null,null,null,null,null,null,"Hardware beloningssysteem (eenmalig)"]
[null,null,null,false,null,null,null,null,null,null,null,"Hardware beloningssysteem (huurcontract 3j)"]
[null,null,null,false,null,null,null,null,null,"I3 Hardware en Software (Pakket)",null,"Trajectcontrole (systeem waarbij de gemiddelde snelheid over een langere afstand wordt gemeten)"]
[]
[]
[]
[null,null,null,null,null,null,null,"Allocatie Budgetraming (alloceer het budget per subcategorie die van toepassing is)"]
[null,null,null,null,null,null,null,null,null,null,null,null,null,null,null,"Raming (incl. BTW)",null,"%"]
[null,null,{"$f":"IF(R82=1,TRUE,FALSE)","v":false},{"$f":"IF(R82>1,FALSE,TRUE)","v":true},null,null,null,null,"Totaal Alle Categorieën",null,null,null,null,null,null,{"$f":"SUM(P84:Q90)","v":0},null,{"$f":"SUM(R84:R90)","v":0.95}]
[null,null,null,null,null,null,null,null,"Signalisatie"]
[null,null,null,60,null,null,null,null,null,"S1. Verkeersborden",null,null,null,null,null,{"$f":"R84*H$18","v":0},null,{"$f":"D84/100","v":0.6}]
[null,null,null,35,null,null,null,null,null,"S2. (Thermoplastische) wegmarkeringen",null,null,null,null,null,{"$f":"R85*H$18","v":0},null,{"$f":"D85/100","v":0.35}]
[null,null,null,0,null,null,null,null,null,"S3. (Verkeers)lichten",null,null,null,null,null,{"$f":"R86*H$18","v":0},null,{"$f":"D86/100","v":0}]
[null,null,null,null,null,null,null,null,"Infrastructuur"]
[null,null,null,0,null,null,null,null,null,"I1. Heraanleg",null,null,null,null,null,{"$f":"R88*H$18","v":0},null,{"$f":"D88/100","v":0}]
[null,null,null,0,null,null,null,null,null,"I2. Hardware",null,null,null,null,null,{"$f":"R89*H$18","v":0},null,{"$f":"D89/100","v":0}]
[null,null,null,0,null,null,null,null,null,"I3. Hardware en Software (Pakket)",null,null,null,null,null,{"$f":"R90*H$18","v":0},null,{"$f":"D90/100","v":0}]
[]
[null,"4. Timing",null,null,null,null,null,null,null,null,null,null,null,null,null,null,null,null,null,null,{"$f":"COUNTIF(C94:D105,TRUE)/2","v":0},"Naam Bijlage","Pagina n°"]
[]
[null,null,false,null,null,null,null,"De (geplande) werken worden uitgevoerd, rekening houdend met een voltooiingsdatum binnen de 12 maanden na de dag van beslissing van toekenning. De finale stukken zullen ten laatste 3 maanden na voormelde datum ingediend moeten worden.",null,null,null,null,null,null,null,null,null,null,null,null,null,null,null,null,"Art. 2 §3 juncto art. 3 (1)"]
[]
[]
[null,null,null,null,null,null,null,"Voorziene datum aanvang van de werken",null,null,null,null,null,null,null,{"$f":"IF(OR(ISBLANK(L97),ISBLANK(L98)),\"Gelieve beide data in te vullen\",\"\")","v":"Gelieve beide data in te vullen"}]
[null,null,null,null,null,null,null,"Voorziene datum einde van de werken"]
[null,null,null,null,null,null,null,"Duurtijd (kalenderdagen)",null,null,null,{"$f":"IF(OR(ISBLANK(L97),ISBLANK(L98)),\"Gelieve bovenstaande cellen in te vullen\",_xlfn.DAYS(L98,L97))","v":"Gelieve bovenstaande cellen in te vullen"}]
[]
[]
[]
[]
[null,null,false,null,null,null,null,"De planning van de uitvoering van de werken voor de route werd toegevoegd in bijlage met referentie.",null,null,null,null,null,null,null,null,null,null,null,null,null,null,null,null,"Art. 7  Eerste Lid 3° (1)"]
[]
[null,"5. Informatie domeinbeheerder",null,null,null,null,null,null,null,null,null,null,null,null,null,null,null,null,null,null,{"$f":"IF(C113=1,1,COUNTIF(C117:D118,TRUE)/2)","v":0},"Naam Bijlage (optioneel)","Pagina n°","Compleet?"]
[]
[null,null,false]
[]
[null,null,null,false]
[]
[]
[null,null,2,null,null,null,null,"Het volledige domein waarop de werken worden uitgevoerd, is in het beheer van de gemeente.",null,null,null,null,null,null,null,null,null,null,null,null,null,null,null,null,"Art. 7  Eerste Lid 1°-4° (1)"]
[]
[null,null,null,null,null,null,null,"Indien niet, vul aan:"]
[null,null,null,null,null,null,null,null,null,"Type",null,"Identiteit domeinbeheerder"]
[null,null,{"$f":"IF(C113=2,NOT(ISBLANK(L117)),TRUE)","v":false},null,null,null,null,null,null,"Privaat"]
[null,null,{"$f":"IF(C113=2,AND(C119=TRUE,NOT(ISBLANK(I120)),TRUE))","v":false}]
[null,null,false,null,null,null,null,"Het akkoord van deze domeinbeheerder werd als bijlage toegevoegd aan de dossieraanvraag.",null,null,null,null,null,null,null,null,null,null,null,null,null,null,null,null,"Art. 7  Eerste Lid 5° (1)"]
[null,null,null,null,null,null,null,"Bijlage*:"]
[]
[null,null,null,null,null,null,null,"* veplicht op te nemen"]
[null,"6. Optionele bijkomende informatie",null,null,null,null,null,null,null,null,null,null,null,null,null,null,null,null,null,null,null,"Naam Bijlage (optioneel)","Pagina n°"]
[]
[null,null,null,null,null,null,null,"Bijkomende toelichting"]
[null,null,null,null,null,null,null,null,null,null,null,null,null,null,null,null,null,null,null,null,null,null,null,null,"Art. 7  Eerste Lid 1° (1)"]
[]
[]
[null,null,{"$f":"IF(AND(D129=TRUE,ISBLANK(I130)),TRUE,FALSE)","v":false},false,null,null,null,"Optioneel - u kunt een verduidelijkende bijlage toevoegen ter verduidelijking/vervanging van bovenstaand veld."]
[null,null,null,null,null,null,null,"Bijlage*:"]
[]
[null,null,null,null,null,null,null,"* veplicht op te nemen indien van toepassing"]
[]
[]
[]
[null,"Voor de administratie (MOW)",null,null,null,null,null,null,null,null,null,null,null,null,null,null,"Voor de aanvrager (Naam + Functie)"]
[null,null,null,null,null,null,null,null,null,null,null,"Hide Row"]

{"sheet":"Route (17)","index":19,"n_rows":137,"n_cols":25,"rows_kept":137,"cut":false,"hidden":true,"merged":[[120,7,120,20],[124,7,124,20],[124,23,131,23],[128,7,128,16],[129,8,129,10],[130,7,130,20],[119,8,119,10],[98,11,98,14],[100,7,101,16],[107,7,107,20],[109,7,109,20],[110,7,110,20],[111,7,111,20],[112,7,112,15],[115,9,115,10],[115,11,115,14],[116,9,116,10],[116,11,116,14],[79,7,79,20],[97,11,97,14],[81,15,81,16],[82,15,82,16],[83,15,83,16],[84,15,84,16],[85,15,85,16],[87,15,87,16],[88,15,88,16],[89,15,89,16],[93,7,94,16],[96,11,96,14],[96,15,96,17],[65,11,65,14],[80,15,80,16],[66,7,75,8],[66,9,71,10],[66,11,66,14],[67,11,67,14],[68,11,68,14],[69,11,69,14],[70,11,70,14],[71,11,71,14],[72,9,74,10],[72,11,72,14],[73,11,73,14],[74,11,74,14],[75,9,75,10],[75,11,75,14],[54,7,54,20],[56,7,56,8],[56,9,56,10],[56,11,56,14],[57,7,65,8],[57,9,60,10],[57,11,57,14],[58,11,58,14],[59,11,59,14],[60,11,60,14],[61,9,63,10],[61,11,61,14],[62,11,62,14],[63,11,63,14],[64,9,65,10],[64,11,64,14],[51,7,52,17],[17,4,17,6],[17,7,17,16],[19,7,19,17],[23,23,41,23],[24,7,25,17],[27,7,27,17],[29,7,29,20],[33,7,34,20],[36,7,36,20],[37,7,38,20],[40,7,40,20],[44,7,45,17],[46,7,46,20],[47,7,47,20],[48,7,48,20],[11,4,11,16],[13,4,13,6],[13,7,13,16],[13,17,17,17],[14,4,14,6],[14,7,14,16],[15,4,15,6],[15,7,15,16],[16,4,16,6],[16,7,16,16],[7,1,7,20],[7,21,7,22],[1,9,5,21],[2,26,6,31],[5,7,5,8],[6,7,6,8],[6,15,6,16]]}
[]
[null,null,null,null,null,null,null,null,null,{"$f":"\"Individuele Detailfiche - Route \" &H14&_xlfn.UNICHAR(10)& \"('\"&H15&\"')\"","v":"Individuele Detailfiche - Route 17\n('<< Gelieve de naam van Schoolroute 17 in te vullen >>')"}]
[null,null,2]
[]
[]
[]
[]
[null,"Vul in onderstaande tabel de gevraagde gegevens in, vink alle verklaringen aan die op de aanvraag van toepassing zijn. Toepasselijke bijlages geeft u een (betekenisvolle naam) – vb. raming route 123. Vermeld deze naam op de voorziene plaatsen in kolom T.  Indien één en dezelfde bijlage de info van meerdere items bundelt, leid ons dan in “kolom  U\" naar het passende paginanummer. Vergeet niet de bijlages samen met het aangevulde aanvraagformulier over te maken.",null,null,null,null,null,null,null,null,null,null,null,null,null,null,null,null,null,null,null,"Bijlagen",null,"Validatie \nMOW","Wettelijke \nverwijzing"]
[]
[null,null,null,null,null,null,null,null,null,null,null,null,null,null,null,null,null,null,null,null,"Voortgang sectie"]
[null,"0. Kostenoverzicht",null,null,null,null,null,null,null,null,null,null,null,null,null,null,null,null,null,null,{"$f":"COUNTIF(C14:D21,TRUE)/2","v":0},"Naam Bijlage","Pagina n°","Evaluatie"]
[null,null,null,null,"Details per route (Automatisch aangevuld op basis van overzicht)"]
[null,null,null,null,null,null,null,null,null,null,null,null,null,null,null,null,null,"link"]
[null,null,{"$f":"IF(1-COUNTBLANK(Aanvraagformulier!G28)-COUNTBLANK(Aanvraagformulier!N28)=1,TRUE,FALSE)","v":false},null,"Route n°",null,null,17,null,null,null,null,null,null,null,null,null,{"$f":"HYPERLINK(\"#'Aanvraagformulier'!G28\",\"Klik hier\")","v":"Klik hier"}]
[null,null,null,null,"Naam route",null,null,{"$f":"VLOOKUP(H$14,Aanvraagformulier!$F$25:$N$53,2,FALSE)","v":"<< Gelieve de naam van Schoolroute 17 in te vullen >>"}]
[]
[null,null,null,null,"Raming kosten\n (excl. BTW)",null,null,{"$f":"VLOOKUP(H$14,Aanvraagformulier!$F$25:$N$53,8,FALSE)","v":0}]
[null,null,null,null,"Raming kosten\n (incl. BTW)",null,null,{"$f":"VLOOKUP(H$14,Aanvraagformulier!$F$25:$N$53,9,FALSE)","v":0}]
[]
[null,null,false,null,null,null,null,"De raming van de kosten werd toegevoegd aan het dossier en opgenomen in de bijlage met referentie.",null,null,null,null,null,null,null,null,null,null,null,null,null,null,null,null,"Art. 7  Eerste Lid 2° (1)"]
[]
[]
[null,"1. Locatie",null,null,null,null,null,null,null,null,null,null,null,null,null,null,null,null,null,null,{"$f":"COUNTIF(C25:D41,TRUE)/6","v":0},"Naam Bijlage","Pagina n°"]
[]
[null,null,false,null,null,null,null,"De route is vermeld op het plan op schaal waarop duidelijk aangegeven is welke scholen deel uitmaken van het project en waar de geplande maatregelen voor de schoolroute of schoolroutes zullen worden uitgevoerd, dat werd toegevoegd aan het dossier.",null,null,null,null,null,null,null,null,null,null,null,null,null,null,null,null,"Art. 1 4°-5°- art. 2 §1 1° (1) "]
[]
[]
[null,null,false,null,null,null,null,"De werken worden uitgevoerd op een geldige schoolroute, die:",null,null,null,null,null,null,null,null,null,null,null,null,null,null,null,null,"Art. 2 §1 1° (1) "]
[]
[null,null,null,false,null,null,null,"i)  Eindigt waar een schoolomgeving van een school begint.",null,null,null,null,null,null,null,null,null,null,null,null,null,null,null,null,"Art. 1 5°(1) "]
[]
[null,null,null,null,null,null,null,null,null,null,"EN"]
[]
[null,null,null,false,null,null,null,"ii) Buiten een straal van 100 meter rond de schooltoegang of voorbij het eerste kruispunt aan weerzijden indien dat verder ligt dan 100 meter."]
[]
[null,null,null,null,null,null,null,null,null,null,"EN"]
[null,null,null,false]
[null,null,null,null,null,null,null,"iii) Verschillende scholieren te voet of met de fiets of bromfiets op het woon-schooltraject gebruiken tijdens de uren die voorafgaan aan de opening van de school."]
[null,null,null,null,null,null,null,null,null,null,null,null,null,null,null,null,null,null,null,null,null,null,null,null,"Art. 1 5°(1) "]
[null,null,null,null,null,null,null,null,null,null,"EN"]
[null,null,null,false,null,null,null,"iv) ligt uitsluitend op een of meer gemeentewegen"]
[]
[null,"2. Omschrijving, doel en aard der werken",null,null,null,null,null,null,null,null,null,null,null,null,null,null,null,null,null,null,{"$f":"(COUNTIF(C45:D45,TRUE)+COUNTIF(C52:D52,TRUE)+COUNTIF(C58:C82,TRUE))/5","v":0.2},"Naam Bijlage","Pagina n°"]
[]
[null,null,true,{"$f":"IF(OR(D47,D49),TRUE,FALSE)","v":false},null,null,null,"Uitgaven zijn erop gericht de verkeersveiligheid van schoolkinderen te verbeteren. Selecteer (enkel) de relevante uitgave(n):",null,null,null,null,null,null,null,null,null,null,null,null,null,null,null,null,"Art. 2. §1 2° (1)"]
[]
[null,null,null,false,null,null,null,"i) Uitgaven voor verkeerssignalisatie (overal).",null,null,null,null,null,null,null,null,null,null,null,null,null,null,null,null,"Art. 3 (1)"]
[null,null,null,null,null,null,null,"EN/OF",null,null,null,null,null,null,null,null,null,null,null,null,null,null,null,null,"Art. 3 (1)"]
[null,null,null,false,null,null,null,"ii) Uitgaven voor infrastructurele maatregelen die de verkeersveiligheid op de schoolroutes verhogen (excl. voor fietspaden op het BFF)."]
[]
[]
[null,null,false,null,null,null,null,"De motivering voor de keuze van de geselecteerde schoolroute of schoolroutes, bevat de verwijzing naar deze schoolroute."]
[]
[]
[null,null,null,null,null,null,null,"Type Werkzaamheden (selecteer alle werkzaamheden die van toepassing zijn)"]
[]
[null,null,null,null,null,null,null,"Hoofcategorie maatregelen ",null,"Subcategorie \nmaatregelen",null,"Gedetailleerde informatie",null,null,null,"Van toepasssing"]
[null,null,{"$f":"IF(COUNTIF(D58:D76,TRUE)>0,TRUE,FALSE)","v":false},false,null,null,null,"Signalisatie ",null,"S1. Verkeersborden",null,"Afbakening fietsstraat"]
[null,null,null,false,null,null,null,null,null,null,null,"(Dynamische) zone 30  "]
[null,null,null,false,null,null,null,null,null,null,null,"Detecterende Snelheidsinformatieborden (vb. Smileyborden, \"graag traag\")"]
[null,null,null,false,null,null,null,null,null,null,null,"Verkeersborden algemeen"]
[null,null,null,false,null,null,null,null,null,"S2. (Thermoplastische) wegmarkeringen",null,"Fietssuggestiestroken"]
[null,null,null,false,null,null,null,null,null,null,null,"Oversteekplaatsen"]
[null,null,null,false,null,null,null,null,null,null,null,"Markeringen algemeen"]
[null,null,null,false,null,null,null,null,null,"S3. (Verkeers)lichten",null,"Hardware verkeerslichten"]
[null,null,null,false,null,null,null,null,null,null,null,"Verlichting algemeen"]
[null,null,null,false,null,null,null,"Infrastructureel",null,"I1. (Her)aanleg",null,"Straatmeubilair"]
[null,null,null,false,null,null,null,null,null,null,null,"Vrijliggend fietspad"]
[null,null,null,false,null,null,null,null,null,null,null,"Aanliggende fietspad"]
[null,null,null,false,null,null,null,null,null,null,null,"Voetpad"]
[null,null,null,false,null,null,null,null,null,null,null,"Wegdek"]
[null,null,null,false,null,null,null,null,null,null,null,"Groen i.f.v. verkeersveiligheid"]
[null,null,null,false,null,null,null,null,null,"I2. Hardware",null,"Hardware handhaving (vb. ANPR Camera's)"]
[null,null,null,false,null,null,null,null,null,null,null,"Hardware beloningssysteem (eenmalig)"]
[null,null,null,false,null,null,null,null,null,null,null,"Hardware beloningssysteem (huurcontract 3j)"]
[null,null,null,false,null,null,null,null,null,"I3 Hardware en Software (Pakket)",null,"Trajectcontrole (systeem waarbij de gemiddelde snelheid over een langere afstand wordt gemeten)"]
[]
[]
[]
[null,null,null,null,null,null,null,"Allocatie Budgetraming (alloceer het budget per subcategorie die van toepassing is)"]
[null,null,null,null,null,null,null,null,null,null,null,null,null,null,null,"Raming (incl. BTW)",null,"%"]
[null,null,{"$f":"IF(R82=1,TRUE,FALSE)","v":false},{"$f":"IF(R82>1,FALSE,TRUE)","v":true},null,null,null,null,"Totaal Alle Categorieën",null,null,null,null,null,null,{"$f":"SUM(P84:Q90)","v":0},null,{"$f":"SUM(R84:R90)","v":0.95}]
[null,null,null,null,null,null,null,null,"Signalisatie"]
[null,null,null,60,null,null,null,null,null,"S1. Verkeersborden",null,null,null,null,null,{"$f":"R84*H$18","v":0},null,{"$f":"D84/100","v":0.6}]
[null,null,null,35,null,null,null,null,null,"S2. (Thermoplastische) wegmarkeringen",null,null,null,null,null,{"$f":"R85*H$18","v":0},null,{"$f":"D85/100","v":0.35}]
[null,null,null,0,null,null,null,null,null,"S3. (Verkeers)lichten",null,null,null,null,null,{"$f":"R86*H$18","v":0},null,{"$f":"D86/100","v":0}]
[null,null,null,null,null,null,null,null,"Infrastructuur"]
[null,null,null,0,null,null,null,null,null,"I1. Heraanleg",null,null,null,null,null,{"$f":"R88*H$18","v":0},null,{"$f":"D88/100","v":0}]
[null,null,null,0,null,null,null,null,null,"I2. Hardware",null,null,null,null,null,{"$f":"R89*H$18","v":0},null,{"$f":"D89/100","v":0}]
[null,null,null,0,null,null,null,null,null,"I3. Hardware en Software (Pakket)",null,null,null,null,null,{"$f":"R90*H$18","v":0},null,{"$f":"D90/100","v":0}]
[]
[null,"4. Timing",null,null,null,null,null,null,null,null,null,null,null,null,null,null,null,null,null,null,{"$f":"COUNTIF(C94:D105,TRUE)/2","v":0},"Naam Bijlage","Pagina n°"]
[]
[null,null,false,null,null,null,null,"De (geplande) werken worden uitgevoerd, rekening houdend met een voltooiingsdatum binnen de 12 maanden na de dag van beslissing van toekenning. De finale stukken zullen ten laatste 3 maanden na voormelde datum ingediend moeten worden.",null,null,null,null,null,null,null,null,null,null,null,null,null,null,null,null,"Art. 2 §3 juncto art. 3 (1)"]
[]
[]
[null,null,null,null,null,null,null,"Voorziene datum aanvang van de werken",null,null,null,null,null,null,null,{"$f":"IF(OR(ISBLANK(L97),ISBLANK(L98)),\"Gelieve beide data in te vullen\",\"\")","v":"Gelieve beide data in te vullen"}]
[null,null,null,null,null,null,null,"Voorziene datum einde van de werken"]
[null,null,null,null,null,null,null,"Duurtijd (kalenderdagen)",null,null,null,{"$f":"IF(OR(ISBLANK(L97),ISBLANK(L98)),\"Gelieve bovenstaande cellen in te vullen\",_xlfn.DAYS(L98,L97))","v":"Gelieve bovenstaande cellen in te vullen"}]
[]
[]
[]
[]
[null,null,false,null,null,null,null,"De planning van de uitvoering van de werken voor de route werd toegevoegd in bijlage met referentie.",null,null,null,null,null,null,null,null,null,null,null,null,null,null,null,null,"Art. 7  Eerste Lid 3° (1)"]
[]
[null,"5. Informatie domeinbeheerder",null,null,null,null,null,null,null,null,null,null,null,null,null,null,null,null,null,null,{"$f":"IF(C113=1,1,COUNTIF(C117:D118,TRUE)/2)","v":0},"Naam Bijlage (optioneel)","Pagina n°","Compleet?"]
[]
[null,null,false]
[]
[null,null,null,false]
[]
[]
[null,null,2,null,null,null,null,"Het volledige domein waarop de werken worden uitgevoerd, is in het beheer van de gemeente.",null,null,null,null,null,null,null,null,null,null,null,null,null,null,null,null,"Art. 7  Eerste Lid 1°-4° (1)"]
[]
[null,null,null,null,null,null,null,"Indien niet, vul aan:"]
[null,null,null,null,null,null,null,null,null,"Type",null,"Identiteit domeinbeheerder"]
[null,null,{"$f":"IF(C113=2,NOT(ISBLANK(L117)),TRUE)","v":false},null,null,null,null,null,null,"Privaat"]
[null,null,{"$f":"IF(C113=2,AND(C119=TRUE,NOT(ISBLANK(I120)),TRUE))","v":false}]
[null,null,false,null,null,null,null,"Het akkoord van deze domeinbeheerder werd als bijlage toegevoegd aan de dossieraanvraag.",null,null,null,null,null,null,null,null,null,null,null,null,null,null,null,null,"Art. 7  Eerste Lid 5° (1)"]
[null,null,null,null,null,null,null,"Bijlage*:"]
[]
[null,null,null,null,null,null,null,"* veplicht op te nemen"]
[null,"6. Optionele bijkomende informatie",null,null,null,null,null,null,null,null,null,null,null,null,null,null,null,null,null,null,null,"Naam Bijlage (optioneel)","Pagina n°"]
[]
[null,null,null,null,null,null,null,"Bijkomende toelichting"]
[null,null,null,null,null,null,null,null,null,null,null,null,null,null,null,null,null,null,null,null,null,null,null,null,"Art. 7  Eerste Lid 1° (1)"]
[]
[]
[null,null,{"$f":"IF(AND(D129=TRUE,ISBLANK(I130)),TRUE,FALSE)","v":false},false,null,null,null,"Optioneel - u kunt een verduidelijkende bijlage toevoegen ter verduidelijking/vervanging van bovenstaand veld."]
[null,null,null,null,null,null,null,"Bijlage*:"]
[]
[null,null,null,null,null,null,null,"* veplicht op te nemen indien van toepassing"]
[]
[]
[]
[null,"Voor de administratie (MOW)",null,null,null,null,null,null,null,null,null,null,null,null,null,null,"Voor de aanvrager (Naam + Functie)"]
[null,null,null,null,null,null,null,null,null,null,null,"Hide Row"]

{"sheet":"Route (18)","index":20,"n_rows":137,"n_cols":25,"rows_kept":137,"cut":false,"hidden":true,"merged":[[120,7,120,20],[124,7,124,20],[124,23,131,23],[128,7,128,16],[129,8,129,10],[130,7,130,20],[119,8,119,10],[98,11,98,14],[100,7,101,16],[107,7,107,20],[109,7,109,20],[110,7,110,20],[111,7,111,20],[112,7,112,15],[115,9,115,10],[115,11,115,14],[116,9,116,10],[116,11,116,14],[79,7,79,20],[97,11,97,14],[81,15,81,16],[82,15,82,16],[83,15,83,16],[84,15,84,16],[85,15,85,16],[87,15,87,16],[88,15,88,16],[89,15,89,16],[93,7,94,16],[96,11,96,14],[96,15,96,17],[65,11,65,14],[80,15,80,16],[66,7,75,8],[66,9,71,10],[66,11,66,14],[67,11,67,14],[68,11,68,14],[69,11,69,14],[70,11,70,14],[71,11,71,14],[72,9,74,10],[72,11,72,14],[73,11,73,14],[74,11,74,14],[75,9,75,10],[75,11,75,14],[54,7,54,20],[56,7,56,8],[56,9,56,10],[56,11,56,14],[57,7,65,8],[57,9,60,10],[57,11,57,14],[58,11,58,14],[59,11,59,14],[60,11,60,14],[61,9,63,10],[61,11,61,14],[62,11,62,14],[63,11,63,14],[64,9,65,10],[64,11,64,14],[51,7,52,17],[17,4,17,6],[17,7,17,16],[19,7,19,17],[23,23,41,23],[24,7,25,17],[27,7,27,17],[29,7,29,20],[33,7,34,20],[36,7,36,20],[37,7,38,20],[40,7,40,20],[44,7,45,17],[46,7,46,20],[47,7,47,20],[48,7,48,20],[11,4,11,16],[13,4,13,6],[13,7,13,16],[13,17,17,17],[14,4,14,6],[14,7,14,16],[15,4,15,6],[15,7,15,16],[16,4,16,6],[16,7,16,16],[7,1,7,20],[7,21,7,22],[1,9,5,21],[2,26,6,31],[5,7,5,8],[6,7,6,8],[6,15,6,16]]}
[]
[null,null,null,null,null,null,null,null,null,{"$f":"\"Individuele Detailfiche - Route \" &H14&_xlfn.UNICHAR(10)& \"('\"&H15&\"')\"","v":"Individuele Detailfiche - Route 18\n('<< Gelieve de naam van Schoolroute 18 in te vullen >>')"}]
[null,null,2]
[]
[]
[]
[]
[null,"Vul in onderstaande tabel de gevraagde gegevens in, vink alle verklaringen aan die op de aanvraag van toepassing zijn. Toepasselijke bijlages geeft u een (betekenisvolle naam) – vb. raming route 123. Vermeld deze naam op de voorziene plaatsen in kolom T.  Indien één en dezelfde bijlage de info van meerdere items bundelt, leid ons dan in “kolom  U\" naar het passende paginanummer. Vergeet niet de bijlages samen met het aangevulde aanvraagformulier over te maken.",null,null,null,null,null,null,null,null,null,null,null,null,null,null,null,null,null,null,null,"Bijlagen",null,"Validatie \nMOW","Wettelijke \nverwijzing"]
[]
[null,null,null,null,null,null,null,null,null,null,null,null,null,null,null,null,null,null,null,null,"Voortgang sectie"]
[null,"0. Kostenoverzicht",null,null,null,null,null,null,null,null,null,null,null,null,null,null,null,null,null,null,{"$f":"COUNTIF(C14:D21,TRUE)/2","v":0},"Naam Bijlage","Pagina n°","Evaluatie"]
[null,null,null,null,"Details per route (Automatisch aangevuld op basis van overzicht)"]
[null,null,null,null,null,null,null,null,null,null,null,null,null,null,null,null,null,"link"]
[null,null,{"$f":"IF(1-COUNTBLANK(Aanvraagformulier!G28)-COUNTBLANK(Aanvraagformulier!N28)=1,TRUE,FALSE)","v":false},null,"Route n°",null,null,18,null,null,null,null,null,null,null,null,null,{"$f":"HYPERLINK(\"#'Aanvraagformulier'!G28\",\"Klik hier\")","v":"Klik hier"}]
[null,null,null,null,"Naam route",null,null,{"$f":"VLOOKUP(H$14,Aanvraagformulier!$F$25:$N$53,2,FALSE)","v":"<< Gelieve de naam van Schoolroute 18 in te vullen >>"}]
[]
[null,null,null,null,"Raming kosten\n (excl. BTW)",null,null,{"$f":"VLOOKUP(H$14,Aanvraagformulier!$F$25:$N$53,8,FALSE)","v":0}]
[null,null,null,null,"Raming kosten\n (incl. BTW)",null,null,{"$f":"VLOOKUP(H$14,Aanvraagformulier!$F$25:$N$53,9,FALSE)","v":0}]
[]
[null,null,false,null,null,null,null,"De raming van de kosten werd toegevoegd aan het dossier en opgenomen in de bijlage met referentie.",null,null,null,null,null,null,null,null,null,null,null,null,null,null,null,null,"Art. 7  Eerste Lid 2° (1)"]
[]
[]
[null,"1. Locatie",null,null,null,null,null,null,null,null,null,null,null,null,null,null,null,null,null,null,{"$f":"COUNTIF(C25:D41,TRUE)/6","v":0},"Naam Bijlage","Pagina n°"]
[]
[null,null,false,null,null,null,null,"De route is vermeld op het plan op schaal waarop duidelijk aangegeven is welke scholen deel uitmaken van het project en waar de geplande maatregelen voor de schoolroute of schoolroutes zullen worden uitgevoerd, dat werd toegevoegd aan het dossier.",null,null,null,null,null,null,null,null,null,null,null,null,null,null,null,null,"Art. 1 4°-5°- art. 2 §1 1° (1) "]
[]
[]
[null,null,false,null,null,null,null,"De werken worden uitgevoerd op een geldige schoolroute, die:",null,null,null,null,null,null,null,null,null,null,null,null,null,null,null,null,"Art. 2 §1 1° (1) "]
[]
[null,null,null,false,null,null,null,"i)  Eindigt waar een schoolomgeving van een school begint.",null,null,null,null,null,null,null,null,null,null,null,null,null,null,null,null,"Art. 1 5°(1) "]
[]
[null,null,null,null,null,null,null,null,null,null,"EN"]
[]
[null,null,null,false,null,null,null,"ii) Buiten een straal van 100 meter rond de schooltoegang of voorbij het eerste kruispunt aan weerzijden indien dat verder ligt dan 100 meter."]
[]
[null,null,null,null,null,null,null,null,null,null,"EN"]
[null,null,null,false]
[null,null,null,null,null,null,null,"iii) Verschillende scholieren te voet of met de fiets of bromfiets op het woon-schooltraject gebruiken tijdens de uren die voorafgaan aan de opening van de school."]
[null,null,null,null,null,null,null,null,null,null,null,null,null,null,null,null,null,null,null,null,null,null,null,null,"Art. 1 5°(1) "]
[null,null,null,null,null,null,null,null,null,null,"EN"]
[null,null,null,false,null,null,null,"iv) ligt uitsluitend op een of meer gemeentewegen"]
[]
[null,"2. Omschrijving, doel en aard der werken",null,null,null,null,null,null,null,null,null,null,null,null,null,null,null,null,null,null,{"$f":"(COUNTIF(C45:D45,TRUE)+COUNTIF(C52:D52,TRUE)+COUNTIF(C58:C82,TRUE))/5","v":0},"Naam Bijlage","Pagina n°"]
[]
[null,null,false,{"$f":"IF(OR(D47,D49),TRUE,FALSE)","v":false},null,null,null,"Uitgaven zijn erop gericht de verkeersveiligheid van schoolkinderen te verbeteren. Selecteer (enkel) de relevante uitgave(n):",null,null,null,null,null,null,null,null,null,null,null,null,null,null,null,null,"Art. 2. §1 2° (1)"]
[]
[null,null,null,false,null,null,null,"i) Uitgaven voor verkeerssignalisatie (overal).",null,null,null,null,null,null,null,null,null,null,null,null,null,null,null,null,"Art. 3 (1)"]
[null,null,null,null,null,null,null,"EN/OF",null,null,null,null,null,null,null,null,null,null,null,null,null,null,null,null,"Art. 3 (1)"]
[null,null,null,false,null,null,null,"ii) Uitgaven voor infrastructurele maatregelen die de verkeersveiligheid op de schoolroutes verhogen (excl. voor fietspaden op het BFF)."]
[]
[]
[null,null,false,null,null,null,null,"De motivering voor de keuze van de geselecteerde schoolroute of schoolroutes, bevat de verwijzing naar deze schoolroute."]
[]
[]
[null,null,null,null,null,null,null,"Type Werkzaamheden (selecteer alle werkzaamheden die van toepassing zijn)"]
[]
[null,null,null,null,null,null,null,"Hoofcategorie maatregelen ",null,"Subcategorie \nmaatregelen",null,"Gedetailleerde informatie",null,null,null,"Van toepasssing"]
[null,null,{"$f":"IF(COUNTIF(D58:D76,TRUE)>0,TRUE,FALSE)","v":false},false,null,null,null,"Signalisatie ",null,"S1. Verkeersborden",null,"Afbakening fietsstraat"]
[null,null,null,false,null,null,null,null,null,null,null,"(Dynamische) zone 30  "]
[null,null,null,false,null,null,null,null,null,null,null,"Detecterende Snelheidsinformatieborden (vb. Smileyborden, \"graag traag\")"]
[null,null,null,false,null,null,null,null,null,null,null,"Verkeersborden algemeen"]
[null,null,null,false,null,null,null,null,null,"S2. (Thermoplastische) wegmarkeringen",null,"Fietssuggestiestroken"]
[null,null,null,false,null,null,null,null,null,null,null,"Oversteekplaatsen"]
[null,null,null,false,null,null,null,null,null,null,null,"Markeringen algemeen"]
[null,null,null,false,null,null,null,null,null,"S3. (Verkeers)lichten",null,"Hardware verkeerslichten"]
[null,null,null,false,null,null,null,null,null,null,null,"Verlichting algemeen"]
[null,null,null,false,null,null,null,"Infrastructureel",null,"I1. (Her)aanleg",null,"Straatmeubilair"]
[null,null,null,false,null,null,null,null,null,null,null,"Vrijliggend fietspad"]
[null,null,null,false,null,null,null,null,null,null,null,"Aanliggende fietspad"]
[null,null,null,false,null,null,null,null,null,null,null,"Voetpad"]
[null,null,null,false,null,null,null,null,null,null,null,"Wegdek"]
[null,null,null,false,null,null,null,null,null,null,null,"Groen i.f.v. verkeersveiligheid"]
[null,null,null,false,null,null,null,null,null,"I2. Hardware",null,"Hardware handhaving (vb. ANPR Camera's)"]
[null,null,null,false,null,null,null,null,null,null,null,"Hardware beloningssysteem (eenmalig)"]
[null,null,null,false,null,null,null,null,null,null,null,"Hardware beloningssysteem (huurcontract 3j)"]
[null,null,null,false,null,null,null,null,null,"I3 Hardware en Software (Pakket)",null,"Trajectcontrole (systeem waarbij de gemiddelde snelheid over een langere afstand wordt gemeten)"]
[]
[]
[]
[null,null,null,null,null,null,null,"Allocatie Budgetraming (alloceer het budget per subcategorie die van toepassing is)"]
[null,null,null,null,null,null,null,null,null,null,null,null,null,null,null,"Raming (incl. BTW)",null,"%"]
[null,null,{"$f":"IF(R82=1,TRUE,FALSE)","v":false},{"$f":"IF(R82>1,FALSE,TRUE)","v":true},null,null,null,null,"Totaal Alle Categorieën",null,null,null,null,null,null,{"$f":"SUM(P84:Q90)","v":0},null,{"$f":"SUM(R84:R90)","v":0.95}]
[null,null,null,null,null,null,null,null,"Signalisatie"]
[null,null,null,60,null,null,null,null,null,"S1. Verkeersborden",null,null,null,null,null,{"$f":"R84*H$18","v":0},null,{"$f":"D84/100","v":0.6}]
[null,null,null,35,null,null,null,null,null,"S2. (Thermoplastische) wegmarkeringen",null,null,null,null,null,{"$f":"R85*H$18","v":0},null,{"$f":"D85/100","v":0.35}]
[null,null,null,0,null,null,null,null,null,"S3. (Verkeers)lichten",null,null,null,null,null,{"$f":"R86*H$18","v":0},null,{"$f":"D86/100","v":0}]
[null,null,null,null,null,null,null,null,"Infrastructuur"]
[null,null,null,0,null,null,null,null,null,"I1. Heraanleg",null,null,null,null,null,{"$f":"R88*H$18","v":0},null,{"$f":"D88/100","v":0}]
[null,null,null,0,null,null,null,null,null,"I2. Hardware",null,null,null,null,null,{"$f":"R89*H$18","v":0},null,{"$f":"D89/100","v":0}]
[null,null,null,0,null,null,null,null,null,"I3. Hardware en Software (Pakket)",null,null,null,null,null,{"$f":"R90*H$18","v":0},null,{"$f":"D90/100","v":0}]
[]
[null,"4. Timing",null,null,null,null,null,null,null,null,null,null,null,null,null,null,null,null,null,null,{"$f":"COUNTIF(C94:D105,TRUE)/2","v":0},"Naam Bijlage","Pagina n°"]
[]
[null,null,false,null,null,null,null,"De (geplande) werken worden uitgevoerd, rekening houdend met een voltooiingsdatum binnen de 12 maanden na de dag van beslissing van toekenning. De finale stukken zullen ten laatste 3 maanden na voormelde datum ingediend moeten worden.",null,null,null,null,null,null,null,null,null,null,null,null,null,null,null,null,"Art. 2 §3 juncto art. 3 (1)"]
[]
[]
[null,null,null,null,null,null,null,"Voorziene datum aanvang van de werken",null,null,null,null,null,null,null,{"$f":"IF(OR(ISBLANK(L97),ISBLANK(L98)),\"Gelieve beide data in te vullen\",\"\")","v":"Gelieve beide data in te vullen"}]
[null,null,null,null,null,null,null,"Voorziene datum einde van de werken"]
[null,null,null,null,null,null,null,"Duurtijd (kalenderdagen)",null,null,null,{"$f":"IF(OR(ISBLANK(L97),ISBLANK(L98)),\"Gelieve bovenstaande cellen in te vullen\",_xlfn.DAYS(L98,L97))","v":"Gelieve bovenstaande cellen in te vullen"}]
[]
[]
[]
[]
[null,null,false,null,null,null,null,"De planning van de uitvoering van de werken voor de route werd toegevoegd in bijlage met referentie.",null,null,null,null,null,null,null,null,null,null,null,null,null,null,null,null,"Art. 7  Eerste Lid 3° (1)"]
[]
[null,"5. Informatie domeinbeheerder",null,null,null,null,null,null,null,null,null,null,null,null,null,null,null,null,null,null,{"$f":"IF(C113=1,1,COUNTIF(C117:D118,TRUE)/2)","v":0},"Naam Bijlage (optioneel)","Pagina n°","Compleet?"]
[]
[null,null,false]
[]
[null,null,null,false]
[]
[]
[null,null,2,null,null,null,null,"Het volledige domein waarop de werken worden uitgevoerd, is in het beheer van de gemeente.",null,null,null,null,null,null,null,null,null,null,null,null,null,null,null,null,"Art. 7  Eerste Lid 1°-4° (1)"]
[]
[null,null,null,null,null,null,null,"Indien niet, vul aan:"]
[null,null,null,null,null,null,null,null,null,"Type",null,"Identiteit domeinbeheerder"]
[null,null,{"$f":"IF(C113=2,NOT(ISBLANK(L117)),TRUE)","v":false},null,null,null,null,null,null,"Privaat"]
[null,null,{"$f":"IF(C113=2,AND(C119=TRUE,NOT(ISBLANK(I120)),TRUE))","v":false}]
[null,null,false,null,null,null,null,"Het akkoord van deze domeinbeheerder werd als bijlage toegevoegd aan de dossieraanvraag.",null,null,null,null,null,null,null,null,null,null,null,null,null,null,null,null,"Art. 7  Eerste Lid 5° (1)"]
[null,null,null,null,null,null,null,"Bijlage*:"]
[]
[null,null,null,null,null,null,null,"* veplicht op te nemen"]
[null,"6. Optionele bijkomende informatie",null,null,null,null,null,null,null,null,null,null,null,null,null,null,null,null,null,null,null,"Naam Bijlage (optioneel)","Pagina n°"]
[]
[null,null,null,null,null,null,null,"Bijkomende toelichting"]
[null,null,null,null,null,null,null,null,null,null,null,null,null,null,null,null,null,null,null,null,null,null,null,null,"Art. 7  Eerste Lid 1° (1)"]
[]
[]
[null,null,{"$f":"IF(AND(D129=TRUE,ISBLANK(I130)),TRUE,FALSE)","v":false},false,null,null,null,"Optioneel - u kunt een verduidelijkende bijlage toevoegen ter verduidelijking/vervanging van bovenstaand veld."]
[null,null,null,null,null,null,null,"Bijlage*:"]
[]
[null,null,null,null,null,null,null,"* veplicht op te nemen indien van toepassing"]
[]
[]
[]
[null,"Voor de administratie (MOW)",null,null,null,null,null,null,null,null,null,null,null,null,null,null,"Voor de aanvrager (Naam + Functie)"]
[null,null,null,null,null,null,null,null,null,null,null,"Hide Row"]

{"sheet":"Route (19)","index":21,"n_rows":137,"n_cols":25,"rows_kept":137,"cut":false,"hidden":true,"merged":[[120,7,120,20],[124,7,124,20],[124,23,131,23],[128,7,128,16],[129,8,129,10],[130,7,130,20],[119,8,119,10],[98,11,98,14],[100,7,101,16],[107,7,107,20],[109,7,109,20],[110,7,110,20],[111,7,111,20],[112,7,112,15],[115,9,115,10],[115,11,115,14],[116,9,116,10],[116,11,116,14],[79,7,79,20],[97,11,97,14],[81,15,81,16],[82,15,82,16],[83,15,83,16],[84,15,84,16],[85,15,85,16],[87,15,87,16],[88,15,88,16],[89,15,89,16],[93,7,94,16],[96,11,96,14],[96,15,96,17],[65,11,65,14],[80,15,80,16],[66,7,75,8],[66,9,71,10],[66,11,66,14],[67,11,67,14],[68,11,68,14],[69,11,69,14],[70,11,70,14],[71,11,71,14],[72,9,74,10],[72,11,72,14],[73,11,73,14],[74,11,74,14],[75,9,75,10],[75,11,75,14],[54,7,54,20],[56,7,56,8],[56,9,56,10],[56,11,56,14],[57,7,65,8],[57,9,60,10],[57,11,57,14],[58,11,58,14],[59,11,59,14],[60,11,60,14],[61,9,63,10],[61,11,61,14],[62,11,62,14],[63,11,63,14],[64,9,65,10],[64,11,64,14],[51,7,52,17],[17,4,17,6],[17,7,17,16],[19,7,19,17],[23,23,41,23],[24,7,25,17],[27,7,27,17],[29,7,29,20],[33,7,34,20],[36,7,36,20],[37,7,38,20],[40,7,40,20],[44,7,45,17],[46,7,46,20],[47,7,47,20],[48,7,48,20],[11,4,11,16],[13,4,13,6],[13,7,13,16],[13,17,17,17],[14,4,14,6],[14,7,14,16],[15,4,15,6],[15,7,15,16],[16,4,16,6],[16,7,16,16],[7,1,7,20],[7,21,7,22],[1,9,5,21],[2,26,6,31],[5,7,5,8],[6,7,6,8],[6,15,6,16]]}
[]
[null,null,null,null,null,null,null,null,null,{"$f":"\"Individuele Detailfiche - Route \" &H14&_xlfn.UNICHAR(10)& \"('\"&H15&\"')\"","v":"Individuele Detailfiche - Route 19\n('<< Gelieve de naam van Schoolroute 19 in te vullen >>')"}]
[null,null,2]
[]
[]
[]
[]
[null,"Vul in onderstaande tabel de gevraagde gegevens in, vink alle verklaringen aan die op de aanvraag van toepassing zijn. Toepasselijke bijlages geeft u een (betekenisvolle naam) – vb. raming route 123. Vermeld deze naam op de voorziene plaatsen in kolom T.  Indien één en dezelfde bijlage de info van meerdere items bundelt, leid ons dan in “kolom  U\" naar het passende paginanummer. Vergeet niet de bijlages samen met het aangevulde aanvraagformulier over te maken.",null,null,null,null,null,null,null,null,null,null,null,null,null,null,null,null,null,null,null,"Bijlagen",null,"Validatie \nMOW","Wettelijke \nverwijzing"]
[]
[null,null,null,null,null,null,null,null,null,null,null,null,null,null,null,null,null,null,null,null,"Voortgang sectie"]
[null,"0. Kostenoverzicht",null,null,null,null,null,null,null,null,null,null,null,null,null,null,null,null,null,null,{"$f":"COUNTIF(C14:D21,TRUE)/2","v":0},"Naam Bijlage","Pagina n°","Evaluatie"]
[null,null,null,null,"Details per route (Automatisch aangevuld op basis van overzicht)"]
[null,null,null,null,null,null,null,null,null,null,null,null,null,null,null,null,null,"link"]
[null,null,{"$f":"IF(1-COUNTBLANK(Aanvraagformulier!G28)-COUNTBLANK(Aanvraagformulier!N28)=1,TRUE,FALSE)","v":false},null,"Route n°",null,null,19,null,null,null,null,null,null,null,null,null,{"$f":"HYPERLINK(\"#'Aanvraagformulier'!G28\",\"Klik hier\")","v":"Klik hier"}]
[null,null,null,null,"Naam route",null,null,{"$f":"VLOOKUP(H$14,Aanvraagformulier!$F$25:$N$53,2,FALSE)","v":"<< Gelieve de naam van Schoolroute 19 in te vullen >>"}]
[]
[null,null,null,null,"Raming kosten\n (excl. BTW)",null,null,{"$f":"VLOOKUP(H$14,Aanvraagformulier!$F$25:$N$53,8,FALSE)","v":0}]
[null,null,null,null,"Raming kosten\n (incl. BTW)",null,null,{"$f":"VLOOKUP(H$14,Aanvraagformulier!$F$25:$N$53,9,FALSE)","v":0}]
[]
[null,null,false,null,null,null,null,"De raming van de kosten werd toegevoegd aan het dossier en opgenomen in de bijlage met referentie.",null,null,null,null,null,null,null,null,null,null,null,null,null,null,null,null,"Art. 7  Eerste Lid 2° (1)"]
[]
[]
[null,"1. Locatie",null,null,null,null,null,null,null,null,null,null,null,null,null,null,null,null,null,null,{"$f":"COUNTIF(C25:D41,TRUE)/6","v":0},"Naam Bijlage","Pagina n°"]
[]
[null,null,false,null,null,null,null,"De route is vermeld op het plan op schaal waarop duidelijk aangegeven is welke scholen deel uitmaken van het project en waar de geplande maatregelen voor de schoolroute of schoolroutes zullen worden uitgevoerd, dat werd toegevoegd aan het dossier.",null,null,null,null,null,null,null,null,null,null,null,null,null,null,null,null,"Art. 1 4°-5°- art. 2 §1 1° (1) "]
[]
[]
[null,null,false,null,null,null,null,"De werken worden uitgevoerd op een geldige schoolroute, die:",null,null,null,null,null,null,null,null,null,null,null,null,null,null,null,null,"Art. 2 §1 1° (1) "]
[]
[null,null,null,false,null,null,null,"i)  Eindigt waar een schoolomgeving van een school begint.",null,null,null,null,null,null,null,null,null,null,null,null,null,null,null,null,"Art. 1 5°(1) "]
[]
[null,null,null,null,null,null,null,null,null,null,"EN"]
[]
[null,null,null,false,null,null,null,"ii) Buiten een straal van 100 meter rond de schooltoegang of voorbij het eerste kruispunt aan weerzijden indien dat verder ligt dan 100 meter."]
[]
[null,null,null,null,null,null,null,null,null,null,"EN"]
[null,null,null,false]
[null,null,null,null,null,null,null,"iii) Verschillende scholieren te voet of met de fiets of bromfiets op het woon-schooltraject gebruiken tijdens de uren die voorafgaan aan de opening van de school."]
[null,null,null,null,null,null,null,null,null,null,null,null,null,null,null,null,null,null,null,null,null,null,null,null,"Art. 1 5°(1) "]
[null,null,null,null,null,null,null,null,null,null,"EN"]
[null,null,null,false,null,null,null,"iv) ligt uitsluitend op een of meer gemeentewegen"]
[]
[null,"2. Omschrijving, doel en aard der werken",null,null,null,null,null,null,null,null,null,null,null,null,null,null,null,null,null,null,{"$f":"(COUNTIF(C45:D45,TRUE)+COUNTIF(C52:D52,TRUE)+COUNTIF(C58:C82,TRUE))/5","v":0},"Naam Bijlage","Pagina n°"]
[]
[null,null,false,{"$f":"IF(OR(D47,D49),TRUE,FALSE)","v":false},null,null,null,"Uitgaven zijn erop gericht de verkeersveiligheid van schoolkinderen te verbeteren. Selecteer (enkel) de relevante uitgave(n):",null,null,null,null,null,null,null,null,null,null,null,null,null,null,null,null,"Art. 2. §1 2° (1)"]
[]
[null,null,null,false,null,null,null,"i) Uitgaven voor verkeerssignalisatie (overal).",null,null,null,null,null,null,null,null,null,null,null,null,null,null,null,null,"Art. 3 (1)"]
[null,null,null,null,null,null,null,"EN/OF",null,null,null,null,null,null,null,null,null,null,null,null,null,null,null,null,"Art. 3 (1)"]
[null,null,null,false,null,null,null,"ii) Uitgaven voor infrastructurele maatregelen die de verkeersveiligheid op de schoolroutes verhogen (excl. voor fietspaden op het BFF)."]
[]
[]
[null,null,false,null,null,null,null,"De motivering voor de keuze van de geselecteerde schoolroute of schoolroutes, bevat de verwijzing naar deze schoolroute."]
[]
[]
[null,null,null,null,null,null,null,"Type Werkzaamheden (selecteer alle werkzaamheden die van toepassing zijn)"]
[]
[null,null,null,null,null,null,null,"Hoofcategorie maatregelen ",null,"Subcategorie \nmaatregelen",null,"Gedetailleerde informatie",null,null,null,"Van toepasssing"]
[null,null,{"$f":"IF(COUNTIF(D58:D76,TRUE)>0,TRUE,FALSE)","v":false},false,null,null,null,"Signalisatie ",null,"S1. Verkeersborden",null,"Afbakening fietsstraat"]
[null,null,null,false,null,null,null,null,null,null,null,"(Dynamische) zone 30  "]
[null,null,null,false,null,null,null,null,null,null,null,"Detecterende Snelheidsinformatieborden (vb. Smileyborden, \"graag traag\")"]
[null,null,null,false,null,null,null,null,null,null,null,"Verkeersborden algemeen"]
[null,null,null,false,null,null,null,null,null,"S2. (Thermoplastische) wegmarkeringen",null,"Fietssuggestiestroken"]
[null,null,null,false,null,null,null,null,null,null,null,"Oversteekplaatsen"]
[null,null,null,false,null,null,null,null,null,null,null,"Markeringen algemeen"]
[null,null,null,false,null,null,null,null,null,"S3. (Verkeers)lichten",null,"Hardware verkeerslichten"]
[null,null,null,false,null,null,null,null,null,null,null,"Verlichting algemeen"]
[null,null,null,false,null,null,null,"Infrastructureel",null,"I1. (Her)aanleg",null,"Straatmeubilair"]
[null,null,null,false,null,null,null,null,null,null,null,"Vrijliggend fietspad"]
[null,null,null,false,null,null,null,null,null,null,null,"Aanliggende fietspad"]
[null,null,null,false,null,null,null,null,null,null,null,"Voetpad"]
[null,null,null,false,null,null,null,null,null,null,null,"Wegdek"]
[null,null,null,false,null,null,null,null,null,null,null,"Groen i.f.v. verkeersveiligheid"]
[null,null,null,false,null,null,null,null,null,"I2. Hardware",null,"Hardware handhaving (vb. ANPR Camera's)"]
[null,null,null,false,null,null,null,null,null,null,null,"Hardware beloningssysteem (eenmalig)"]
[null,null,null,false,null,null,null,null,null,null,null,"Hardware beloningssysteem (huurcontract 3j)"]
[null,null,null,false,null,null,null,null,null,"I3 Hardware en Software (Pakket)",null,"Trajectcontrole (systeem waarbij de gemiddelde snelheid over een langere afstand wordt gemeten)"]
[]
[]
[]
[null,null,null,null,null,null,null,"Allocatie Budgetraming (alloceer het budget per subcategorie die van toepassing is)"]
[null,null,null,null,null,null,null,null,null,null,null,null,null,null,null,"Raming (incl. BTW)",null,"%"]
[null,null,{"$f":"IF(R82=1,TRUE,FALSE)","v":false},{"$f":"IF(R82>1,FALSE,TRUE)","v":true},null,null,null,null,"Totaal Alle Categorieën",null,null,null,null,null,null,{"$f":"SUM(P84:Q90)","v":0},null,{"$f":"SUM(R84:R90)","v":0.95}]
[null,null,null,null,null,null,null,null,"Signalisatie"]
[null,null,null,60,null,null,null,null,null,"S1. Verkeersborden",null,null,null,null,null,{"$f":"R84*H$18","v":0},null,{"$f":"D84/100","v":0.6}]
[null,null,null,35,null,null,null,null,null,"S2. (Thermoplastische) wegmarkeringen",null,null,null,null,null,{"$f":"R85*H$18","v":0},null,{"$f":"D85/100","v":0.35}]
[null,null,null,0,null,null,null,null,null,"S3. (Verkeers)lichten",null,null,null,null,null,{"$f":"R86*H$18","v":0},null,{"$f":"D86/100","v":0}]
[null,null,null,null,null,null,null,null,"Infrastructuur"]
[null,null,null,0,null,null,null,null,null,"I1. Heraanleg",null,null,null,null,null,{"$f":"R88*H$18","v":0},null,{"$f":"D88/100","v":0}]
[null,null,null,0,null,null,null,null,null,"I2. Hardware",null,null,null,null,null,{"$f":"R89*H$18","v":0},null,{"$f":"D89/100","v":0}]
[null,null,null,0,null,null,null,null,null,"I3. Hardware en Software (Pakket)",null,null,null,null,null,{"$f":"R90*H$18","v":0},null,{"$f":"D90/100","v":0}]
[]
[null,"4. Timing",null,null,null,null,null,null,null,null,null,null,null,null,null,null,null,null,null,null,{"$f":"COUNTIF(C94:D105,TRUE)/2","v":0},"Naam Bijlage","Pagina n°"]
[]
[null,null,false,null,null,null,null,"De (geplande) werken worden uitgevoerd, rekening houdend met een voltooiingsdatum binnen de 12 maanden na de dag van beslissing van toekenning. De finale stukken zullen ten laatste 3 maanden na voormelde datum ingediend moeten worden.",null,null,null,null,null,null,null,null,null,null,null,null,null,null,null,null,"Art. 2 §3 juncto art. 3 (1)"]
[]
[]
[null,null,null,null,null,null,null,"Voorziene datum aanvang van de werken",null,null,null,null,null,null,null,{"$f":"IF(OR(ISBLANK(L97),ISBLANK(L98)),\"Gelieve beide data in te vullen\",\"\")","v":"Gelieve beide data in te vullen"}]
[null,null,null,null,null,null,null,"Voorziene datum einde van de werken"]
[null,null,null,null,null,null,null,"Duurtijd (kalenderdagen)",null,null,null,{"$f":"IF(OR(ISBLANK(L97),ISBLANK(L98)),\"Gelieve bovenstaande cellen in te vullen\",_xlfn.DAYS(L98,L97))","v":"Gelieve bovenstaande cellen in te vullen"}]
[]
[]
[]
[]
[null,null,false,null,null,null,null,"De planning van de uitvoering van de werken voor de route werd toegevoegd in bijlage met referentie.",null,null,null,null,null,null,null,null,null,null,null,null,null,null,null,null,"Art. 7  Eerste Lid 3° (1)"]
[]
[null,"5. Informatie domeinbeheerder",null,null,null,null,null,null,null,null,null,null,null,null,null,null,null,null,null,null,{"$f":"IF(C113=1,1,COUNTIF(C117:D118,TRUE)/2)","v":0},"Naam Bijlage (optioneel)","Pagina n°","Compleet?"]
[]
[null,null,false]
[]
[null,null,null,false]
[]
[]
[null,null,2,null,null,null,null,"Het volledige domein waarop de werken worden uitgevoerd, is in het beheer van de gemeente.",null,null,null,null,null,null,null,null,null,null,null,null,null,null,null,null,"Art. 7  Eerste Lid 1°-4° (1)"]
[]
[null,null,null,null,null,null,null,"Indien niet, vul aan:"]
[null,null,null,null,null,null,null,null,null,"Type",null,"Identiteit domeinbeheerder"]
[null,null,{"$f":"IF(C113=2,NOT(ISBLANK(L117)),TRUE)","v":false},null,null,null,null,null,null,"Privaat"]
[null,null,{"$f":"IF(C113=2,AND(C119=TRUE,NOT(ISBLANK(I120)),TRUE))","v":false}]
[null,null,false,null,null,null,null,"Het akkoord van deze domeinbeheerder werd als bijlage toegevoegd aan de dossieraanvraag.",null,null,null,null,null,null,null,null,null,null,null,null,null,null,null,null,"Art. 7  Eerste Lid 5° (1)"]
[null,null,null,null,null,null,null,"Bijlage*:"]
[]
[null,null,null,null,null,null,null,"* veplicht op te nemen"]
[null,"6. Optionele bijkomende informatie",null,null,null,null,null,null,null,null,null,null,null,null,null,null,null,null,null,null,null,"Naam Bijlage (optioneel)","Pagina n°"]
[]
[null,null,null,null,null,null,null,"Bijkomende toelichting"]
[null,null,null,null,null,null,null,null,null,null,null,null,null,null,null,null,null,null,null,null,null,null,null,null,"Art. 7  Eerste Lid 1° (1)"]
[]
[]
[null,null,{"$f":"IF(AND(D129=TRUE,ISBLANK(I130)),TRUE,FALSE)","v":false},false,null,null,null,"Optioneel - u kunt een verduidelijkende bijlage toevoegen ter verduidelijking/vervanging van bovenstaand veld."]
[null,null,null,null,null,null,null,"Bijlage*:"]
[]
[null,null,null,null,null,null,null,"* veplicht op te nemen indien van toepassing"]
[]
[]
[]
[null,"Voor de administratie (MOW)",null,null,null,null,null,null,null,null,null,null,null,null,null,null,"Voor de aanvrager (Naam + Functie)"]
[null,null,null,null,null,null,null,null,null,null,null,"Hide Row"]

{"sheet":"Route (20)","index":22,"n_rows":137,"n_cols":25,"rows_kept":137,"cut":false,"hidden":true,"merged":[[120,7,120,20],[124,7,124,20],[124,23,131,23],[128,7,128,16],[129,8,129,10],[130,7,130,20],[119,8,119,10],[98,11,98,14],[100,7,101,16],[107,7,107,20],[109,7,109,20],[110,7,110,20],[111,7,111,20],[112,7,112,15],[115,9,115,10],[115,11,115,14],[116,9,116,10],[116,11,116,14],[79,7,79,20],[97,11,97,14],[81,15,81,16],[82,15,82,16],[83,15,83,16],[84,15,84,16],[85,15,85,16],[87,15,87,16],[88,15,88,16],[89,15,89,16],[93,7,94,16],[96,11,96,14],[96,15,96,17],[65,11,65,14],[80,15,80,16],[66,7,75,8],[66,9,71,10],[66,11,66,14],[67,11,67,14],[68,11,68,14],[69,11,69,14],[70,11,70,14],[71,11,71,14],[72,9,74,10],[72,11,72,14],[73,11,73,14],[74,11,74,14],[75,9,75,10],[75,11,75,14],[54,7,54,20],[56,7,56,8],[56,9,56,10],[56,11,56,14],[57,7,65,8],[57,9,60,10],[57,11,57,14],[58,11,58,14],[59,11,59,14],[60,11,60,14],[61,9,63,10],[61,11,61,14],[62,11,62,14],[63,11,63,14],[64,9,65,10],[64,11,64,14],[51,7,52,17],[17,4,17,6],[17,7,17,16],[19,7,19,17],[23,23,41,23],[24,7,25,17],[27,7,27,17],[29,7,29,20],[33,7,34,20],[36,7,36,20],[37,7,38,20],[40,7,40,20],[44,7,45,17],[46,7,46,20],[47,7,47,20],[48,7,48,20],[11,4,11,16],[13,4,13,6],[13,7,13,16],[13,17,17,17],[14,4,14,6],[14,7,14,16],[15,4,15,6],[15,7,15,16],[16,4,16,6],[16,7,16,16],[7,1,7,20],[7,21,7,22],[1,9,5,21],[2,26,6,31],[5,7,5,8],[6,7,6,8],[6,15,6,16]]}
[]
[null,null,null,null,null,null,null,null,null,{"$f":"\"Individuele Detailfiche - Route \" &H14&_xlfn.UNICHAR(10)& \"('\"&H15&\"')\"","v":"Individuele Detailfiche - Route 20\n('<< Gelieve de naam van Schoolroute 20 in te vullen >>')"}]
[null,null,2]
[]
[]
[]
[]
[null,"Vul in onderstaande tabel de gevraagde gegevens in, vink alle verklaringen aan die op de aanvraag van toepassing zijn. Toepasselijke bijlages geeft u een (betekenisvolle naam) – vb. raming route 123. Vermeld deze naam op de voorziene plaatsen in kolom T.  Indien één en dezelfde bijlage de info van meerdere items bundelt, leid ons dan in “kolom  U\" naar het passende paginanummer. Vergeet niet de bijlages samen met het aangevulde aanvraagformulier over te maken.",null,null,null,null,null,null,null,null,null,null,null,null,null,null,null,null,null,null,null,"Bijlagen",null,"Validatie \nMOW","Wettelijke \nverwijzing"]
[]
[null,null,null,null,null,null,null,null,null,null,null,null,null,null,null,null,null,null,null,null,"Voortgang sectie"]
[null,"0. Kostenoverzicht",null,null,null,null,null,null,null,null,null,null,null,null,null,null,null,null,null,null,{"$f":"COUNTIF(C14:D21,TRUE)/2","v":0},"Naam Bijlage","Pagina n°","Evaluatie"]
[null,null,null,null,"Details per route (Automatisch aangevuld op basis van overzicht)"]
[null,null,null,null,null,null,null,null,null,null,null,null,null,null,null,null,null,"link"]
[null,null,{"$f":"IF(1-COUNTBLANK(Aanvraagformulier!G28)-COUNTBLANK(Aanvraagformulier!N28)=1,TRUE,FALSE)","v":false},null,"Route n°",null,null,20,null,null,null,null,null,null,null,null,null,{"$f":"HYPERLINK(\"#'Aanvraagformulier'!G28\",\"Klik hier\")","v":"Klik hier"}]
[null,null,null,null,"Naam route",null,null,{"$f":"VLOOKUP(H$14,Aanvraagformulier!$F$25:$N$53,2,FALSE)","v":"<< Gelieve de naam van Schoolroute 20 in te vullen >>"}]
[]
[null,null,null,null,"Raming kosten\n (excl. BTW)",null,null,{"$f":"VLOOKUP(H$14,Aanvraagformulier!$F$25:$N$53,8,FALSE)","v":0}]
[null,null,null,null,"Raming kosten\n (incl. BTW)",null,null,{"$f":"VLOOKUP(H$14,Aanvraagformulier!$F$25:$N$53,9,FALSE)","v":0}]
[]
[null,null,false,null,null,null,null,"De raming van de kosten werd toegevoegd aan het dossier en opgenomen in de bijlage met referentie.",null,null,null,null,null,null,null,null,null,null,null,null,null,null,null,null,"Art. 7  Eerste Lid 2° (1)"]
[]
[]
[null,"1. Locatie",null,null,null,null,null,null,null,null,null,null,null,null,null,null,null,null,null,null,{"$f":"COUNTIF(C25:D41,TRUE)/6","v":0},"Naam Bijlage","Pagina n°"]
[]
[null,null,false,null,null,null,null,"De route is vermeld op het plan op schaal waarop duidelijk aangegeven is welke scholen deel uitmaken van het project en waar de geplande maatregelen voor de schoolroute of schoolroutes zullen worden uitgevoerd, dat werd toegevoegd aan het dossier.",null,null,null,null,null,null,null,null,null,null,null,null,null,null,null,null,"Art. 1 4°-5°- art. 2 §1 1° (1) "]
[]
[]
[null,null,false,null,null,null,null,"De werken worden uitgevoerd op een geldige schoolroute, die:",null,null,null,null,null,null,null,null,null,null,null,null,null,null,null,null,"Art. 2 §1 1° (1) "]
[]
[null,null,null,false,null,null,null,"i)  Eindigt waar een schoolomgeving van een school begint.",null,null,null,null,null,null,null,null,null,null,null,null,null,null,null,null,"Art. 1 5°(1) "]
[]
[null,null,null,null,null,null,null,null,null,null,"EN"]
[]
[null,null,null,false,null,null,null,"ii) Buiten een straal van 100 meter rond de schooltoegang of voorbij het eerste kruispunt aan weerzijden indien dat verder ligt dan 100 meter."]
[]
[null,null,null,null,null,null,null,null,null,null,"EN"]
[null,null,null,false]
[null,null,null,null,null,null,null,"iii) Verschillende scholieren te voet of met de fiets of bromfiets op het woon-schooltraject gebruiken tijdens de uren die voorafgaan aan de opening van de school."]
[null,null,null,null,null,null,null,null,null,null,null,null,null,null,null,null,null,null,null,null,null,null,null,null,"Art. 1 5°(1) "]
[null,null,null,null,null,null,null,null,null,null,"EN"]
[null,null,null,false,null,null,null,"iv) ligt uitsluitend op een of meer gemeentewegen"]
[]
[null,"2. Omschrijving, doel en aard der werken",null,null,null,null,null,null,null,null,null,null,null,null,null,null,null,null,null,null,{"$f":"(COUNTIF(C45:D45,TRUE)+COUNTIF(C52:D52,TRUE)+COUNTIF(C58:C82,TRUE))/5","v":0},"Naam Bijlage","Pagina n°"]
[]
[null,null,false,{"$f":"IF(OR(D47,D49),TRUE,FALSE)","v":false},null,null,null,"Uitgaven zijn erop gericht de verkeersveiligheid van schoolkinderen te verbeteren. Selecteer (enkel) de relevante uitgave(n):",null,null,null,null,null,null,null,null,null,null,null,null,null,null,null,null,"Art. 2. §1 2° (1)"]
[]
[null,null,null,false,null,null,null,"i) Uitgaven voor verkeerssignalisatie (overal).",null,null,null,null,null,null,null,null,null,null,null,null,null,null,null,null,"Art. 3 (1)"]
[null,null,null,null,null,null,null,"EN/OF",null,null,null,null,null,null,null,null,null,null,null,null,null,null,null,null,"Art. 3 (1)"]
[null,null,null,false,null,null,null,"ii) Uitgaven voor infrastructurele maatregelen die de verkeersveiligheid op de schoolroutes verhogen (excl. voor fietspaden op het BFF)."]
[]
[]
[null,null,false,null,null,null,null,"De motivering voor de keuze van de geselecteerde schoolroute of schoolroutes, bevat de verwijzing naar deze schoolroute."]
[]
[]
[null,null,null,null,null,null,null,"Type Werkzaamheden (selecteer alle werkzaamheden die van toepassing zijn)"]
[]
[null,null,null,null,null,null,null,"Hoofcategorie maatregelen ",null,"Subcategorie \nmaatregelen",null,"Gedetailleerde informatie",null,null,null,"Van toepasssing"]
[null,null,{"$f":"IF(COUNTIF(D58:D76,TRUE)>0,TRUE,FALSE)","v":false},false,null,null,null,"Signalisatie ",null,"S1. Verkeersborden",null,"Afbakening fietsstraat"]
[null,null,null,false,null,null,null,null,null,null,null,"(Dynamische) zone 30  "]
[null,null,null,false,null,null,null,null,null,null,null,"Detecterende Snelheidsinformatieborden (vb. Smileyborden, \"graag traag\")"]
[null,null,null,false,null,null,null,null,null,null,null,"Verkeersborden algemeen"]
[null,null,null,false,null,null,null,null,null,"S2. (Thermoplastische) wegmarkeringen",null,"Fietssuggestiestroken"]
[null,null,null,false,null,null,null,null,null,null,null,"Oversteekplaatsen"]
[null,null,null,false,null,null,null,null,null,null,null,"Markeringen algemeen"]
[null,null,null,false,null,null,null,null,null,"S3. (Verkeers)lichten",null,"Hardware verkeerslichten"]
[null,null,null,false,null,null,null,null,null,null,null,"Verlichting algemeen"]
[null,null,null,false,null,null,null,"Infrastructureel",null,"I1. (Her)aanleg",null,"Straatmeubilair"]
[null,null,null,false,null,null,null,null,null,null,null,"Vrijliggend fietspad"]
[null,null,null,false,null,null,null,null,null,null,null,"Aanliggende fietspad"]
[null,null,null,false,null,null,null,null,null,null,null,"Voetpad"]
[null,null,null,false,null,null,null,null,null,null,null,"Wegdek"]
[null,null,null,false,null,null,null,null,null,null,null,"Groen i.f.v. verkeersveiligheid"]
[null,null,null,false,null,null,null,null,null,"I2. Hardware",null,"Hardware handhaving (vb. ANPR Camera's)"]
[null,null,null,false,null,null,null,null,null,null,null,"Hardware beloningssysteem (eenmalig)"]
[null,null,null,false,null,null,null,null,null,null,null,"Hardware beloningssysteem (huurcontract 3j)"]
[null,null,null,false,null,null,null,null,null,"I3 Hardware en Software (Pakket)",null,"Trajectcontrole (systeem waarbij de gemiddelde snelheid over een langere afstand wordt gemeten)"]
[]
[]
[]
[null,null,null,null,null,null,null,"Allocatie Budgetraming (alloceer het budget per subcategorie die van toepassing is)"]
[null,null,null,null,null,null,null,null,null,null,null,null,null,null,null,"Raming (incl. BTW)",null,"%"]
[null,null,{"$f":"IF(R82=1,TRUE,FALSE)","v":false},{"$f":"IF(R82>1,FALSE,TRUE)","v":true},null,null,null,null,"Totaal Alle Categorieën",null,null,null,null,null,null,{"$f":"SUM(P84:Q90)","v":0},null,{"$f":"SUM(R84:R90)","v":0.95}]
[null,null,null,null,null,null,null,null,"Signalisatie"]
[null,null,null,60,null,null,null,null,null,"S1. Verkeersborden",null,null,null,null,null,{"$f":"R84*H$18","v":0},null,{"$f":"D84/100","v":0.6}]
[null,null,null,35,null,null,null,null,null,"S2. (Thermoplastische) wegmarkeringen",null,null,null,null,null,{"$f":"R85*H$18","v":0},null,{"$f":"D85/100","v":0.35}]
[null,null,null,0,null,null,null,null,null,"S3. (Verkeers)lichten",null,null,null,null,null,{"$f":"R86*H$18","v":0},null,{"$f":"D86/100","v":0}]
[null,null,null,null,null,null,null,null,"Infrastructuur"]
[null,null,null,0,null,null,null,null,null,"I1. Heraanleg",null,null,null,null,null,{"$f":"R88*H$18","v":0},null,{"$f":"D88/100","v":0}]
[null,null,null,0,null,null,null,null,null,"I2. Hardware",null,null,null,null,null,{"$f":"R89*H$18","v":0},null,{"$f":"D89/100","v":0}]
[null,null,null,0,null,null,null,null,null,"I3. Hardware en Software (Pakket)",null,null,null,null,null,{"$f":"R90*H$18","v":0},null,{"$f":"D90/100","v":0}]
[]
[null,"4. Timing",null,null,null,null,null,null,null,null,null,null,null,null,null,null,null,null,null,null,{"$f":"COUNTIF(C94:D105,TRUE)/2","v":0},"Naam Bijlage","Pagina n°"]
[]
[null,null,false,null,null,null,null,"De (geplande) werken worden uitgevoerd, rekening houdend met een voltooiingsdatum binnen de 12 maanden na de dag van beslissing van toekenning. De finale stukken zullen ten laatste 3 maanden na voormelde datum ingediend moeten worden.",null,null,null,null,null,null,null,null,null,null,null,null,null,null,null,null,"Art. 2 §3 juncto art. 3 (1)"]
[]
[]
[null,null,null,null,null,null,null,"Voorziene datum aanvang van de werken",null,null,null,null,null,null,null,{"$f":"IF(OR(ISBLANK(L97),ISBLANK(L98)),\"Gelieve beide data in te vullen\",\"\")","v":"Gelieve beide data in te vullen"}]
[null,null,null,null,null,null,null,"Voorziene datum einde van de werken"]
[null,null,null,null,null,null,null,"Duurtijd (kalenderdagen)",null,null,null,{"$f":"IF(OR(ISBLANK(L97),ISBLANK(L98)),\"Gelieve bovenstaande cellen in te vullen\",_xlfn.DAYS(L98,L97))","v":"Gelieve bovenstaande cellen in te vullen"}]
[]
[]
[]
[]
[null,null,false,null,null,null,null,"De planning van de uitvoering van de werken voor de route werd toegevoegd in bijlage met referentie.",null,null,null,null,null,null,null,null,null,null,null,null,null,null,null,null,"Art. 7  Eerste Lid 3° (1)"]
[]
[null,"5. Informatie domeinbeheerder",null,null,null,null,null,null,null,null,null,null,null,null,null,null,null,null,null,null,{"$f":"IF(C113=1,1,COUNTIF(C117:D118,TRUE)/2)","v":0},"Naam Bijlage (optioneel)","Pagina n°","Compleet?"]
[]
[null,null,false]
[]
[null,null,null,false]
[]
[]
[null,null,2,null,null,null,null,"Het volledige domein waarop de werken worden uitgevoerd, is in het beheer van de gemeente.",null,null,null,null,null,null,null,null,null,null,null,null,null,null,null,null,"Art. 7  Eerste Lid 1°-4° (1)"]
[]
[null,null,null,null,null,null,null,"Indien niet, vul aan:"]
[null,null,null,null,null,null,null,null,null,"Type",null,"Identiteit domeinbeheerder"]
[null,null,{"$f":"IF(C113=2,NOT(ISBLANK(L117)),TRUE)","v":false},null,null,null,null,null,null,"Privaat"]
[null,null,{"$f":"IF(C113=2,AND(C119=TRUE,NOT(ISBLANK(I120)),TRUE))","v":false}]
[null,null,false,null,null,null,null,"Het akkoord van deze domeinbeheerder werd als bijlage toegevoegd aan de dossieraanvraag.",null,null,null,null,null,null,null,null,null,null,null,null,null,null,null,null,"Art. 7  Eerste Lid 5° (1)"]
[null,null,null,null,null,null,null,"Bijlage*:"]
[]
[null,null,null,null,null,null,null,"* veplicht op te nemen"]
[null,"6. Optionele bijkomende informatie",null,null,null,null,null,null,null,null,null,null,null,null,null,null,null,null,null,null,null,"Naam Bijlage (optioneel)","Pagina n°"]
[]
[null,null,null,null,null,null,null,"Bijkomende toelichting"]
[null,null,null,null,null,null,null,null,null,null,null,null,null,null,null,null,null,null,null,null,null,null,null,null,"Art. 7  Eerste Lid 1° (1)"]
[]
[]
[null,null,{"$f":"IF(AND(D129=TRUE,ISBLANK(I130)),TRUE,FALSE)","v":false},false,null,null,null,"Optioneel - u kunt een verduidelijkende bijlage toevoegen ter verduidelijking/vervanging van bovenstaand veld."]
[null,null,null,null,null,null,null,"Bijlage*:"]
[]
[null,null,null,null,null,null,null,"* veplicht op te nemen indien van toepassing"]
[]
[]
[]
[null,"Voor de administratie (MOW)",null,null,null,null,null,null,null,null,null,null,null,null,null,null,"Voor de aanvrager (Naam + Functie)"]
[null,null,null,null,null,null,null,null,null,null,null,"Hide Row"]

{"sheet":"Route (21)","index":23,"n_rows":137,"n_cols":25,"rows_kept":137,"cut":false,"hidden":true,"merged":[[120,7,120,20],[124,7,124,20],[124,23,131,23],[128,7,128,16],[129,8,129,10],[130,7,130,20],[119,8,119,10],[98,11,98,14],[100,7,101,16],[107,7,107,20],[109,7,109,20],[110,7,110,20],[111,7,111,20],[112,7,112,15],[115,9,115,10],[115,11,115,14],[116,9,116,10],[116,11,116,14],[79,7,79,20],[97,11,97,14],[81,15,81,16],[82,15,82,16],[83,15,83,16],[84,15,84,16],[85,15,85,16],[87,15,87,16],[88,15,88,16],[89,15,89,16],[93,7,94,16],[96,11,96,14],[96,15,96,17],[65,11,65,14],[80,15,80,16],[66,7,75,8],[66,9,71,10],[66,11,66,14],[67,11,67,14],[68,11,68,14],[69,11,69,14],[70,11,70,14],[71,11,71,14],[72,9,74,10],[72,11,72,14],[73,11,73,14],[74,11,74,14],[75,9,75,10],[75,11,75,14],[54,7,54,20],[56,7,56,8],[56,9,56,10],[56,11,56,14],[57,7,65,8],[57,9,60,10],[57,11,57,14],[58,11,58,14],[59,11,59,14],[60,11,60,14],[61,9,63,10],[61,11,61,14],[62,11,62,14],[63,11,63,14],[64,9,65,10],[64,11,64,14],[51,7,52,17],[17,4,17,6],[17,7,17,16],[19,7,19,17],[23,23,41,23],[24,7,25,17],[27,7,27,17],[29,7,29,20],[33,7,34,20],[36,7,36,20],[37,7,38,20],[40,7,40,20],[44,7,45,17],[46,7,46,20],[47,7,47,20],[48,7,48,20],[11,4,11,16],[13,4,13,6],[13,7,13,16],[13,17,17,17],[14,4,14,6],[14,7,14,16],[15,4,15,6],[15,7,15,16],[16,4,16,6],[16,7,16,16],[7,1,7,20],[7,21,7,22],[1,9,5,21],[2,26,6,31],[5,7,5,8],[6,7,6,8],[6,15,6,16]]}
[]
[null,null,null,null,null,null,null,null,null,{"$f":"\"Individuele Detailfiche - Route \" &H14&_xlfn.UNICHAR(10)& \"('\"&H15&\"')\"","v":"Individuele Detailfiche - Route 21\n('<< Gelieve de naam van Schoolroute 21 in te vullen >>')"}]
[null,null,2]
[]
[]
[]
[]
[null,"Vul in onderstaande tabel de gevraagde gegevens in, vink alle verklaringen aan die op de aanvraag van toepassing zijn. Toepasselijke bijlages geeft u een (betekenisvolle naam) – vb. raming route 123. Vermeld deze naam op de voorziene plaatsen in kolom T.  Indien één en dezelfde bijlage de info van meerdere items bundelt, leid ons dan in “kolom  U\" naar het passende paginanummer. Vergeet niet de bijlages samen met het aangevulde aanvraagformulier over te maken.",null,null,null,null,null,null,null,null,null,null,null,null,null,null,null,null,null,null,null,"Bijlagen",null,"Validatie \nMOW","Wettelijke \nverwijzing"]
[]
[null,null,null,null,null,null,null,null,null,null,null,null,null,null,null,null,null,null,null,null,"Voortgang sectie"]
[null,"0. Kostenoverzicht",null,null,null,null,null,null,null,null,null,null,null,null,null,null,null,null,null,null,{"$f":"COUNTIF(C14:D21,TRUE)/2","v":0},"Naam Bijlage","Pagina n°","Evaluatie"]
[null,null,null,null,"Details per route (Automatisch aangevuld op basis van overzicht)"]
[null,null,null,null,null,null,null,null,null,null,null,null,null,null,null,null,null,"link"]
[null,null,{"$f":"IF(1-COUNTBLANK(Aanvraagformulier!G28)-COUNTBLANK(Aanvraagformulier!N28)=1,TRUE,FALSE)","v":false},null,"Route n°",null,null,21,null,null,null,null,null,null,null,null,null,{"$f":"HYPERLINK(\"#'Aanvraagformulier'!G28\",\"Klik hier\")","v":"Klik hier"}]
[null,null,null,null,"Naam route",null,null,{"$f":"VLOOKUP(H$14,Aanvraagformulier!$F$25:$N$53,2,FALSE)","v":"<< Gelieve de naam van Schoolroute 21 in te vullen >>"}]
[]
[null,null,null,null,"Raming kosten\n (excl. BTW)",null,null,{"$f":"VLOOKUP(H$14,Aanvraagformulier!$F$25:$N$53,8,FALSE)","v":0}]
[null,null,null,null,"Raming kosten\n (incl. BTW)",null,null,{"$f":"VLOOKUP(H$14,Aanvraagformulier!$F$25:$N$53,9,FALSE)","v":0}]
[]
[null,null,false,null,null,null,null,"De raming van de kosten werd toegevoegd aan het dossier en opgenomen in de bijlage met referentie.",null,null,null,null,null,null,null,null,null,null,null,null,null,null,null,null,"Art. 7  Eerste Lid 2° (1)"]
[]
[]
[null,"1. Locatie",null,null,null,null,null,null,null,null,null,null,null,null,null,null,null,null,null,null,{"$f":"COUNTIF(C25:D41,TRUE)/6","v":0},"Naam Bijlage","Pagina n°"]
[]
[null,null,false,null,null,null,null,"De route is vermeld op het plan op schaal waarop duidelijk aangegeven is welke scholen deel uitmaken van het project en waar de geplande maatregelen voor de schoolroute of schoolroutes zullen worden uitgevoerd, dat werd toegevoegd aan het dossier.",null,null,null,null,null,null,null,null,null,null,null,null,null,null,null,null,"Art. 1 4°-5°- art. 2 §1 1° (1) "]
[]
[]
[null,null,false,null,null,null,null,"De werken worden uitgevoerd op een geldige schoolroute, die:",null,null,null,null,null,null,null,null,null,null,null,null,null,null,null,null,"Art. 2 §1 1° (1) "]
[]
[null,null,null,false,null,null,null,"i)  Eindigt waar een schoolomgeving van een school begint.",null,null,null,null,null,null,null,null,null,null,null,null,null,null,null,null,"Art. 1 5°(1) "]
[]
[null,null,null,null,null,null,null,null,null,null,"EN"]
[]
[null,null,null,false,null,null,null,"ii) Buiten een straal van 100 meter rond de schooltoegang of voorbij het eerste kruispunt aan weerzijden indien dat verder ligt dan 100 meter."]
[]
[null,null,null,null,null,null,null,null,null,null,"EN"]
[null,null,null,false]
[null,null,null,null,null,null,null,"iii) Verschillende scholieren te voet of met de fiets of bromfiets op het woon-schooltraject gebruiken tijdens de uren die voorafgaan aan de opening van de school."]
[null,null,null,null,null,null,null,null,null,null,null,null,null,null,null,null,null,null,null,null,null,null,null,null,"Art. 1 5°(1) "]
[null,null,null,null,null,null,null,null,null,null,"EN"]
[null,null,null,false,null,null,null,"iv) ligt uitsluitend op een of meer gemeentewegen"]
[]
[null,"2. Omschrijving, doel en aard der werken",null,null,null,null,null,null,null,null,null,null,null,null,null,null,null,null,null,null,{"$f":"(COUNTIF(C45:D45,TRUE)+COUNTIF(C52:D52,TRUE)+COUNTIF(C58:C82,TRUE))/5","v":0},"Naam Bijlage","Pagina n°"]
[]
[null,null,false,{"$f":"IF(OR(D47,D49),TRUE,FALSE)","v":false},null,null,null,"Uitgaven zijn erop gericht de verkeersveiligheid van schoolkinderen te verbeteren. Selecteer (enkel) de relevante uitgave(n):",null,null,null,null,null,null,null,null,null,null,null,null,null,null,null,null,"Art. 2. §1 2° (1)"]
[]
[null,null,null,false,null,null,null,"i) Uitgaven voor verkeerssignalisatie (overal).",null,null,null,null,null,null,null,null,null,null,null,null,null,null,null,null,"Art. 3 (1)"]
[null,null,null,null,null,null,null,"EN/OF",null,null,null,null,null,null,null,null,null,null,null,null,null,null,null,null,"Art. 3 (1)"]
[null,null,null,false,null,null,null,"ii) Uitgaven voor infrastructurele maatregelen die de verkeersveiligheid op de schoolroutes verhogen (excl. voor fietspaden op het BFF)."]
[]
[]
[null,null,false,null,null,null,null,"De motivering voor de keuze van de geselecteerde schoolroute of schoolroutes, bevat de verwijzing naar deze schoolroute."]
[]
[]
[null,null,null,null,null,null,null,"Type Werkzaamheden (selecteer alle werkzaamheden die van toepassing zijn)"]
[]
[null,null,null,null,null,null,null,"Hoofcategorie maatregelen ",null,"Subcategorie \nmaatregelen",null,"Gedetailleerde informatie",null,null,null,"Van toepasssing"]
[null,null,{"$f":"IF(COUNTIF(D58:D76,TRUE)>0,TRUE,FALSE)","v":false},false,null,null,null,"Signalisatie ",null,"S1. Verkeersborden",null,"Afbakening fietsstraat"]
[null,null,null,false,null,null,null,null,null,null,null,"(Dynamische) zone 30  "]
[null,null,null,false,null,null,null,null,null,null,null,"Detecterende Snelheidsinformatieborden (vb. Smileyborden, \"graag traag\")"]
[null,null,null,false,null,null,null,null,null,null,null,"Verkeersborden algemeen"]
[null,null,null,false,null,null,null,null,null,"S2. (Thermoplastische) wegmarkeringen",null,"Fietssuggestiestroken"]
[null,null,null,false,null,null,null,null,null,null,null,"Oversteekplaatsen"]
[null,null,null,false,null,null,null,null,null,null,null,"Markeringen algemeen"]
[null,null,null,false,null,null,null,null,null,"S3. (Verkeers)lichten",null,"Hardware verkeerslichten"]
[null,null,null,false,null,null,null,null,null,null,null,"Verlichting algemeen"]
[null,null,null,false,null,null,null,"Infrastructureel",null,"I1. (Her)aanleg",null,"Straatmeubilair"]
[null,null,null,false,null,null,null,null,null,null,null,"Vrijliggend fietspad"]
[null,null,null,false,null,null,null,null,null,null,null,"Aanliggende fietspad"]
[null,null,null,false,null,null,null,null,null,null,null,"Voetpad"]
[null,null,null,false,null,null,null,null,null,null,null,"Wegdek"]
[null,null,null,false,null,null,null,null,null,null,null,"Groen i.f.v. verkeersveiligheid"]
[null,null,null,false,null,null,null,null,null,"I2. Hardware",null,"Hardware handhaving (vb. ANPR Camera's)"]
[null,null,null,false,null,null,null,null,null,null,null,"Hardware beloningssysteem (eenmalig)"]
[null,null,null,false,null,null,null,null,null,null,null,"Hardware beloningssysteem (huurcontract 3j)"]
[null,null,null,false,null,null,null,null,null,"I3 Hardware en Software (Pakket)",null,"Trajectcontrole (systeem waarbij de gemiddelde snelheid over een langere afstand wordt gemeten)"]
[]
[]
[]
[null,null,null,null,null,null,null,"Allocatie Budgetraming (alloceer het budget per subcategorie die van toepassing is)"]
[null,null,null,null,null,null,null,null,null,null,null,null,null,null,null,"Raming (incl. BTW)",null,"%"]
[null,null,{"$f":"IF(R82=1,TRUE,FALSE)","v":false},{"$f":"IF(R82>1,FALSE,TRUE)","v":true},null,null,null,null,"Totaal Alle Categorieën",null,null,null,null,null,null,{"$f":"SUM(P84:Q90)","v":0},null,{"$f":"SUM(R84:R90)","v":0.95}]
[null,null,null,null,null,null,null,null,"Signalisatie"]
[null,null,null,60,null,null,null,null,null,"S1. Verkeersborden",null,null,null,null,null,{"$f":"R84*H$18","v":0},null,{"$f":"D84/100","v":0.6}]
[null,null,null,35,null,null,null,null,null,"S2. (Thermoplastische) wegmarkeringen",null,null,null,null,null,{"$f":"R85*H$18","v":0},null,{"$f":"D85/100","v":0.35}]
[null,null,null,0,null,null,null,null,null,"S3. (Verkeers)lichten",null,null,null,null,null,{"$f":"R86*H$18","v":0},null,{"$f":"D86/100","v":0}]
[null,null,null,null,null,null,null,null,"Infrastructuur"]
[null,null,null,0,null,null,null,null,null,"I1. Heraanleg",null,null,null,null,null,{"$f":"R88*H$18","v":0},null,{"$f":"D88/100","v":0}]
[null,null,null,0,null,null,null,null,null,"I2. Hardware",null,null,null,null,null,{"$f":"R89*H$18","v":0},null,{"$f":"D89/100","v":0}]
[null,null,null,0,null,null,null,null,null,"I3. Hardware en Software (Pakket)",null,null,null,null,null,{"$f":"R90*H$18","v":0},null,{"$f":"D90/100","v":0}]
[]
[null,"4. Timing",null,null,null,null,null,null,null,null,null,null,null,null,null,null,null,null,null,null,{"$f":"COUNTIF(C94:D105,TRUE)/2","v":0},"Naam Bijlage","Pagina n°"]
[]
[null,null,false,null,null,null,null,"De (geplande) werken worden uitgevoerd, rekening houdend met een voltooiingsdatum binnen de 12 maanden na de dag van beslissing van toekenning. De finale stukken zullen ten laatste 3 maanden na voormelde datum ingediend moeten worden.",null,null,null,null,null,null,null,null,null,null,null,null,null,null,null,null,"Art. 2 §3 juncto art. 3 (1)"]
[]
[]
[null,null,null,null,null,null,null,"Voorziene datum aanvang van de werken",null,null,null,null,null,null,null,{"$f":"IF(OR(ISBLANK(L97),ISBLANK(L98)),\"Gelieve beide data in te vullen\",\"\")","v":"Gelieve beide data in te vullen"}]
[null,null,null,null,null,null,null,"Voorziene datum einde van de werken"]
[null,null,null,null,null,null,null,"Duurtijd (kalenderdagen)",null,null,null,{"$f":"IF(OR(ISBLANK(L97),ISBLANK(L98)),\"Gelieve bovenstaande cellen in te vullen\",_xlfn.DAYS(L98,L97))","v":"Gelieve bovenstaande cellen in te vullen"}]
[]
[]
[]
[]
[null,null,false,null,null,null,null,"De planning van de uitvoering van de werken voor de route werd toegevoegd in bijlage met referentie.",null,null,null,null,null,null,null,null,null,null,null,null,null,null,null,null,"Art. 7  Eerste Lid 3° (1)"]
[]
[null,"5. Informatie domeinbeheerder",null,null,null,null,null,null,null,null,null,null,null,null,null,null,null,null,null,null,{"$f":"IF(C113=1,1,COUNTIF(C117:D118,TRUE)/2)","v":0},"Naam Bijlage (optioneel)","Pagina n°","Compleet?"]
[]
[null,null,false]
[]
[null,null,null,false]
[]
[]
[null,null,2,null,null,null,null,"Het volledige domein waarop de werken worden uitgevoerd, is in het beheer van de gemeente.",null,null,null,null,null,null,null,null,null,null,null,null,null,null,null,null,"Art. 7  Eerste Lid 1°-4° (1)"]
[]
[null,null,null,null,null,null,null,"Indien niet, vul aan:"]
[null,null,null,null,null,null,null,null,null,"Type",null,"Identiteit domeinbeheerder"]
[null,null,{"$f":"IF(C113=2,NOT(ISBLANK(L117)),TRUE)","v":false},null,null,null,null,null,null,"Privaat"]
[null,null,{"$f":"IF(C113=2,AND(C119=TRUE,NOT(ISBLANK(I120)),TRUE))","v":false}]
[null,null,false,null,null,null,null,"Het akkoord van deze domeinbeheerder werd als bijlage toegevoegd aan de dossieraanvraag.",null,null,null,null,null,null,null,null,null,null,null,null,null,null,null,null,"Art. 7  Eerste Lid 5° (1)"]
[null,null,null,null,null,null,null,"Bijlage*:"]
[]
[null,null,null,null,null,null,null,"* veplicht op te nemen"]
[null,"6. Optionele bijkomende informatie",null,null,null,null,null,null,null,null,null,null,null,null,null,null,null,null,null,null,null,"Naam Bijlage (optioneel)","Pagina n°"]
[]
[null,null,null,null,null,null,null,"Bijkomende toelichting"]
[null,null,null,null,null,null,null,null,null,null,null,null,null,null,null,null,null,null,null,null,null,null,null,null,"Art. 7  Eerste Lid 1° (1)"]
[]
[]
[null,null,{"$f":"IF(AND(D129=TRUE,ISBLANK(I130)),TRUE,FALSE)","v":false},false,null,null,null,"Optioneel - u kunt een verduidelijkende bijlage toevoegen ter verduidelijking/vervanging van bovenstaand veld."]
[null,null,null,null,null,null,null,"Bijlage*:"]
[]
[null,null,null,null,null,null,null,"* veplicht op te nemen indien van toepassing"]
[]
[]
[]
[null,"Voor de administratie (MOW)",null,null,null,null,null,null,null,null,null,null,null,null,null,null,"Voor de aanvrager (Naam + Functie)"]
[null,null,null,null,null,null,null,null,null,null,null,"Hide Row"]

{"sheet":"Route (22)","index":24,"n_rows":137,"n_cols":25,"rows_kept":137,"cut":false,"hidden":true,"merged":[[120,7,120,20],[124,7,124,20],[124,23,131,23],[128,7,128,16],[129,8,129,10],[130,7,130,20],[119,8,119,10],[98,11,98,14],[100,7,101,16],[107,7,107,20],[109,7,109,20],[110,7,110,20],[111,7,111,20],[112,7,112,15],[115,9,115,10],[115,11,115,14],[116,9,116,10],[116,11,116,14],[79,7,79,20],[97,11,97,14],[81,15,81,16],[82,15,82,16],[83,15,83,16],[84,15,84,16],[85,15,85,16],[87,15,87,16],[88,15,88,16],[89,15,89,16],[93,7,94,16],[96,11,96,14],[96,15,96,17],[65,11,65,14],[80,15,80,16],[66,7,75,8],[66,9,71,10],[66,11,66,14],[67,11,67,14],[68,11,68,14],[69,11,69,14],[70,11,70,14],[71,11,71,14],[72,9,74,10],[72,11,72,14],[73,11,73,14],[74,11,74,14],[75,9,75,10],[75,11,75,14],[54,7,54,20],[56,7,56,8],[56,9,56,10],[56,11,56,14],[57,7,65,8],[57,9,60,10],[57,11,57,14],[58,11,58,14],[59,11,59,14],[60,11,60,14],[61,9,63,10],[61,11,61,14],[62,11,62,14],[63,11,63,14],[64,9,65,10],[64,11,64,14],[51,7,52,17],[17,4,17,6],[17,7,17,16],[19,7,19,17],[23,23,41,23],[24,7,25,17],[27,7,27,17],[29,7,29,20],[33,7,34,20],[36,7,36,20],[37,7,38,20],[40,7,40,20],[44,7,45,17],[46,7,46,20],[47,7,47,20],[48,7,48,20],[11,4,11,16],[13,4,13,6],[13,7,13,16],[13,17,17,17],[14,4,14,6],[14,7,14,16],[15,4,15,6],[15,7,15,16],[16,4,16,6],[16,7,16,16],[7,1,7,20],[7,21,7,22],[1,9,5,21],[2,26,6,31],[5,7,5,8],[6,7,6,8],[6,15,6,16]]}
[]
[null,null,null,null,null,null,null,null,null,{"$f":"\"Individuele Detailfiche - Route \" &H14&_xlfn.UNICHAR(10)& \"('\"&H15&\"')\"","v":"Individuele Detailfiche - Route 22\n('<< Gelieve de naam van Schoolroute 22 in te vullen >>')"}]
[null,null,2]
[]
[]
[]
[]
[null,"Vul in onderstaande tabel de gevraagde gegevens in, vink alle verklaringen aan die op de aanvraag van toepassing zijn. Toepasselijke bijlages geeft u een (betekenisvolle naam) – vb. raming route 123. Vermeld deze naam op de voorziene plaatsen in kolom T.  Indien één en dezelfde bijlage de info van meerdere items bundelt, leid ons dan in “kolom  U\" naar het passende paginanummer. Vergeet niet de bijlages samen met het aangevulde aanvraagformulier over te maken.",null,null,null,null,null,null,null,null,null,null,null,null,null,null,null,null,null,null,null,"Bijlagen",null,"Validatie \nMOW","Wettelijke \nverwijzing"]
[]
[null,null,null,null,null,null,null,null,null,null,null,null,null,null,null,null,null,null,null,null,"Voortgang sectie"]
[null,"0. Kostenoverzicht",null,null,null,null,null,null,null,null,null,null,null,null,null,null,null,null,null,null,{"$f":"COUNTIF(C14:D21,TRUE)/2","v":0},"Naam Bijlage","Pagina n°","Evaluatie"]
[null,null,null,null,"Details per route (Automatisch aangevuld op basis van overzicht)"]
[null,null,null,null,null,null,null,null,null,null,null,null,null,null,null,null,null,"link"]
[null,null,{"$f":"IF(1-COUNTBLANK(Aanvraagformulier!G28)-COUNTBLANK(Aanvraagformulier!N28)=1,TRUE,FALSE)","v":false},null,"Route n°",null,null,22,null,null,null,null,null,null,null,null,null,{"$f":"HYPERLINK(\"#'Aanvraagformulier'!G28\",\"Klik hier\")","v":"Klik hier"}]
[null,null,null,null,"Naam route",null,null,{"$f":"VLOOKUP(H$14,Aanvraagformulier!$F$25:$N$53,2,FALSE)","v":"<< Gelieve de naam van Schoolroute 22 in te vullen >>"}]
[]
[null,null,null,null,"Raming kosten\n (excl. BTW)",null,null,{"$f":"VLOOKUP(H$14,Aanvraagformulier!$F$25:$N$53,8,FALSE)","v":0}]
[null,null,null,null,"Raming kosten\n (incl. BTW)",null,null,{"$f":"VLOOKUP(H$14,Aanvraagformulier!$F$25:$N$53,9,FALSE)","v":0}]
[]
[null,null,false,null,null,null,null,"De raming van de kosten werd toegevoegd aan het dossier en opgenomen in de bijlage met referentie.",null,null,null,null,null,null,null,null,null,null,null,null,null,null,null,null,"Art. 7  Eerste Lid 2° (1)"]
[]
[]
[null,"1. Locatie",null,null,null,null,null,null,null,null,null,null,null,null,null,null,null,null,null,null,{"$f":"COUNTIF(C25:D41,TRUE)/6","v":0},"Naam Bijlage","Pagina n°"]
[]
[null,null,false,null,null,null,null,"De route is vermeld op het plan op schaal waarop duidelijk aangegeven is welke scholen deel uitmaken van het project en waar de geplande maatregelen voor de schoolroute of schoolroutes zullen worden uitgevoerd, dat werd toegevoegd aan het dossier.",null,null,null,null,null,null,null,null,null,null,null,null,null,null,null,null,"Art. 1 4°-5°- art. 2 §1 1° (1) "]
[]
[]
[null,null,false,null,null,null,null,"De werken worden uitgevoerd op een geldige schoolroute, die:",null,null,null,null,null,null,null,null,null,null,null,null,null,null,null,null,"Art. 2 §1 1° (1) "]
[]
[null,null,null,false,null,null,null,"i)  Eindigt waar een schoolomgeving van een school begint.",null,null,null,null,null,null,null,null,null,null,null,null,null,null,null,null,"Art. 1 5°(1) "]
[]
[null,null,null,null,null,null,null,null,null,null,"EN"]
[]
[null,null,null,false,null,null,null,"ii) Buiten een straal van 100 meter rond de schooltoegang of voorbij het eerste kruispunt aan weerzijden indien dat verder ligt dan 100 meter."]
[]
[null,null,null,null,null,null,null,null,null,null,"EN"]
[null,null,null,false]
[null,null,null,null,null,null,null,"iii) Verschillende scholieren te voet of met de fiets of bromfiets op het woon-schooltraject gebruiken tijdens de uren die voorafgaan aan de opening van de school."]
[null,null,null,null,null,null,null,null,null,null,null,null,null,null,null,null,null,null,null,null,null,null,null,null,"Art. 1 5°(1) "]
[null,null,null,null,null,null,null,null,null,null,"EN"]
[null,null,null,false,null,null,null,"iv) ligt uitsluitend op een of meer gemeentewegen"]
[]
[null,"2. Omschrijving, doel en aard der werken",null,null,null,null,null,null,null,null,null,null,null,null,null,null,null,null,null,null,{"$f":"(COUNTIF(C45:D45,TRUE)+COUNTIF(C52:D52,TRUE)+COUNTIF(C58:C82,TRUE))/5","v":0},"Naam Bijlage","Pagina n°"]
[]
[null,null,false,{"$f":"IF(OR(D47,D49),TRUE,FALSE)","v":false},null,null,null,"Uitgaven zijn erop gericht de verkeersveiligheid van schoolkinderen te verbeteren. Selecteer (enkel) de relevante uitgave(n):",null,null,null,null,null,null,null,null,null,null,null,null,null,null,null,null,"Art. 2. §1 2° (1)"]
[]
[null,null,null,false,null,null,null,"i) Uitgaven voor verkeerssignalisatie (overal).",null,null,null,null,null,null,null,null,null,null,null,null,null,null,null,null,"Art. 3 (1)"]
[null,null,null,null,null,null,null,"EN/OF",null,null,null,null,null,null,null,null,null,null,null,null,null,null,null,null,"Art. 3 (1)"]
[null,null,null,false,null,null,null,"ii) Uitgaven voor infrastructurele maatregelen die de verkeersveiligheid op de schoolroutes verhogen (excl. voor fietspaden op het BFF)."]
[]
[]
[null,null,false,null,null,null,null,"De motivering voor de keuze van de geselecteerde schoolroute of schoolroutes, bevat de verwijzing naar deze schoolroute."]
[]
[]
[null,null,null,null,null,null,null,"Type Werkzaamheden (selecteer alle werkzaamheden die van toepassing zijn)"]
[]
[null,null,null,null,null,null,null,"Hoofcategorie maatregelen ",null,"Subcategorie \nmaatregelen",null,"Gedetailleerde informatie",null,null,null,"Van toepasssing"]
[null,null,{"$f":"IF(COUNTIF(D58:D76,TRUE)>0,TRUE,FALSE)","v":false},false,null,null,null,"Signalisatie ",null,"S1. Verkeersborden",null,"Afbakening fietsstraat"]
[null,null,null,false,null,null,null,null,null,null,null,"(Dynamische) zone 30  "]
[null,null,null,false,null,null,null,null,null,null,null,"Detecterende Snelheidsinformatieborden (vb. Smileyborden, \"graag traag\")"]
[null,null,null,false,null,null,null,null,null,null,null,"Verkeersborden algemeen"]
[null,null,null,false,null,null,null,null,null,"S2. (Thermoplastische) wegmarkeringen",null,"Fietssuggestiestroken"]
[null,null,null,false,null,null,null,null,null,null,null,"Oversteekplaatsen"]
[null,null,null,false,null,null,null,null,null,null,null,"Markeringen algemeen"]
[null,null,null,false,null,null,null,null,null,"S3. (Verkeers)lichten",null,"Hardware verkeerslichten"]
[null,null,null,false,null,null,null,null,null,null,null,"Verlichting algemeen"]
[null,null,null,false,null,null,null,"Infrastructureel",null,"I1. (Her)aanleg",null,"Straatmeubilair"]
[null,null,null,false,null,null,null,null,null,null,null,"Vrijliggend fietspad"]
[null,null,null,false,null,null,null,null,null,null,null,"Aanliggende fietspad"]
[null,null,null,false,null,null,null,null,null,null,null,"Voetpad"]
[null,null,null,false,null,null,null,null,null,null,null,"Wegdek"]
[null,null,null,false,null,null,null,null,null,null,null,"Groen i.f.v. verkeersveiligheid"]
[null,null,null,false,null,null,null,null,null,"I2. Hardware",null,"Hardware handhaving (vb. ANPR Camera's)"]
[null,null,null,false,null,null,null,null,null,null,null,"Hardware beloningssysteem (eenmalig)"]
[null,null,null,false,null,null,null,null,null,null,null,"Hardware beloningssysteem (huurcontract 3j)"]
[null,null,null,false,null,null,null,null,null,"I3 Hardware en Software (Pakket)",null,"Trajectcontrole (systeem waarbij de gemiddelde snelheid over een langere afstand wordt gemeten)"]
[]
[]
[]
[null,null,null,null,null,null,null,"Allocatie Budgetraming (alloceer het budget per subcategorie die van toepassing is)"]
[null,null,null,null,null,null,null,null,null,null,null,null,null,null,null,"Raming (incl. BTW)",null,"%"]
[null,null,{"$f":"IF(R82=1,TRUE,FALSE)","v":false},{"$f":"IF(R82>1,FALSE,TRUE)","v":true},null,null,null,null,"Totaal Alle Categorieën",null,null,null,null,null,null,{"$f":"SUM(P84:Q90)","v":0},null,{"$f":"SUM(R84:R90)","v":0.95}]
[null,null,null,null,null,null,null,null,"Signalisatie"]
[null,null,null,60,null,null,null,null,null,"S1. Verkeersborden",null,null,null,null,null,{"$f":"R84*H$18","v":0},null,{"$f":"D84/100","v":0.6}]
[null,null,null,35,null,null,null,null,null,"S2. (Thermoplastische) wegmarkeringen",null,null,null,null,null,{"$f":"R85*H$18","v":0},null,{"$f":"D85/100","v":0.35}]
[null,null,null,0,null,null,null,null,null,"S3. (Verkeers)lichten",null,null,null,null,null,{"$f":"R86*H$18","v":0},null,{"$f":"D86/100","v":0}]
[null,null,null,null,null,null,null,null,"Infrastructuur"]
[null,null,null,0,null,null,null,null,null,"I1. Heraanleg",null,null,null,null,null,{"$f":"R88*H$18","v":0},null,{"$f":"D88/100","v":0}]
[null,null,null,0,null,null,null,null,null,"I2. Hardware",null,null,null,null,null,{"$f":"R89*H$18","v":0},null,{"$f":"D89/100","v":0}]
[null,null,null,0,null,null,null,null,null,"I3. Hardware en Software (Pakket)",null,null,null,null,null,{"$f":"R90*H$18","v":0},null,{"$f":"D90/100","v":0}]
[]
[null,"4. Timing",null,null,null,null,null,null,null,null,null,null,null,null,null,null,null,null,null,null,{"$f":"COUNTIF(C94:D105,TRUE)/2","v":0},"Naam Bijlage","Pagina n°"]
[]
[null,null,false,null,null,null,null,"De (geplande) werken worden uitgevoerd, rekening houdend met een voltooiingsdatum binnen de 12 maanden na de dag van beslissing van toekenning. De finale stukken zullen ten laatste 3 maanden na voormelde datum ingediend moeten worden.",null,null,null,null,null,null,null,null,null,null,null,null,null,null,null,null,"Art. 2 §3 juncto art. 3 (1)"]
[]
[]
[null,null,null,null,null,null,null,"Voorziene datum aanvang van de werken",null,null,null,null,null,null,null,{"$f":"IF(OR(ISBLANK(L97),ISBLANK(L98)),\"Gelieve beide data in te vullen\",\"\")","v":"Gelieve beide data in te vullen"}]
[null,null,null,null,null,null,null,"Voorziene datum einde van de werken"]
[null,null,null,null,null,null,null,"Duurtijd (kalenderdagen)",null,null,null,{"$f":"IF(OR(ISBLANK(L97),ISBLANK(L98)),\"Gelieve bovenstaande cellen in te vullen\",_xlfn.DAYS(L98,L97))","v":"Gelieve bovenstaande cellen in te vullen"}]
[]
[]
[]
[]
[null,null,false,null,null,null,null,"De planning van de uitvoering van de werken voor de route werd toegevoegd in bijlage met referentie.",null,null,null,null,null,null,null,null,null,null,null,null,null,null,null,null,"Art. 7  Eerste Lid 3° (1)"]
[]
[null,"5. Informatie domeinbeheerder",null,null,null,null,null,null,null,null,null,null,null,null,null,null,null,null,null,null,{"$f":"IF(C113=1,1,COUNTIF(C117:D118,TRUE)/2)","v":0},"Naam Bijlage (optioneel)","Pagina n°","Compleet?"]
[]
[null,null,false]
[]
[null,null,null,false]
[]
[]
[null,null,2,null,null,null,null,"Het volledige domein waarop de werken worden uitgevoerd, is in het beheer van de gemeente.",null,null,null,null,null,null,null,null,null,null,null,null,null,null,null,null,"Art. 7  Eerste Lid 1°-4° (1)"]
[]
[null,null,null,null,null,null,null,"Indien niet, vul aan:"]
[null,null,null,null,null,null,null,null,null,"Type",null,"Identiteit domeinbeheerder"]
[null,null,{"$f":"IF(C113=2,NOT(ISBLANK(L117)),TRUE)","v":false},null,null,null,null,null,null,"Privaat"]
[null,null,{"$f":"IF(C113=2,AND(C119=TRUE,NOT(ISBLANK(I120)),TRUE))","v":false}]
[null,null,false,null,null,null,null,"Het akkoord van deze domeinbeheerder werd als bijlage toegevoegd aan de dossieraanvraag.",null,null,null,null,null,null,null,null,null,null,null,null,null,null,null,null,"Art. 7  Eerste Lid 5° (1)"]
[null,null,null,null,null,null,null,"Bijlage*:"]
[]
[null,null,null,null,null,null,null,"* veplicht op te nemen"]
[null,"6. Optionele bijkomende informatie",null,null,null,null,null,null,null,null,null,null,null,null,null,null,null,null,null,null,null,"Naam Bijlage (optioneel)","Pagina n°"]
[]
[null,null,null,null,null,null,null,"Bijkomende toelichting"]
[null,null,null,null,null,null,null,null,null,null,null,null,null,null,null,null,null,null,null,null,null,null,null,null,"Art. 7  Eerste Lid 1° (1)"]
[]
[]
[null,null,{"$f":"IF(AND(D129=TRUE,ISBLANK(I130)),TRUE,FALSE)","v":false},false,null,null,null,"Optioneel - u kunt een verduidelijkende bijlage toevoegen ter verduidelijking/vervanging van bovenstaand veld."]
[null,null,null,null,null,null,null,"Bijlage*:"]
[]
[null,null,null,null,null,null,null,"* veplicht op te nemen indien van toepassing"]
[]
[]
[]
[null,"Voor de administratie (MOW)",null,null,null,null,null,null,null,null,null,null,null,null,null,null,"Voor de aanvrager (Naam + Functie)"]
[null,null,null,null,null,null,null,null,null,null,null,"Hide Row"]

{"sheet":"Route (23)","index":25,"n_rows":137,"n_cols":25,"rows_kept":137,"cut":false,"hidden":true,"merged":[[120,7,120,20],[124,7,124,20],[124,23,131,23],[128,7,128,16],[129,8,129,10],[130,7,130,20],[119,8,119,10],[98,11,98,14],[100,7,101,16],[107,7,107,20],[109,7,109,20],[110,7,110,20],[111,7,111,20],[112,7,112,15],[115,9,115,10],[115,11,115,14],[116,9,116,10],[116,11,116,14],[79,7,79,20],[97,11,97,14],[81,15,81,16],[82,15,82,16],[83,15,83,16],[84,15,84,16],[85,15,85,16],[87,15,87,16],[88,15,88,16],[89,15,89,16],[93,7,94,16],[96,11,96,14],[96,15,96,17],[65,11,65,14],[80,15,80,16],[66,7,75,8],[66,9,71,10],[66,11,66,14],[67,11,67,14],[68,11,68,14],[69,11,69,14],[70,11,70,14],[71,11,71,14],[72,9,74,10],[72,11,72,14],[73,11,73,14],[74,11,74,14],[75,9,75,10],[75,11,75,14],[54,7,54,20],[56,7,56,8],[56,9,56,10],[56,11,56,14],[57,7,65,8],[57,9,60,10],[57,11,57,14],[58,11,58,14],[59,11,59,14],[60,11,60,14],[61,9,63,10],[61,11,61,14],[62,11,62,14],[63,11,63,14],[64,9,65,10],[64,11,64,14],[51,7,52,17],[17,4,17,6],[17,7,17,16],[19,7,19,17],[23,23,41,23],[24,7,25,17],[27,7,27,17],[29,7,29,20],[33,7,34,20],[36,7,36,20],[37,7,38,20],[40,7,40,20],[44,7,45,17],[46,7,46,20],[47,7,47,20],[48,7,48,20],[11,4,11,16],[13,4,13,6],[13,7,13,16],[13,17,17,17],[14,4,14,6],[14,7,14,16],[15,4,15,6],[15,7,15,16],[16,4,16,6],[16,7,16,16],[7,1,7,20],[7,21,7,22],[1,9,5,21],[2,26,6,31],[5,7,5,8],[6,7,6,8],[6,15,6,16]]}
[]
[null,null,null,null,null,null,null,null,null,{"$f":"\"Individuele Detailfiche - Route \" &H14&_xlfn.UNICHAR(10)& \"('\"&H15&\"')\"","v":"Individuele Detailfiche - Route 23\n('<< Gelieve de naam van Schoolroute 23 in te vullen >>')"}]
[null,null,2]
[]
[]
[]
[]
[null,"Vul in onderstaande tabel de gevraagde gegevens in, vink alle verklaringen aan die op de aanvraag van toepassing zijn. Toepasselijke bijlages geeft u een (betekenisvolle naam) – vb. raming route 123. Vermeld deze naam op de voorziene plaatsen in kolom T.  Indien één en dezelfde bijlage de info van meerdere items bundelt, leid ons dan in “kolom  U\" naar het passende paginanummer. Vergeet niet de bijlages samen met het aangevulde aanvraagformulier over te maken.",null,null,null,null,null,null,null,null,null,null,null,null,null,null,null,null,null,null,null,"Bijlagen",null,"Validatie \nMOW","Wettelijke \nverwijzing"]
[]
[null,null,null,null,null,null,null,null,null,null,null,null,null,null,null,null,null,null,null,null,"Voortgang sectie"]
[null,"0. Kostenoverzicht",null,null,null,null,null,null,null,null,null,null,null,null,null,null,null,null,null,null,{"$f":"COUNTIF(C14:D21,TRUE)/2","v":0},"Naam Bijlage","Pagina n°","Evaluatie"]
[null,null,null,null,"Details per route (Automatisch aangevuld op basis van overzicht)"]
[null,null,null,null,null,null,null,null,null,null,null,null,null,null,null,null,null,"link"]
[null,null,{"$f":"IF(1-COUNTBLANK(Aanvraagformulier!G28)-COUNTBLANK(Aanvraagformulier!N28)=1,TRUE,FALSE)","v":false},null,"Route n°",null,null,23,null,null,null,null,null,null,null,null,null,{"$f":"HYPERLINK(\"#'Aanvraagformulier'!G28\",\"Klik hier\")","v":"Klik hier"}]
[null,null,null,null,"Naam route",null,null,{"$f":"VLOOKUP(H$14,Aanvraagformulier!$F$25:$N$53,2,FALSE)","v":"<< Gelieve de naam van Schoolroute 23 in te vullen >>"}]
[]
[null,null,null,null,"Raming kosten\n (excl. BTW)",null,null,{"$f":"VLOOKUP(H$14,Aanvraagformulier!$F$25:$N$53,8,FALSE)","v":0}]
[null,null,null,null,"Raming kosten\n (incl. BTW)",null,null,{"$f":"VLOOKUP(H$14,Aanvraagformulier!$F$25:$N$53,9,FALSE)","v":0}]
[]
[null,null,false,null,null,null,null,"De raming van de kosten werd toegevoegd aan het dossier en opgenomen in de bijlage met referentie.",null,null,null,null,null,null,null,null,null,null,null,null,null,null,null,null,"Art. 7  Eerste Lid 2° (1)"]
[]
[]
[null,"1. Locatie",null,null,null,null,null,null,null,null,null,null,null,null,null,null,null,null,null,null,{"$f":"COUNTIF(C25:D41,TRUE)/6","v":0},"Naam Bijlage","Pagina n°"]
[]
[null,null,false,null,null,null,null,"De route is vermeld op het plan op schaal waarop duidelijk aangegeven is welke scholen deel uitmaken van het project en waar de geplande maatregelen voor de schoolroute of schoolroutes zullen worden uitgevoerd, dat werd toegevoegd aan het dossier.",null,null,null,null,null,null,null,null,null,null,null,null,null,null,null,null,"Art. 1 4°-5°- art. 2 §1 1° (1) "]
[]
[]
[null,null,false,null,null,null,null,"De werken worden uitgevoerd op een geldige schoolroute, die:",null,null,null,null,null,null,null,null,null,null,null,null,null,null,null,null,"Art. 2 §1 1° (1) "]
[]
[null,null,null,false,null,null,null,"i)  Eindigt waar een schoolomgeving van een school begint.",null,null,null,null,null,null,null,null,null,null,null,null,null,null,null,null,"Art. 1 5°(1) "]
[]
[null,null,null,null,null,null,null,null,null,null,"EN"]
[]
[null,null,null,false,null,null,null,"ii) Buiten een straal van 100 meter rond de schooltoegang of voorbij het eerste kruispunt aan weerzijden indien dat verder ligt dan 100 meter."]
[]
[null,null,null,null,null,null,null,null,null,null,"EN"]
[null,null,null,false]
[null,null,null,null,null,null,null,"iii) Verschillende scholieren te voet of met de fiets of bromfiets op het woon-schooltraject gebruiken tijdens de uren die voorafgaan aan de opening van de school."]
[null,null,null,null,null,null,null,null,null,null,null,null,null,null,null,null,null,null,null,null,null,null,null,null,"Art. 1 5°(1) "]
[null,null,null,null,null,null,null,null,null,null,"EN"]
[null,null,null,false,null,null,null,"iv) ligt uitsluitend op een of meer gemeentewegen"]
[]
[null,"2. Omschrijving, doel en aard der werken",null,null,null,null,null,null,null,null,null,null,null,null,null,null,null,null,null,null,{"$f":"(COUNTIF(C45:D45,TRUE)+COUNTIF(C52:D52,TRUE)+COUNTIF(C58:C82,TRUE))/5","v":0},"Naam Bijlage","Pagina n°"]
[]
[null,null,false,{"$f":"IF(OR(D47,D49),TRUE,FALSE)","v":false},null,null,null,"Uitgaven zijn erop gericht de verkeersveiligheid van schoolkinderen te verbeteren. Selecteer (enkel) de relevante uitgave(n):",null,null,null,null,null,null,null,null,null,null,null,null,null,null,null,null,"Art. 2. §1 2° (1)"]
[]
[null,null,null,false,null,null,null,"i) Uitgaven voor verkeerssignalisatie (overal).",null,null,null,null,null,null,null,null,null,null,null,null,null,null,null,null,"Art. 3 (1)"]
[null,null,null,null,null,null,null,"EN/OF",null,null,null,null,null,null,null,null,null,null,null,null,null,null,null,null,"Art. 3 (1)"]
[null,null,null,false,null,null,null,"ii) Uitgaven voor infrastructurele maatregelen die de verkeersveiligheid op de schoolroutes verhogen (excl. voor fietspaden op het BFF)."]
[]
[]
[null,null,false,null,null,null,null,"De motivering voor de keuze van de geselecteerde schoolroute of schoolroutes, bevat de verwijzing naar deze schoolroute."]
[]
[]
[null,null,null,null,null,null,null,"Type Werkzaamheden (selecteer alle werkzaamheden die van toepassing zijn)"]
[]
[null,null,null,null,null,null,null,"Hoofcategorie maatregelen ",null,"Subcategorie \nmaatregelen",null,"Gedetailleerde informatie",null,null,null,"Van toepasssing"]
[null,null,{"$f":"IF(COUNTIF(D58:D76,TRUE)>0,TRUE,FALSE)","v":false},false,null,null,null,"Signalisatie ",null,"S1. Verkeersborden",null,"Afbakening fietsstraat"]
[null,null,null,false,null,null,null,null,null,null,null,"(Dynamische) zone 30  "]
[null,null,null,false,null,null,null,null,null,null,null,"Detecterende Snelheidsinformatieborden (vb. Smileyborden, \"graag traag\")"]
[null,null,null,false,null,null,null,null,null,null,null,"Verkeersborden algemeen"]
[null,null,null,false,null,null,null,null,null,"S2. (Thermoplastische) wegmarkeringen",null,"Fietssuggestiestroken"]
[null,null,null,false,null,null,null,null,null,null,null,"Oversteekplaatsen"]
[null,null,null,false,null,null,null,null,null,null,null,"Markeringen algemeen"]
[null,null,null,false,null,null,null,null,null,"S3. (Verkeers)lichten",null,"Hardware verkeerslichten"]
[null,null,null,false,null,null,null,null,null,null,null,"Verlichting algemeen"]
[null,null,null,false,null,null,null,"Infrastructureel",null,"I1. (Her)aanleg",null,"Straatmeubilair"]
[null,null,null,false,null,null,null,null,null,null,null,"Vrijliggend fietspad"]
[null,null,null,false,null,null,null,null,null,null,null,"Aanliggende fietspad"]
[null,null,null,false,null,null,null,null,null,null,null,"Voetpad"]
[null,null,null,false,null,null,null,null,null,null,null,"Wegdek"]
[null,null,null,false,null,null,null,null,null,null,null,"Groen i.f.v. verkeersveiligheid"]
[null,null,null,false,null,null,null,null,null,"I2. Hardware",null,"Hardware handhaving (vb. ANPR Camera's)"]
[null,null,null,false,null,null,null,null,null,null,null,"Hardware beloningssysteem (eenmalig)"]
[null,null,null,false,null,null,null,null,null,null,null,"Hardware beloningssysteem (huurcontract 3j)"]
[null,null,null,false,null,null,null,null,null,"I3 Hardware en Software (Pakket)",null,"Trajectcontrole (systeem waarbij de gemiddelde snelheid over een langere afstand wordt gemeten)"]
[]
[]
[]
[null,null,null,null,null,null,null,"Allocatie Budgetraming (alloceer het budget per subcategorie die van toepassing is)"]
[null,null,null,null,null,null,null,null,null,null,null,null,null,null,null,"Raming (incl. BTW)",null,"%"]
[null,null,{"$f":"IF(R82=1,TRUE,FALSE)","v":false},{"$f":"IF(R82>1,FALSE,TRUE)","v":true},null,null,null,null,"Totaal Alle Categorieën",null,null,null,null,null,null,{"$f":"SUM(P84:Q90)","v":0},null,{"$f":"SUM(R84:R90)","v":0.95}]
[null,null,null,null,null,null,null,null,"Signalisatie"]
[null,null,null,60,null,null,null,null,null,"S1. Verkeersborden",null,null,null,null,null,{"$f":"R84*H$18","v":0},null,{"$f":"D84/100","v":0.6}]
[null,null,null,35,null,null,null,null,null,"S2. (Thermoplastische) wegmarkeringen",null,null,null,null,null,{"$f":"R85*H$18","v":0},null,{"$f":"D85/100","v":0.35}]
[null,null,null,0,null,null,null,null,null,"S3. (Verkeers)lichten",null,null,null,null,null,{"$f":"R86*H$18","v":0},null,{"$f":"D86/100","v":0}]
[null,null,null,null,null,null,null,null,"Infrastructuur"]
[null,null,null,0,null,null,null,null,null,"I1. Heraanleg",null,null,null,null,null,{"$f":"R88*H$18","v":0},null,{"$f":"D88/100","v":0}]
[null,null,null,0,null,null,null,null,null,"I2. Hardware",null,null,null,null,null,{"$f":"R89*H$18","v":0},null,{"$f":"D89/100","v":0}]
[null,null,null,0,null,null,null,null,null,"I3. Hardware en Software (Pakket)",null,null,null,null,null,{"$f":"R90*H$18","v":0},null,{"$f":"D90/100","v":0}]
[]
[null,"4. Timing",null,null,null,null,null,null,null,null,null,null,null,null,null,null,null,null,null,null,{"$f":"COUNTIF(C94:D105,TRUE)/2","v":0},"Naam Bijlage","Pagina n°"]
[]
[null,null,false,null,null,null,null,"De (geplande) werken worden uitgevoerd, rekening houdend met een voltooiingsdatum binnen de 12 maanden na de dag van beslissing van toekenning. De finale stukken zullen ten laatste 3 maanden na voormelde datum ingediend moeten worden.",null,null,null,null,null,null,null,null,null,null,null,null,null,null,null,null,"Art. 2 §3 juncto art. 3 (1)"]
[]
[]
[null,null,null,null,null,null,null,"Voorziene datum aanvang van de werken",null,null,null,null,null,null,null,{"$f":"IF(OR(ISBLANK(L97),ISBLANK(L98)),\"Gelieve beide data in te vullen\",\"\")","v":"Gelieve beide data in te vullen"}]
[null,null,null,null,null,null,null,"Voorziene datum einde van de werken"]
[null,null,null,null,null,null,null,"Duurtijd (kalenderdagen)",null,null,null,{"$f":"IF(OR(ISBLANK(L97),ISBLANK(L98)),\"Gelieve bovenstaande cellen in te vullen\",_xlfn.DAYS(L98,L97))","v":"Gelieve bovenstaande cellen in te vullen"}]
[]
[]
[]
[]
[null,null,false,null,null,null,null,"De planning van de uitvoering van de werken voor de route werd toegevoegd in bijlage met referentie.",null,null,null,null,null,null,null,null,null,null,null,null,null,null,null,null,"Art. 7  Eerste Lid 3° (1)"]
[]
[null,"5. Informatie domeinbeheerder",null,null,null,null,null,null,null,null,null,null,null,null,null,null,null,null,null,null,{"$f":"IF(C113=1,1,COUNTIF(C117:D118,TRUE)/2)","v":0},"Naam Bijlage (optioneel)","Pagina n°","Compleet?"]
[]
[null,null,false]
[]
[null,null,null,false]
[]
[]
[null,null,2,null,null,null,null,"Het volledige domein waarop de werken worden uitgevoerd, is in het beheer van de gemeente.",null,null,null,null,null,null,null,null,null,null,null,null,null,null,null,null,"Art. 7  Eerste Lid 1°-4° (1)"]
[]
[null,null,null,null,null,null,null,"Indien niet, vul aan:"]
[null,null,null,null,null,null,null,null,null,"Type",null,"Identiteit domeinbeheerder"]
[null,null,{"$f":"IF(C113=2,NOT(ISBLANK(L117)),TRUE)","v":false},null,null,null,null,null,null,"Privaat"]
[null,null,{"$f":"IF(C113=2,AND(C119=TRUE,NOT(ISBLANK(I120)),TRUE))","v":false}]
[null,null,false,null,null,null,null,"Het akkoord van deze domeinbeheerder werd als bijlage toegevoegd aan de dossieraanvraag.",null,null,null,null,null,null,null,null,null,null,null,null,null,null,null,null,"Art. 7  Eerste Lid 5° (1)"]
[null,null,null,null,null,null,null,"Bijlage*:"]
[]
[null,null,null,null,null,null,null,"* veplicht op te nemen"]
[null,"6. Optionele bijkomende informatie",null,null,null,null,null,null,null,null,null,null,null,null,null,null,null,null,null,null,null,"Naam Bijlage (optioneel)","Pagina n°"]
[]
[null,null,null,null,null,null,null,"Bijkomende toelichting"]
[null,null,null,null,null,null,null,null,null,null,null,null,null,null,null,null,null,null,null,null,null,null,null,null,"Art. 7  Eerste Lid 1° (1)"]
[]
[]
[null,null,{"$f":"IF(AND(D129=TRUE,ISBLANK(I130)),TRUE,FALSE)","v":false},false,null,null,null,"Optioneel - u kunt een verduidelijkende bijlage toevoegen ter verduidelijking/vervanging van bovenstaand veld."]
[null,null,null,null,null,null,null,"Bijlage*:"]
[]
[null,null,null,null,null,null,null,"* veplicht op te nemen indien van toepassing"]
[]
[]
[]
[null,"Voor de administratie (MOW)",null,null,null,null,null,null,null,null,null,null,null,null,null,null,"Voor de aanvrager (Naam + Functie)"]
[null,null,null,null,null,null,null,null,null,null,null,"Hide Row"]